Workbook

Sheet Instructions
B1: ='Event Details'!D5 -> Heart of England League
B3: Instructions
B5: General
B6: This Spreadsheet come cleared down and ready to go. If you require a copy with test data loaded contact Martin Smith (msmith46@talktalk.net).
B7: If you enter test data to familiarise yourself with the layout, there are three macros to clear down the data ready for the new meeting. The first two macros are found in the 'Event Details' spreadsheet. Macro Button1 ('Clear Competitors Names for Teamsheet Male') will clear down the names from the male teamsheet. Macro 2 will clear down the female teamsheet.
B8: The third macro is also found in the 'Results Entry' spreadsheets. Clicking on the button 'Clear Results Table'- will clear down the previous meetings results. It is recommended that you make a Back-Up copy prior to deleting the data.
B9: New for 2013 - Guests are allowed in the 800m and 1500m at the discretion of the Track Referee. They must wear the number sequence allocated for the U11 (not club Letter). Also, a 'Howler' has been introduced as a new event in the U11's.
B11: Event Details
B12: The first spreadsheet shows details of the Athletic Meeting. Changing the Division number changes the club details for that division. The details are taken from the 'Club Details' spreadsheet. The field highlighted in 'Green' can be amended as required.
B13: To amend or delete the Club Names for clubs promoted or relegated see 'Club Details' spreadsheet.
B14: To clear the Competitors Names , click on the two macro buttons 'Clear Competitors Names from Teamsheet Male' and 'Clear Competitors Names from Female Teamsheet'.
B16: Timetable
B17: This spreadsheet shows the 'League Programme'. Each event has been given a unique 'Event Number.' which arranges the events in time order. These fields can be amended for any changes at the beginning of the season. Also ensure that 'Non Scoring Events (NS) are shown as separate events in the Programme and identified with 'NS' in column G.
B18: The Timetable can be printed off at anytime.
B20: Team Declaration Sheet
B21: This spreadsheet is a blank Declaration Sheet for both Male and Female competitors. If any amendments are made to the 'Timetable' , please ensure that this spreadsheet is updated by changing the appropriate 'Event Number' (if required). Ideally, the Team Declaration Sheets should be Emailed to the Results Team 2 Days before the event.
B23: Team Sheets Male & Teamsheet Female
B24: There are two Team Sheets, one for Male and one for Female. Scroll across to see the eight Clubs
B25: Scroll along to the right to find the appropriate Club and enter the name of the 'A' and 'B'. competitor for each event. Also enter the names of competitors in the relay teams. There is a section at the bottom for Guests.
B26: U11 Non Scoring and Guests - Each athlete should wear a unique number (not letter). Remember to enter the number against the competitors name.
B27: If clubs have Emailed their Declaration Sheets in advance of the meeting, then the names can be 'Cut and Pasted' into the spreadsheet. ( Note. Take care to copy to the correct rows.)
B29: Results Entry
B30: Enter all Events (including U11 Scoring & U11 Relay NS)
B31: Enter the Event number In the 'green' box (cell B4) to bring up details of the event. In the 'blue area' you will see all the competitors names which have been taken from the Teamsheets.
B32: To enter the Result for the first competitor, enter the Club letter into the first green box,(i.e. 'C' for Bromsgrove ). For the 'B' race, enter 'CC' which will identify the 'B' runner. A Table of the Club letters is shown at the left of the spreadsheet.
B33: Note: if the B Competitor does the best throw/ jump/ time, you can enter the double letter (i.e.'CC') in Event A and single letter ('C') in the Event B. This will select the right name from the teamsheet.
B34: Next move right, and enter the time or distance ( i.e. '2.71' metres or '2.12.13' mins.) If a competitor did not finish, enter 'DNF' in the time box.
B35: Move down and enter the second competitor results. Move to next column right and enter the time/ distance.
B36: Once all the results for Event A have been completed, repeat the same for Event B. Entering the single or double letter as appropriate (i.e. "C" or "CC").
B37: Once all the results have been entered, click on the button "Save Data". If you wish to Amend this data at a later stage, enter the Event No. and click on the "Edit Data" button and the results are restored.
B38: To manually adjust the points for equal scores i.e joint 2nd.- see Results by Age Group.
B40: Results in Event Order
B41: If on the day you are connected to a printer, this report is useful for printing off and putting on the noticeboard.
B42: There are 7 pages in the spread sheet ‘Results in Event Order’. There are 10 results per page.
B43: After entering the first 10 results, print page one off and the page can be stuck on the notice board.
B44: The clubs can then see the results and the points position
B46: Results by Age Group
B47: This spreadsheet is automatically updated from the previous sheet. This sheet can be printed off at anytime to get the latest points position.
B48: In the points section on the right, a manual adjustment can be made if points need to be shared. In the green highlighted area above the points, enter for example, '-0.5' to take off half a point from one team and add '0.5' to the another team.
B49: Enter your club letter at cell H5 and this will highlight your club throughout the results.
B51: Match Position
B52: This spreadsheet gives a summary of the 'Match Position' at any point in time. This is useful for the announcer who can read the information from the screen or print it off at any time.
B54: Results Summary
B55: This spreadsheet automatically calculates the Points and Position for each Age Group, and includes points added for providing Officials.
B57: Results by Club
B58: Enter a Club Letter in the Green Box (Cell B3). Enter each Club Letter in turn and it will produce the results for each Club. Can be printed off anytime.
B60: Adjustment for Officials
B61: 2 points per Official can be added up to a maximum of 10 for each Age Group i.e. U13 Females,U15 Females, U17 Females, U13 Male,U15 Male and U17 Men.
B62: New for 2016 - Bonus of 4 points added for providing officials of 2b and above.
B64: Athlete of the Match
B65: The athete who came first in each event is show with their time. The time is graded 1-4 based on
B66: grades in column P to S. Changing the position number in column C ( i.e.from 1 to 2) will show the person who came second.
B68: Club Details by Division
B69: To amend or delete the Club Names in each Division for clubs promoted or relegated, enter the details here.
B71: Competitor Change Form
B72: This spreadsheet is a blank 'Change Form' and issued to Team Manager on the day of the event. Ideally, the Team Declaration Sheets should be Emailed to the Results Team 2 Days before the event. If any amendments are made to the 'Team Sheet' on the day, the Team Manager should use this sheet to notify the Results Team of any changes.
B73: Field Duties by Club
B74: The table on the left shows all the Field Events in Event No. order.
B75: Under each Club, enter the Event No. in each green box.
B76: Enter "0" (zero) in the green box for a blank box.
B77: As the event no's. are entered, column F shows "Ok".
B78: To save the print out as a PDF file:
B79: a) click on 'File',
B80: b) then click on 'Save As',
B81: c) Enter a file name e.g. " Field Duties"
B82: d) click on the down arrow for the box "Save as File type" and find 'PDF'
B83: e) Click on SAVE.
B85: Track Lane Draw
B86: This Spreadsheet is for the assistance of the Marksman. It produces a printed list of randomly selected clubs over the 8 lanes of the track. The random sequence can be changed by entering 1 to 8 in the yellow highlighted area.
B87: If the spreadsheet is printed after the names have been entered from the Team Declaration Sheets, the report will show the number and names for the athletes entered.
B89: Field Jumps and Field Throws and Timekeepers Slip
B90: These three spread sheets are optional but can be used for printing 'Field Event Cards'.
B91: Enter the 'Event Number' from the list on the left into Cell J4 the top of the 'card' and the events details are updated.
B92: If you also wish to print the Competitors names, enter "Y" into Cell S3. This only works if the names have already been entered into the Team Declaration Sheets.
B93: Also the clubs order is different for each event as they are randomly drawn from ' Lane Draw' spread sheet. The Timekeepers recording slip can also be printed off as required.

Sheet Event Details
D3: Event Details
J4: Notes
B5: Event Title | D5: Heart of England League | I5: 1 | J5: Changing the Division number (cell 'D9')
J6: updates the Club Details accordingly.
B7: Year | D7: 2018 | I7: 2 | J7: Clubs promoted or relegated are
J8: amended in the spreadsheet 'Club Details'.
B9: Division | D9: 4 | I9: 3 | J9: At Cell 'A17', enter the meeting
J10: number i.e. 1,2 or 3.
A11: Match | B11: Date | D11: Venue | F11: Host | I11: 4 | J11: At Cell 'C32', enter the number of
A12: 1 | B12: =VLOOKUP($A12,EventDates,C$43,FALSE) -> 5th May 2018 | D12: =VLOOKUP($A12,EventDates,E$43,FALSE) -> Leamington | F12: =VLOOKUP($A12,EventDates,F$43,FALSE) -> Daventry +others | J12: Teams in the Division i.e. 8.
A13: 2 | B13: =VLOOKUP($A13,EventDates,C$43,FALSE) -> 24th June 2018 | D13: =VLOOKUP($A13,EventDates,E$43,FALSE) -> Pingles Stadium | F13: =VLOOKUP($A13,EventDates,F$43,FALSE) -> Nuneaton | I13: 5 | J13: Fields highlighted in 'Green' can be
A14: 3 | B14: =VLOOKUP($A14,EventDates,C$43,FALSE) -> 8th July 2018 | D14: =VLOOKUP($A14,EventDates,E$43,FALSE) -> Dell Stadium | F14: =VLOOKUP($A14,EventDates,F$43,FALSE) -> Dudley & Stourbridge | J14: amended as required.
I15: 6
B16: Next meeting
A17: 3 | B17: =IF($A17=3,B14,IF($A17=2,B13,B12)) -> 8th July 2018 | D17: =IF($A17=3,D14,IF($A17=2,D13,D12)) -> Dell Stadium | F17: =IF($A17=3,F14,IF($A17=2,F13,F12)) -> Dudley & Stourbridge
B20: Teams | C20: Letter | D20: Club Name | E20: U11 No's | G20: Short
G21: Name
B22: 1 | C22: =VLOOKUP($B22,ClubDetail,C$42,FALSE) -> L | D22: Daventry | E22: 850 | F22: 899 | G22: Dav | J22: Macros
B23: 2 | C23: E | D23: Droitwich | E23: 150 | F23: 199 | G23: Droit
B24: 3 | C24: B | D24: Dudley & S'bridge | E24: 200 | F24: 249 | G24: DASH
B25: 4 | C25: R | D25: Leamington AA | E25: 500 | F25: 549 | G25: Leam | I25: 1
B26: 5 | C26: N | D26: Nuneaton | E26: 600 | F26: 649 | G26: Nun
B27: 6 | C27: K | D27: Sparkhill | E27: 400 | F27: 449 | G27: Spark
B28: 7 | C28: W | D28: Witney AC | E28: 950 | F28: 999 | G28: Wit
B29: 8 | C29: 0 | D29: 0 | E29: 0 | F29: 0 | G29: 0
B30: 9 | C30: 0 | D30: 0 | E30: 0 | F30: 0 | G30: 0 | I30: 2
B32: Points | C32: =COUNTIF(C22:C30,"?") -> 7 | D32: (Total Number of Teams)
B42: =IF($D9=1,1,IF($D9=2,8,IF($D9=3,15,IF($D$9=4,22," ")))) -> 22 | C42: =IF($D9=1,2,IF($D9=2,9,IF($D9=3,16,IF($D$9=4,23," ")))) -> 23 | D42: =IF($D9=1,3,IF($D9=2,10,IF($D9=3,17,IF($D$9=4,24," ")))) -> 24 | E42: =IF($D9=1,4,IF($D9=2,11,IF($D9=3,18,IF($D$9=4,25," ")))) -> 25 | F42: =IF($D9=1,5,IF($D9=2,12,IF($D9=3,19,IF($D$9=4,26," ")))) -> 26 | G42: =IF($D9=1,6,IF($D9=2,13,IF($D9=3,20,IF($D$9=4,27," ")))) -> 27
C43: =IF($D9=1,2,IF($D9=2,9,IF($D9=3,16,IF($D$9=4,23," ")))) -> 23 | E43: =IF($D9=1,4,IF($D9=2,11,IF($D9=3,18,IF($D$9=4,25," ")))) -> 25 | F43: =IF($D9=1,5,IF($D9=2,12,IF($D9=3,19,IF($D$9=4,26," ")))) -> 26

Sheet Timetable
F1: ='Event Details'!D5&" Programme" -> Heart of England League Programme | T1: ='Event Details'!D5&" Programme by Age Group" -> Heart of England League Programme by Age Group
G2: ="Revised for "&'Event Details'!D7 -> Revised for 2018 | T2: ="Revised for "&'Event Details'!D7 -> Revised for 2018
C4: Event | G4: Non | I4: Event | Q4: Event | U4: Event
C5: No | D5: Time | E5: Event | F5: Age | G5: Scoring | I5: No | J5: Time | K5: Event | L5: Age | M5: Comment | Q5: No | R5: Time | S5: Event | U5: No | V5: Time | W5: Event
C7: Track Events | I7: Field Events
C9: 1 | D9: 11.45 | E9: 1500m | F9: U13 Female | I9: 2 | J9: 11.45 | K9: Howler | L9: U11 Male | S9: U11 Female | W9: U11 Male
C10: 4 | D10: 11.55 | E10: 1500m | F10: U15 Female | I10: 3 | J10: 11.45 | K10: Howler | L10: U11 Female | Q10: 3 | R10: =IF($Q10>0,VLOOKUP($Q10,EventsOrder,2,FALSE)," ") -> 11.45 | S10: =IF($Q10>0,VLOOKUP($Q10,EventsOrder,6,FALSE)," ") -> Howler | U10: 2 | V10: =IF($U10>0,VLOOKUP($U10,EventsOrder,2,FALSE)," ") -> 11.45 | W10: =IF($U10>0,VLOOKUP($U10,EventsOrder,6,FALSE)," ") -> Howler
C11: 7 | D11: 12.05 | E11: 1500m | F11: U17 F/Women | I11: 5 | J11: 12 | K11: High Jump | L11: U13 Male | Q11: 29 | R11: 1.5 | S11: 600m | U11: 14 | V11: 12.3 | W11: Long Jump Pit 1
C12: 11 | D12: 12.15 | E12: 70m hurdles | F12: U13 Female | I12: 6 | J12: 12 | K12: Long Jump | L12: U15 Male | M12: Pit 2 | Q12: 30 | R12: 1.55 | S12: 600m NS | U12: 33 | V12: 2 | W12: 600m
C13: 12 | D13: 12.2 | E13: 800m | F13: U13 Male | I13: 8 | J13: 12.15 | K13: Shot | L13: U17 Men | Q13: 44 | R13: 2.1 | S13: Long Jump Pit 2 | U13: 34 | V13: 2.05 | W13: 600m NS
C14: 13 | D14: 12.3 | E14: 75m hurdles | F14: U15 Female | I14: 9 | J14: 12.15 | K14: Discus | L14: U15 Female | M14: Match 2 | Q14: 58 | R14: 3.1 | S14: 75m | U14: 61 | V14: 3.2 | W14: 75m
C15: 15 | D15: 12.35 | E15: 75m hurdles | F15: U13 Male | I15: 10 | J15: 12.15 | K15: Javelin (U17) | L15: U17 Female | M15: Match 1 & 3 | Q15: 59 | R15: 3.15 | S15: 75m NS | U15: 62 | V15: 3.25 | W15: 75m NS
C16: 16 | D16: 12.4 | E16: 800m | F16: U15 Male | I16: 14 | J16: 12.3 | K16: Long Jump | L16: U11 Male | M16: Pit 1 | Q16: 81 | R16: 4.5 | S16: 4 x 100m Mixed NS | U16: 81 | V16: 4.5 | W16: 4 x 100m Mixed NS
C17: 18 | D17: 12.5 | E17: 800m | F17: U17 Men | I17: 17 | J17: 12.55 | K17: High Jump | L17: U15 Female
C18: 19 | D18: 1 | E18: 80m hurdles (U17) | F18: U17 Female | I18: 21 | J18: 1 | K18: Long Jump | L18: U15 Female | M18: Pit 2 | S18: U13 Female | W18: U13 Male
C19: 20 | D19: 1.05 | E19: 80m hurdles | F19: U15 Male | I19: 22 | J19: 1 | K19: Shot | L19: U15 Male | Q19: 1 | R19: =IF($Q19>0,VLOOKUP($Q19,EventsOrder,2,FALSE)," ") -> 11.45 | S19: =IF($Q19>0,VLOOKUP($Q19,EventsOrder,6,FALSE)," ") -> 1500m | U19: 5 | V19: =IF($U19>0,VLOOKUP($U19,EventsOrder,2,FALSE)," ") -> 12 | W19: =IF($U19>0,VLOOKUP($U19,EventsOrder,6,FALSE)," ") -> High Jump
C20: 25 | D20: 1.15 | E20: 800m | F20: U13 Female | I20: 23 | J20: 1 | K20: Discus | L20: U17 Men | M20: Match 2 | Q20: 11 | R20: 12.15 | S20: 70m hurdles | U20: 12 | V20: 12.2 | W20: 800m
C21: 26 | D21: 1.25 | E21: 800m | F21: U15 Female | I21: 24 | J21: 1 | K21: Javelin | L21: U13 Male | M21: Match 1 & 3 | Q21: 25 | R21: 1.15 | S21: 800m | U21: 15 | V21: 12.35 | W21: 75m hurdles
C22: 27 | D22: 1.35 | E22: 100m hurdles | F22: U17 Men | I22: 31 | J22: 1.4 | K22: High Jump | L22: U13 Female | Q22: 31 | R22: 1.4 | S22: High Jump | U22: 24 | V22: 1 | W22: Javelin Match 1 & 3
C23: 28 | D23: 1.4 | E23: 800m | F23: U17 F/Women | I23: 32 | J23: 1.3 | K23: Long Jump | L23: U17 Men | M23: Pit1 | Q23: 35 | R23: 2.1 | S23: 100m | U23: 41 | V23: 2.25 | W23: 100m
C24: 29 | D24: 1.5 | E24: 600m | F24: U11 Female | I24: 37 | J24: 1.5 | K24: Shot (U17) | L24: U17 Female | Q24: 38 | R24: 1.5 | S24: Discus Match 2 | U24: 52 | V24: 2.4 | W24: Shot
C25: 30 | D25: 1.55 | E25: 600m | F25: U11 Female | G25: NS | I25: 38 | J25: 1.5 | K25: Discus | L25: U13 Female | M25: Match 2 | Q25: 56 | R25: 2.5 | S25: Long Jump Pit 1 | U25: 64 | V25: 3.2 | W25: Long Jump Pit 2
C26: 33 | D26: 2 | E26: 600m | F26: U11 Male | I26: 39 | J26: 1.5 | K26: Javelin | L26: U15 Male | M26: Match 1 & 3 | Q26: 63 | R26: 3.35 | S26: 200m | U26: 70 | V26: 3.5 | W26: 200m
C27: 34 | D27: 2.05 | E27: 600m | F27: U11 Male | G27: NS | I27: 44 | J27: 2.1 | K27: Long Jump | L27: U11 Female | M27: Pit 2 | Q27: 65 | R27: 3.3 | S27: Shot | U27: 73 | V27: 4.2 | W27: 1500m
C28: 35 | D28: 2.1 | E28: 100m | F28: U13 Female | I28: 45 | J28: 2.25 | K28: High Jump | L28: U15 Male | Q28: 79 | R28: 4.2 | S28: Javelin Match 1 & 3 | U28: 78 | V28: 4.2 | W28: Discus Match 2
C29: 36 | D29: 2.15 | E29: 100m | F29: U15 Female | I29: 52 | J29: 2.4 | K29: Shot | L29: U13 Male | Q29: 82 | R29: 4.55 | S29: 4 x 100m | U29: 85 | V29: 5.1 | W29: 4 x 100m
C30: 40 | D30: 2.2 | E30: 100m | F30: U17 F/Women | I30: 53 | J30: 2.4 | K30: Discus (U17) | L30: U17 Female | M30: Match 2
C31: 41 | D31: 2.25 | E31: 100m | F31: U13 Male | I31: 54 | J31: 2.4 | K31: Javelin | L31: U15 Female | M31: Match 1 & 3 | S31: U15 Female | W31: U15 Male
C32: 42 | D32: 2.3 | E32: 100m | F32: U15 Male | I32: 56 | J32: 2.5 | K32: Long Jump | L32: U13 Female | M32: Pit 1 | Q32: 4 | R32: =IF($Q32>0,VLOOKUP($Q32,EventsOrder,2,FALSE)," ") -> 11.55 | S32: =IF($Q32>0,VLOOKUP($Q32,EventsOrder,6,FALSE)," ") -> 1500m | U32: 6 | V32: =IF($U32>0,VLOOKUP($U32,EventsOrder,2,FALSE)," ") -> 12 | W32: =IF($U32>0,VLOOKUP($U32,EventsOrder,6,FALSE)," ") -> Long Jump Pit 2
C33: 43 | D33: 2.35 | E33: 100m | F33: U17 Men | I33: 60 | J33: 3.1 | K33: High Jump | L33: U17 F/Women | Q33: 9 | R33: 12.15 | S33: Discus Match 2 | U33: 16 | V33: 12.4 | W33: 800m
C34: 50 | D34: 2.4 | E34: 300m | F34: U15 Female | I34: 64 | J34: 3.2 | K34: Long Jump | L34: U13 Male | M34: Pit 2 | Q34: 13 | R34: 12.3 | S34: 75m hurdles | U34: 20 | V34: 1.05 | W34: 80m hurdles
C35: 51 | D35: 2.45 | E35: 300m | F35: U17 F/Women | I35: 65 | J35: 3.3 | K35: Shot | L35: U13 Female | Q35: 17 | R35: 12.55 | S35: High Jump | U35: 22 | V35: 1 | W35: Shot
C36: 55 | D36: 2.55 | E36: 300m | F36: U15 Male | I36: 66 | J36: 3.3 | K36: Discus | L36: U15 Male | M36: Match 2 | Q36: 21 | R36: 1 | S36: Long Jump Pit 2 | U36: 39 | V36: 1.5 | W36: Javelin Match 1 & 3
C37: 57 | D37: 3 | E37: 400m | F37: U17 Men | I37: 67 | J37: 3.3 | K37: Javelin | L37: U17 Men | M37: Match 1 & 3 | Q37: 26 | R37: 1.25 | S37: 800m | U37: 42 | V37: 2.3 | W37: 100m
C38: 58 | D38: 3.1 | E38: 75m | F38: U11 Female | I38: 74 | J38: 4.1 | K38: High Jump | L38: U17 Men | Q38: 36 | R38: 2.15 | S38: 100m | U38: 45 | V38: 2.25 | W38: High Jump
C39: 59 | D39: 3.15 | E39: 75m | F39: U11 Female | G39: NS | I39: 75 | J39: 4 | K39: Long Jump | L39: U17 F/Women | M39: Pit1 | Q39: 50 | R39: 2.4 | S39: 300m | U39: 55 | V39: 2.55 | W39: 300m
C40: 61 | D40: 3.2 | E40: 75m | F40: U11 Male | I40: 77 | J40: 4.2 | K40: Shot | L40: U15 Female | Q40: 54 | R40: 2.4 | S40: Javelin Match 1 & 3 | U40: 66 | V40: 3.3 | W40: Discus Match 2
C41: 62 | D41: 3.25 | E41: 75m | F41: U11 Male | G41: NS | I41: 78 | J41: 4.2 | K41: Discus | L41: U13 Male | M41: Match 2 | Q41: 68 | R41: 3.4 | S41: 200m | U41: 71 | V41: 3.55 | W41: 200m
C42: 63 | D42: 3.35 | E42: 200m | F42: U13 Female | I42: 79 | J42: 4.2 | K42: Javelin | L42: U13 Female | M42: Match 1 & 3 | Q42: 77 | R42: 4.2 | S42: Shot | U42: 76 | V42: 4.3 | W42: 1500m
C43: 68 | D43: 3.4 | E43: 200m | F43: U15 Female | Q43: 83 | R43: 5 | S43: 4 x 100m | U43: 86 | V43: 5.15 | W43: 4 x 100m
C44: 69 | D44: 3.45 | E44: 200m | F44: U17 F/Women | J44: Guests - Non Scoring
C45: 70 | D45: 3.5 | E45: 200m | F45: U13 Male | I45: 88 | J45: 11.45 | K45: 1500m | L45: U13 Female | M45: NS | S45: U17 F/Women | W45: U17 Men
C46: 71 | D46: 3.55 | E46: 200m | F46: U15 Male | I46: 89 | J46: 11.55 | K46: 1500m | L46: U15 Female | M46: NS | Q46: 7 | R46: =IF($Q46>0,VLOOKUP($Q46,EventsOrder,2,FALSE)," ") -> 12.05 | S46: =IF($Q46>0,VLOOKUP($Q46,EventsOrder,6,FALSE)," ") -> 1500m | U46: 8 | V46: =IF($U46>0,VLOOKUP($U46,EventsOrder,2,FALSE)," ") -> 12.15 | W46: =IF($U46>0,VLOOKUP($U46,EventsOrder,6,FALSE)," ") -> Shot
C47: 72 | D47: 4 | E47: 200m | F47: U17 Men | I47: 90 | J47: 12.05 | K47: 1500m | L47: U17 F/Women | M47: NS | Q47: 10 | R47: 12.15 | S47: Javelin (U17) Match 1 & 3 | U47: 18 | V47: 12.5 | W47: 800m
C48: 73 | D48: 4.2 | E48: 1500m | F48: U13 Male | I48: 91 | J48: 12.2 | K48: 800m | L48: U13 Male | M48: NS | Q48: 19 | R48: 1 | S48: 80m hurdles (U17) | U48: 23 | V48: 1 | W48: Discus Match 2
C49: 76 | D49: 4.3 | E49: 1500m | F49: U15 Male | I49: 92 | J49: 12.4 | K49: 800m | L49: U15 Male | M49: NS | Q49: 28 | R49: 1.4 | S49: 800m | U49: 27 | V49: 1.35 | W49: 100m hurdles
C50: 80 | D50: 4.4 | E50: 1500m | F50: U17 Men | I50: 93 | J50: 12.5 | K50: 800m | L50: U17 Men | M50: NS | Q50: 37 | R50: 1.5 | S50: Shot (U17) | U50: 32 | V50: 1.3 | W50: Long Jump Pit1
C51: 81 | D51: 4.5 | E51: 4 x 100m Mixed | F51: U11 Fem/Male | G51: NS | I51: 94 | J51: 1.15 | K51: 800m | L51: U13 Female | M51: NS | Q51: 40 | R51: 2.2 | S51: 100m | U51: 43 | V51: 2.35 | W51: 100m
C52: 82 | D52: 4.55 | E52: 4 x 100m | F52: U13 Female | I52: 95 | J52: 1.25 | K52: 800m | L52: U15 Female | M52: NS | Q52: 51 | R52: 2.45 | S52: 300m | U52: 57 | V52: 3 | W52: 400m
C53: 83 | D53: 5 | E53: 4 x 100m | F53: U15 Female | I53: 96 | J53: 1.4 | K53: 800m | L53: U17 F/Women | M53: NS | Q53: 53 | R53: 2.4 | S53: Discus (U17) Match 2 | U53: 67 | V53: 3.3 | W53: Javelin Match 1 & 3
C54: 84 | D54: 5.05 | E54: 4 x 100m | F54: U17 F/Women | I54: 97 | J54: 4.2 | K54: 1500m | L54: U13 Male | M54: NS | Q54: 60 | R54: 3.1 | S54: High Jump | U54: 72 | V54: 4 | W54: 200m
C55: 85 | D55: 5.1 | E55: 4 x 100m | F55: U13 Male | I55: 98 | J55: 4.3 | K55: 1500m | L55: U15 Male | M55: NS | Q55: 69 | R55: 3.45 | S55: 200m | U55: 74 | V55: 4.1 | W55: High Jump
C56: 86 | D56: 5.15 | E56: 4 x 100m | F56: U15 Male | I56: 99 | J56: 4.4 | K56: 1500m | L56: U17 Men | M56: NS | Q56: 75 | R56: 4 | S56: Long Jump Pit1 | U56: 80 | V56: 4.4 | W56: 1500m
C57: 87 | D57: 5.2 | E57: 4 x 100m | F57: U17 Men | Q57: 84 | R57: 5.05 | S57: 4 x 100m | U57: 87 | V57: 5.2 | W57: 4 x 100m
K59: No of Trials | S59: Guests - Non Scoring
I60: Jumps | K60: 3 | L60: Long Jump - 2 Pits required | S60: Female | W60: Male
I61: Discus | K61: 3 | Q61: 88 | R61: =IF($Q61>0,VLOOKUP($Q61,EventsOrder,2,FALSE)," ") -> 11.45 | S61: =IF($Q61>0,VLOOKUP($Q61,EventsOrder,6,FALSE)," ") -> 1500m U13 Female | U61: 91 | V61: =IF($U61>0,VLOOKUP($U61,EventsOrder,2,FALSE)," ") -> 12.2 | W61: =IF($U61>0,VLOOKUP($U61,EventsOrder,6,FALSE)," ") -> 800m U13 Male
I62: Javelin | K62: 3 | Q62: 89 | R62: 11.55 | S62: 1500m U15 Female | U62: 92 | V62: 12.4 | W62: 800m U15 Male
I63: Shot | K63: 3 | Q63: 90 | R63: 12.05 | S63: 1500m U17 F/Women | U63: 93 | V63: 12.5 | W63: 800m U17 Men
Q64: 94 | R64: 1.15 | S64: 800m U13 Female | U64: 97 | V64: 4.2 | W64: 1500m U13 Male
J65: High Jump | Q65: 95 | R65: =IF($Q65>0,VLOOKUP($Q65,EventsOrder,2,FALSE)," ") -> 1.25 | S65: =IF($Q65>0,VLOOKUP($Q65,EventsOrder,6,FALSE)," ") -> 800m U15 Female | U65: 98 | V65: =IF($U65>0,VLOOKUP($U65,EventsOrder,2,FALSE)," ") -> 4.3 | W65: =IF($U65>0,VLOOKUP($U65,EventsOrder,6,FALSE)," ") -> 1500m U15 Male
J66: Opening Heights | Q66: 96 | R66: =IF($Q66>0,VLOOKUP($Q66,EventsOrder,2,FALSE)," ") -> 1.4 | S66: =IF($Q66>0,VLOOKUP($Q66,EventsOrder,6,FALSE)," ") -> 800m U17 F/Women | U66: 99 | V66: =IF($U66>0,VLOOKUP($U66,EventsOrder,2,FALSE)," ") -> 4.4 | W66: =IF($U66>0,VLOOKUP($U66,EventsOrder,6,FALSE)," ") -> 1500m U17 Men
J67: Male | K67: Female | R67: =IF($Q67>0,VLOOKUP($Q67,EventsOrder,2,FALSE)," ") ->  | S67: =IF($Q67>0,VLOOKUP($Q67,EventsOrder,6,FALSE)," ") ->  | V67: =IF($U67>0,VLOOKUP($U67,EventsOrder,2,FALSE)," ") ->  | W67: =IF($Q67>0,VLOOKUP($Q67,EventsOrder,6,FALSE)," ") -> 
I68: U13 | J68: 1.10m | K68: 1.00m
I69: U15 | J69: 1.20m | K69: 1.10m
I70: U17 | J70: 1.30m | K70: 1.20m
C74: Event No's - In Order of Time
C76: Event
C77: No | D77: Time | E77: Event | F77: Age | G77: Comment | I77: Event
G78: =E78&" "&IF(J78>0,J78,"") -> 
C79: 0 | G79: =E79&" "&IF(J79>0,J79,"") -> 
C80: 1 | D80: =VLOOKUP($C80,IF(ISNA(VLOOKUP($C80,Track,1,FALSE)),Field,Track),2,FALSE) -> 11.45 | E80: =VLOOKUP($C80,IF(ISNA(VLOOKUP($C80,Track,1,FALSE)),Field,Track),3,FALSE) -> 1500m | F80: =VLOOKUP($C80,IF(ISNA(VLOOKUP($C80,Track,1,FALSE)),Field,Track),4,FALSE) -> U13 Female | G80: =VLOOKUP($C80,IF(ISNA(VLOOKUP($C80,Track,1,FALSE)),Field,Track),5,FALSE) ->  | H80: =VLOOKUP($C80,IF(ISNA(VLOOKUP($C80,Track,1,FALSE)),Field,Track),3,FALSE)&" "&G80 -> 1500m
C81: 2 | D81: 11.45 | E81: Howler | F81: U11 Male | H81: Howler
C82: 3 | D82: 11.45 | E82: Howler | F82: U11 Female | H82: Howler
C83: 4 | D83: 11.55 | E83: 1500m | F83: U15 Female | H83: 1500m
C84: 5 | D84: 12 | E84: High Jump | F84: U13 Male | H84: High Jump
C85: 6 | D85: 12 | E85: Long Jump | F85: U15 Male | G85: Pit 2 | H85: Long Jump Pit 2
C86: 7 | D86: 12.05 | E86: 1500m | F86: U17 F/Women | H86: 1500m
C87: 8 | D87: 12.15 | E87: Shot | F87: U17 Men | H87: Shot
C88: 9 | D88: 12.15 | E88: Discus | F88: U15 Female | G88: Match 2 | H88: Discus Match 2
C89: 10 | D89: 12.15 | E89: Javelin (U17) | F89: U17 Female | G89: Match 1 & 3 | H89: Javelin (U17) Match 1 & 3
C90: 11 | D90: 12.15 | E90: 70m hurdles | F90: U13 Female | H90: 70m hurdles
C91: 12 | D91: 12.2 | E91: 800m | F91: U13 Male | H91: 800m
C92: 13 | D92: 12.3 | E92: 75m hurdles | F92: U15 Female | H92: 75m hurdles
C93: 14 | D93: 12.3 | E93: Long Jump | F93: U11 Male | G93: Pit 1 | H93: Long Jump Pit 1
C94: 15 | D94: 12.35 | E94: 75m hurdles | F94: U13 Male | H94: 75m hurdles
C95: 16 | D95: 12.4 | E95: 800m | F95: U15 Male | H95: 800m
C96: 17 | D96: 12.55 | E96: High Jump | F96: U15 Female | H96: High Jump
C97: 18 | D97: 12.5 | E97: 800m | F97: U17 Men | H97: 800m
C98: 19 | D98: 1 | E98: 80m hurdles (U17) | F98: U17 Female | H98: 80m hurdles (U17)
C99: 20 | D99: 1.05 | E99: 80m hurdles | F99: U15 Male | H99: 80m hurdles
C100: 21 | D100: 1 | E100: Long Jump | F100: U15 Female | G100: Pit 2 | H100: Long Jump Pit 2
C101: 22 | D101: 1 | E101: Shot | F101: U15 Male | H101: Shot
C102: 23 | D102: 1 | E102: Discus | F102: U17 Men | G102: Match 2 | H102: Discus Match 2
C103: 24 | D103: 1 | E103: Javelin | F103: U13 Male | G103: Match 1 & 3 | H103: Javelin Match 1 & 3
C104: 25 | D104: 1.15 | E104: 800m | F104: U13 Female | H104: 800m
C105: 26 | D105: 1.25 | E105: 800m | F105: U15 Female | H105: 800m
C106: 27 | D106: 1.35 | E106: 100m hurdles | F106: U17 Men | H106: 100m hurdles
C107: 28 | D107: 1.4 | E107: 800m | F107: U17 F/Women | H107: 800m
C108: 29 | D108: 1.5 | E108: 600m | F108: U11 Female | H108: 600m
C109: 30 | D109: 1.55 | E109: 600m | F109: U11 Female | G109: NS | H109: 600m NS
C110: 31 | D110: 1.4 | E110: High Jump | F110: U13 Female | H110: High Jump
C111: 32 | D111: 1.3 | E111: Long Jump | F111: U17 Men | G111: Pit1 | H111: Long Jump Pit1
C112: 33 | D112: =VLOOKUP($C112,IF(ISNA(VLOOKUP($C112,Track,1,FALSE)),Field,Track),2,FALSE) -> 2 | E112: =VLOOKUP($C112,IF(ISNA(VLOOKUP($C112,Track,1,FALSE)),Field,Track),3,FALSE) -> 600m | F112: =VLOOKUP($C112,IF(ISNA(VLOOKUP($C112,Track,1,FALSE)),Field,Track),4,FALSE) -> U11 Male | G112: =VLOOKUP($C112,IF(ISNA(VLOOKUP($C112,Track,1,FALSE)),Field,Track),5,FALSE) ->  | H112: =VLOOKUP($C112,IF(ISNA(VLOOKUP($C112,Track,1,FALSE)),Field,Track),3,FALSE)&" "&G112 -> 600m
C113: 34 | D113: 2.05 | E113: 600m | F113: U11 Male | G113: NS | H113: 600m NS
C114: 35 | D114: 2.1 | E114: 100m | F114: U13 Female | H114: 100m
C115: 36 | D115: 2.15 | E115: 100m | F115: U15 Female | H115: 100m
C116: 37 | D116: 1.5 | E116: Shot (U17) | F116: U17 Female | H116: Shot (U17)
C117: 38 | D117: 1.5 | E117: Discus | F117: U13 Female | G117: Match 2 | H117: Discus Match 2
C118: 39 | D118: 1.5 | E118: Javelin | F118: U15 Male | G118: Match 1 & 3 | H118: Javelin Match 1 & 3
C119: 40 | D119: 2.2 | E119: 100m | F119: U17 F/Women | H119: 100m
C120: 41 | D120: 2.25 | E120: 100m | F120: U13 Male | H120: 100m
C121: 42 | D121: 2.3 | E121: 100m | F121: U15 Male | H121: 100m
C122: 43 | D122: 2.35 | E122: 100m | F122: U17 Men | H122: 100m
C123: 44 | D123: 2.1 | E123: Long Jump | F123: U11 Female | G123: Pit 2 | H123: Long Jump Pit 2
C124: 45 | D124: 2.25 | E124: High Jump | F124: U15 Male | H124: High Jump
C125: 46
C126: 47
C127: 48
C128: 49
C129: 50 | D129: 2.4 | E129: 300m | F129: U15 Female | H129: 300m
C130: 51 | D130: 2.45 | E130: 300m | F130: U17 F/Women | H130: 300m
C131: 52 | D131: 2.4 | E131: Shot | F131: U13 Male | H131: Shot
C132: 53 | D132: 2.4 | E132: Discus (U17) | F132: U17 Female | G132: Match 2 | H132: Discus (U17) Match 2
C133: 54 | D133: 2.4 | E133: Javelin | F133: U15 Female | G133: Match 1 & 3 | H133: Javelin Match 1 & 3
C134: 55 | D134: 2.55 | E134: 300m | F134: U15 Male | H134: 300m
C135: 56 | D135: 2.5 | E135: Long Jump | F135: U13 Female | G135: Pit 1 | H135: Long Jump Pit 1
C136: 57 | D136: 3 | E136: 400m | F136: U17 Men | H136: 400m
C137: 58 | D137: 3.1 | E137: 75m | F137: U11 Female | H137: 75m
C138: 59 | D138: 3.15 | E138: 75m | F138: U11 Female | G138: NS | H138: 75m NS
C139: 60 | D139: 3.1 | E139: High Jump | F139: U17 F/Women | H139: High Jump
C140: 61 | D140: 3.2 | E140: 75m | F140: U11 Male | H140: 75m
C141: 62 | D141: 3.25 | E141: 75m | F141: U11 Male | G141: NS | H141: 75m NS
C142: 63 | D142: 3.35 | E142: 200m | F142: U13 Female | H142: 200m
C143: 64 | D143: 3.2 | E143: Long Jump | F143: U13 Male | G143: Pit 2 | H143: Long Jump Pit 2
C144: 65 | D144: =VLOOKUP($C144,IF(ISNA(VLOOKUP($C144,Track,1,FALSE)),Field,Track),2,FALSE) -> 3.3 | E144: =VLOOKUP($C144,IF(ISNA(VLOOKUP($C144,Track,1,FALSE)),Field,Track),3,FALSE) -> Shot | F144: =VLOOKUP($C144,IF(ISNA(VLOOKUP($C144,Track,1,FALSE)),Field,Track),4,FALSE) -> U13 Female | G144: =VLOOKUP($C144,IF(ISNA(VLOOKUP($C144,Track,1,FALSE)),Field,Track),5,FALSE) ->  | H144: =VLOOKUP($C144,IF(ISNA(VLOOKUP($C144,Track,1,FALSE)),Field,Track),3,FALSE)&" "&G144 -> Shot
C145: 66 | D145: 3.3 | E145: Discus | F145: U15 Male | G145: Match 2 | H145: Discus Match 2
C146: 67 | D146: 3.3 | E146: Javelin | F146: U17 Men | G146: Match 1 & 3 | H146: Javelin Match 1 & 3
C147: 68 | D147: 3.4 | E147: 200m | F147: U15 Female | H147: 200m
C148: 69 | D148: 3.45 | E148: 200m | F148: U17 F/Women | H148: 200m
C149: 70 | D149: 3.5 | E149: 200m | F149: U13 Male | H149: 200m
C150: 71 | D150: 3.55 | E150: 200m | F150: U15 Male | H150: 200m
C151: 72 | D151: 4 | E151: 200m | F151: U17 Men | H151: 200m
C152: 73 | D152: 4.2 | E152: 1500m | F152: U13 Male | H152: 1500m
C153: 74 | D153: 4.1 | E153: High Jump | F153: U17 Men | H153: High Jump
C154: 75 | D154: 4 | E154: Long Jump | F154: U17 F/Women | G154: Pit1 | H154: Long Jump Pit1
C155: 76 | D155: 4.3 | E155: 1500m | F155: U15 Male | H155: 1500m
C156: 77 | D156: 4.2 | E156: Shot | F156: U15 Female | H156: Shot
C157: 78 | D157: 4.2 | E157: Discus | F157: U13 Male | G157: Match 2 | H157: Discus Match 2
C158: 79 | D158: 4.2 | E158: Javelin | F158: U13 Female | G158: Match 1 & 3 | H158: Javelin Match 1 & 3
C159: 80 | D159: 4.4 | E159: 1500m | F159: U17 Men | H159: 1500m
C160: 81 | D160: 4.5 | E160: 4 x 100m Mixed | F160: U11 Fem/Male | G160: NS | H160: 4 x 100m Mixed NS
C161: 82 | D161: 4.55 | E161: 4 x 100m | F161: U13 Female | H161: 4 x 100m
C162: 83 | D162: 5 | E162: 4 x 100m | F162: U15 Female | H162: 4 x 100m
C163: 84 | D163: 5.05 | E163: 4 x 100m | F163: U17 F/Women | H163: 4 x 100m
C164: 85 | D164: 5.1 | E164: 4 x 100m | F164: U13 Male | H164: 4 x 100m
C165: 86 | D165: 5.15 | E165: 4 x 100m | F165: U15 Male | H165: 4 x 100m
C166: =C165+1 -> 87 | D166: 5.2 | E166: 4 x 100m | F166: U17 Men | H166: 4 x 100m
C167: =C166+1 -> 88 | D167: 11.45 | E167: 1500m | F167: U13 Female | G167: NS | H167: =VLOOKUP($C167,IF(ISNA(VLOOKUP($C167,Track,1,FALSE)),Field,Track),3,FALSE)&" "&F167 -> 1500m U13 Female
C168: =C167+1 -> 89 | D168: 11.55 | E168: 1500m | F168: U15 Female | G168: NS | H168: 1500m U15 Female
C169: =C168+1 -> 90 | D169: 12.05 | E169: 1500m | F169: U17 F/Women | G169: NS | H169: 1500m U17 F/Women
C170: 91 | D170: 12.2 | E170: 800m | F170: U13 Male | G170: NS | H170: =VLOOKUP($C170,IF(ISNA(VLOOKUP($C170,Track,1,FALSE)),Field,Track),3,FALSE)&" "&F170 -> 800m U13 Male
C171: 92 | D171: 12.4 | E171: 800m | F171: U15 Male | G171: NS | H171: 800m U15 Male
C172: 93 | D172: 12.5 | E172: 800m | F172: U17 Men | G172: NS | H172: 800m U17 Men
C173: 94 | D173: 1.15 | E173: 800m | F173: U13 Female | G173: NS | H173: 800m U13 Female
C174: 95 | D174: 1.25 | E174: 800m | F174: U15 Female | G174: NS | H174: 800m U15 Female
C175: 96 | D175: 1.4 | E175: 800m | F175: U17 F/Women | G175: NS | H175: 800m U17 F/Women
C176: 97 | D176: 4.2 | E176: 1500m | F176: U13 Male | G176: NS | H176: 1500m U13 Male
C177: 98 | D177: 4.3 | E177: 1500m | F177: U15 Male | G177: NS | H177: 1500m U15 Male
C178: 99 | D178: 4.4 | E178: 1500m | F178: U17 Men | G178: NS | H178: 1500m U17 Men

Sheet Team Declaration Sheet
C3: ='Event Details'!D5&" "&"Declaration Sheets Male" -> Heart of England League Declaration Sheets Male | J3: ='Event Details'!D7 -> 2018 | M3: ='Event Details'!D$5&" "&"Declaration Sheets Female" -> Heart of England League Declaration Sheets Female | T3: ='Event Details'!D$7 -> 2018
C4: Club | H4: Only 2 non scorers allowed per race | M4: Club | N4: =D4 -> 0 | R4: Only 2 non scorers allowed per race
B6: Event | C6: Time | D6: Events | G6: No | H6: A String | I6: No | J6: B String | L6: Event | M6: Time | N6: Events | Q6: No | R6: A String | S6: No | T6: B String
D7: Under 11 Male | N7: Under 11 Female
B8: 2 | C8: =IF($B8>0,VLOOKUP($B8,EventsOrder,2,FALSE)," ") -> 11.45 | D8: =IF($B8>0,VLOOKUP($B8,EventsOrder,6,FALSE)," ") -> Howler | L8: 3 | M8: =IF($L8>0,VLOOKUP($L8,EventsOrder,2,FALSE)," ") -> 11.45 | N8: =IF($L8>0,VLOOKUP($L8,EventsOrder,6,FALSE)," ") -> Howler
B9: 14 | C9: =IF($B9>0,VLOOKUP($B9,EventsOrder,2,FALSE)," ") -> 12.3 | D9: =IF($B9>0,VLOOKUP($B9,EventsOrder,6,FALSE)," ") -> Long Jump Pit 1 | L9: 29 | M9: =IF($L9>0,VLOOKUP($L9,EventsOrder,2,FALSE)," ") -> 1.5 | N9: =IF($L9>0,VLOOKUP($L9,EventsOrder,6,FALSE)," ") -> 600m
B10: 33 | C10: =IF($B10>0,VLOOKUP($B10,EventsOrder,2,FALSE)," ") -> 2 | D10: =IF($B10>0,VLOOKUP($B10,EventsOrder,6,FALSE)," ") -> 600m | L10: 44 | M10: =IF($L10>0,VLOOKUP($L10,EventsOrder,2,FALSE)," ") -> 2.1 | N10: =IF($L10>0,VLOOKUP($L10,EventsOrder,6,FALSE)," ") -> Long Jump Pit 2
B11: 61 | C11: =IF($B11>0,VLOOKUP($B11,EventsOrder,2,FALSE)," ") -> 3.2 | D11: =IF($B11>0,VLOOKUP($B11,EventsOrder,6,FALSE)," ") -> 75m | L11: 58 | M11: =IF($L11>0,VLOOKUP($L11,EventsOrder,2,FALSE)," ") -> 3.1 | N11: =IF($L11>0,VLOOKUP($L11,EventsOrder,6,FALSE)," ") -> 75m
B12: Non-Scoring | G12: No's | H12: (enter Competitor No) | I12: No's | J12: (enter Competitor No) | L12: Non-Scoring | Q12: No's | R12: (enter Competitor No) | S12: No's | T12: (enter Competitor No)
C13: =IF($B13>0,VLOOKUP($B13,EventsOrder,2,FALSE)," ") ->  | D13: =IF($B13>0,VLOOKUP($B13,EventsOrder,6,FALSE)," ") ->  | M13: =IF($L13>0,VLOOKUP($L13,EventsOrder,2,FALSE)," ") ->  | N13: =IF($L13>0,VLOOKUP($L13,EventsOrder,6,FALSE)," ") -> 
B14: 34 | C14: =IF($B14>0,VLOOKUP($B14,EventsOrder,2,FALSE)," ") -> 2.05 | D14: =IF($B14>0,VLOOKUP($B14,EventsOrder,6,FALSE)," ") -> 600m NS | L14: 30 | M14: =IF($L14>0,VLOOKUP($L14,EventsOrder,2,FALSE)," ") -> 1.55 | N14: =IF($L14>0,VLOOKUP($L14,EventsOrder,6,FALSE)," ") -> 600m NS
B15: 62 | C15: =IF($B15>0,VLOOKUP($B15,EventsOrder,2,FALSE)," ") -> 3.25 | D15: =IF($B15>0,VLOOKUP($B15,EventsOrder,6,FALSE)," ") -> 75m NS | L15: 59 | M15: =IF($L15>0,VLOOKUP($L15,EventsOrder,2,FALSE)," ") -> 3.15 | N15: =IF($L15>0,VLOOKUP($L15,EventsOrder,6,FALSE)," ") -> 75m NS
L16: 81 | M16: =IF($L16>0,VLOOKUP($L16,EventsOrder,2,FALSE)," ") -> 4.5 | N16: =IF($L16>0,VLOOKUP($L16,EventsOrder,6,FALSE)," ") -> 4 x 100m Mixed NS | R16: =N$4 -> 0
B17: Event | C17: Time | D17: Events | G17: No | H17: A String | I17: No | J17: B String | L17: =L16&"R" -> 81R | Q17: 1 | S17: 2
D18: Under 13 Male | L18: =L16&"S" -> 81S | Q18: 3 | S18: 4
B19: 5 | C19: =IF($B19>0,VLOOKUP($B19,EventsOrder,2,FALSE)," ") -> 12 | D19: =IF($B19>0,VLOOKUP($B19,EventsOrder,6,FALSE)," ") -> High Jump
B20: 12 | C20: 12.2 | D20: 800m | L20: Event | M20: Time | N20: Events | Q20: No | R20: A String | S20: No | T20: B String
B21: 15 | C21: 12.35 | D21: 75m hurdles | N21: Under 13 Female
B22: 24 | C22: 1 | D22: Javelin Match 1 & 3 | L22: 1 | M22: =IF($L22>0,VLOOKUP($L22,EventsOrder,2,FALSE)," ") -> 11.45 | N22: =IF($L22>0,VLOOKUP($L22,EventsOrder,6,FALSE)," ") -> 1500m
B23: 41 | C23: 2.25 | D23: 100m | L23: 11 | M23: 12.15 | N23: 70m hurdles
B24: 52 | C24: 2.4 | D24: Shot | L24: 25 | M24: 1.15 | N24: 800m
B25: 64 | C25: =IF($B25>0,VLOOKUP($B25,EventsOrder,2,FALSE)," ") -> 3.2 | D25: =IF($B25>0,VLOOKUP($B25,EventsOrder,6,FALSE)," ") -> Long Jump Pit 2 | L25: 31 | M25: 1.4 | N25: High Jump
B26: 70 | C26: 3.5 | D26: 200m | L26: 35 | M26: 2.1 | N26: 100m
B27: 73 | C27: 4.2 | D27: 1500m | L27: 38 | M27: 1.5 | N27: Discus Match 2
B28: 78 | C28: 4.2 | D28: Discus Match 2 | L28: 56 | M28: 2.5 | N28: Long Jump Pit 1
B29: 85 | C29: 5.1 | D29: 4 x 100m | H29: =D$4 -> 0 | L29: 63 | M29: 3.35 | N29: 200m
B30: =B29&"R" -> 85R | G30: 1 | I30: 2 | L30: 65 | M30: 3.3 | N30: Shot
B31: =B29&"S" -> 85S | G31: 3 | I31: 4 | L31: 79 | M31: 4.2 | N31: Javelin Match 1 & 3
L32: 82 | M32: 4.55 | N32: 4 x 100m | R32: =N$4 -> 0
L33: =L32&"R" -> 82R | Q33: 1 | S33: 2
B34: Event | C34: Time | D34: Events | G34: No | H34: A String | I34: No | J34: B String | L34: =L32&"S" -> 82S | Q34: 3 | S34: 4
D35: Under 15 Male | M35: =IF($B35>0,VLOOKUP($B35,EventsOrder,2,FALSE)," ") ->  | N35: =IF($B35>0,VLOOKUP($B35,EventsOrder,6,FALSE)," ") -> 
B36: 6 | C36: =IF($B36>0,VLOOKUP($B36,EventsOrder,2,FALSE)," ") -> 12 | D36: =IF($B36>0,VLOOKUP($B36,EventsOrder,6,FALSE)," ") -> Long Jump Pit 2
B37: 16 | C37: 12.4 | D37: 800m | L37: Event | M37: Time | N37: Events | Q37: No | R37: A String | S37: No | T37: B String
B38: 20 | C38: 1.05 | D38: 80m hurdles | N38: Under 15 Female
B39: 22 | C39: 1 | D39: Shot | L39: 4 | M39: =IF($L39>0,VLOOKUP($L39,EventsOrder,2,FALSE)," ") -> 11.55 | N39: =IF($L39>0,VLOOKUP($L39,EventsOrder,6,FALSE)," ") -> 1500m
B40: 39 | C40: 1.5 | D40: Javelin Match 1 & 3 | L40: 9 | M40: 12.15 | N40: Discus Match 2
B41: 42 | C41: 2.3 | D41: 100m | L41: 13 | M41: 12.3 | N41: 75m hurdles
B42: 45 | C42: 2.25 | D42: High Jump | L42: 17 | M42: 12.55 | N42: High Jump
B43: 55 | C43: =IF($B43>0,VLOOKUP($B43,EventsOrder,2,FALSE)," ") -> 2.55 | D43: =IF($B43>0,VLOOKUP($B43,EventsOrder,6,FALSE)," ") -> 300m | L43: 21 | M43: 1 | N43: Long Jump Pit 2
B44: 66 | C44: 3.3 | D44: Discus Match 2 | L44: 26 | M44: 1.25 | N44: 800m
B45: 71 | C45: 3.55 | D45: 200m | L45: 36 | M45: 2.15 | N45: 100m
B46: 76 | C46: 4.3 | D46: 1500m | L46: 50 | M46: 2.4 | N46: 300m
B47: 86 | C47: 5.15 | D47: 4 x 100m | H47: =D$4 -> 0 | L47: 54 | M47: 2.4 | N47: Javelin Match 1 & 3
B48: =B47&"R" -> 86R | G48: 1 | I48: 2 | L48: 68 | M48: 3.4 | N48: 200m
B49: =B47&"S" -> 86S | G49: 3 | I49: 4 | L49: 77 | M49: 4.2 | N49: Shot
L50: 83 | M50: 5 | N50: 4 x 100m | R50: =N$4 -> 0
L51: =L50&"R" -> 83R | Q51: 1 | S51: 2
B52: Event | C52: Time | D52: Events | G52: No | H52: A String | I52: No | J52: B String | L52: =L50&"S" -> 83S | Q52: 3 | S52: 4
D53: Under 17 Male | M53: =IF($B53>0,VLOOKUP($B53,EventsOrder,2,FALSE)," ") ->  | N53: =IF($B53>0,VLOOKUP($B53,EventsOrder,6,FALSE)," ") -> 
B54: 8 | C54: =IF($B54>0,VLOOKUP($B54,EventsOrder,2,FALSE)," ") -> 12.15 | D54: =IF($B54>0,VLOOKUP($B54,EventsOrder,6,FALSE)," ") -> Shot
B55: 18 | C55: 12.5 | D55: 800m | L55: Event | M55: Time | N55: Events | Q55: No | R55: A String | S55: No | T55: B String
B56: 23 | C56: 1 | D56: Discus Match 2 | N56: U17 Female / Women
B57: 27 | C57: 1.35 | D57: 100m hurdles | L57: 7 | M57: =IF($L57>0,VLOOKUP($L57,EventsOrder,2,FALSE)," ") -> 12.05 | N57: =IF($L57>0,VLOOKUP($L57,EventsOrder,6,FALSE)," ") -> 1500m
B58: 32 | C58: 1.3 | D58: Long Jump Pit1 | L58: 10 | M58: 12.15 | N58: Javelin (U17) Match 1 & 3
B59: 43 | C59: 2.35 | D59: 100m | L59: 19 | M59: 1 | N59: 80m hurdles (U17)
B60: 57 | C60: 3 | D60: 400m | L60: 28 | M60: 1.4 | N60: 800m
B61: 67 | C61: =IF($B61>0,VLOOKUP($B61,EventsOrder,2,FALSE)," ") -> 3.3 | D61: =IF($B61>0,VLOOKUP($B61,EventsOrder,6,FALSE)," ") -> Javelin Match 1 & 3 | L61: 37 | M61: 1.5 | N61: Shot (U17)
B62: 72 | C62: 4 | D62: 200m | L62: 40 | M62: 2.2 | N62: 100m
B63: 74 | C63: 4.1 | D63: High Jump | L63: 51 | M63: 2.45 | N63: 300m | R63: =R$3 -> 0
B64: 80 | C64: 4.4 | D64: 1500m | L64: 53 | M64: 2.4 | N64: Discus (U17) Match 2
B65: 87 | C65: 5.2 | D65: 4 x 100m | H65: =D$4 -> 0 | L65: 60 | M65: 3.1 | N65: High Jump
B66: =B65&"R" -> 87R | G66: 1 | I66: 2 | L66: 69 | M66: 3.45 | N66: 200m
B67: =B65&"S" -> 87S | G67: 3 | I67: 4 | L67: 75 | M67: 4 | N67: Long Jump Pit1
L68: 84 | M68: 5.05 | N68: 4 x 100m | R68: =N$4 -> 0
L69: =L68&"R" -> 84R | Q69: 1 | S69: 2
L70: =L68&"S" -> 84S | Q70: 3 | S70: 4
C71: ='Event Details'!D$5&" "&"Declaration Sheets - Guests" -> Heart of England League Declaration Sheets - Guests | J71: ='Event Details'!D$7 -> 2018
C72: Club | D72: =D4 -> 0 | H72: Only 1 non scorers allowed per race
M73: ='Event Details'!D$5&" "&"Declaration Sheets - Guests" -> Heart of England League Declaration Sheets - Guests | T73: ='Event Details'!N$7 -> 0
B74: Event | C74: Time | D74: Events | G74: No | H74: A String | M74: Club | N74: =D4 -> 0 | R74: Only 1 non scorers allowed per race
D76: Male | L76: Event | M76: Time | N76: Events | Q76: No | R76: A String
B77: 91 | C77: =IF($B77>0,VLOOKUP($B77,EventsOrder,2,FALSE)," ") -> 12.2 | D77: =IF($B77>0,VLOOKUP($B77,EventsOrder,6,FALSE)," ") -> 800m U13 Male | N77: Female
B78: 92 | C78: 12.4 | D78: 800m U15 Male | L78: 88 | M78: =IF($L78>0,VLOOKUP($L78,EventsOrder,2,FALSE)," ") -> 11.45 | N78: =IF($L78>0,VLOOKUP($L78,EventsOrder,6,FALSE)," ") -> 1500m U13 Female
B79: 93 | C79: 12.5 | D79: 800m U17 Men | L79: 89 | M79: 11.55 | N79: 1500m U15 Female
B80: 97 | C80: 4.2 | D80: 1500m U13 Male | L80: 90 | M80: 12.05 | N80: 1500m U17 F/Women
B81: 98 | C81: 4.3 | D81: 1500m U15 Male | L81: 94 | M81: 1.15 | N81: 800m U13 Female
B82: 99 | C82: 4.4 | D82: 1500m U17 Men | L82: 95 | M82: 1.25 | N82: 800m U15 Female
L83: 96 | M83: 1.4 | N83: 800m U17 F/Women

Sheet Teamsheet Male
BA1: For Test data
C2: Heart of England League | H2: Club | J2: Date | M2: Club | O2: Date | R2: Club | T2: Date | W2: Club | Y2: Date | AB2: Club | AD2: Date | AG2: Club | AI2: Date | AL2: Club | AN2: Date | AQ2: Club | AS2: Date
C3: Declaration Sheets | G3: ='Event Details'!$C$22 -> L | H3: ='Event Details'!$D$22 -> Daventry | J3: ='Event Details'!$B$17 -> 8th July 2018 | L3: ='Event Details'!$C$23 -> E | M3: ='Event Details'!$D$23 -> Droitwich | O3: ='Event Details'!$B$17 -> 8th July 2018 | Q3: ='Event Details'!$C$24 -> B | R3: ='Event Details'!$D$24 -> Dudley & S'bridge | T3: ='Event Details'!$B$17 -> 8th July 2018 | V3: ='Event Details'!$C$25 -> R | W3: ='Event Details'!$D$25 -> Leamington AA | Y3: ='Event Details'!$B$17 -> 8th July 2018 | AA3: ='Event Details'!$C$26 -> N | AB3: ='Event Details'!$D$26 -> Nuneaton | AD3: ='Event Details'!$B$17 -> 8th July 2018 | AF3: ='Event Details'!$C$27 -> K | AG3: ='Event Details'!$D$27 -> Sparkhill | AI3: ='Event Details'!$B$17 -> 8th July 2018 | AK3: ='Event Details'!$C$28 -> W | AL3: ='Event Details'!$D$28 -> Witney AC | AN3: ='Event Details'!$B$17 -> 8th July 2018 | AP3: ='Event Details'!$C$29 -> 0 | AQ3: ='Event Details'!$D$29 -> 0 | AS3: ='Event Details'!$B$17 -> 8th July 2018
C4: Only 2 non scorers allowed per race
B6: Event | C6: Time | D6: Events | G6: No | H6: A String | I6: No | J6: B String | L6: No | M6: A String | N6: No | O6: B String | Q6: No | R6: A String | S6: No | T6: B String | V6: No | W6: A String | X6: No | Y6: B String | AA6: No | AB6: A String | AC6: No | AD6: B String | AF6: No | AG6: A String | AH6: No | AI6: B String | AK6: No | AL6: A String | AM6: No | AN6: B String | AP6: No | AQ6: A String | AR6: No | AS6: B String | AU6: No | AV6: A String | AW6: No | AX6: B String | AZ6: No | BA6: A String | BB6: No | BC6: B String
D7: Under 11 Male
B8: 2 | C8: =IF($B8>0,VLOOKUP($B8,EventsOrder,2,FALSE)," ") -> 11.45 | D8: =IF($B8>0,VLOOKUP($B8,EventsOrder,6,FALSE)," ") -> Howler | G8: L | H8: Charlie Atkins | Q8: B | R8: Harry Fallon | S8: BB | T8: Henry Jones | V8: R | W8: Callum Stuart | X8: RR | Y8: Andre Oneykwe | AA8: N | AB8: Owen Jayne | AF8: K | AG8: William Shepherd | AH8: KK | AI8: Jahari Maylor-Bailey | AK8: W | AL8: Ned Herbert | BA8: =CONCATENATE(LEFT(BA$3,3),$B8,LEFT(BA$6,1)) -> 2A | BC8: =CONCATENATE(LEFT(BA$3,3),$B8,LEFT(BC$6,1)) -> 2B
B9: 14 | C9: =IF($B9>0,VLOOKUP($B9,EventsOrder,2,FALSE)," ") -> 12.3 | D9: =IF($B9>0,VLOOKUP($B9,EventsOrder,6,FALSE)," ") -> Long Jump Pit 1 | L9: E | M9: Alex Payne | Q9: B | R9: Harry Fallon | S9: BB | T9: Jonathan Hayes | V9: R | W9: Andre Onyekwe | X9: RR | Y9: Sam Merrit | AA9: N | AB9: Charlie Yates | AC9: NN | AD9: Owen Jayne | AK9: W | AL9: Rhys Jones | AM9: WW | AN9: Ned Herbert | BA9: =CONCATENATE(LEFT(BA$3,3),$B9,LEFT(BA$6,1)) -> 14A | BC9: =CONCATENATE(LEFT(BA$3,3),$B9,LEFT(BC$6,1)) -> 14B
B10: 33 | C10: =IF($B10>0,VLOOKUP($B10,EventsOrder,2,FALSE)," ") -> 2 | D10: =IF($B10>0,VLOOKUP($B10,EventsOrder,6,FALSE)," ") -> 600m | G10: L | H10: Charlie Atkins | L10: E | M10: Alex Payne | Q10: B | R10: Jonathan Hayes | S10: BB | T10: Tyler Kendrick | V10: R | W10: Callum Stuart | X10: RR | Y10: Sam Robbins | AA10: N | AB10: Charlie Yates | AF10: K | AG10: William Shepherd | AH10: KK | AI10: Jahari Maylor-Bailey | AK10: W | AL10: Rhys Jones | BA10: 33A | BC10: 33B
B11: 61 | C11: =IF($B11>0,VLOOKUP($B11,EventsOrder,2,FALSE)," ") -> 3.2 | D11: =IF($B11>0,VLOOKUP($B11,EventsOrder,6,FALSE)," ") -> 75m | G11: L | H11: Charlie Atkins | L11: E | M11: Alex Payne | Q11: B | R11: Harry Fallon | S11: BB | T11: Henry Jones | V11: R | W11: Andre Onyekwe | X11: RR | Y11: Sam Merrit | AA11: N | AB11: Charlie Yates | AC11: NN | AD11: Owen Jayne | AF11: K | AG11: William Shepherd | AH11: KK | AI11: Jahari Maylor-Bailey | AK11: W | AL11: Rhys Jones | AM11: WW | AN11: Ned Herbert
B12: Non-Scoring | G12: No's | H12: (enter Competitor No) | I12: No's | J12: (enter Competitor No) | L12: No's | M12: (enter Competitor No) | N12: No's | O12: (enter Competitor No) | Q12: No's | R12: (enter Competitor No) | S12: No's | T12: (enter Competitor No) | V12: No's | W12: (enter Competitor No) | X12: No's | Y12: (enter Competitor No) | AA12: No's | AB12: (enter Competitor No) | AC12: No's | AD12: (enter Competitor No) | AF12: No's | AG12: (enter Competitor No) | AH12: No's | AI12: (enter Competitor No) | AK12: No's | AL12: (enter Competitor No) | AM12: No's | AN12: (enter Competitor No) | AP12: No's | AQ12: (enter Competitor No) | AR12: No's | AS12: (enter Competitor No) | AU12: No's | AV12: (enter Competitor No) | AW12: No's | AX12: (enter Competitor No) | AZ12: No's | BA12: (enter Competitor No) | BB12: No's | BC12: (enter Competitor No)
C13: =IF($B13>0,VLOOKUP($B13,EventsOrder,2,FALSE)," ") ->  | D13: =IF($B13>0,VLOOKUP($B13,EventsOrder,6,FALSE)," ") ->  | AZ13: =$B13 -> 0 | BA13: =CONCATENATE(LEFT(BA$3,3),$B13,LEFT(BA$6,1)) -> A | BB13: =$B13 -> 0 | BC13: =CONCATENATE(LEFT(BA$3,3),$B13,LEFT(BC$6,1)) -> B
B14: 34 | C14: =IF($B14>0,VLOOKUP($B14,EventsOrder,2,FALSE)," ") -> 2.05 | D14: =IF($B14>0,VLOOKUP($B14,EventsOrder,6,FALSE)," ") -> 600m NS | V14: 90 | W14: Sam Merrit | AZ14: =$B14 -> 34 | BA14: 34A | BB14: =$B14 -> 34 | BC14: 34B
B15: 62 | C15: =IF($B15>0,VLOOKUP($B15,EventsOrder,2,FALSE)," ") -> 3.25 | D15: =IF($B15>0,VLOOKUP($B15,EventsOrder,6,FALSE)," ") -> 75m NS | Q15: 26 | R15: Seb Quinnard | S15: 27 | T15: Tyler Kendrick | V15: 91 | W15: Sam Robbins | X15: 92 | Y15: Callum Stuart | AZ15: 62 | BA15: 62A | BB15: 62 | BC15: 62B
B17: Event | C17: Time | D17: Events | G17: No | H17: A String | I17: No | J17: B String | L17: No | M17: A String | N17: No | O17: B String | Q17: No | R17: A String | S17: No | T17: B String | V17: No | W17: A String | X17: No | Y17: B String | AA17: No | AB17: A String | AC17: No | AD17: B String | AF17: No | AG17: A String | AH17: No | AI17: B String | AK17: No | AL17: A String | AM17: No | AN17: B String | AP17: No | AQ17: A String | AR17: No | AS17: B String | AU17: No | AV17: A String | AW17: No | AX17: B String | AZ17: No | BA17: A String | BB17: No | BC17: B String
D18: Under 13 Male
B19: 5 | C19: =IF($B19>0,VLOOKUP($B19,EventsOrder,2,FALSE)," ") -> 12 | D19: =IF($B19>0,VLOOKUP($B19,EventsOrder,6,FALSE)," ") -> High Jump | J19: A String only | O19: A String only | Q19: B | R19: Joel Harrison | T19: A String only | V19: R | W19: Edward Owen | Y19: A String only | AD19: A String only | AI19: A String only | AN19: A String only | AS19: A String only | AX19: A String only | BA19: =CONCATENATE(LEFT(BA$3,3),$B19,LEFT(BA$6,1)) -> 5A | BC19: A String only
B20: 12 | C20: 12.2 | D20: 800m | Q20: B | R20: Nicholas Hayes | S20: BB | T20: Cian Wood | V20: R | W20: Dan Wilks | X20: RR | Y20: Hayden Twycross | AA20: N | AB20: George Riley-Flinders | AF20: K | AG20: James Phillips | BA20: =CONCATENATE(LEFT(BA$3,3),$B20,LEFT(BA$6,1)) -> 12A | BC20: =CONCATENATE(LEFT(BA$3,3),$B20,LEFT(BC$6,1)) -> 12B
B21: 15 | C21: 12.35 | D21: 75m hurdles | Q21: B | R21: Freddie Fletcher | V21: R | W21: Tobias Wollaston | AK21: W | AL21: Jack Jones | BA21: 15A | BC21: 15B
B22: 24 | C22: 1 | D22: Javelin Match 1 & 3 | Q22: B | R22: Kian Avey | S22: BB | T22: Rhys Lees | V22: R | W22: James Selley | X22: RR | Y22: Edward Owen | AA22: N | AB22: George Riley-Flinders | AK22: W | AL22: Jack Jones | BA22: 24A | BC22: 24B
B23: 41 | C23: 2.25 | D23: 100m | Q23: B | R23: Freddie Fletcher | S23: BB | T23: Matthew Smith-Tailford | V23: R | W23: Hayden Twycross | X23: RR | Y23: Isaac Ball | AA23: N | AB23: Travis Scrivens | AF23: K | AG23: Ezra Simpson | AH23: KK | AI23: James Phillips | AK23: W | AL23: Oscar Oweka | BA23: 41A | BC23: 41B
B24: 52 | C24: 2.4 | D24: Shot | Q24: B | R24: Kian Avey | S24: BB | T24: Rhys Lees | V24: R | W24: James Selley | X24: RR | Y24: Isaac Ball | AA24: N | AB24: William Bonner | AC24: NN | AD24: George Rliey-Flinders | AF24: K | AG24: Ezra Simpson | BA24: 52A | BC24: 52B
B25: 64 | C25: =IF($B25>0,VLOOKUP($B25,EventsOrder,2,FALSE)," ") -> 3.2 | D25: =IF($B25>0,VLOOKUP($B25,EventsOrder,6,FALSE)," ") -> Long Jump Pit 2 | Q25: B | R25: Nicholas Hayes | S25: BB | T25: Matthew Smith-Tailford | V25: R | W25: Edward Owen | X25: RR | Y25: Dan Wilks | AA25: N | AB25: Travis Scrivins | AC25: NN | AD25: William Bonner | AK25: W | AL25: Oscar Oweka | AM25: WW | AN25: Jack Jones | BA25: 64A | BC25: 64B
B26: 70 | C26: 3.5 | D26: 200m | Q26: B | R26: Joel Harrison | S26: BB | T26: Freddie Fletcher | V26: R | W26: James Selley | X26: RR | Y26: Hayden Twycross | AF26: K | AG26: Ezra Simpsn | AH26: KK | AI26: James Phillips | AK26: W | AL26: Oscar Oweka | BA26: 70A | BC26: 70B
B27: 73 | C27: 4.2 | D27: 1500m | Q27: B | R27: Luke Bailey | S27: BB | T27: Rhys Lees | V27: R | W27: Dan Wilks | X27: RR | Y27: Isaac Ball | AA27: N | AB27: Travis Scrivins | AC27: NN | AD27: William Bonner | BA27: 73A | BC27: 73B
B28: 78 | C28: 4.2 | D28: Discus Match 2 | BA28: 78A | BC28: 78B
B29: 85 | C29: 5.1 | D29: 4 x 100m | H29: =H$3 -> Daventry | M29: =M$3 -> Droitwich | R29: =R$3 -> Dudley & S'bridge | W29: =W$3 -> Leamington AA | AB29: =AB$3 -> Nuneaton | AG29: =AG$3 -> Sparkhill | AL29: =AL$3 -> Witney AC | AQ29: =AQ$3 -> 0 | AV29: =AV$3 -> 0 | BA29: =BA$3 -> 0
B30: =B29&"R" -> 85R | G30: 1 | I30: 2 | L30: 1 | N30: 2 | Q30: 1 | R30: Matthew Smith-Tailford | S30: 2 | T30: Freddie Fletcher | V30: 1 | W30: Edward Owen | X30: 2 | Y30: Hayden Twycross | AA30: 1 | AC30: 2 | AF30: 1 | AH30: 2 | AK30: 1 | AM30: 2 | AP30: 1 | AR30: 2 | AU30: 1 | AW30: 2 | AZ30: 1 | BA30: =CONCATENATE(LEFT(BA$3,3),$B30,LEFT(BA$6,1)) -> 85RA | BB30: 2 | BC30: =CONCATENATE(LEFT(BA$3,3),$B30,LEFT(BC$6,1)) -> 85RB
B31: =B29&"S" -> 85S | G31: 3 | I31: 4 | L31: 3 | N31: 4 | Q31: 3 | R31: Rhys Lees | S31: 4 | T31: Joel Harrison | V31: 3 | W31: Dan Wilks | X31: 4 | Y31: James Selly | AA31: 3 | AC31: 4 | AF31: 3 | AH31: 4 | AK31: 3 | AM31: 4 | AP31: 3 | AR31: 4 | AU31: 3 | AW31: 4 | AZ31: 3 | BA31: 85SA | BB31: 4 | BC31: 85SB
B34: Event | C34: Time | D34: Events | G34: No | H34: A String | I34: No | J34: B String | L34: No | M34: A String | N34: No | O34: B String | Q34: No | R34: A String | S34: No | T34: B String | V34: No | W34: A String | X34: No | Y34: B String | AA34: No | AB34: A String | AC34: No | AD34: B String | AF34: No | AG34: A String | AH34: No | AI34: B String | AK34: No | AL34: A String | AM34: No | AN34: B String | AP34: No | AQ34: A String | AR34: No | AS34: B String | AU34: No | AV34: A String | AW34: No | AX34: B String | AZ34: No | BA34: A String | BB34: No | BC34: B String
D35: Under 15 Male
B36: 6 | C36: =IF($B36>0,VLOOKUP($B36,EventsOrder,2,FALSE)," ") -> 12 | D36: =IF($B36>0,VLOOKUP($B36,EventsOrder,6,FALSE)," ") -> Long Jump Pit 2 | G36: L | H36: Eoin Beevers | Q36: B | R36: Jack Compton | V36: R | W36: Zac Clae | AA36: N | AB36: Sam Yates | AC36: NN | AD36: Robert Currie | AF36: K | AG36: Amos Slater | BA36: =CONCATENATE(LEFT(BA$3,3),$B36,LEFT(BA$6,1)) -> 6A | BC36: =CONCATENATE(LEFT(BA$3,3),$B36,LEFT(BC$6,1)) -> 6B
B37: 16 | C37: 12.4 | D37: 800m | G37: L | H37: Zak Beswick | AA37: N | AB37: Robert Currie | AC37: NN | AD37: Sam Yates | AF37: K | AG37: Praveer Phull | AH37: KK | AI37: Amos Slater | BA37: 16A | BC37: 16B
B38: 20 | C38: 1.05 | D38: 80m hurdles | AA38: N | AB38: William Currie | BA38: 20A | BC38: 20B
B39: 22 | C39: 1 | D39: Shot | G39: L | H39: Josh Cooney | Q39: B | R39: Jay Higgins | V39: R | W39: Gabriel Ball | AA39: N | AB39: Stephen Bates | AC39: NN | AD39: Oran Nolan | AK39: W | AL39: Felix Green | BA39: 22A | BC39: 22B
B40: 39 | C40: 1.5 | D40: Javelin Match 1 & 3 | G40: L | H40: Eoin Beevers | Q40: B | R40: Jay Higgins | V40: R | W40: Gabriel Ball | X40: RR | Y40: Sam Littell | AA40: N | AB40: Stephen Bates | AC40: NN | AD40: William Currie | AF40: K | AG40: Amos Slater | AH40: KK | AI40: Harry Bull | BA40: 39A | BC40: 39B
B41: 42 | C41: 2.3 | D41: 100m | G41: L | H41: Eoin Beevers | I41: LL | J41: Zak Beswick | Q41: B | R41: Jack Compton | S41: BB | T41: Charlie Walker | V41: R | W41: Zac Clae | X41: RR | Y41: Sam Littell | AA41: N | AB41: Sam Jephcote | AC41: NN | AD41: Oran Nolan | AF41: K | AG41: Harry Bull | AK41: W | AL41: Felix Green | AM41: WW | AN41: Dan Lee | BA41: 42A | BC41: 42B
B42: 45 | C42: 2.25 | D42: High Jump | G42: L | H42: Josh Cooney | J42: A String only | O42: A String only | T42: A String only | Y42: A String only | AA42: N | AB42: Stephen Bates | AC42: NN | AD42: A String only | AI42: A String only | AN42: A String only | AS42: A String only | AX42: A String only | BA42: =CONCATENATE(LEFT(BA$3,3),$B42,LEFT(BA$6,1)) -> 45A | BC42: A String only
B43: 55 | C43: =IF($B43>0,VLOOKUP($B43,EventsOrder,2,FALSE)," ") -> 2.55 | D43: =IF($B43>0,VLOOKUP($B43,EventsOrder,6,FALSE)," ") -> 300m | G43: L | H43: Zak Beswick | V43: R | W43: Zac Clae | AA43: N | AB43: Robert Currie | AC43: NN | AD43: Sam Yates | AF43: K | AG43: Ben Frost | AK43: W | AL43: Dan Lee | BA43: =CONCATENATE(LEFT(BA$3,3),$B43,LEFT(BA$6,1)) -> 55A | BC43: =CONCATENATE(LEFT(BA$3,3),$B43,LEFT(BC$6,1)) -> 55B
B44: 66 | C44: 3.3 | D44: Discus Match 2 | BA44: 66A | BC44: 66B
B45: 71 | C45: 3.55 | D45: 200m | G45: L | H45: Josh Cooney | Q45: B | R45: Jack Compton | S45: BB | T45: Tom Fallon | V45: R | W45: Gabriel Ball | AA45: N | AB45: Sam Jephcote | AC45: NN | AD45: Oran Nolan | AF45: K | AG45: Harry Bull | AH45: KK | AI45: Praveer Phull | AK45: W | AL45: Felix Green | AM45: WW | AN45: Dan Lee | BA45: 71A | BC45: 71B
B46: 76 | C46: 4.3 | D46: 1500m | V46: R | W46: Sam Littell | AA46: N | AB46: Will Currie | BA46: 76A | BC46: 76B
B47: 86 | C47: 5.15 | D47: 4 x 100m | H47: =H$3 -> Daventry | M47: =M$3 -> Droitwich | R47: =R$3 -> Dudley & S'bridge | W47: =W$3 -> Leamington AA | AB47: =AB$3 -> Nuneaton | AG47: =AG$3 -> Sparkhill | AL47: =AL$3 -> Witney AC | AQ47: =AQ$3 -> 0 | AV47: =AV$3 -> 0 | BA47: =BA$3 -> 0
B48: =B47&"R" -> 86R | G48: 1 | I48: 2 | L48: 1 | N48: 2 | Q48: 1 | S48: 2 | V48: 1 | X48: 2 | AA48: 1 | AC48: 2 | AF48: 1 | AG48: Amos Slster | AH48: 2 | AI48: Harry Bull | AK48: 1 | AM48: 2 | AP48: 1 | AR48: 2 | AU48: 1 | AW48: 2 | AZ48: 1 | BA48: =CONCATENATE(LEFT(BA$3,3),$B48,LEFT(BA$6,1)) -> 86RA | BB48: 2 | BC48: =CONCATENATE(LEFT(BA$3,3),$B48,LEFT(BC$6,1)) -> 86RB
B49: =B47&"S" -> 86S | G49: 3 | I49: 4 | L49: 3 | N49: 4 | Q49: 3 | S49: 4 | V49: 3 | X49: 4 | AA49: 3 | AC49: 4 | AF49: 3 | AG49: Ben Frost | AH49: 4 | AI49: Praveer Phull | AK49: 3 | AM49: 4 | AP49: 3 | AR49: 4 | AU49: 3 | AW49: 4 | AZ49: 3 | BA49: 86SA | BB49: 4 | BC49: 86SB
B52: Event | C52: Time | D52: Events | G52: No | H52: A String | I52: No | J52: B String | L52: No | M52: A String | N52: No | O52: B String | Q52: No | R52: A String | S52: No | T52: B String | V52: No | W52: A String | X52: No | Y52: B String | AA52: No | AB52: A String | AC52: No | AD52: B String | AF52: No | AG52: A String | AH52: No | AI52: B String | AK52: No | AL52: A String | AM52: No | AN52: B String | AP52: No | AQ52: A String | AR52: No | AS52: B String | AU52: No | AV52: A String | AW52: No | AX52: B String | AZ52: No | BA52: A String | BB52: No | BC52: B String
D53: Under 17 Male
B54: 8 | C54: =IF($B54>0,VLOOKUP($B54,EventsOrder,2,FALSE)," ") -> 12.15 | D54: =IF($B54>0,VLOOKUP($B54,EventsOrder,6,FALSE)," ") -> Shot | AK54: W | AL54: Tom Miller | BA54: =CONCATENATE(LEFT(BA$3,3),$B54,LEFT(BA$6,1)) -> 8A | BC54: =CONCATENATE(LEFT(BA$3,3),$B54,LEFT(BC$6,1)) -> 8B
B55: 18 | C55: 12.5 | D55: 800m | Q55: B | R55: Tom Slater | S55: BB | T55: Harry Walters | BA55: 18A | BC55: 18B
B56: 23 | C56: 1 | D56: Discus Match 2 | BA56: 23A | BC56: 23B
B57: 27 | C57: 1.35 | D57: 100m hurdles | BA57: 27A | BC57: 27B
B58: 32 | C58: 1.3 | D58: Long Jump Pit1 | G58: L | H58: Alfie Sanderson | Q58: B | R58: Jamie Tranter | S58: BB | T58: Tyler White | V58: R | W58: Harvey Brown | X58: R | Y58: Richard Yates | BA58: 32A | BC58: 32B
B59: 43 | C59: 2.35 | D59: 100m | G59: L | H59: Alfie Sanderson | Q59: B | R59: Oliver Law | S59: BB | T59: Tyler White | V59: R | W59: Richard Yates | X59: RR | Y59: Harvey Brown | AF59: K | AG59: Romaan Miah | AH59: KK | AI59: Josh Morgan | BA59: 43A | BC59: 43B
B60: 57 | C60: 3 | D60: 400m | Q60: B | R60: Tom Slater | AF60: K | AG60: Josh Morgan | AK60: W | AL60: Tom Miller | BA60: 57A | BC60: 57B
B61: 67 | C61: =IF($B61>0,VLOOKUP($B61,EventsOrder,2,FALSE)," ") -> 3.3 | D61: =IF($B61>0,VLOOKUP($B61,EventsOrder,6,FALSE)," ") -> Javelin Match 1 & 3 | Q61: B | R61: Harry Walters | S61: BB | T61: Jamie Tranter | AF61: K | AG61: Josh Morgan | AK61: W | AL61: Tom Miller | BA61: 67A | BC61: 67B
B62: 72 | C62: 4 | D62: 200m | G62: L | H62: Alfie Sanderson | Q62: B | R62: Tom Slater | V62: R | W62: Harvey Brown | X62: R | Y62: Richard Yates | AF62: K | AG62: Romaan Miah | BA62: 72A | BC62: 72B
B63: 74 | C63: 4.1 | D63: High Jump | J63: A String only | O63: A String only | T63: A String only | Y63: A String only | AD63: A String only | AI63: A String only | AN63: A String only | AS63: A String only | AX63: A String only | BA63: =CONCATENATE(LEFT(BA$3,3),$B63,LEFT(BA$6,1)) -> 74A | BC63: A String only
B64: 80 | C64: 4.4 | D64: 1500m | Q64: B | R64: Harry Walters | BA64: =CONCATENATE(LEFT(BA$3,3),$B64,LEFT(BA$6,1)) -> 80A | BC64: =CONCATENATE(LEFT(BA$3,3),$B64,LEFT(BC$6,1)) -> 80B
B65: 87 | C65: 5.2 | D65: 4 x 100m | H65: =H$3 -> Daventry | M65: =M$3 -> Droitwich | R65: =R$3 -> Dudley & S'bridge | W65: =W$3 -> Leamington AA | AB65: =AB$3 -> Nuneaton | AG65: =AG$3 -> Sparkhill | AL65: =AL$3 -> Witney AC | AQ65: =AQ$3 -> 0 | AV65: =AV$3 -> 0 | BA65: =BA$3 -> 0
B66: =B65&"R" -> 87R | G66: 1 | I66: 2 | L66: 1 | N66: 2 | Q66: 1 | R66: Jamie Tranter | S66: 2 | T66: Tyler White | V66: 1 | X66: 2 | AA66: 1 | AC66: 2 | AF66: 1 | AH66: 2 | AK66: 1 | AM66: 2 | AP66: 1 | AR66: 2 | AU66: 1 | AW66: 2 | AZ66: 1 | BA66: =CONCATENATE(LEFT(BA$3,3),$B66,LEFT(BA$6,1)) -> 87RA | BB66: 2 | BC66: =CONCATENATE(LEFT(BA$3,3),$B66,LEFT(BC$6,1)) -> 87RB
B67: =B65&"S" -> 87S | G67: 3 | I67: 4 | L67: 3 | N67: 4 | Q67: 3 | R67: Tom Slater | S67: 4 | T67: Harry Walters | V67: 3 | X67: 4 | AA67: 3 | AC67: 4 | AF67: 3 | AH67: 4 | AK67: 3 | AM67: 4 | AP67: 3 | AR67: 4 | AU67: 3 | AW67: 4 | AZ67: 3 | BA67: 87SA | BB67: 4 | BC67: 87SB
C72: Guests - Non-Scoring
B74: Event | C74: Time | D74: Events | G74: No | H74: A String | L74: No | M74: A String | Q74: No | R74: A String | V74: No | W74: A String | AA74: No | AB74: A String | AF74: No | AG74: A String | AK74: No | AL74: A String | AP74: No | AQ74: A String | AU74: No | AV74: A String | AZ74: No | BA74: A String
D76: Male
B77: 91 | C77: =IF($B77>0,VLOOKUP($B77,EventsOrder,2,FALSE)," ") -> 12.2 | D77: =IF($B77>0,VLOOKUP($B77,EventsOrder,6,FALSE)," ") -> 800m U13 Male | AZ77: =$B77 -> 91 | BA77: =CONCATENATE(LEFT(BA$3,3),$B77,LEFT(BA$6,1)) -> 91A
B78: 92 | C78: 12.4 | D78: 800m U15 Male | AZ78: =$B78 -> 92 | BA78: 92A
B79: 93 | C79: 12.5 | D79: 800m U17 Men | AZ79: 93 | BA79: 93A
B80: 97 | C80: 4.2 | D80: 1500m U13 Male | AZ80: 97 | BA80: 97A
B81: 98 | C81: 4.3 | D81: 1500m U15 Male | AZ81: 98 | BA81: 98A
B82: 99 | C82: 4.4 | D82: 1500m U17 Men | AZ82: 99 | BA82: 99A
B89: =COLUMN(B1) -> 2 | C89: 3 | D89: 4 | E89: 5 | F89: 6 | G89: 7 | H89: 8 | I89: 9 | J89: 10 | K89: 11 | L89: 12 | M89: 13 | N89: 14 | O89: 15 | P89: 16 | Q89: 17 | R89: 18 | S89: 19 | T89: 20 | U89: 21 | V89: 22 | W89: 23 | X89: 24 | Y89: 25 | Z89: 26 | AA89: 27 | AB89: 28 | AC89: 29 | AD89: 30 | AE89: 31 | AF89: 32 | AG89: 33 | AH89: 34 | AI89: 35 | AJ89: 36 | AK89: 37 | AL89: 38 | AM89: 39 | AN89: 40 | AO89: 41 | AP89: 42 | AQ89: 43 | AR89: 44 | AS89: 45

Sheet Teamsheet Female
C2: Heart of England League | H2: Female | M2: Female | R2: Female | W2: Female | AB2: Female | AG2: Female | AL2: Female | AQ2: Female
C3: Declaration Sheets | G3: ='Event Details'!$C$22 -> L | H3: ='Event Details'!$D$22 -> Daventry | J3: ='Event Details'!$B$17 -> 8th July 2018 | L3: ='Event Details'!$C$23 -> E | M3: ='Event Details'!$D$23 -> Droitwich | O3: ='Event Details'!$B$17 -> 8th July 2018 | Q3: ='Event Details'!$C$24 -> B | R3: ='Event Details'!$D$24 -> Dudley & S'bridge | T3: ='Event Details'!$B$17 -> 8th July 2018 | V3: ='Event Details'!$C$25 -> R | W3: ='Event Details'!$D$25 -> Leamington AA | Y3: ='Event Details'!$B$17 -> 8th July 2018 | AA3: ='Event Details'!$C$26 -> N | AB3: ='Event Details'!$D$26 -> Nuneaton | AD3: ='Event Details'!$B$17 -> 8th July 2018 | AF3: ='Event Details'!$C$27 -> K | AG3: ='Event Details'!$D$27 -> Sparkhill | AI3: ='Event Details'!$B$17 -> 8th July 2018 | AK3: ='Event Details'!$C$28 -> W | AL3: ='Event Details'!$D$28 -> Witney AC | AN3: ='Event Details'!$B$17 -> 8th July 2018 | AP3: ='Event Details'!$C$29 -> 0 | AQ3: ='Event Details'!$D$29 -> 0 | AS3: ='Event Details'!$B$17 -> 8th July 2018
C4: Only 2 non scorers allowed per race
B6: Event | C6: Time | D6: Events | G6: No | H6: A String | I6: No | J6: B String | L6: No | M6: A String | N6: No | O6: B String | Q6: No | R6: A String | S6: No | T6: B String | V6: No | W6: A String | X6: No | Y6: B String | AA6: No | AB6: A String | AC6: No | AD6: B String | AF6: No | AG6: A String | AH6: No | AI6: B String | AK6: No | AL6: A String | AM6: No | AN6: B String | AP6: No | AQ6: A String | AR6: No | AS6: B String | AU6: No | AV6: A String | AW6: No | AX6: B String | AZ6: No | BA6: A String | BB6: No | BC6: B String
D7: Under 11 Female
B8: 3 | C8: =IF($B8>0,VLOOKUP($B8,EventsOrder,2,FALSE)," ") -> 11.45 | D8: =IF($B8>0,VLOOKUP($B8,EventsOrder,6,FALSE)," ") -> Howler | L8: E | M8: Abigail Plant | Q8: B | R8: Ellie Lees | S8: BB | T8: Lexi Wood | V8: R | W8: Abigial Gibbons | X8: RR | Y8: Mae Reeves | AA8: N | AB8: Evie Caffrey | AK8: W | AL8: Lottie McIntyre | BA8: =CONCATENATE(LEFT(BA$3,3),$B8,LEFT(BA$6,1)) -> 3A | BC8: =CONCATENATE(LEFT(BA$3,3),$B8,LEFT(BC$6,1)) -> 3B
B9: 29 | C9: =IF($B9>0,VLOOKUP($B9,EventsOrder,2,FALSE)," ") -> 1.5 | D9: =IF($B9>0,VLOOKUP($B9,EventsOrder,6,FALSE)," ") -> 600m | G9: L | H9: Olivia Bacon | Q9: B | R9: Ellie Lees | V9: R | W9: Mae Reeves | X9: RR | Y9: Hollie Wilks | AA9: N | AB9: Lily Sharkey | AC9: NN | AD9: Evie Caffrey | AF9: K | AG9: Taya Brown | AH9: KK | AI9: Aoife Gallagher | BA9: =CONCATENATE(LEFT(BA$3,3),$B9,LEFT(BA$6,1)) -> 29A | BC9: =CONCATENATE(LEFT(BA$3,3),$B9,LEFT(BC$6,1)) -> 29B
B10: 44 | C10: =IF($B10>0,VLOOKUP($B10,EventsOrder,2,FALSE)," ") -> 2.1 | D10: =IF($B10>0,VLOOKUP($B10,EventsOrder,6,FALSE)," ") -> Long Jump Pit 2 | G10: L | H10: Olivia Bacon | L10: E | M10: Abigail Plant | Q10: B | R10: Lexi Wood | V10: R | W10: Isabella Comerford | X10: RR | Y10: Abigail Gibbons | AA10: N | AB10: Lily Sharkey | AC10: NN | AD10: Evie Caffrey | AF10: K | AG10: Taya Brown | AH10: KK | AI10: Nancy O'Neill | AK10: W | AL10: Lottie McIntyre | BA10: =CONCATENATE(LEFT(BA$3,3),$B10,LEFT(BA$6,1)) -> 44A | BC10: =CONCATENATE(LEFT(BA$3,3),$B10,LEFT(BC$6,1)) -> 44B
B11: 58 | C11: =IF($B11>0,VLOOKUP($B11,EventsOrder,2,FALSE)," ") -> 3.1 | D11: =IF($B11>0,VLOOKUP($B11,EventsOrder,6,FALSE)," ") -> 75m | G11: L | H11: Olivia Bacon | L11: E | M11: Abigail Plant | Q11: B | R11: Ellie Lees | S11: BB | T11: Lexi Wood | V11: R | W11: Isabella Comerford | X11: RR | Y11: Annabell Waters | AA11: N | AB11: Lily Sharkey | AF11: K | AG11: Taya Brown | AH11: KK | AI11: Aoife Gallagher | AK11: W | AL11: Lottie McIntyre
B12: Non-Scoring | G12: No's | H12: (enter Competitor No) | I12: No's | J12: (enter Competitor No) | L12: No's | M12: (enter Competitor No) | N12: No's | O12: (enter Competitor No) | Q12: No's | R12: (enter Competitor No) | S12: No's | T12: (enter Competitor No) | V12: No's | W12: (enter Competitor No) | X12: No's | Y12: (enter Competitor No) | AA12: No's | AB12: (enter Competitor No) | AC12: No's | AD12: (enter Competitor No) | AF12: No's | AG12: (enter Competitor No) | AH12: No's | AI12: (enter Competitor No) | AK12: No's | AL12: (enter Competitor No) | AM12: No's | AN12: (enter Competitor No) | AP12: No's | AQ12: (enter Competitor No) | AR12: No's | AS12: (enter Competitor No) | AU12: No's | AV12: (enter Competitor No) | AW12: No's | AX12: (enter Competitor No) | AZ12: No's | BA12: (enter Competitor No) | BB12: No's | BC12: (enter Competitor No)
C13: =IF($B13>0,VLOOKUP($B13,EventsOrder,2,FALSE)," ") ->  | D13: =IF($B13>0,VLOOKUP($B13,EventsOrder,6,FALSE)," ") ->  | AZ13: =$B13 -> 0 | BA13: =CONCATENATE(LEFT(BA$3,3),$B13,LEFT(BA$6,1)) -> A | BB13: =$B13 -> 0 | BC13: =CONCATENATE(LEFT(BA$3,3),$B13,LEFT(BC$6,1)) -> B
B14: 30 | C14: =IF($B14>0,VLOOKUP($B14,EventsOrder,2,FALSE)," ") -> 1.55 | D14: =IF($B14>0,VLOOKUP($B14,EventsOrder,6,FALSE)," ") -> 600m NS | V14: 93 | W14: Annabell Waters | X14: 95 | Y14: Abigail Gibbons | AF14: 420 | AG14: Nancy O'Neill | AZ14: =$B14 -> 30 | BA14: =CONCATENATE(LEFT(BA$3,3),$B14,LEFT(BA$6,1)) -> 30A | BB14: =$B14 -> 30 | BC14: =CONCATENATE(LEFT(BA$3,3),$B14,LEFT(BC$6,1)) -> 30B
B15: 59 | C15: =IF($B15>0,VLOOKUP($B15,EventsOrder,2,FALSE)," ") -> 3.15 | D15: =IF($B15>0,VLOOKUP($B15,EventsOrder,6,FALSE)," ") -> 75m NS | V15: 97 | W15: Holly Wilks | X15: 96 | Y15: Mae Reeves | AF15: 420 | AG15: Nancy O'Neill | AZ15: =$B15 -> 59 | BA15: =CONCATENATE(LEFT(BA$3,3),$B15,LEFT(BA$6,1)) -> 59A | BB15: =$B15 -> 59 | BC15: =CONCATENATE(LEFT(BA$3,3),$B15,LEFT(BC$6,1)) -> 59B
B16: 81 | C16: =IF($B16>0,VLOOKUP($B16,EventsOrder,2,FALSE)," ") -> 4.5 | D16: =IF($B16>0,VLOOKUP($B16,EventsOrder,6,FALSE)," ") -> 4 x 100m Mixed NS | H16: =H$3 -> Daventry | M16: =M$3 -> Droitwich | R16: =R$3 -> Dudley & S'bridge | W16: =W$3 -> Leamington AA | AB16: =AB$3 -> Nuneaton | AG16: =AG$3 -> Sparkhill | AL16: =AL$3 -> Witney AC | AQ16: =AQ$3 -> 0 | AV16: =AV$3 -> 0 | BA16: =BA$3 -> 0
B17: =B16&"R" -> 81R | G17: 1 | I17: 2 | L17: 1 | N17: 2 | Q17: 1 | R17: Ellie Lees | S17: 2 | T17: Henry Jones | V17: 1 | W17: Annabell Waters | X17: 2 | Y17: Isabella Comerford | AA17: 1 | AB17: Evie Caffrey | AC17: 2 | AD17: Charlie Yates | AF17: 1 | AH17: 2 | AK17: 1 | AM17: 2 | AP17: 1 | AR17: 2 | AU17: 1 | AW17: 2 | AZ17: 1 | BA17: =CONCATENATE(LEFT(BA$3,3),$B17,LEFT(BA$6,1)) -> 81RA | BB17: 2 | BC17: =CONCATENATE(LEFT(BC$3,3),$B17,LEFT(BC$6,1)) -> 81RB
B18: =B16&"S" -> 81S | G18: 3 | I18: 4 | L18: 3 | N18: 4 | Q18: 3 | R18: Lexi Wood | S18: 4 | T18: Tyler Kendrick | V18: 3 | W18: Sam Robbins | X18: 4 | Y18: Andre Oneykwe | AA18: 3 | AB18: Owen Jayne | AC18: 4 | AD18: Lily Sharkey | AF18: 3 | AH18: 4 | AK18: 3 | AM18: 4 | AP18: 3 | AR18: 4 | AU18: 3 | AW18: 4 | AZ18: 3 | BA18: 81SA | BB18: 4 | BC18: 81SB
B20: Event | C20: Time | D20: Events | G20: No | H20: A String | I20: No | J20: B String | L20: No | M20: A String | N20: No | O20: B String | Q20: No | R20: A String | S20: No | T20: B String | V20: No | W20: A String | X20: No | Y20: B String | AA20: No | AB20: A String | AC20: No | AD20: B String | AF20: No | AG20: A String | AH20: No | AI20: B String | AK20: No | AL20: A String | AM20: No | AN20: B String | AP20: No | AQ20: A String | AR20: No | AS20: B String | AU20: No | AV20: A String | AW20: No | AX20: B String | AZ20: No | BA20: A String | BB20: No | BC20: B String
D21: Under 13 Female
B22: 1 | C22: =IF($B22>0,VLOOKUP($B22,EventsOrder,2,FALSE)," ") -> 11.45 | D22: =IF($B22>0,VLOOKUP($B22,EventsOrder,6,FALSE)," ") -> 1500m | G22: L | H22: Kate Pomerleau | V22: R | W22: Scarlet Littell | BA22: =CONCATENATE(LEFT(BA$3,3),$B22,LEFT(BA$6,1)) -> 1A | BC22: =CONCATENATE(LEFT(BA$3,3),$B22,LEFT(BC$6,1)) -> 1B
B23: 11 | C23: 12.15 | D23: 70m hurdles | G23: L | H23: Annalise Foxon-Day | V23: R | W23: Charlotte Ratley | X23: RR | Y23: Ellie Langhan | AA23: N | AB23: Lucy Poulsen | AC23: NN | AD23: Jessica Tuckley | BA23: 11A | BC23: =CONCATENATE(LEFT(BA$3,3),$B23,LEFT(BC$6,1)) -> 11B
B24: 25 | C24: 1.15 | D24: 800m | G24: L | H24: Millie Gearing | V24: R | W24: Abigail George | X24: RR | Y24: Emma Bliwert | AA24: N | AB24: Abigail Wynne | AC24: NN | AD24: Suhani Dhami | AF24: K | AG24: Lola-May Smeulders | AH24: KK | AI24: Roda Tedros | AK24: W | AL24: Martha Sherwood | AM24: WW | AN24: Bethany Jones | BA24: 25A | BC24: =CONCATENATE(LEFT(BA$3,3),$B24,LEFT(BC$6,1)) -> 25B
B25: 31 | C25: 1.4 | D25: High Jump | G25: L | H25: Kate Pomerleau | J25: A String only | O25: A String only | T25: A String only | V25: R | W25: Tabi Barber | Y25: A String only | AA25: N | AB25: Abigail Wynne | AD25: A String only | AI25: A String only | AK25: W | AL25: Edie Herbert | AN25: A String only | AS25: A String only | AX25: A String only | BA25: 31A | BC25: A String only
B26: 35 | C26: 2.1 | D26: 100m | G26: L | H26: Annalise Foxon-Day | I26: LL | J26: Kate Pomerleau | Q26: B | R26: Pheobe Crampton | V26: R | W26: Abigail George | X26: RR | Y26: Tabi Barber | AA26: N | AB26: Jessica Tuckley | AC26: NN | AD26: Lucy Poulsen | AF26: K | AG26: Esther Slater | AH26: KK | AI26: Elma Besic | AK26: W | AL26: Charlotte McIntyre | AM26: WW | AN26: Rebecca McIntyre | BA26: 35A | BC26: =CONCATENATE(LEFT(BA$3,3),$B26,LEFT(BC$6,1)) -> 35B
B27: 38 | C27: 1.5 | D27: Discus Match 2 | V27: R | BA27: 38A | BC27: 38B
B28: 56 | C28: =IF($B28>0,VLOOKUP($B28,EventsOrder,2,FALSE)," ") -> 2.5 | D28: =IF($B28>0,VLOOKUP($B28,EventsOrder,6,FALSE)," ") -> Long Jump Pit 1 | G28: L | H28: Annalise Foxon-Day | I28: LL | J28: Millie Gearing | Q28: B | R28: Pheobe Crampton | S28: BB | T28: Kiera Davies | V28: R | W28: Tabi Barber | X28: RR | Y28: Emma Bliwert | AA28: N | AB28: Lucy Poulsen | AF28: K | AG28: Esther Slater | AH28: KK | AI28: Roda Tedros | AK28: W | AL28: Edie Herbert | AM28: WW | AN28: Bethany Jones | BA28: 56A | BC28: 56B
B29: 63 | C29: 3.35 | D29: 200m | G29: L | H29: Millie Gearing | V29: R | W29: Elise Mendoza | X29: RR | Y29: Ellie Langhan | AA29: N | AB29: Abigail Wynne | AC29: NN | AD29: Jessica Tuckley | AF29: K | AG29: Lola-May Smeulders | AH29: KK | AI29: Elma Besic | AK29: W | AL29: Bethany Jones | AM29: WW | AN29: Charlotte McIntyre | BA29: 63A | BC29: 63B
B30: 65 | C30: 3.3 | D30: Shot | Q30: B | R30: Kiera Davies | V30: R | W30: Abigail George | X30: RR | Y30: Charlotte Ratley | AA30: N | AB30: Natasha Bielecka | AC30: NN | AD30: Suhani Dhami | AF30: K | AG30: Esther Slater | AH30: KK | AI30: Elma Besic | AK30: W | AL30: Martha Sherwood | AM30: WW | AN30: Rebecca McIntyre | BA30: 65A | BC30: 65B
B31: 79 | C31: 4.2 | D31: Javelin Match 1 & 3 | V31: R | W31: Ellie Langhan | X31: RR | Y31: Scarlett Littell | AA31: N | AB31: Natasha Bielecka | AC31: NN | AD31: Suhani Dhami | AF31: K | AG31: Lola-May Smeulders | AK31: W | AL31: Edie Herbert | AM31: WW | AN31: Martha Sherwood | BA31: 79A | BC31: 79B
B32: 82 | C32: 4.55 | D32: 4 x 100m | H32: =H$3 -> Daventry | M32: =M$3 -> Droitwich | R32: =R$3 -> Dudley & S'bridge | W32: =W$3 -> Leamington AA | AB32: =AB$3 -> Nuneaton | AG32: =AG$3 -> Sparkhill | AL32: =AL$3 -> Witney AC | AQ32: =AQ$3 -> 0 | AV32: =AV$3 -> 0 | BA32: =BA$3 -> 0
B33: =B32&"R" -> 82R | G33: 1 | I33: 2 | L33: 1 | N33: 2 | Q33: 1 | S33: 2 | V33: 1 | W33: Abigail George | X33: 2 | Y33: Charlotte Ratley | AA33: 1 | AB33: Natasha Bielecka | AC33: 2 | AD33: Lucy Poulsen | AF33: 1 | AG33: Roda Tedros | AH33: 2 | AI33: Lola-May Smeulders | AK33: 1 | AL33: Bethany Jones | AM33: 2 | AN33: Edie Herbert | AP33: 1 | AR33: 2 | AU33: 1 | AW33: 2 | AZ33: 1 | BA33: =CONCATENATE(LEFT(BA$3,3),$B33,LEFT(BA$6,1)) -> 82RA | BB33: 2 | BC33: =CONCATENATE(LEFT(BC$3,3),$B33,LEFT(BC$6,1)) -> 82RB
B34: =B32&"S" -> 82S | G34: 3 | I34: 4 | L34: 3 | N34: 4 | Q34: 3 | S34: 4 | V34: 3 | W34: Elise Mendoza | X34: 4 | Y34: Tabi Barber | AA34: 3 | AB34: Jessica Tuckley | AC34: 4 | AD34: Abigail Wynne | AF34: 3 | AG34: Esther Slater | AH34: 4 | AI34: Elma Besic | AK34: 3 | AL34: Rebecca McIntyre | AM34: 4 | AN34: Martha Sherwood | AP34: 3 | AR34: 4 | AU34: 3 | AW34: 4 | AZ34: 3 | BA34: 82SA | BB34: 4 | BC34: 82SB
B37: Event | C37: Time | D37: Events | G37: No | H37: A String | I37: No | J37: B String | L37: No | M37: A String | N37: No | O37: B String | Q37: No | R37: A String | S37: No | T37: B String | V37: No | W37: A String | X37: No | Y37: B String | AA37: No | AB37: A String | AC37: No | AD37: B String | AF37: No | AG37: A String | AH37: No | AI37: B String | AK37: No | AL37: A String | AM37: No | AN37: B String | AP37: No | AQ37: A String | AR37: No | AS37: B String | AU37: No | AV37: A String | AW37: No | AX37: B String | AZ37: No | BA37: A String | BB37: No | BC37: B String
D38: Under 15 Female
B39: 4 | C39: =IF($B39>0,VLOOKUP($B39,EventsOrder,2,FALSE)," ") -> 11.55 | D39: =IF($B39>0,VLOOKUP($B39,EventsOrder,6,FALSE)," ") -> 1500m | Q39: B | R39: Isabelle Plant | BA39: =CONCATENATE(LEFT(BA$3,3),$B39,LEFT(BA$6,1)) -> 4A | BC39: =CONCATENATE(LEFT(BA$3,3),$B39,LEFT(BC$6,1)) -> 4B
B40: 9 | C40: 12.15 | D40: Discus Match 2 | BA40: 9A | BC40: =CONCATENATE(LEFT(BA$3,3),$B40,LEFT(BC$6,1)) -> 9B
B41: 13 | C41: 12.3 | D41: 75m hurdles | Q41: B | R41: Madelene Crowe | V41: R | W41: Imogen George | X41: RR | Y41: Josie Wighan | AA41: N | AB41: Jessica Day | AC41: NN | AD41: Hannah Burton | BA41: 13A | BC41: =CONCATENATE(LEFT(BA$3,3),$B41,LEFT(BC$6,1)) -> 13B
B42: 17 | C42: 12.55 | D42: High Jump | J42: A String only | L42: E | M42: Charlotte Plant | O42: A String only | Q42: B | R42: Madelene Crowe | T42: A String only | V42: R | W42: Imogen George | Y42: A String only | AD42: A String only | AI42: A String only | AN42: A String only | AS42: A String only | AX42: A String only | BA42: 17A | BC42: A String only
B43: 21 | C43: 1 | D43: Long Jump Pit 2 | L43: E | M43: Isobel Jones | N43: E | O43: Charlotte Plant | Q43: B | R43: Alina Quinnard | V43: R | W43: Jessica Chander | X43: RR | Y43: Alex Spurway | AA43: N | AB43: Jessica Day | AC43: NN | AD43: Hannah Burton | AF43: K | AG43: Hanah Ceric | AK43: W | AL43: Maisie Henman | AM43: WW | AN43: Lily Sherwood | BA43: 21A | BC43: =CONCATENATE(LEFT(BA$3,3),$B43,LEFT(BC$6,1)) -> 21B
B44: 26 | C44: 1.25 | D44: 800m | V44: R | W44: Poppy Lister | X44: RR | Y44: Josie Wighan | AA44: N | AB44: Lucie Budge | AC44: NN | AD44: Ella Smith | AF44: K | AG44: Alice Stewart | AK44: W | AL44: Lily Sherwood | BA44: 26A | BC44: 26B
B45: 36 | C45: 2.15 | D45: 100m | L45: E | M45: Isobel Jones | Q45: B | R45: Erin Lomax | S45: BB | T45: Katie Haynes | V45: R | W45: Jessica Silverthorne | X45: RR | Y45: Jessica Chander | AA45: N | AB45: Hannah Burton | AC45: NN | AD45: Mia Sharkey | AF45: K | AG45: Savannah Maylor-Bailey | AH45: KK | AI45: Hannah Ceric | AK45: W | AL45: Lizzie McIntyre | BA45: 36A | BC45: 36B
B46: 50 | C46: =IF($B46>0,VLOOKUP($B46,EventsOrder,2,FALSE)," ") -> 2.4 | D46: =IF($B46>0,VLOOKUP($B46,EventsOrder,6,FALSE)," ") -> 300m | Q46: B | R46: Madelene Crowe | S46: BB | T46: Katie Haynes | V46: R | W46: Alex Spurway | X46: RR | Y46: Poppy Lister | AA46: N | AB46: Lucie Budge | AF46: K | AG46: Alice Stewart | AK46: W | AL46: Maisie Henman | AM46: WW | AN46: Lizzie McIntyre | BA46: 50A | BC46: 50B
B47: 54 | C47: 2.4 | D47: Javelin Match 1 & 3 | Q47: B | R47: Zara Gibbs | S47: BB | T47: Alina Quinnard | V47: R | W47: Charlotte Booth | X47: RR | Y47: Josie Wighan | AA47: N | AB47: Mia Sharkey | AC47: NN | AD47: Lily Oravecz | AF47: K | AG47: Alice Stewart | AH47: KK | AI47: Hannah Ceric | AK47: W | AL47: Lily Sherwood | BA47: 54A | BC47: 54B
B48: 68 | C48: 3.4 | D48: 200m | L48: E | M48: Isobel Jones | Q48: B | R48: Erin Lomax | S48: BB | T48: Ciara Lomax | V48: R | W48: Jessica Silverthorne | X48: RR | Y48: Jessica Chander | AA48: N | AB48: Mia Sharkey | AC48: NN | AD48: Lily Oravecz | AF48: K | AG48: Savannah Maylor-Bailey | AK48: W | AL48: Maisie Henman | AM48: WW | AN48: Lizzie McIntyre | BA48: 68A | BC48: 68B
B49: 77 | C49: 4.2 | D49: Shot | Q49: B | R49: Zara Gibbs | S49: BB | T49: Zoe Hodson | V49: R | W49: Imogen George | X49: RR | Y49: Charlotte Booth | AA49: N | AB49: Jessica Day | AC49: NN | AD49: Ella Smith | AF49: K | AG49: Savannah Maylor-Bailey | BA49: 77A | BC49: 77B
B50: 83 | C50: 5 | D50: 4 x 100m | H50: =H$3 -> Daventry | M50: =M$3 -> Droitwich | R50: =R$3 -> Dudley & S'bridge | W50: =W$3 -> Leamington AA | AB50: =AB$3 -> Nuneaton | AG50: =AG$3 -> Sparkhill | AL50: =AL$3 -> Witney AC | AQ50: =AQ$3 -> 0 | AV50: =AV$3 -> 0 | BA50: =BA$3 -> 0
B51: =B50&"R" -> 83R | G51: 1 | I51: 2 | L51: 1 | N51: 2 | Q51: 1 | R51: Zoe Hodson | S51: 2 | T51: Ciara Lomax | V51: 1 | W51: Alex Spurway | X51: 2 | Y51: Jessica Silverthorne | AA51: 1 | AB51: Ella Smith | AC51: 2 | AD51: Lily Oravecz | AF51: 1 | AH51: 2 | AK51: 1 | AL51: Lizzie McIntyre | AM51: 2 | AN51: Maisie Henman | AP51: 1 | AR51: 2 | AU51: 1 | AW51: 2 | AZ51: 1 | BA51: =CONCATENATE(LEFT(BA$3,3),$B51,LEFT(BA$6,1)) -> 83RA | BB51: 2 | BC51: =CONCATENATE(LEFT(BC$3,3),$B51,LEFT(BC$6,1)) -> 83RB
B52: =B50&"S" -> 83S | G52: 3 | I52: 4 | L52: 3 | N52: 4 | Q52: 3 | R52: Madelene Crowe | S52: 4 | T52: Erin Lomax | V52: 3 | W52: Poppy Lister | X52: 4 | Y52: Jessica Chander | AA52: 3 | AB52: Mia Sharkety | AC52: 4 | AD52: Jessica Day | AF52: 3 | AH52: 4 | AK52: 3 | AL52: Charlotte McIntyre | AM52: 4 | AN52: Lily Sherwood | AP52: 3 | AR52: 4 | AU52: 3 | AW52: 4 | AZ52: 3 | BA52: 83SA | BB52: 4 | BC52: 83SB
B55: Event | C55: Time | D55: Events | G55: No | H55: A String | I55: No | J55: B String | L55: No | M55: A String | N55: No | O55: B String | Q55: No | R55: A String | S55: No | T55: B String | V55: No | W55: A String | X55: No | Y55: B String | AA55: No | AB55: A String | AC55: No | AD55: B String | AF55: No | AG55: A String | AH55: No | AI55: B String | AK55: No | AL55: A String | AM55: No | AN55: B String | AP55: No | AQ55: A String | AR55: No | AS55: B String | AU55: No | AV55: A String | AW55: No | AX55: B String | AZ55: No | BA55: A String | BB55: No | BC55: B String
D56: U17 Female / Women
B57: 7 | C57: =IF($B57>0,VLOOKUP($B57,EventsOrder,2,FALSE)," ") -> 12.05 | D57: =IF($B57>0,VLOOKUP($B57,EventsOrder,6,FALSE)," ") -> 1500m | BA57: =CONCATENATE(LEFT(BA$3,3),$B57,LEFT(BA$6,1)) -> 7A | BC57: =CONCATENATE(LEFT(BA$3,3),$B57,LEFT(BC$6,1)) -> 7B
B58: 10 | C58: 12.15 | D58: Javelin (U17) Match 1 & 3 | AF58: K | AG58: Aaliyah Mushtaq | AH58: KK | AI58: Connie Regan | AK58: W | AL58: Hannah Jarrett | AM58: WW | AN58: Sian Tanner | BA58: 10A | BC58: 10B
B59: 19 | C59: 1 | D59: 80m hurdles (U17) | AK59: W | AL59: Hannah Jarrett | BA59: 19A | BC59: 19B
B60: 28 | C60: 1.4 | D60: 800m | Q60: B | R60: Jasmine Priatoro | AF60: K | AG60: Ruby Breakwell | AH60: KK | AI60: Grace Stewart | BA60: 28A | BC60: 28B
B61: 37 | C61: 1.5 | D61: Shot (U17) | AF61: K | AG61: Aaliyah Mushtaq | AH61: KK | AI61: Connie Regan | AK61: W | AL61: Sian Tanner | BA61: 37A | BC61: 37B
B62: 40 | C62: 2.2 | D62: 100m | G62: L | H62: Emily Sanderson (SEN) | Q62: B | R62: Rachel Timothy | S62: BB | T62: Isobel Fisher | AA62: N | AB62: Heidi Tanyi | AC62: NN | AD62: Viv Kirkland | AF62: K | AG62: Aaliyah Sundi (U20) | AH62: KK | AI62: Grace Stewart | AK62: W | AL62: Kirsty Tanner (SEN) | BA62: 40A | BC62: 40B
B63: 51 | C63: 2.45 | D63: 300m | Q63: B | R63: Emily Meyrick | S63: BB | T63: Jasmine Priantoro | AA63: N | AB63: Heidi Tanyi | AF63: K | AG63: Charlotte Smeulders (U20) | AH63: KK | AI63: Ruby Breakwell | BA63: 51A | BC63: 51B
B64: 53 | C64: =IF($B64>0,VLOOKUP($B64,EventsOrder,2,FALSE)," ") -> 2.4 | D64: =IF($B64>0,VLOOKUP($B64,EventsOrder,6,FALSE)," ") -> Discus (U17) Match 2 | BA64: 53A | BC64: 53B
B65: 60 | C65: 3.1 | D65: High Jump | G65: L | H65: Emily Sanderson (SEN) | J65: A String only | O65: A String only | Q65: B | R65: Emma Sherwood | T65: A String only | Y65: A String only | AD65: A String only | AF65: K | AG65: Connie Regan | AI65: A String only | AK65: W | AL65: Hannah Jarrett | AN65: A String only | AS65: A String only | AX65: A String only | BA65: 60A | BC65: A String only
B66: 69 | C66: 3.45 | D66: 200m | G66: L | H66: Emily Sanderson (SEN) | Q66: B | R66: Isobel Fisher | AA66: N | AB66: Heidi Tanyi | AF66: K | AG66: Charlotte Smeulders (U20) | AH66: KK | AI66: Aaliyah Sundi (U20) | BA66: 69A | BC66: =CONCATENATE(LEFT(BA$3,3),$B66,LEFT(BC$6,1)) -> 69B
B67: 75 | C67: 4 | D67: Long Jump Pit1 | G67: L | H67: Emily Sanderson (SEN) | Q67: B | R67: Emma Sherwood | AA67: N | AB67: Emma Jayne | AC67: NN | AD67: Viv Kirland | AF67: K | AG67: Charlotte Smeulders (U20) | AH67: KK | AI67: Connie Regan | AK67: W | AL67: Sian Tanner | AM67: WW | AN67: Kirsty Tanner (SEN) | BA67: 75A | BC67: =CONCATENATE(LEFT(BA$3,3),$B67,LEFT(BC$6,1)) -> 75B
B68: 84 | C68: 5.05 | D68: 4 x 100m | H68: =H$3 -> Daventry | M68: =M$3 -> Droitwich | R68: =R$3 -> Dudley & S'bridge | W68: =W$3 -> Leamington AA | AB68: =AB$3 -> Nuneaton | AG68: =AG$3 -> Sparkhill | AL68: =AL$3 -> Witney AC | AQ68: =AQ$3 -> 0 | AV68: =AV$3 -> 0 | BA68: =BA$3 -> 0
B69: =B68&"R" -> 84R | G69: 1 | I69: 2 | L69: 1 | N69: 2 | Q69: 1 | R69: Emily Meyrick | S69: 2 | T69: Isobel Fisher | V69: 1 | X69: 2 | AA69: 1 | AC69: 2 | AF69: 1 | AG69: Aaliyah Sundi (U20) | AH69: 2 | AI69: Ruby Breakwell | AK69: 1 | AL69: Sian Tanner | AM69: 2 | AN69: Hannah Jarrett | AP69: 1 | AR69: 2 | AU69: 1 | AW69: 2 | AZ69: 1 | BA69: =CONCATENATE(LEFT(BA$3,3),$B69,LEFT(BA$6,1)) -> 84RA | BB69: 2 | BC69: =CONCATENATE(LEFT(BC$3,3),$B69,LEFT(BC$6,1)) -> 84RB
B70: =B68&"S" -> 84S | G70: 3 | I70: 4 | L70: 3 | N70: 4 | Q70: 3 | R70: Rachel Timothy | S70: 4 | T70: Emma Sherwood | V70: 3 | X70: 4 | AA70: 3 | AC70: 4 | AF70: 3 | AG70: Connie Regan | AH70: 4 | AI70: Charlotte Smeulders (U20) | AK70: 3 | AL70: Katherine Smith (SEN) | AM70: 4 | AN70: Kirsty Tanner (SEN) | AP70: 3 | AR70: 4 | AU70: 3 | AW70: 4 | AZ70: 3 | BA70: 84SA | BB70: 4 | BC70: 84SB
C75: Guests - Non-Scoring
B77: Event | C77: Time | D77: Events | G77: No | H77: A String | L77: No | M77: A String | Q77: No | R77: A String | V77: No | W77: A String | AA77: No | AB77: A String | AF77: No | AG77: A String | AK77: No | AL77: A String | AP77: No | AQ77: A String | AU77: No | AV77: A String | AZ77: No | BA77: A String
D79: Female
B80: 88 | C80: =IF($B80>0,VLOOKUP($B80,EventsOrder,2,FALSE)," ") -> 11.45 | D80: =IF($B80>0,VLOOKUP($B80,EventsOrder,6,FALSE)," ") -> 1500m U13 Female | AZ80: =$B80 -> 88 | BA80: =CONCATENATE(LEFT(BA$3,3),$B80,LEFT(BA$6,1)) -> 88A
B81: 89 | C81: 11.55 | D81: 1500m U15 Female | AZ81: 89 | BA81: 89A
B82: 90 | C82: 12.05 | D82: 1500m U17 F/Women | AZ82: 90 | BA82: 90A
B83: 94 | C83: 1.15 | D83: 800m U13 Female | AZ83: 94 | BA83: =CONCATENATE(LEFT(BA$3,3),$B83,LEFT(BA$6,1)) -> 94A
B84: 95 | C84: 1.25 | D84: 800m U15 Female | AZ84: 95 | BA84: 95A
B85: 96 | C85: 1.4 | D85: 800m U17 F/Women | AZ85: 96 | BA85: 96A
B88: =COLUMN(B1) -> 2 | C88: 3 | D88: 4 | E88: 5 | F88: 6 | G88: 7 | H88: 8 | I88: 9 | J88: 10 | K88: 11 | L88: 12 | M88: 13 | N88: 14 | O88: 15 | P88: 16 | Q88: 17 | R88: 18 | S88: 19 | T88: 20 | U88: 21 | V88: 22 | W88: 23 | X88: 24 | Y88: 25 | Z88: 26 | AA88: 27 | AB88: 28 | AC88: 29 | AD88: 30 | AE88: 31 | AF88: 32 | AG88: 33 | AH88: 34 | AI88: 35 | AJ88: 36 | AK88: 37 | AL88: 38 | AM88: 39 | AN88: 40 | AO88: 41 | AP88: 42 | AQ88: 43 | AR88: 44 | AS88: 45

Sheet Results Entry
C2: Event | E2: Age | AE2: ='Event Details'!C32 -> 7 | AF2: =AE2-1 -> 6 | AG2: 5 | AH2: 4 | AI2: 3 | AJ2: 2 | AK2: 1 | AL2: 0 | AU2: =#REF!&#REF! ->  | AV2: =#REF!&#REF! ->  | AW2: =#REF!&#REF! ->  | AX2: =#REF!&#REF! ->  | AY2: =#REF!&#REF! ->  | AZ2: =#REF!&#REF! ->  | BA2: =#REF!&#REF! ->  | BB2: =#REF!&#REF! -> 
D3: Time | E3: Group | F3: Event | I3: NS | J3: M/F
C4: 17 | D4: =VLOOKUP($C$4,EventsOrder,2,FALSE) -> 12.55 | E4: =VLOOKUP($C$4,EventsOrder,4,FALSE) -> U15 Female | F4: =VLOOKUP($C$4,EventsOrder,3,FALSE) -> High Jump | I4: =VLOOKUP($C$4,EventsOrder,5,FALSE) ->  | J4: =IF(MID(E4,5,1)="F","F","M") -> F | R4: Results Entry | U4: ="Enter single or double letter for Club Letter i.e. as "&B10&" or "&B10&B10 -> Enter single or double letter for Club Letter i.e. as L or LL
U5: Enter Club Letter for both SCORING and NON SCORING results.
E6: Names from Club Teamsheet | U6: Enter Time as "2.10.5" for mins or "12.55" for mtrs
S7: Event A | Z7: Event B
B8: Club | C8: Club | F8: U11 | G8: Event A | K8: U11 | L8: Event B | Q8: Club | R8: Time/ | S8: U11 | T8: Name | X8: Club | Y8: Time/ | Z8: U11 | AA8: Name
B9: Letter | F9: No. | G9: Name | K9: No. | L9: Name | Q9: Letter | R9: Dist | S9: No. | X9: Letter | Y9: Dist | Z9: No.
B10: ='Event Details'!$C22 -> L | C10: ='Event Details'!$D22 -> Daventry | F10: =VLOOKUP($C$4,IF($J$4="F",TeamSheetFemale,TeamSheetMale),AE10-1,FALSE) -> 0 | G10: =VLOOKUP($C$4,IF($J$4="F",TeamSheetFemale,TeamSheetMale),AE10,FALSE) -> 0 | K10: =VLOOKUP($C$4,IF($J$4="F",TeamSheetFemale,TeamSheetMale),AE10+1,FALSE) -> 0 | L10: =VLOOKUP($C$4,IF($J$4="F",TeamSheetFemale,TeamSheetMale),AE10+2,FALSE) -> A String only | P10: 1st | T10: =IF(LEN(Q10)=1,VLOOKUP(LEFT(Q10,1),Result2,6,FALSE),IF(LEN(Q10)=2,VLOOKUP(LEFT(Q10,1),Result2,11,FALSE),"")) ->  | W10: 1st | Z10: =IF(LEN($X10)=1,VLOOKUP(LEFT($X10,1),Result2,5,FALSE),IF(LEN($X10)=2,VLOOKUP(LEFT($X10,1),Result2,10,FALSE),"")) ->  | AA10: =IF(LEN(X10)=1,VLOOKUP(LEFT(X10,1),Result2,6,FALSE),IF(LEN(X10)=2,VLOOKUP(LEFT(X10,1),Result2,11,FALSE),"")) ->  | AD10: =AE10-1 -> 6 | AE10: 7 | AF10: =AE10+1 -> 8 | AG10: =AF10+1 -> 9
B11: ='Event Details'!$C23 -> E | C11: ='Event Details'!$D23 -> Droitwich | F11: E | G11: Charlotte Plant | K11: 0 | L11: A String only | P11: 2nd | S11: =IF(LEN($Q11)=1,VLOOKUP(LEFT($Q11,1),Result2,5,FALSE),IF(LEN($Q11)=2,VLOOKUP(LEFT($Q11,1),Result2,10,FALSE),"")) ->  | T11: =IF(LEN(Q11)=1,VLOOKUP(LEFT(Q11,1),Result2,6,FALSE),IF(LEN(Q11)=2,VLOOKUP(LEFT(Q11,1),Result2,11,FALSE),"")) ->  | W11: 2nd | AD11: =AE11-1 -> 11 | AE11: 12 | AF11: =AE11+1 -> 13 | AG11: 14
B12: ='Event Details'!$C24 -> B | C12: ='Event Details'!$D24 -> Dudley & S'bridge | F12: B | G12: Madelene Crowe | K12: 0 | L12: A String only | P12: 3rd | W12: 3rd | AD12: 16 | AE12: 17 | AF12: 18 | AG12: 19
B13: ='Event Details'!$C25 -> R | C13: ='Event Details'!$D25 -> Leamington AA | F13: R | G13: Imogen George | K13: 0 | L13: A String only | P13: 4th | W13: 4th | AD13: 21 | AE13: 22 | AF13: 23 | AG13: 24
B14: ='Event Details'!$C26 -> N | C14: ='Event Details'!$D26 -> Nuneaton | F14: 0 | G14: 0 | K14: 0 | L14: A String only | P14: 5th | W14: 5th | AD14: 26 | AE14: 27 | AF14: 28 | AG14: 29
B15: ='Event Details'!$C27 -> K | C15: ='Event Details'!$D27 -> Sparkhill | F15: 0 | G15: 0 | K15: 0 | L15: A String only | P15: 6th | W15: 6th | AD15: 31 | AE15: 32 | AF15: 33 | AG15: 34
B16: ='Event Details'!$C28 -> W | C16: ='Event Details'!$D28 -> Witney AC | F16: 0 | G16: 0 | K16: 0 | L16: A String only | P16: 7th | W16: 7th | AD16: 36 | AE16: 37 | AF16: 38 | AG16: 39
B17: ='Event Details'!$C29 -> 0 | C17: ='Event Details'!$D29 -> 0 | F17: 0 | G17: 0 | K17: 0 | L17: A String only | P17: 8th | S17: =IF(LEN($Q17)=1,VLOOKUP(LEFT($Q17,1),Result2,5,FALSE),IF(LEN($Q17)=2,VLOOKUP(LEFT($Q17,1),Result2,10,FALSE),"")) ->  | T17: =IF(LEN(Q17)=1,VLOOKUP(LEFT(Q17,1),Result2,6,FALSE),IF(LEN(Q17)=2,VLOOKUP(LEFT(Q17,1),Result2,11,FALSE),"")) ->  | W17: 8th | AD17: 41 | AE17: 42 | AF17: 43 | AG17: 44
CD56: =IF(LEN(BT56)=0,"",HLOOKUP(BT56,#REF!,2,FALSE)+2) ->  | CE56: =IF(LEN(BU56)=0,"",HLOOKUP(BU56,#REF!,2,FALSE)+2) ->  | CF56: =IF(LEN(BV56)=0,"",HLOOKUP(BV56,#REF!,2,FALSE)+2) ->  | CG56: =IF(LEN(BW56)=0,"",HLOOKUP(BW56,#REF!,2,FALSE)+2) ->  | CH56: =IF(LEN(BX56)=0,"",HLOOKUP(BX56,#REF!,2,FALSE)+2) ->  | CI56: =IF(LEN(BY56)=0,"",HLOOKUP(BY56,#REF!,2,FALSE)+2) ->  | CJ56: =IF(LEN(BZ56)=0,"",HLOOKUP(BZ56,#REF!,2,FALSE)+2) ->  | CK56: =IF(LEN(CA56)=0,"",HLOOKUP(CA56,#REF!,2,FALSE)+2) -> 
AF85: =IF(LEN(H85)=0,"",VLOOKUP($C85,TeamNames,CD85,FALSE)) -> 
AF86: =IF(LEN(H86)=0,"",VLOOKUP($C85,TeamNames,CD86,FALSE)) -> 

Sheet Results Database
K1: Results Database | O1: Division : | P1: ='Event Details'!D$9 -> 4
B2: Event | D2: Age | O2: Venue : | P2: ='Event Details'!D$17 -> Dell Stadium | S2: Note
B3: No | C3: Time | D3: Group | E3: Event | H3: NS | I3: M/F | O3: Date : | P3: ='Event Details'!B$17 -> 8th July 2018 | T3: Manual input in GREEN Area
B4: 1 | C4: =VLOOKUP($B$4,EventsOrder,2,FALSE) -> 11.45 | D4: =VLOOKUP($B$4,EventsOrder,4,FALSE) -> U13 Female | E4: =VLOOKUP($B$4,EventsOrder,3,FALSE) -> 1500m | H4: =VLOOKUP($B$4,EventsOrder,5,FALSE) ->  | I4: =IF(MID(D4,5,1)="F","F","M") -> F | AF4: Column required from Teamsheet
P5: Number Of Clubs | Q5: ='Event Details'!C32 -> 7 | AF5: ='Event Details'!C22 -> L | AG5: ='Event Details'!D22 -> Daventry | AH5: 7
A6: Event + | B6: Event | G6: A | H6: Club | I6: Time | J6: U11 | L6: B | M6: Club | N6: Time | O6: U11 | R6: A | S6: B | T6: Club | V6: A | W6: B | X6: A | Y6: B | Z6: A | AA6: B | AB6: A | AC6: B | AD6: A | AE6: B | AF6: ='Event Details'!C23 -> E | AG6: ='Event Details'!D23 -> Droitwich | AH6: 12
A7: Seq | B7: No | C7: Time | D7: Age | E7: Event | F7: M/F | G7: Event | H7: Letter | I7: Distance | J7: No | K7: Name | L7: Event | M7: Letter | N7: Distance | O7: No | P7: Name | Q7: Points | R7: Short Name | S7: Short Name | T7: Letter | U7: Club Name | V7: Name | W7: Name | X7: Time/Dist | Y7: Time/Dist | Z7: U11 No | AA7: U11 No | AB7: Pos. | AC7: Pos. | AD7: Points | AE7: Points | AF7: ='Event Details'!C24 -> B | AG7: ='Event Details'!D24 -> Dudley & S'bridge | AH7: 17
A8: 1 | B8: 0 | AF8: ='Event Details'!C25 -> R | AG8: ='Event Details'!D25 -> Leamington AA | AH8: 22
A9: 2 | B9: 0 | AF9: ='Event Details'!C26 -> N | AG9: ='Event Details'!D26 -> Nuneaton | AH9: 27
A10: 3 | B10: 0 | AF10: ='Event Details'!C27 -> K | AG10: ='Event Details'!D27 -> Sparkhill | AH10: 32
A11: 4 | B11: 0 | AF11: ='Event Details'!C28 -> W | AG11: ='Event Details'!D28 -> Witney AC | AH11: 37
A12: 5 | B12: 0 | AF12: ='Event Details'!C29 -> 0 | AG12: ='Event Details'!D29 -> 0 | AH12: 42
A13: 6 | B13: 0
A14: 7 | B14: 0 | AF14: Col | AG14: Col
A15: 8 | B15: 0 | AF15: A | AG15: B
A16: =(B16*10)+1 -> 11 | B16: 1 | C16: =VLOOKUP(B16,EventsOrder,2,FALSE) -> 11.45 | D16: =VLOOKUP(B16,EventsOrder,4,FALSE) -> U13 Female | E16: =VLOOKUP(B16,EventsOrder,3,FALSE) -> 1500m | F16: =IF(MID(D16,5,1)="F","F","M") -> F | G16: =LEFT(H16,1) -> L | H16: L | I16: 6.03.2 | K16: =VLOOKUP($B16,IF(F16="F",TeamSheetFemale,TeamSheetMale),IF(LEN(H16)=1,AF16,AF16+2),FALSE) -> Kate Pomerleau | L16: =LEFT(M16,1) ->  | P16: =VLOOKUP($B16,IF(F16="F",TeamSheetFemale,TeamSheetMale),IF(LEN(M16)=1,AG16,AG16+2),FALSE) -> 0 | Q16: =Q$5 -> 7 | R16: =IF(LEN(G16)>0,VLOOKUP(LEFT(G16,1),Clubs,5,FALSE),0) -> Dav | S16: =IF(LEN(L16)>0,VLOOKUP(LEFT(L16,1),Clubs,5,FALSE),0) -> 0 | T16: ='Event Details'!C$22 -> L | U16: ='Event Details'!D$22 -> Daventry | V16: =IF(ISNA(MATCH(T16,G16:G23,0)),0,VLOOKUP(T16,G16:K23,5,FALSE)) -> Kate Pomerleau | W16: =IF(ISNA(MATCH(T16,L16:L23,0))," ",VLOOKUP(T16,L16:P23,5,FALSE)) ->  | X16: =IF(ISNA(MATCH(T16,G16:G23,0)),0,VLOOKUP(T16,G16:I23,3,FALSE)) -> 6.03.2 | Y16: =IF(ISNA(MATCH(T16,L16:L23,0)),0,VLOOKUP(T16,L16:N23,3,FALSE)) -> 0 | Z16: =IF(ISNA(MATCH(T16,G16:G23,0)),0,VLOOKUP(T16,G16:J23,4,FALSE)) -> 0 | AA16: =IF(ISNA(MATCH(T16,L16:L23,0)),0,VLOOKUP(T16,L16:P23,4,FALSE)) -> 0 | AB16: =IF(AD16=0,0,Q16-(AD16-1)) -> 1 | AC16: =IF(AE16=0,0,Q16-(AE16-1)) -> 0 | AD16: =IF(ISNA(MATCH(T16,G16:G23,0)),0,VLOOKUP(T16,G16:Q23,11,FALSE)) -> 7 | AE16: =IF(ISNA(MATCH(T16,L16:L23,0)),0,VLOOKUP(T16,L16:Q23,6,FALSE)) -> 0 | AF16: =IF(LEN(H16)=0,3,VLOOKUP(LEFT(H16,1),$AF$5:$AI$12,3,FALSE)) -> 7 | AG16: =IF(LEN(M16)=0,3,VLOOKUP(LEFT(M16,1),$AF$5:$AI$12,3,FALSE)) -> 3
A17: =A16+1 -> 12 | B17: =B16 -> 1 | C17: =C16 -> 11.45 | D17: =D16 -> U13 Female | E17: =E16 -> 1500m | F17: F | G17: R | H17: R | I17: 6.25.5 | J17: R | K17: Scarlet Littell | P17: 0 | Q17: =Q16-1 -> 6 | R17: Leam | S17: 0 | T17: ='Event Details'!C$23 -> E | U17: ='Event Details'!D$23 -> Droitwich | V17: =IF(ISNA(MATCH(T17,G16:G23,0)),0,VLOOKUP(T17,G16:K23,5,FALSE)) -> 0 | W17: =IF(ISNA(MATCH(T17,L16:L23,0))," ",VLOOKUP(T17,L16:P23,5,FALSE)) ->  | X17: =IF(ISNA(MATCH(T17,G16:G23,0)),0,VLOOKUP(T17,G16:I23,3,FALSE)) -> 0 | Y17: =IF(ISNA(MATCH(T17,L16:L23,0)),0,VLOOKUP(T17,L16:N23,3,FALSE)) -> 0 | Z17: =IF(ISNA(MATCH(T17,G16:G23,0)),0,VLOOKUP(T17,G16:J23,4,FALSE)) -> 0 | AA17: =IF(ISNA(MATCH(T17,L16:L23,0)),0,VLOOKUP(T17,L16:P23,4,FALSE)) -> 0 | AB17: =IF(AD17=0,0,Q16-(AD17-1)) -> 0 | AC17: =IF(AE17=0,0,Q16-(AE17-1)) -> 0 | AD17: =IF(ISNA(MATCH(T17,G16:G23,0)),0,VLOOKUP(T17,G16:Q23,11,FALSE)) -> 0 | AE17: =IF(ISNA(MATCH(T17,L16:L23,0)),0,VLOOKUP(T17,L16:Q23,6,FALSE)) -> 0 | AF17: =IF(LEN(H17)=0,3,VLOOKUP(LEFT(H17,1),$AF$5:$AI$12,3,FALSE)) -> 22 | AG17: =IF(LEN(M17)=0,3,VLOOKUP(LEFT(M17,1),$AF$5:$AI$12,3,FALSE)) -> 3
A18: =A17+1 -> 13 | B18: =B17 -> 1 | C18: =C17 -> 11.45 | D18: =D17 -> U13 Female | E18: =E17 -> 1500m | F18: =F17 -> F | K18: 0 | P18: 0 | Q18: =Q17-1 -> 5 | R18: 0 | S18: 0 | T18: ='Event Details'!C$24 -> B | U18: ='Event Details'!D$24 -> Dudley & S'bridge | V18: =IF(ISNA(MATCH(T18,G16:G23,0)),0,VLOOKUP(T18,G16:K23,5,FALSE)) -> 0 | W18: =IF(ISNA(MATCH(T18,L16:L23,0))," ",VLOOKUP(T18,L16:P23,5,FALSE)) ->  | X18: =IF(ISNA(MATCH(T18,G16:G23,0)),0,VLOOKUP(T18,G16:I23,3,FALSE)) -> 0 | Y18: =IF(ISNA(MATCH(T18,L16:L23,0)),0,VLOOKUP(T18,L16:N23,3,FALSE)) -> 0 | Z18: =IF(ISNA(MATCH(T18,G16:G23,0)),0,VLOOKUP(T18,G16:J23,4,FALSE)) -> 0 | AA18: =IF(ISNA(MATCH(T18,L16:L23,0)),0,VLOOKUP(T18,L16:P23,4,FALSE)) -> 0 | AB18: =IF(AD18=0,0,Q16-(AD18-1)) -> 0 | AC18: =IF(AE18=0,0,Q16-(AE18-1)) -> 0 | AD18: =IF(ISNA(MATCH(T18,G16:G23,0)),0,VLOOKUP(T18,G16:Q23,11,FALSE)) -> 0 | AE18: =IF(ISNA(MATCH(T18,L16:L23,0)),0,VLOOKUP(T18,L16:Q23,6,FALSE)) -> 0 | AF18: 3 | AG18: 3
A19: 14 | B19: 1 | C19: 11.45 | D19: U13 Female | E19: 1500m | F19: F | K19: 0 | P19: 0 | Q19: 4 | R19: 0 | S19: 0 | T19: ='Event Details'!C$25 -> R | U19: ='Event Details'!D$25 -> Leamington AA | V19: =IF(ISNA(MATCH(T19,G16:G23,0)),0,VLOOKUP(T19,G16:K23,5,FALSE)) -> Scarlet Littell | W19: =IF(ISNA(MATCH(T19,L16:L23,0))," ",VLOOKUP(T19,L16:P23,5,FALSE)) ->  | X19: =IF(ISNA(MATCH(T19,G16:G23,0)),0,VLOOKUP(T19,G16:I23,3,FALSE)) -> 6.25.5 | Y19: =IF(ISNA(MATCH(T19,L16:L23,0)),0,VLOOKUP(T19,L16:N23,3,FALSE)) -> 0 | Z19: =IF(ISNA(MATCH(T19,G16:G23,0)),0,VLOOKUP(T19,G16:J23,4,FALSE)) -> R | AA19: =IF(ISNA(MATCH(T19,L16:L23,0)),0,VLOOKUP(T19,L16:P23,4,FALSE)) -> 0 | AB19: =IF(AD19=0,0,Q16-(AD19-1)) -> 2 | AC19: =IF(AE19=0,0,Q16-(AE19-1)) -> 0 | AD19: =IF(ISNA(MATCH(T19,G16:G23,0)),0,VLOOKUP(T19,G16:Q23,11,FALSE)) -> 6 | AE19: =IF(ISNA(MATCH(T19,L16:L23,0)),0,VLOOKUP(T19,L16:Q23,6,FALSE)) -> 0 | AF19: 3 | AG19: 3
A20: 15 | B20: 1 | C20: 11.45 | D20: U13 Female | E20: 1500m | F20: F | K20: 0 | P20: 0 | Q20: 3 | R20: 0 | S20: 0 | T20: ='Event Details'!C$26 -> N | U20: ='Event Details'!D$26 -> Nuneaton | V20: =IF(ISNA(MATCH(T20,G16:G23,0)),0,VLOOKUP(T20,G16:K23,5,FALSE)) -> 0 | W20: =IF(ISNA(MATCH(T20,L16:L23,0))," ",VLOOKUP(T20,L16:P23,5,FALSE)) ->  | X20: =IF(ISNA(MATCH(T20,G16:G23,0)),0,VLOOKUP(T20,G16:I23,3,FALSE)) -> 0 | Y20: =IF(ISNA(MATCH(T20,L16:L23,0)),0,VLOOKUP(T20,L16:N23,3,FALSE)) -> 0 | Z20: =IF(ISNA(MATCH(T20,G16:G23,0)),0,VLOOKUP(T20,G16:J23,4,FALSE)) -> 0 | AA20: =IF(ISNA(MATCH(T20,L16:L23,0)),0,VLOOKUP(T20,L16:P23,4,FALSE)) -> 0 | AB20: =IF(AD20=0,0,Q16-(AD20-1)) -> 0 | AC20: =IF(AE20=0,0,Q16-(AE20-1)) -> 0 | AD20: =IF(ISNA(MATCH(T20,G16:G23,0)),0,VLOOKUP(T20,G16:Q23,11,FALSE)) -> 0 | AE20: =IF(ISNA(MATCH(T20,L16:L23,0)),0,VLOOKUP(T20,L16:Q23,6,FALSE)) -> 0 | AF20: 3 | AG20: 3
A21: 16 | B21: 1 | C21: 11.45 | D21: U13 Female | E21: 1500m | F21: F | K21: 0 | P21: 0 | Q21: 2 | R21: 0 | S21: 0 | T21: ='Event Details'!C$27 -> K | U21: ='Event Details'!D$27 -> Sparkhill | V21: =IF(ISNA(MATCH(T21,G16:G23,0)),0,VLOOKUP(T21,G16:K23,5,FALSE)) -> 0 | W21: =IF(ISNA(MATCH(T21,L16:L23,0))," ",VLOOKUP(T21,L16:P23,5,FALSE)) ->  | X21: =IF(ISNA(MATCH(T21,G16:G23,0)),0,VLOOKUP(T21,G16:I23,3,FALSE)) -> 0 | Y21: =IF(ISNA(MATCH(T21,L16:L23,0)),0,VLOOKUP(T21,L16:N23,3,FALSE)) -> 0 | Z21: =IF(ISNA(MATCH(T21,G16:G23,0)),0,VLOOKUP(T21,G16:J23,4,FALSE)) -> 0 | AA21: =IF(ISNA(MATCH(T21,L16:L23,0)),0,VLOOKUP(T21,L16:P23,4,FALSE)) -> 0 | AB21: =IF(AD21=0,0,Q16-(AD21-1)) -> 0 | AC21: =IF(AE21=0,0,Q16-(AE21-1)) -> 0 | AD21: =IF(ISNA(MATCH(T21,G16:G23,0)),0,VLOOKUP(T21,G16:Q23,11,FALSE)) -> 0 | AE21: =IF(ISNA(MATCH(T21,L16:L23,0)),0,VLOOKUP(T21,L16:Q23,6,FALSE)) -> 0 | AF21: 3 | AG21: 3
A22: 17 | B22: 1 | C22: 11.45 | D22: U13 Female | E22: 1500m | F22: F | K22: 0 | P22: 0 | Q22: 1 | R22: 0 | S22: 0 | T22: ='Event Details'!C$28 -> W | U22: ='Event Details'!D$28 -> Witney AC | V22: =IF(ISNA(MATCH(T22,G16:G23,0)),0,VLOOKUP(T22,G16:K23,5,FALSE)) -> 0 | W22: =IF(ISNA(MATCH(T22,L16:L23,0))," ",VLOOKUP(T22,L16:P23,5,FALSE)) ->  | X22: =IF(ISNA(MATCH(T22,G16:G23,0)),0,VLOOKUP(T22,G16:I23,3,FALSE)) -> 0 | Y22: =IF(ISNA(MATCH(T22,L16:L23,0)),0,VLOOKUP(T22,L16:N23,3,FALSE)) -> 0 | Z22: =IF(ISNA(MATCH(T22,G16:G23,0)),0,VLOOKUP(T22,G16:J23,4,FALSE)) -> 0 | AA22: =IF(ISNA(MATCH(T22,L16:L23,0)),0,VLOOKUP(T22,L16:P23,4,FALSE)) -> 0 | AB22: =IF(AD22=0,0,Q16-(AD22-1)) -> 0 | AC22: =IF(AE22=0,0,Q16-(AE22-1)) -> 0 | AD22: =IF(ISNA(MATCH(T22,G16:G23,0)),0,VLOOKUP(T22,G16:Q23,11,FALSE)) -> 0 | AE22: =IF(ISNA(MATCH(T22,L16:L23,0)),0,VLOOKUP(T22,L16:Q23,6,FALSE)) -> 0 | AF22: 3 | AG22: 3
A23: 18 | B23: 1 | C23: 11.45 | D23: U13 Female | E23: 1500m | F23: F | K23: 0 | P23: 0 | Q23: 0 | R23: 0 | S23: 0 | T23: ='Event Details'!C$29 -> 0 | U23: ='Event Details'!D$29 -> 0 | V23: =IF(ISNA(MATCH(T23,G16:G23,0)),0,VLOOKUP(T23,G16:K23,5,FALSE)) -> 0 | W23: =IF(ISNA(MATCH(T23,L16:L23,0))," ",VLOOKUP(T23,L16:P23,5,FALSE)) ->  | X23: =IF(ISNA(MATCH(T23,G16:G23,0)),0,VLOOKUP(T23,G16:I23,3,FALSE)) -> 0 | Y23: =IF(ISNA(MATCH(T23,L16:L23,0)),0,VLOOKUP(T23,L16:N23,3,FALSE)) -> 0 | Z23: =IF(ISNA(MATCH(T23,G16:G23,0)),0,VLOOKUP(T23,G16:J23,4,FALSE)) -> 0 | AA23: =IF(ISNA(MATCH(T23,L16:L23,0)),0,VLOOKUP(T23,L16:P23,4,FALSE)) -> 0 | AB23: =IF(AD23=0,0,Q16-(AD23-1)) -> 0 | AC23: =IF(AE23=0,0,Q16-(AE23-1)) -> 0 | AD23: =IF(ISNA(MATCH(T23,G16:G23,0)),0,VLOOKUP(T23,G16:Q23,11,FALSE)) -> 0 | AE23: =IF(ISNA(MATCH(T23,L16:L23,0)),0,VLOOKUP(T23,L16:Q23,6,FALSE)) -> 0 | AF23: 3 | AG23: 3
A24: =(B24*10)+1 -> 21 | B24: 2 | C24: =VLOOKUP(B24,EventsOrder,2,FALSE) -> 11.45 | D24: =VLOOKUP(B24,EventsOrder,4,FALSE) -> U11 Male | E24: =VLOOKUP(B24,EventsOrder,3,FALSE) -> Howler | F24: =IF(MID(D24,5,1)="F","F","M") -> M | G24: B | H24: B | I24: 1.55.4 | K24: Harry Fallon | L24: R | M24: RR | N24: 2.06.0 | O24: RR | P24: Andre Oneykwe | Q24: =Q$5 -> 7 | R24: DASH | S24: Leam | T24: ='Event Details'!C$22 -> L | U24: ='Event Details'!D$22 -> Daventry | V24: =IF(ISNA(MATCH(T24,G24:G31,0)),0,VLOOKUP(T24,G24:K31,5,FALSE)) -> Charlie Atkins | W24: =IF(ISNA(MATCH(T24,L24:L31,0))," ",VLOOKUP(T24,L24:P31,5,FALSE)) ->  | X24: =IF(ISNA(MATCH(T24,G24:G31,0)),0,VLOOKUP(T24,G24:I31,3,FALSE)) -> 2.00.4 | Y24: =IF(ISNA(MATCH(T24,L24:L31,0)),0,VLOOKUP(T24,L24:N31,3,FALSE)) -> 0 | Z24: =IF(ISNA(MATCH(T24,G24:G31,0)),0,VLOOKUP(T24,G24:J31,4,FALSE)) -> L | AA24: =IF(ISNA(MATCH(T24,L24:L31,0)),0,VLOOKUP(T24,L24:P31,4,FALSE)) -> 0 | AB24: =IF(AD24=0,0,Q24-(AD24-1)) -> 2 | AC24: =IF(AE24=0,0,Q24-(AE24-1)) -> 0 | AD24: =IF(ISNA(MATCH(T24,G24:G31,0)),0,VLOOKUP(T24,G24:Q31,11,FALSE)) -> 6 | AE24: =IF(ISNA(MATCH(T24,L24:L31,0)),0,VLOOKUP(T24,L24:Q31,6,FALSE)) -> 0 | AF24: 17 | AG24: 22
A25: =A24+1 -> 22 | B25: =B24 -> 2 | C25: =C24 -> 11.45 | D25: =D24 -> U11 Male | E25: =E24 -> Howler | F25: =F24 -> M | G25: L | H25: L | I25: 2.00.4 | J25: L | K25: Charlie Atkins | L25: B | M25: BB | N25: 2.25.0 | O25: BB | P25: Henry Jones | Q25: =Q24-1 -> 6 | R25: Dav | S25: DASH | T25: ='Event Details'!C$23 -> E | U25: ='Event Details'!D$23 -> Droitwich | V25: =IF(ISNA(MATCH(T25,G24:G31,0)),0,VLOOKUP(T25,G24:K31,5,FALSE)) -> 0 | W25: =IF(ISNA(MATCH(T25,L24:L31,0))," ",VLOOKUP(T25,L24:P31,5,FALSE)) ->  | X25: =IF(ISNA(MATCH(T25,G24:G31,0)),0,VLOOKUP(T25,G24:I31,3,FALSE)) -> 0 | Y25: =IF(ISNA(MATCH(T25,L24:L31,0)),0,VLOOKUP(T25,L24:N31,3,FALSE)) -> 0 | Z25: =IF(ISNA(MATCH(T25,G24:G31,0)),0,VLOOKUP(T25,G24:J31,4,FALSE)) -> 0 | AA25: =IF(ISNA(MATCH(T25,L24:L31,0)),0,VLOOKUP(T25,L24:P31,4,FALSE)) -> 0 | AB25: =IF(AD25=0,0,Q24-(AD25-1)) -> 0 | AC25: =IF(AE25=0,0,Q24-(AE25-1)) -> 0 | AD25: =IF(ISNA(MATCH(T25,G24:G31,0)),0,VLOOKUP(T25,G24:Q31,11,FALSE)) -> 0 | AE25: =IF(ISNA(MATCH(T25,L24:L31,0)),0,VLOOKUP(T25,L24:Q31,6,FALSE)) -> 0 | AF25: =IF(LEN(H25)=0,3,VLOOKUP(LEFT(H25,1),$AF$5:$AI$12,3,FALSE)) -> 7 | AG25: =IF(LEN(M25)=0,3,VLOOKUP(LEFT(M25,1),$AF$5:$AI$12,3,FALSE)) -> 17
A26: =A25+1 -> 23 | B26: =B25 -> 2 | C26: =C25 -> 11.45 | D26: =D25 -> U11 Male | E26: Howler | F26: M | G26: N | H26: N | I26: 2.13.1 | J26: N | K26: Owen Jayne | L26: K | M26: K | N26: 2.50.7 | O26: K | P26: William Shepherd | Q26: =Q25-1 -> 5 | R26: Nun | S26: Spark | T26: ='Event Details'!C$24 -> B | U26: ='Event Details'!D$24 -> Dudley & S'bridge | V26: =IF(ISNA(MATCH(T26,G24:G31,0)),0,VLOOKUP(T26,G24:K31,5,FALSE)) -> Harry Fallon | W26: =IF(ISNA(MATCH(T26,L24:L31,0))," ",VLOOKUP(T26,L24:P31,5,FALSE)) -> Henry Jones | X26: =IF(ISNA(MATCH(T26,G24:G31,0)),0,VLOOKUP(T26,G24:I31,3,FALSE)) -> 1.55.4 | Y26: =IF(ISNA(MATCH(T26,L24:L31,0)),0,VLOOKUP(T26,L24:N31,3,FALSE)) -> 2.25.0 | Z26: =IF(ISNA(MATCH(T26,G24:G31,0)),0,VLOOKUP(T26,G24:J31,4,FALSE)) -> 0 | AA26: =IF(ISNA(MATCH(T26,L24:L31,0)),0,VLOOKUP(T26,L24:P31,4,FALSE)) -> BB | AB26: =IF(AD26=0,0,Q24-(AD26-1)) -> 1 | AC26: =IF(AE26=0,0,Q24-(AE26-1)) -> 2 | AD26: =IF(ISNA(MATCH(T26,G24:G31,0)),0,VLOOKUP(T26,G24:Q31,11,FALSE)) -> 7 | AE26: =IF(ISNA(MATCH(T26,L24:L31,0)),0,VLOOKUP(T26,L24:Q31,6,FALSE)) -> 6 | AF26: =IF(LEN(H26)=0,3,VLOOKUP(LEFT(H26,1),$AF$5:$AI$12,3,FALSE)) -> 27 | AG26: =IF(LEN(M26)=0,3,VLOOKUP(LEFT(M26,1),$AF$5:$AI$12,3,FALSE)) -> 32
A27: 24 | B27: 2 | C27: 11.45 | D27: U11 Male | E27: Howler | F27: M | G27: R | H27: R | I27: 2.16.6 | J27: R | K27: Callum Stuart | P27: 0 | Q27: 4 | R27: Leam | S27: 0 | T27: ='Event Details'!C$25 -> R | U27: ='Event Details'!D$25 -> Leamington AA | V27: =IF(ISNA(MATCH(T27,G24:G31,0)),0,VLOOKUP(T27,G24:K31,5,FALSE)) -> Callum Stuart | W27: =IF(ISNA(MATCH(T27,L24:L31,0))," ",VLOOKUP(T27,L24:P31,5,FALSE)) -> Andre Oneykwe | X27: =IF(ISNA(MATCH(T27,G24:G31,0)),0,VLOOKUP(T27,G24:I31,3,FALSE)) -> 2.16.6 | Y27: =IF(ISNA(MATCH(T27,L24:L31,0)),0,VLOOKUP(T27,L24:N31,3,FALSE)) -> 2.06.0 | Z27: =IF(ISNA(MATCH(T27,G24:G31,0)),0,VLOOKUP(T27,G24:J31,4,FALSE)) -> R | AA27: =IF(ISNA(MATCH(T27,L24:L31,0)),0,VLOOKUP(T27,L24:P31,4,FALSE)) -> RR | AB27: =IF(AD27=0,0,Q24-(AD27-1)) -> 4 | AC27: =IF(AE27=0,0,Q24-(AE27-1)) -> 1 | AD27: =IF(ISNA(MATCH(T27,G24:G31,0)),0,VLOOKUP(T27,G24:Q31,11,FALSE)) -> 4 | AE27: =IF(ISNA(MATCH(T27,L24:L31,0)),0,VLOOKUP(T27,L24:Q31,6,FALSE)) -> 7 | AF27: 22 | AG27: 3
A28: 25 | B28: 2 | C28: 11.45 | D28: U11 Male | E28: Howler | F28: M | G28: W | H28: W | I28: 2.17.1 | J28: W | K28: Ned Herbert | P28: 0 | Q28: 3 | R28: Wit | S28: 0 | T28: ='Event Details'!C$26 -> N | U28: ='Event Details'!D$26 -> Nuneaton | V28: =IF(ISNA(MATCH(T28,G24:G31,0)),0,VLOOKUP(T28,G24:K31,5,FALSE)) -> Owen Jayne | W28: =IF(ISNA(MATCH(T28,L24:L31,0))," ",VLOOKUP(T28,L24:P31,5,FALSE)) ->  | X28: =IF(ISNA(MATCH(T28,G24:G31,0)),0,VLOOKUP(T28,G24:I31,3,FALSE)) -> 2.13.1 | Y28: =IF(ISNA(MATCH(T28,L24:L31,0)),0,VLOOKUP(T28,L24:N31,3,FALSE)) -> 0 | Z28: =IF(ISNA(MATCH(T28,G24:G31,0)),0,VLOOKUP(T28,G24:J31,4,FALSE)) -> N | AA28: =IF(ISNA(MATCH(T28,L24:L31,0)),0,VLOOKUP(T28,L24:P31,4,FALSE)) -> 0 | AB28: =IF(AD28=0,0,Q24-(AD28-1)) -> 3 | AC28: =IF(AE28=0,0,Q24-(AE28-1)) -> 0 | AD28: =IF(ISNA(MATCH(T28,G24:G31,0)),0,VLOOKUP(T28,G24:Q31,11,FALSE)) -> 5 | AE28: =IF(ISNA(MATCH(T28,L24:L31,0)),0,VLOOKUP(T28,L24:Q31,6,FALSE)) -> 0 | AF28: 37 | AG28: 3
A29: 26 | B29: 2 | C29: 11.45 | D29: U11 Male | E29: Howler | F29: M | G29: K | H29: KK | I29: 2.34.0 | J29: KK | K29: Jahari Maylor-Bailey | P29: 0 | Q29: 2 | R29: Spark | S29: 0 | T29: ='Event Details'!C$27 -> K | U29: ='Event Details'!D$27 -> Sparkhill | V29: =IF(ISNA(MATCH(T29,G24:G31,0)),0,VLOOKUP(T29,G24:K31,5,FALSE)) -> Jahari Maylor-Bailey | W29: =IF(ISNA(MATCH(T29,L24:L31,0))," ",VLOOKUP(T29,L24:P31,5,FALSE)) -> William Shepherd | X29: =IF(ISNA(MATCH(T29,G24:G31,0)),0,VLOOKUP(T29,G24:I31,3,FALSE)) -> 2.34.0 | Y29: =IF(ISNA(MATCH(T29,L24:L31,0)),0,VLOOKUP(T29,L24:N31,3,FALSE)) -> 2.50.7 | Z29: =IF(ISNA(MATCH(T29,G24:G31,0)),0,VLOOKUP(T29,G24:J31,4,FALSE)) -> KK | AA29: =IF(ISNA(MATCH(T29,L24:L31,0)),0,VLOOKUP(T29,L24:P31,4,FALSE)) -> K | AB29: =IF(AD29=0,0,Q24-(AD29-1)) -> 6 | AC29: =IF(AE29=0,0,Q24-(AE29-1)) -> 3 | AD29: =IF(ISNA(MATCH(T29,G24:G31,0)),0,VLOOKUP(T29,G24:Q31,11,FALSE)) -> 2 | AE29: =IF(ISNA(MATCH(T29,L24:L31,0)),0,VLOOKUP(T29,L24:Q31,6,FALSE)) -> 5 | AF29: 32 | AG29: 3
A30: 27 | B30: 2 | C30: 11.45 | D30: U11 Male | E30: Howler | F30: M | K30: 0 | P30: 0 | Q30: 1 | R30: 0 | S30: 0 | T30: ='Event Details'!C$28 -> W | U30: ='Event Details'!D$28 -> Witney AC | V30: =IF(ISNA(MATCH(T30,G24:G31,0)),0,VLOOKUP(T30,G24:K31,5,FALSE)) -> Ned Herbert | W30: =IF(ISNA(MATCH(T30,L24:L31,0))," ",VLOOKUP(T30,L24:P31,5,FALSE)) ->  | X30: =IF(ISNA(MATCH(T30,G24:G31,0)),0,VLOOKUP(T30,G24:I31,3,FALSE)) -> 2.17.1 | Y30: =IF(ISNA(MATCH(T30,L24:L31,0)),0,VLOOKUP(T30,L24:N31,3,FALSE)) -> 0 | Z30: =IF(ISNA(MATCH(T30,G24:G31,0)),0,VLOOKUP(T30,G24:J31,4,FALSE)) -> W | AA30: =IF(ISNA(MATCH(T30,L24:L31,0)),0,VLOOKUP(T30,L24:P31,4,FALSE)) -> 0 | AB30: =IF(AD30=0,0,Q24-(AD30-1)) -> 5 | AC30: =IF(AE30=0,0,Q24-(AE30-1)) -> 0 | AD30: =IF(ISNA(MATCH(T30,G24:G31,0)),0,VLOOKUP(T30,G24:Q31,11,FALSE)) -> 3 | AE30: =IF(ISNA(MATCH(T30,L24:L31,0)),0,VLOOKUP(T30,L24:Q31,6,FALSE)) -> 0 | AF30: 3 | AG30: 3
A31: 28 | B31: 2 | C31: 11.45 | D31: U11 Male | E31: Howler | F31: M | K31: 0 | P31: 0 | Q31: 0 | R31: 0 | S31: 0 | T31: ='Event Details'!C$29 -> 0 | U31: ='Event Details'!D$29 -> 0 | V31: =IF(ISNA(MATCH(T31,G24:G31,0)),0,VLOOKUP(T31,G24:K31,5,FALSE)) -> 0 | W31: =IF(ISNA(MATCH(T31,L24:L31,0))," ",VLOOKUP(T31,L24:P31,5,FALSE)) ->  | X31: =IF(ISNA(MATCH(T31,G24:G31,0)),0,VLOOKUP(T31,G24:I31,3,FALSE)) -> 0 | Y31: =IF(ISNA(MATCH(T31,L24:L31,0)),0,VLOOKUP(T31,L24:N31,3,FALSE)) -> 0 | Z31: =IF(ISNA(MATCH(T31,G24:G31,0)),0,VLOOKUP(T31,G24:J31,4,FALSE)) -> 0 | AA31: =IF(ISNA(MATCH(T31,L24:L31,0)),0,VLOOKUP(T31,L24:P31,4,FALSE)) -> 0 | AB31: =IF(AD31=0,0,Q24-(AD31-1)) -> 0 | AC31: =IF(AE31=0,0,Q24-(AE31-1)) -> 0 | AD31: =IF(ISNA(MATCH(T31,G24:G31,0)),0,VLOOKUP(T31,G24:Q31,11,FALSE)) -> 0 | AE31: =IF(ISNA(MATCH(T31,L24:L31,0)),0,VLOOKUP(T31,L24:Q31,6,FALSE)) -> 0 | AF31: 3 | AG31: 3
A32: =(B32*10)+1 -> 31 | B32: 3 | C32: =VLOOKUP(B32,EventsOrder,2,FALSE) -> 11.45 | D32: =VLOOKUP(B32,EventsOrder,4,FALSE) -> U11 Female | E32: =VLOOKUP(B32,EventsOrder,3,FALSE) -> Howler | F32: =IF(MID(D32,5,1)="F","F","M") -> F | G32: R | H32: RR | I32: 17 | K32: Mae Reeves | L32: B | M32: B | N32: 7 | O32: B | P32: Ellie Lees | Q32: =Q$5 -> 7 | R32: Leam | S32: DASH | T32: ='Event Details'!C$22 -> L | U32: ='Event Details'!D$22 -> Daventry | V32: =IF(ISNA(MATCH(T32,G32:G39,0)),0,VLOOKUP(T32,G32:K39,5,FALSE)) -> 0 | W32: =IF(ISNA(MATCH(T32,L32:L39,0))," ",VLOOKUP(T32,L32:P39,5,FALSE)) ->  | X32: =IF(ISNA(MATCH(T32,G32:G39,0)),0,VLOOKUP(T32,G32:I39,3,FALSE)) -> 0 | Y32: =IF(ISNA(MATCH(T32,L32:L39,0)),0,VLOOKUP(T32,L32:N39,3,FALSE)) -> 0 | Z32: =IF(ISNA(MATCH(T32,G32:G39,0)),0,VLOOKUP(T32,G32:J39,4,FALSE)) -> 0 | AA32: =IF(ISNA(MATCH(T32,L32:L39,0)),0,VLOOKUP(T32,L32:P39,4,FALSE)) -> 0 | AB32: =IF(AD32=0,0,Q32-(AD32-1)) -> 0 | AC32: =IF(AE32=0,0,Q32-(AE32-1)) -> 0 | AD32: =IF(ISNA(MATCH(T32,G32:G39,0)),0,VLOOKUP(T32,G32:Q39,11,FALSE)) -> 0 | AE32: =IF(ISNA(MATCH(T32,L32:L39,0)),0,VLOOKUP(T32,L32:Q39,6,FALSE)) -> 0 | AF32: 22 | AG32: 17
A33: =A32+1 -> 32 | B33: =B32 -> 3 | C33: =C32 -> 11.45 | D33: =D32 -> U11 Female | E33: =E32 -> Howler | F33: =F32 -> F | G33: W | H33: W | I33: 15 | J33: W | K33: Lottie McIntyre | P33: 0 | Q33: =Q32-1 -> 6 | R33: Wit | S33: 0 | T33: ='Event Details'!C$23 -> E | U33: ='Event Details'!D$23 -> Droitwich | V33: =IF(ISNA(MATCH(T33,G32:G39,0)),0,VLOOKUP(T33,G32:K39,5,FALSE)) -> Abigail Plant | W33: =IF(ISNA(MATCH(T33,L32:L39,0))," ",VLOOKUP(T33,L32:P39,5,FALSE)) ->  | X33: =IF(ISNA(MATCH(T33,G32:G39,0)),0,VLOOKUP(T33,G32:I39,3,FALSE)) -> 9 | Y33: =IF(ISNA(MATCH(T33,L32:L39,0)),0,VLOOKUP(T33,L32:N39,3,FALSE)) -> 0 | Z33: =IF(ISNA(MATCH(T33,G32:G39,0)),0,VLOOKUP(T33,G32:J39,4,FALSE)) -> E | AA33: =IF(ISNA(MATCH(T33,L32:L39,0)),0,VLOOKUP(T33,L32:P39,4,FALSE)) -> 0 | AB33: =IF(AD33=0,0,Q32-(AD33-1)) -> 4 | AC33: =IF(AE33=0,0,Q32-(AE33-1)) -> 0 | AD33: =IF(ISNA(MATCH(T33,G32:G39,0)),0,VLOOKUP(T33,G32:Q39,11,FALSE)) -> 4 | AE33: =IF(ISNA(MATCH(T33,L32:L39,0)),0,VLOOKUP(T33,L32:Q39,6,FALSE)) -> 0 | AF33: 37 | AG33: 3
A34: =A33+1 -> 33 | B34: =B33 -> 3 | C34: =C33 -> 11.45 | D34: =D33 -> U11 Female | E34: Howler | F34: F | G34: N | H34: N | I34: 12 | J34: N | K34: Evie Caffrey | P34: 0 | Q34: =Q33-1 -> 5 | R34: Nun | S34: 0 | T34: ='Event Details'!C$24 -> B | U34: ='Event Details'!D$24 -> Dudley & S'bridge | V34: =IF(ISNA(MATCH(T34,G32:G39,0)),0,VLOOKUP(T34,G32:K39,5,FALSE)) -> Lexi Wood | W34: =IF(ISNA(MATCH(T34,L32:L39,0))," ",VLOOKUP(T34,L32:P39,5,FALSE)) -> Ellie Lees | X34: =IF(ISNA(MATCH(T34,G32:G39,0)),0,VLOOKUP(T34,G32:I39,3,FALSE)) -> 7 | Y34: =IF(ISNA(MATCH(T34,L32:L39,0)),0,VLOOKUP(T34,L32:N39,3,FALSE)) -> 7 | Z34: =IF(ISNA(MATCH(T34,G32:G39,0)),0,VLOOKUP(T34,G32:J39,4,FALSE)) -> BB | AA34: =IF(ISNA(MATCH(T34,L32:L39,0)),0,VLOOKUP(T34,L32:P39,4,FALSE)) -> B | AB34: =IF(AD34=0,0,Q32-(AD34-1)) -> 5 | AC34: =IF(AE34=0,0,Q32-(AE34-1)) -> 1 | AD34: =IF(ISNA(MATCH(T34,G32:G39,0)),0,VLOOKUP(T34,G32:Q39,11,FALSE)) -> 3 | AE34: =IF(ISNA(MATCH(T34,L32:L39,0)),0,VLOOKUP(T34,L32:Q39,6,FALSE)) -> 7 | AF34: 27 | AG34: 3
A35: 34 | B35: 3 | C35: 11.45 | D35: U11 Female | E35: Howler | F35: F | G35: E | H35: E | I35: 9 | J35: E | K35: Abigail Plant | P35: 0 | Q35: 4 | R35: Droit | S35: 0 | T35: ='Event Details'!C$25 -> R | U35: ='Event Details'!D$25 -> Leamington AA | V35: =IF(ISNA(MATCH(T35,G32:G39,0)),0,VLOOKUP(T35,G32:K39,5,FALSE)) -> Mae Reeves | W35: =IF(ISNA(MATCH(T35,L32:L39,0))," ",VLOOKUP(T35,L32:P39,5,FALSE)) ->  | X35: =IF(ISNA(MATCH(T35,G32:G39,0)),0,VLOOKUP(T35,G32:I39,3,FALSE)) -> 17 | Y35: =IF(ISNA(MATCH(T35,L32:L39,0)),0,VLOOKUP(T35,L32:N39,3,FALSE)) -> 0 | Z35: =IF(ISNA(MATCH(T35,G32:G39,0)),0,VLOOKUP(T35,G32:J39,4,FALSE)) -> 0 | AA35: =IF(ISNA(MATCH(T35,L32:L39,0)),0,VLOOKUP(T35,L32:P39,4,FALSE)) -> 0 | AB35: =IF(AD35=0,0,Q32-(AD35-1)) -> 1 | AC35: =IF(AE35=0,0,Q32-(AE35-1)) -> 0 | AD35: =IF(ISNA(MATCH(T35,G32:G39,0)),0,VLOOKUP(T35,G32:Q39,11,FALSE)) -> 7 | AE35: =IF(ISNA(MATCH(T35,L32:L39,0)),0,VLOOKUP(T35,L32:Q39,6,FALSE)) -> 0 | AF35: 12 | AG35: 3
A36: 35 | B36: 3 | C36: 11.45 | D36: U11 Female | E36: Howler | F36: F | G36: B | H36: BB | I36: 7 | J36: BB | K36: Lexi Wood | P36: 0 | Q36: 3 | R36: DASH | S36: 0 | T36: ='Event Details'!C$26 -> N | U36: ='Event Details'!D$26 -> Nuneaton | V36: =IF(ISNA(MATCH(T36,G32:G39,0)),0,VLOOKUP(T36,G32:K39,5,FALSE)) -> Evie Caffrey | W36: =IF(ISNA(MATCH(T36,L32:L39,0))," ",VLOOKUP(T36,L32:P39,5,FALSE)) ->  | X36: =IF(ISNA(MATCH(T36,G32:G39,0)),0,VLOOKUP(T36,G32:I39,3,FALSE)) -> 12 | Y36: =IF(ISNA(MATCH(T36,L32:L39,0)),0,VLOOKUP(T36,L32:N39,3,FALSE)) -> 0 | Z36: =IF(ISNA(MATCH(T36,G32:G39,0)),0,VLOOKUP(T36,G32:J39,4,FALSE)) -> N | AA36: =IF(ISNA(MATCH(T36,L32:L39,0)),0,VLOOKUP(T36,L32:P39,4,FALSE)) -> 0 | AB36: =IF(AD36=0,0,Q32-(AD36-1)) -> 3 | AC36: =IF(AE36=0,0,Q32-(AE36-1)) -> 0 | AD36: =IF(ISNA(MATCH(T36,G32:G39,0)),0,VLOOKUP(T36,G32:Q39,11,FALSE)) -> 5 | AE36: =IF(ISNA(MATCH(T36,L32:L39,0)),0,VLOOKUP(T36,L32:Q39,6,FALSE)) -> 0 | AF36: 17 | AG36: 3
A37: 36 | B37: 3 | C37: 11.45 | D37: U11 Female | E37: Howler | F37: F | K37: 0 | P37: 0 | Q37: 2 | R37: 0 | S37: 0 | T37: ='Event Details'!C$27 -> K | U37: ='Event Details'!D$27 -> Sparkhill | V37: =IF(ISNA(MATCH(T37,G32:G39,0)),0,VLOOKUP(T37,G32:K39,5,FALSE)) -> 0 | W37: =IF(ISNA(MATCH(T37,L32:L39,0))," ",VLOOKUP(T37,L32:P39,5,FALSE)) ->  | X37: =IF(ISNA(MATCH(T37,G32:G39,0)),0,VLOOKUP(T37,G32:I39,3,FALSE)) -> 0 | Y37: =IF(ISNA(MATCH(T37,L32:L39,0)),0,VLOOKUP(T37,L32:N39,3,FALSE)) -> 0 | Z37: =IF(ISNA(MATCH(T37,G32:G39,0)),0,VLOOKUP(T37,G32:J39,4,FALSE)) -> 0 | AA37: =IF(ISNA(MATCH(T37,L32:L39,0)),0,VLOOKUP(T37,L32:P39,4,FALSE)) -> 0 | AB37: =IF(AD37=0,0,Q32-(AD37-1)) -> 0 | AC37: =IF(AE37=0,0,Q32-(AE37-1)) -> 0 | AD37: =IF(ISNA(MATCH(T37,G32:G39,0)),0,VLOOKUP(T37,G32:Q39,11,FALSE)) -> 0 | AE37: =IF(ISNA(MATCH(T37,L32:L39,0)),0,VLOOKUP(T37,L32:Q39,6,FALSE)) -> 0 | AF37: 3 | AG37: 3
A38: 37 | B38: 3 | C38: 11.45 | D38: U11 Female | E38: Howler | F38: F | K38: 0 | P38: 0 | Q38: 1 | R38: 0 | S38: 0 | T38: ='Event Details'!C$28 -> W | U38: ='Event Details'!D$28 -> Witney AC | V38: =IF(ISNA(MATCH(T38,G32:G39,0)),0,VLOOKUP(T38,G32:K39,5,FALSE)) -> Lottie McIntyre | W38: =IF(ISNA(MATCH(T38,L32:L39,0))," ",VLOOKUP(T38,L32:P39,5,FALSE)) ->  | X38: =IF(ISNA(MATCH(T38,G32:G39,0)),0,VLOOKUP(T38,G32:I39,3,FALSE)) -> 15 | Y38: =IF(ISNA(MATCH(T38,L32:L39,0)),0,VLOOKUP(T38,L32:N39,3,FALSE)) -> 0 | Z38: =IF(ISNA(MATCH(T38,G32:G39,0)),0,VLOOKUP(T38,G32:J39,4,FALSE)) -> W | AA38: =IF(ISNA(MATCH(T38,L32:L39,0)),0,VLOOKUP(T38,L32:P39,4,FALSE)) -> 0 | AB38: =IF(AD38=0,0,Q32-(AD38-1)) -> 2 | AC38: =IF(AE38=0,0,Q32-(AE38-1)) -> 0 | AD38: =IF(ISNA(MATCH(T38,G32:G39,0)),0,VLOOKUP(T38,G32:Q39,11,FALSE)) -> 6 | AE38: =IF(ISNA(MATCH(T38,L32:L39,0)),0,VLOOKUP(T38,L32:Q39,6,FALSE)) -> 0 | AF38: 3 | AG38: 3
A39: 38 | B39: 3 | C39: 11.45 | D39: U11 Female | E39: Howler | F39: F | K39: 0 | P39: 0 | Q39: 0 | R39: 0 | S39: 0 | T39: ='Event Details'!C$29 -> 0 | U39: ='Event Details'!D$29 -> 0 | V39: =IF(ISNA(MATCH(T39,G32:G39,0)),0,VLOOKUP(T39,G32:K39,5,FALSE)) -> 0 | W39: =IF(ISNA(MATCH(T39,L32:L39,0))," ",VLOOKUP(T39,L32:P39,5,FALSE)) ->  | X39: =IF(ISNA(MATCH(T39,G32:G39,0)),0,VLOOKUP(T39,G32:I39,3,FALSE)) -> 0 | Y39: =IF(ISNA(MATCH(T39,L32:L39,0)),0,VLOOKUP(T39,L32:N39,3,FALSE)) -> 0 | Z39: =IF(ISNA(MATCH(T39,G32:G39,0)),0,VLOOKUP(T39,G32:J39,4,FALSE)) -> 0 | AA39: =IF(ISNA(MATCH(T39,L32:L39,0)),0,VLOOKUP(T39,L32:P39,4,FALSE)) -> 0 | AB39: =IF(AD39=0,0,Q32-(AD39-1)) -> 0 | AC39: =IF(AE39=0,0,Q32-(AE39-1)) -> 0 | AD39: =IF(ISNA(MATCH(T39,G32:G39,0)),0,VLOOKUP(T39,G32:Q39,11,FALSE)) -> 0 | AE39: =IF(ISNA(MATCH(T39,L32:L39,0)),0,VLOOKUP(T39,L32:Q39,6,FALSE)) -> 0 | AF39: 3 | AG39: 3
A40: =(B40*10)+1 -> 41 | B40: 4 | C40: =VLOOKUP(B40,EventsOrder,2,FALSE) -> 11.55 | D40: =VLOOKUP(B40,EventsOrder,4,FALSE) -> U15 Female | E40: =VLOOKUP(B40,EventsOrder,3,FALSE) -> 1500m | F40: =IF(MID(D40,5,1)="F","F","M") -> F | G40: B | H40: B | I40: 5.44.6 | K40: Isabelle Plant | P40: 0 | Q40: =Q$5 -> 7 | R40: DASH | S40: 0 | T40: ='Event Details'!C$22 -> L | U40: ='Event Details'!D$22 -> Daventry | V40: =IF(ISNA(MATCH(T40,G40:G47,0)),0,VLOOKUP(T40,G40:K47,5,FALSE)) -> 0 | W40: =IF(ISNA(MATCH(T40,L40:L47,0))," ",VLOOKUP(T40,L40:P47,5,FALSE)) ->  | X40: =IF(ISNA(MATCH(T40,G40:G47,0)),0,VLOOKUP(T40,G40:I47,3,FALSE)) -> 0 | Y40: =IF(ISNA(MATCH(T40,L40:L47,0)),0,VLOOKUP(T40,L40:N47,3,FALSE)) -> 0 | Z40: =IF(ISNA(MATCH(T40,G40:G47,0)),0,VLOOKUP(T40,G40:J47,4,FALSE)) -> 0 | AA40: =IF(ISNA(MATCH(T40,L40:L47,0)),0,VLOOKUP(T40,L40:P47,4,FALSE)) -> 0 | AB40: =IF(AD40=0,0,Q40-(AD40-1)) -> 0 | AC40: =IF(AE40=0,0,Q40-(AE40-1)) -> 0 | AD40: =IF(ISNA(MATCH(T40,G40:G47,0)),0,VLOOKUP(T40,G40:Q47,11,FALSE)) -> 0 | AE40: =IF(ISNA(MATCH(T40,L40:L47,0)),0,VLOOKUP(T40,L40:Q47,6,FALSE)) -> 0 | AF40: 17 | AG40: 3
A41: =A40+1 -> 42 | B41: =B40 -> 4 | C41: =C40 -> 11.55 | D41: =D40 -> U15 Female | E41: =E40 -> 1500m | F41: =F40 -> F | K41: 0 | P41: 0 | Q41: =Q40-1 -> 6 | R41: 0 | S41: 0 | T41: ='Event Details'!C$23 -> E | U41: ='Event Details'!D$23 -> Droitwich | V41: =IF(ISNA(MATCH(T41,G40:G47,0)),0,VLOOKUP(T41,G40:K47,5,FALSE)) -> 0 | W41: =IF(ISNA(MATCH(T41,L40:L47,0))," ",VLOOKUP(T41,L40:P47,5,FALSE)) ->  | X41: =IF(ISNA(MATCH(T41,G40:G47,0)),0,VLOOKUP(T41,G40:I47,3,FALSE)) -> 0 | Y41: =IF(ISNA(MATCH(T41,L40:L47,0)),0,VLOOKUP(T41,L40:N47,3,FALSE)) -> 0 | Z41: =IF(ISNA(MATCH(T41,G40:G47,0)),0,VLOOKUP(T41,G40:J47,4,FALSE)) -> 0 | AA41: =IF(ISNA(MATCH(T41,L40:L47,0)),0,VLOOKUP(T41,L40:P47,4,FALSE)) -> 0 | AB41: =IF(AD41=0,0,Q40-(AD41-1)) -> 0 | AC41: =IF(AE41=0,0,Q40-(AE41-1)) -> 0 | AD41: =IF(ISNA(MATCH(T41,G40:G47,0)),0,VLOOKUP(T41,G40:Q47,11,FALSE)) -> 0 | AE41: =IF(ISNA(MATCH(T41,L40:L47,0)),0,VLOOKUP(T41,L40:Q47,6,FALSE)) -> 0 | AF41: 3 | AG41: 3
A42: =A41+1 -> 43 | B42: =B41 -> 4 | C42: =C41 -> 11.55 | D42: =D41 -> U15 Female | E42: 1500m | F42: F | K42: 0 | P42: 0 | Q42: =Q41-1 -> 5 | R42: 0 | S42: 0 | T42: ='Event Details'!C$24 -> B | U42: ='Event Details'!D$24 -> Dudley & S'bridge | V42: =IF(ISNA(MATCH(T42,G40:G47,0)),0,VLOOKUP(T42,G40:K47,5,FALSE)) -> Isabelle Plant | W42: =IF(ISNA(MATCH(T42,L40:L47,0))," ",VLOOKUP(T42,L40:P47,5,FALSE)) ->  | X42: =IF(ISNA(MATCH(T42,G40:G47,0)),0,VLOOKUP(T42,G40:I47,3,FALSE)) -> 5.44.6 | Y42: =IF(ISNA(MATCH(T42,L40:L47,0)),0,VLOOKUP(T42,L40:N47,3,FALSE)) -> 0 | Z42: =IF(ISNA(MATCH(T42,G40:G47,0)),0,VLOOKUP(T42,G40:J47,4,FALSE)) -> 0 | AA42: =IF(ISNA(MATCH(T42,L40:L47,0)),0,VLOOKUP(T42,L40:P47,4,FALSE)) -> 0 | AB42: =IF(AD42=0,0,Q40-(AD42-1)) -> 1 | AC42: =IF(AE42=0,0,Q40-(AE42-1)) -> 0 | AD42: =IF(ISNA(MATCH(T42,G40:G47,0)),0,VLOOKUP(T42,G40:Q47,11,FALSE)) -> 7 | AE42: =IF(ISNA(MATCH(T42,L40:L47,0)),0,VLOOKUP(T42,L40:Q47,6,FALSE)) -> 0 | AF42: 3 | AG42: 3
A43: 44 | B43: 4 | C43: 11.55 | D43: U15 Female | E43: 1500m | F43: F | K43: 0 | P43: 0 | Q43: 4 | R43: 0 | S43: 0 | T43: ='Event Details'!C$25 -> R | U43: ='Event Details'!D$25 -> Leamington AA | V43: =IF(ISNA(MATCH(T43,G40:G47,0)),0,VLOOKUP(T43,G40:K47,5,FALSE)) -> 0 | W43: =IF(ISNA(MATCH(T43,L40:L47,0))," ",VLOOKUP(T43,L40:P47,5,FALSE)) ->  | X43: =IF(ISNA(MATCH(T43,G40:G47,0)),0,VLOOKUP(T43,G40:I47,3,FALSE)) -> 0 | Y43: =IF(ISNA(MATCH(T43,L40:L47,0)),0,VLOOKUP(T43,L40:N47,3,FALSE)) -> 0 | Z43: =IF(ISNA(MATCH(T43,G40:G47,0)),0,VLOOKUP(T43,G40:J47,4,FALSE)) -> 0 | AA43: =IF(ISNA(MATCH(T43,L40:L47,0)),0,VLOOKUP(T43,L40:P47,4,FALSE)) -> 0 | AB43: =IF(AD43=0,0,Q40-(AD43-1)) -> 0 | AC43: =IF(AE43=0,0,Q40-(AE43-1)) -> 0 | AD43: =IF(ISNA(MATCH(T43,G40:G47,0)),0,VLOOKUP(T43,G40:Q47,11,FALSE)) -> 0 | AE43: =IF(ISNA(MATCH(T43,L40:L47,0)),0,VLOOKUP(T43,L40:Q47,6,FALSE)) -> 0 | AF43: 3 | AG43: 3
A44: 45 | B44: 4 | C44: 11.55 | D44: U15 Female | E44: 1500m | F44: F | K44: 0 | P44: 0 | Q44: 3 | R44: 0 | S44: 0 | T44: ='Event Details'!C$26 -> N | U44: ='Event Details'!D$26 -> Nuneaton | V44: =IF(ISNA(MATCH(T44,G40:G47,0)),0,VLOOKUP(T44,G40:K47,5,FALSE)) -> 0 | W44: =IF(ISNA(MATCH(T44,L40:L47,0))," ",VLOOKUP(T44,L40:P47,5,FALSE)) ->  | X44: =IF(ISNA(MATCH(T44,G40:G47,0)),0,VLOOKUP(T44,G40:I47,3,FALSE)) -> 0 | Y44: =IF(ISNA(MATCH(T44,L40:L47,0)),0,VLOOKUP(T44,L40:N47,3,FALSE)) -> 0 | Z44: =IF(ISNA(MATCH(T44,G40:G47,0)),0,VLOOKUP(T44,G40:J47,4,FALSE)) -> 0 | AA44: =IF(ISNA(MATCH(T44,L40:L47,0)),0,VLOOKUP(T44,L40:P47,4,FALSE)) -> 0 | AB44: =IF(AD44=0,0,Q40-(AD44-1)) -> 0 | AC44: =IF(AE44=0,0,Q40-(AE44-1)) -> 0 | AD44: =IF(ISNA(MATCH(T44,G40:G47,0)),0,VLOOKUP(T44,G40:Q47,11,FALSE)) -> 0 | AE44: =IF(ISNA(MATCH(T44,L40:L47,0)),0,VLOOKUP(T44,L40:Q47,6,FALSE)) -> 0 | AF44: 3 | AG44: 3
A45: 46 | B45: 4 | C45: 11.55 | D45: U15 Female | E45: 1500m | F45: F | K45: 0 | P45: 0 | Q45: 2 | R45: 0 | S45: 0 | T45: ='Event Details'!C$27 -> K | U45: ='Event Details'!D$27 -> Sparkhill | V45: =IF(ISNA(MATCH(T45,G40:G47,0)),0,VLOOKUP(T45,G40:K47,5,FALSE)) -> 0 | W45: =IF(ISNA(MATCH(T45,L40:L47,0))," ",VLOOKUP(T45,L40:P47,5,FALSE)) ->  | X45: =IF(ISNA(MATCH(T45,G40:G47,0)),0,VLOOKUP(T45,G40:I47,3,FALSE)) -> 0 | Y45: =IF(ISNA(MATCH(T45,L40:L47,0)),0,VLOOKUP(T45,L40:N47,3,FALSE)) -> 0 | Z45: =IF(ISNA(MATCH(T45,G40:G47,0)),0,VLOOKUP(T45,G40:J47,4,FALSE)) -> 0 | AA45: =IF(ISNA(MATCH(T45,L40:L47,0)),0,VLOOKUP(T45,L40:P47,4,FALSE)) -> 0 | AB45: =IF(AD45=0,0,Q40-(AD45-1)) -> 0 | AC45: =IF(AE45=0,0,Q40-(AE45-1)) -> 0 | AD45: =IF(ISNA(MATCH(T45,G40:G47,0)),0,VLOOKUP(T45,G40:Q47,11,FALSE)) -> 0 | AE45: =IF(ISNA(MATCH(T45,L40:L47,0)),0,VLOOKUP(T45,L40:Q47,6,FALSE)) -> 0 | AF45: 3 | AG45: 3
A46: 47 | B46: 4 | C46: 11.55 | D46: U15 Female | E46: 1500m | F46: F | K46: 0 | P46: 0 | Q46: 1 | R46: 0 | S46: 0 | T46: ='Event Details'!C$28 -> W | U46: ='Event Details'!D$28 -> Witney AC | V46: =IF(ISNA(MATCH(T46,G40:G47,0)),0,VLOOKUP(T46,G40:K47,5,FALSE)) -> 0 | W46: =IF(ISNA(MATCH(T46,L40:L47,0))," ",VLOOKUP(T46,L40:P47,5,FALSE)) ->  | X46: =IF(ISNA(MATCH(T46,G40:G47,0)),0,VLOOKUP(T46,G40:I47,3,FALSE)) -> 0 | Y46: =IF(ISNA(MATCH(T46,L40:L47,0)),0,VLOOKUP(T46,L40:N47,3,FALSE)) -> 0 | Z46: =IF(ISNA(MATCH(T46,G40:G47,0)),0,VLOOKUP(T46,G40:J47,4,FALSE)) -> 0 | AA46: =IF(ISNA(MATCH(T46,L40:L47,0)),0,VLOOKUP(T46,L40:P47,4,FALSE)) -> 0 | AB46: =IF(AD46=0,0,Q40-(AD46-1)) -> 0 | AC46: =IF(AE46=0,0,Q40-(AE46-1)) -> 0 | AD46: =IF(ISNA(MATCH(T46,G40:G47,0)),0,VLOOKUP(T46,G40:Q47,11,FALSE)) -> 0 | AE46: =IF(ISNA(MATCH(T46,L40:L47,0)),0,VLOOKUP(T46,L40:Q47,6,FALSE)) -> 0 | AF46: 3 | AG46: 3
A47: 48 | B47: 4 | C47: 11.55 | D47: U15 Female | E47: 1500m | F47: F | K47: 0 | P47: 0 | Q47: 0 | R47: 0 | S47: 0 | T47: ='Event Details'!C$29 -> 0 | U47: ='Event Details'!D$29 -> 0 | V47: =IF(ISNA(MATCH(T47,G40:G47,0)),0,VLOOKUP(T47,G40:K47,5,FALSE)) -> 0 | W47: =IF(ISNA(MATCH(T47,L40:L47,0))," ",VLOOKUP(T47,L40:P47,5,FALSE)) ->  | X47: =IF(ISNA(MATCH(T47,G40:G47,0)),0,VLOOKUP(T47,G40:I47,3,FALSE)) -> 0 | Y47: =IF(ISNA(MATCH(T47,L40:L47,0)),0,VLOOKUP(T47,L40:N47,3,FALSE)) -> 0 | Z47: =IF(ISNA(MATCH(T47,G40:G47,0)),0,VLOOKUP(T47,G40:J47,4,FALSE)) -> 0 | AA47: =IF(ISNA(MATCH(T47,L40:L47,0)),0,VLOOKUP(T47,L40:P47,4,FALSE)) -> 0 | AB47: =IF(AD47=0,0,Q40-(AD47-1)) -> 0 | AC47: =IF(AE47=0,0,Q40-(AE47-1)) -> 0 | AD47: =IF(ISNA(MATCH(T47,G40:G47,0)),0,VLOOKUP(T47,G40:Q47,11,FALSE)) -> 0 | AE47: =IF(ISNA(MATCH(T47,L40:L47,0)),0,VLOOKUP(T47,L40:Q47,6,FALSE)) -> 0 | AF47: 3 | AG47: 3
A48: =(B48*10)+1 -> 51 | B48: 5 | C48: =VLOOKUP(B48,EventsOrder,2,FALSE) -> 12 | D48: =VLOOKUP(B48,EventsOrder,4,FALSE) -> U13 Male | E48: =VLOOKUP(B48,EventsOrder,3,FALSE) -> High Jump | F48: =IF(MID(D48,5,1)="F","F","M") -> M | G48: R | H48: R | I48: 1.3 | K48: Edward Owen | P48: 0 | Q48: =Q$5 -> 7 | R48: Leam | S48: 0 | T48: ='Event Details'!C$22 -> L | U48: ='Event Details'!D$22 -> Daventry | V48: =IF(ISNA(MATCH(T48,G48:G55,0)),0,VLOOKUP(T48,G48:K55,5,FALSE)) -> 0 | W48: =IF(ISNA(MATCH(T48,L48:L55,0))," ",VLOOKUP(T48,L48:P55,5,FALSE)) ->  | X48: =IF(ISNA(MATCH(T48,G48:G55,0)),0,VLOOKUP(T48,G48:I55,3,FALSE)) -> 0 | Y48: =IF(ISNA(MATCH(T48,L48:L55,0)),0,VLOOKUP(T48,L48:N55,3,FALSE)) -> 0 | Z48: =IF(ISNA(MATCH(T48,G48:G55,0)),0,VLOOKUP(T48,G48:J55,4,FALSE)) -> 0 | AA48: =IF(ISNA(MATCH(T48,L48:L55,0)),0,VLOOKUP(T48,L48:P55,4,FALSE)) -> 0 | AB48: =IF(AD48=0,0,Q48-(AD48-1)) -> 0 | AC48: =IF(AE48=0,0,Q48-(AE48-1)) -> 0 | AD48: =IF(ISNA(MATCH(T48,G48:G55,0)),0,VLOOKUP(T48,G48:Q55,11,FALSE)) -> 0 | AE48: =IF(ISNA(MATCH(T48,L48:L55,0)),0,VLOOKUP(T48,L48:Q55,6,FALSE)) -> 0 | AF48: 22 | AG48: 3
A49: =A48+1 -> 52 | B49: =B48 -> 5 | C49: =C48 -> 12 | D49: =D48 -> U13 Male | E49: =E48 -> High Jump | F49: =F48 -> M | K49: 0 | P49: 0 | Q49: =Q48-1 -> 6 | R49: 0 | S49: 0 | T49: ='Event Details'!C$23 -> E | U49: ='Event Details'!D$23 -> Droitwich | V49: =IF(ISNA(MATCH(T49,G48:G55,0)),0,VLOOKUP(T49,G48:K55,5,FALSE)) -> 0 | W49: =IF(ISNA(MATCH(T49,L48:L55,0))," ",VLOOKUP(T49,L48:P55,5,FALSE)) ->  | X49: =IF(ISNA(MATCH(T49,G48:G55,0)),0,VLOOKUP(T49,G48:I55,3,FALSE)) -> 0 | Y49: =IF(ISNA(MATCH(T49,L48:L55,0)),0,VLOOKUP(T49,L48:N55,3,FALSE)) -> 0 | Z49: =IF(ISNA(MATCH(T49,G48:G55,0)),0,VLOOKUP(T49,G48:J55,4,FALSE)) -> 0 | AA49: =IF(ISNA(MATCH(T49,L48:L55,0)),0,VLOOKUP(T49,L48:P55,4,FALSE)) -> 0 | AB49: =IF(AD49=0,0,Q48-(AD49-1)) -> 0 | AC49: =IF(AE49=0,0,Q48-(AE49-1)) -> 0 | AD49: =IF(ISNA(MATCH(T49,G48:G55,0)),0,VLOOKUP(T49,G48:Q55,11,FALSE)) -> 0 | AE49: =IF(ISNA(MATCH(T49,L48:L55,0)),0,VLOOKUP(T49,L48:Q55,6,FALSE)) -> 0 | AF49: 3 | AG49: 3
A50: =A49+1 -> 53 | B50: =B49 -> 5 | C50: =C49 -> 12 | D50: =D49 -> U13 Male | E50: High Jump | F50: M | K50: 0 | P50: 0 | Q50: =Q49-1 -> 5 | R50: 0 | S50: 0 | T50: ='Event Details'!C$24 -> B | U50: ='Event Details'!D$24 -> Dudley & S'bridge | V50: =IF(ISNA(MATCH(T50,G48:G55,0)),0,VLOOKUP(T50,G48:K55,5,FALSE)) -> 0 | W50: =IF(ISNA(MATCH(T50,L48:L55,0))," ",VLOOKUP(T50,L48:P55,5,FALSE)) ->  | X50: =IF(ISNA(MATCH(T50,G48:G55,0)),0,VLOOKUP(T50,G48:I55,3,FALSE)) -> 0 | Y50: =IF(ISNA(MATCH(T50,L48:L55,0)),0,VLOOKUP(T50,L48:N55,3,FALSE)) -> 0 | Z50: =IF(ISNA(MATCH(T50,G48:G55,0)),0,VLOOKUP(T50,G48:J55,4,FALSE)) -> 0 | AA50: =IF(ISNA(MATCH(T50,L48:L55,0)),0,VLOOKUP(T50,L48:P55,4,FALSE)) -> 0 | AB50: =IF(AD50=0,0,Q48-(AD50-1)) -> 0 | AC50: =IF(AE50=0,0,Q48-(AE50-1)) -> 0 | AD50: =IF(ISNA(MATCH(T50,G48:G55,0)),0,VLOOKUP(T50,G48:Q55,11,FALSE)) -> 0 | AE50: =IF(ISNA(MATCH(T50,L48:L55,0)),0,VLOOKUP(T50,L48:Q55,6,FALSE)) -> 0 | AF50: 3 | AG50: 3
A51: 54 | B51: 5 | C51: 12 | D51: U13 Male | E51: High Jump | F51: M | K51: 0 | P51: 0 | Q51: 4 | R51: 0 | S51: 0 | T51: ='Event Details'!C$25 -> R | U51: ='Event Details'!D$25 -> Leamington AA | V51: =IF(ISNA(MATCH(T51,G48:G55,0)),0,VLOOKUP(T51,G48:K55,5,FALSE)) -> Edward Owen | W51: =IF(ISNA(MATCH(T51,L48:L55,0))," ",VLOOKUP(T51,L48:P55,5,FALSE)) ->  | X51: =IF(ISNA(MATCH(T51,G48:G55,0)),0,VLOOKUP(T51,G48:I55,3,FALSE)) -> 1.3 | Y51: =IF(ISNA(MATCH(T51,L48:L55,0)),0,VLOOKUP(T51,L48:N55,3,FALSE)) -> 0 | Z51: =IF(ISNA(MATCH(T51,G48:G55,0)),0,VLOOKUP(T51,G48:J55,4,FALSE)) -> 0 | AA51: =IF(ISNA(MATCH(T51,L48:L55,0)),0,VLOOKUP(T51,L48:P55,4,FALSE)) -> 0 | AB51: =IF(AD51=0,0,Q48-(AD51-1)) -> 1 | AC51: =IF(AE51=0,0,Q48-(AE51-1)) -> 0 | AD51: =IF(ISNA(MATCH(T51,G48:G55,0)),0,VLOOKUP(T51,G48:Q55,11,FALSE)) -> 7 | AE51: =IF(ISNA(MATCH(T51,L48:L55,0)),0,VLOOKUP(T51,L48:Q55,6,FALSE)) -> 0 | AF51: 3 | AG51: 3
A52: 55 | B52: 5 | C52: 12 | D52: U13 Male | E52: High Jump | F52: M | K52: 0 | P52: 0 | Q52: 3 | R52: 0 | S52: 0 | T52: ='Event Details'!C$26 -> N | U52: ='Event Details'!D$26 -> Nuneaton | V52: =IF(ISNA(MATCH(T52,G48:G55,0)),0,VLOOKUP(T52,G48:K55,5,FALSE)) -> 0 | W52: =IF(ISNA(MATCH(T52,L48:L55,0))," ",VLOOKUP(T52,L48:P55,5,FALSE)) ->  | X52: =IF(ISNA(MATCH(T52,G48:G55,0)),0,VLOOKUP(T52,G48:I55,3,FALSE)) -> 0 | Y52: =IF(ISNA(MATCH(T52,L48:L55,0)),0,VLOOKUP(T52,L48:N55,3,FALSE)) -> 0 | Z52: =IF(ISNA(MATCH(T52,G48:G55,0)),0,VLOOKUP(T52,G48:J55,4,FALSE)) -> 0 | AA52: =IF(ISNA(MATCH(T52,L48:L55,0)),0,VLOOKUP(T52,L48:P55,4,FALSE)) -> 0 | AB52: =IF(AD52=0,0,Q48-(AD52-1)) -> 0 | AC52: =IF(AE52=0,0,Q48-(AE52-1)) -> 0 | AD52: =IF(ISNA(MATCH(T52,G48:G55,0)),0,VLOOKUP(T52,G48:Q55,11,FALSE)) -> 0 | AE52: =IF(ISNA(MATCH(T52,L48:L55,0)),0,VLOOKUP(T52,L48:Q55,6,FALSE)) -> 0 | AF52: 3 | AG52: 3
A53: 56 | B53: 5 | C53: 12 | D53: U13 Male | E53: High Jump | F53: M | K53: 0 | P53: 0 | Q53: 2 | R53: 0 | S53: 0 | T53: ='Event Details'!C$27 -> K | U53: ='Event Details'!D$27 -> Sparkhill | V53: =IF(ISNA(MATCH(T53,G48:G55,0)),0,VLOOKUP(T53,G48:K55,5,FALSE)) -> 0 | W53: =IF(ISNA(MATCH(T53,L48:L55,0))," ",VLOOKUP(T53,L48:P55,5,FALSE)) ->  | X53: =IF(ISNA(MATCH(T53,G48:G55,0)),0,VLOOKUP(T53,G48:I55,3,FALSE)) -> 0 | Y53: =IF(ISNA(MATCH(T53,L48:L55,0)),0,VLOOKUP(T53,L48:N55,3,FALSE)) -> 0 | Z53: =IF(ISNA(MATCH(T53,G48:G55,0)),0,VLOOKUP(T53,G48:J55,4,FALSE)) -> 0 | AA53: =IF(ISNA(MATCH(T53,L48:L55,0)),0,VLOOKUP(T53,L48:P55,4,FALSE)) -> 0 | AB53: =IF(AD53=0,0,Q48-(AD53-1)) -> 0 | AC53: =IF(AE53=0,0,Q48-(AE53-1)) -> 0 | AD53: =IF(ISNA(MATCH(T53,G48:G55,0)),0,VLOOKUP(T53,G48:Q55,11,FALSE)) -> 0 | AE53: =IF(ISNA(MATCH(T53,L48:L55,0)),0,VLOOKUP(T53,L48:Q55,6,FALSE)) -> 0 | AF53: 3 | AG53: 3
A54: 57 | B54: 5 | C54: 12 | D54: U13 Male | E54: High Jump | F54: M | K54: 0 | P54: 0 | Q54: 1 | R54: 0 | S54: 0 | T54: ='Event Details'!C$28 -> W | U54: ='Event Details'!D$28 -> Witney AC | V54: =IF(ISNA(MATCH(T54,G48:G55,0)),0,VLOOKUP(T54,G48:K55,5,FALSE)) -> 0 | W54: =IF(ISNA(MATCH(T54,L48:L55,0))," ",VLOOKUP(T54,L48:P55,5,FALSE)) ->  | X54: =IF(ISNA(MATCH(T54,G48:G55,0)),0,VLOOKUP(T54,G48:I55,3,FALSE)) -> 0 | Y54: =IF(ISNA(MATCH(T54,L48:L55,0)),0,VLOOKUP(T54,L48:N55,3,FALSE)) -> 0 | Z54: =IF(ISNA(MATCH(T54,G48:G55,0)),0,VLOOKUP(T54,G48:J55,4,FALSE)) -> 0 | AA54: =IF(ISNA(MATCH(T54,L48:L55,0)),0,VLOOKUP(T54,L48:P55,4,FALSE)) -> 0 | AB54: =IF(AD54=0,0,Q48-(AD54-1)) -> 0 | AC54: =IF(AE54=0,0,Q48-(AE54-1)) -> 0 | AD54: =IF(ISNA(MATCH(T54,G48:G55,0)),0,VLOOKUP(T54,G48:Q55,11,FALSE)) -> 0 | AE54: =IF(ISNA(MATCH(T54,L48:L55,0)),0,VLOOKUP(T54,L48:Q55,6,FALSE)) -> 0 | AF54: 3 | AG54: 3
A55: 58 | B55: 5 | C55: 12 | D55: U13 Male | E55: High Jump | F55: M | K55: 0 | P55: 0 | Q55: 0 | R55: 0 | S55: 0 | T55: ='Event Details'!C$29 -> 0 | U55: ='Event Details'!D$29 -> 0 | V55: =IF(ISNA(MATCH(T55,G48:G55,0)),0,VLOOKUP(T55,G48:K55,5,FALSE)) -> 0 | W55: =IF(ISNA(MATCH(T55,L48:L55,0))," ",VLOOKUP(T55,L48:P55,5,FALSE)) ->  | X55: =IF(ISNA(MATCH(T55,G48:G55,0)),0,VLOOKUP(T55,G48:I55,3,FALSE)) -> 0 | Y55: =IF(ISNA(MATCH(T55,L48:L55,0)),0,VLOOKUP(T55,L48:N55,3,FALSE)) -> 0 | Z55: =IF(ISNA(MATCH(T55,G48:G55,0)),0,VLOOKUP(T55,G48:J55,4,FALSE)) -> 0 | AA55: =IF(ISNA(MATCH(T55,L48:L55,0)),0,VLOOKUP(T55,L48:P55,4,FALSE)) -> 0 | AB55: =IF(AD55=0,0,Q48-(AD55-1)) -> 0 | AC55: =IF(AE55=0,0,Q48-(AE55-1)) -> 0 | AD55: =IF(ISNA(MATCH(T55,G48:G55,0)),0,VLOOKUP(T55,G48:Q55,11,FALSE)) -> 0 | AE55: =IF(ISNA(MATCH(T55,L48:L55,0)),0,VLOOKUP(T55,L48:Q55,6,FALSE)) -> 0 | AF55: 3 | AG55: 3
A56: =(B56*10)+1 -> 61 | B56: 6 | C56: =VLOOKUP(B56,EventsOrder,2,FALSE) -> 12 | D56: =VLOOKUP(B56,EventsOrder,4,FALSE) -> U15 Male | E56: =VLOOKUP(B56,EventsOrder,3,FALSE) -> Long Jump | F56: =IF(MID(D56,5,1)="F","F","M") -> M | G56: B | H56: B | I56: 5.42 | K56: Jack Compton | O56: NN | P56: 0 | Q56: =Q$5 -> 7 | R56: DASH | S56: 0 | T56: ='Event Details'!C$22 -> L | U56: ='Event Details'!D$22 -> Daventry | V56: =IF(ISNA(MATCH(T56,G56:G63,0)),0,VLOOKUP(T56,G56:K63,5,FALSE)) -> Eoin Beevers | W56: =IF(ISNA(MATCH(T56,L56:L63,0))," ",VLOOKUP(T56,L56:P63,5,FALSE)) ->  | X56: =IF(ISNA(MATCH(T56,G56:G63,0)),0,VLOOKUP(T56,G56:I63,3,FALSE)) -> 4.71 | Y56: =IF(ISNA(MATCH(T56,L56:L63,0)),0,VLOOKUP(T56,L56:N63,3,FALSE)) -> 0 | Z56: =IF(ISNA(MATCH(T56,G56:G63,0)),0,VLOOKUP(T56,G56:J63,4,FALSE)) -> L | AA56: =IF(ISNA(MATCH(T56,L56:L63,0)),0,VLOOKUP(T56,L56:P63,4,FALSE)) -> 0 | AB56: =IF(AD56=0,0,Q56-(AD56-1)) -> 2 | AC56: =IF(AE56=0,0,Q56-(AE56-1)) -> 0 | AD56: =IF(ISNA(MATCH(T56,G56:G63,0)),0,VLOOKUP(T56,G56:Q63,11,FALSE)) -> 6 | AE56: =IF(ISNA(MATCH(T56,L56:L63,0)),0,VLOOKUP(T56,L56:Q63,6,FALSE)) -> 0 | AF56: 17 | AG56: 3
A57: =A56+1 -> 62 | B57: =B56 -> 6 | C57: =C56 -> 12 | D57: =D56 -> U15 Male | E57: =E56 -> Long Jump | F57: =F56 -> M | G57: L | H57: L | I57: 4.71 | J57: L | K57: Eoin Beevers | P57: 0 | Q57: =Q56-1 -> 6 | R57: Dav | S57: 0 | T57: ='Event Details'!C$23 -> E | U57: ='Event Details'!D$23 -> Droitwich | V57: =IF(ISNA(MATCH(T57,G56:G63,0)),0,VLOOKUP(T57,G56:K63,5,FALSE)) -> 0 | W57: =IF(ISNA(MATCH(T57,L56:L63,0))," ",VLOOKUP(T57,L56:P63,5,FALSE)) ->  | X57: =IF(ISNA(MATCH(T57,G56:G63,0)),0,VLOOKUP(T57,G56:I63,3,FALSE)) -> 0 | Y57: =IF(ISNA(MATCH(T57,L56:L63,0)),0,VLOOKUP(T57,L56:N63,3,FALSE)) -> 0 | Z57: =IF(ISNA(MATCH(T57,G56:G63,0)),0,VLOOKUP(T57,G56:J63,4,FALSE)) -> 0 | AA57: =IF(ISNA(MATCH(T57,L56:L63,0)),0,VLOOKUP(T57,L56:P63,4,FALSE)) -> 0 | AB57: =IF(AD57=0,0,Q56-(AD57-1)) -> 0 | AC57: =IF(AE57=0,0,Q56-(AE57-1)) -> 0 | AD57: =IF(ISNA(MATCH(T57,G56:G63,0)),0,VLOOKUP(T57,G56:Q63,11,FALSE)) -> 0 | AE57: =IF(ISNA(MATCH(T57,L56:L63,0)),0,VLOOKUP(T57,L56:Q63,6,FALSE)) -> 0 | AF57: 7 | AG57: 3
A58: =A57+1 -> 63 | B58: =B57 -> 6 | C58: =C57 -> 12 | D58: =D57 -> U15 Male | E58: Long Jump | F58: M | G58: R | H58: R | I58: 4.22 | J58: R | K58: Zac Clae | P58: 0 | Q58: =Q57-1 -> 5 | R58: Leam | S58: 0 | T58: ='Event Details'!C$24 -> B | U58: ='Event Details'!D$24 -> Dudley & S'bridge | V58: =IF(ISNA(MATCH(T58,G56:G63,0)),0,VLOOKUP(T58,G56:K63,5,FALSE)) -> Jack Compton | W58: =IF(ISNA(MATCH(T58,L56:L63,0))," ",VLOOKUP(T58,L56:P63,5,FALSE)) ->  | X58: =IF(ISNA(MATCH(T58,G56:G63,0)),0,VLOOKUP(T58,G56:I63,3,FALSE)) -> 5.42 | Y58: =IF(ISNA(MATCH(T58,L56:L63,0)),0,VLOOKUP(T58,L56:N63,3,FALSE)) -> 0 | Z58: =IF(ISNA(MATCH(T58,G56:G63,0)),0,VLOOKUP(T58,G56:J63,4,FALSE)) -> 0 | AA58: =IF(ISNA(MATCH(T58,L56:L63,0)),0,VLOOKUP(T58,L56:P63,4,FALSE)) -> 0 | AB58: =IF(AD58=0,0,Q56-(AD58-1)) -> 1 | AC58: =IF(AE58=0,0,Q56-(AE58-1)) -> 0 | AD58: =IF(ISNA(MATCH(T58,G56:G63,0)),0,VLOOKUP(T58,G56:Q63,11,FALSE)) -> 7 | AE58: =IF(ISNA(MATCH(T58,L56:L63,0)),0,VLOOKUP(T58,L56:Q63,6,FALSE)) -> 0 | AF58: 22 | AG58: 3
A59: 64 | B59: 6 | C59: 12 | D59: U15 Male | E59: Long Jump | F59: M | G59: N | H59: N | I59: 4.2 | J59: N | K59: Sam Yates | P59: 0 | Q59: 4 | R59: Nun | S59: 0 | T59: ='Event Details'!C$25 -> R | U59: ='Event Details'!D$25 -> Leamington AA | V59: =IF(ISNA(MATCH(T59,G56:G63,0)),0,VLOOKUP(T59,G56:K63,5,FALSE)) -> Zac Clae | W59: =IF(ISNA(MATCH(T59,L56:L63,0))," ",VLOOKUP(T59,L56:P63,5,FALSE)) ->  | X59: =IF(ISNA(MATCH(T59,G56:G63,0)),0,VLOOKUP(T59,G56:I63,3,FALSE)) -> 4.22 | Y59: =IF(ISNA(MATCH(T59,L56:L63,0)),0,VLOOKUP(T59,L56:N63,3,FALSE)) -> 0 | Z59: =IF(ISNA(MATCH(T59,G56:G63,0)),0,VLOOKUP(T59,G56:J63,4,FALSE)) -> R | AA59: =IF(ISNA(MATCH(T59,L56:L63,0)),0,VLOOKUP(T59,L56:P63,4,FALSE)) -> 0 | AB59: =IF(AD59=0,0,Q56-(AD59-1)) -> 3 | AC59: =IF(AE59=0,0,Q56-(AE59-1)) -> 0 | AD59: =IF(ISNA(MATCH(T59,G56:G63,0)),0,VLOOKUP(T59,G56:Q63,11,FALSE)) -> 5 | AE59: =IF(ISNA(MATCH(T59,L56:L63,0)),0,VLOOKUP(T59,L56:Q63,6,FALSE)) -> 0 | AF59: 27 | AG59: 3
A60: 65 | B60: 6 | C60: 12 | D60: U15 Male | E60: Long Jump | F60: M | K60: 0 | P60: 0 | Q60: 3 | R60: 0 | S60: 0 | T60: ='Event Details'!C$26 -> N | U60: ='Event Details'!D$26 -> Nuneaton | V60: =IF(ISNA(MATCH(T60,G56:G63,0)),0,VLOOKUP(T60,G56:K63,5,FALSE)) -> Sam Yates | W60: =IF(ISNA(MATCH(T60,L56:L63,0))," ",VLOOKUP(T60,L56:P63,5,FALSE)) ->  | X60: =IF(ISNA(MATCH(T60,G56:G63,0)),0,VLOOKUP(T60,G56:I63,3,FALSE)) -> 4.2 | Y60: =IF(ISNA(MATCH(T60,L56:L63,0)),0,VLOOKUP(T60,L56:N63,3,FALSE)) -> 0 | Z60: =IF(ISNA(MATCH(T60,G56:G63,0)),0,VLOOKUP(T60,G56:J63,4,FALSE)) -> N | AA60: =IF(ISNA(MATCH(T60,L56:L63,0)),0,VLOOKUP(T60,L56:P63,4,FALSE)) -> 0 | AB60: =IF(AD60=0,0,Q56-(AD60-1)) -> 4 | AC60: =IF(AE60=0,0,Q56-(AE60-1)) -> 0 | AD60: =IF(ISNA(MATCH(T60,G56:G63,0)),0,VLOOKUP(T60,G56:Q63,11,FALSE)) -> 4 | AE60: =IF(ISNA(MATCH(T60,L56:L63,0)),0,VLOOKUP(T60,L56:Q63,6,FALSE)) -> 0 | AF60: 3 | AG60: 3
A61: 66 | B61: 6 | C61: 12 | D61: U15 Male | E61: Long Jump | F61: M | K61: 0 | P61: 0 | Q61: 2 | R61: 0 | S61: 0 | T61: ='Event Details'!C$27 -> K | U61: ='Event Details'!D$27 -> Sparkhill | V61: =IF(ISNA(MATCH(T61,G56:G63,0)),0,VLOOKUP(T61,G56:K63,5,FALSE)) -> 0 | W61: =IF(ISNA(MATCH(T61,L56:L63,0))," ",VLOOKUP(T61,L56:P63,5,FALSE)) ->  | X61: =IF(ISNA(MATCH(T61,G56:G63,0)),0,VLOOKUP(T61,G56:I63,3,FALSE)) -> 0 | Y61: =IF(ISNA(MATCH(T61,L56:L63,0)),0,VLOOKUP(T61,L56:N63,3,FALSE)) -> 0 | Z61: =IF(ISNA(MATCH(T61,G56:G63,0)),0,VLOOKUP(T61,G56:J63,4,FALSE)) -> 0 | AA61: =IF(ISNA(MATCH(T61,L56:L63,0)),0,VLOOKUP(T61,L56:P63,4,FALSE)) -> 0 | AB61: =IF(AD61=0,0,Q56-(AD61-1)) -> 0 | AC61: =IF(AE61=0,0,Q56-(AE61-1)) -> 0 | AD61: =IF(ISNA(MATCH(T61,G56:G63,0)),0,VLOOKUP(T61,G56:Q63,11,FALSE)) -> 0 | AE61: =IF(ISNA(MATCH(T61,L56:L63,0)),0,VLOOKUP(T61,L56:Q63,6,FALSE)) -> 0 | AF61: 3 | AG61: 3
A62: 67 | B62: 6 | C62: 12 | D62: U15 Male | E62: Long Jump | F62: M | K62: 0 | P62: 0 | Q62: 1 | R62: 0 | S62: 0 | T62: ='Event Details'!C$28 -> W | U62: ='Event Details'!D$28 -> Witney AC | V62: =IF(ISNA(MATCH(T62,G56:G63,0)),0,VLOOKUP(T62,G56:K63,5,FALSE)) -> 0 | W62: =IF(ISNA(MATCH(T62,L56:L63,0))," ",VLOOKUP(T62,L56:P63,5,FALSE)) ->  | X62: =IF(ISNA(MATCH(T62,G56:G63,0)),0,VLOOKUP(T62,G56:I63,3,FALSE)) -> 0 | Y62: =IF(ISNA(MATCH(T62,L56:L63,0)),0,VLOOKUP(T62,L56:N63,3,FALSE)) -> 0 | Z62: =IF(ISNA(MATCH(T62,G56:G63,0)),0,VLOOKUP(T62,G56:J63,4,FALSE)) -> 0 | AA62: =IF(ISNA(MATCH(T62,L56:L63,0)),0,VLOOKUP(T62,L56:P63,4,FALSE)) -> 0 | AB62: =IF(AD62=0,0,Q56-(AD62-1)) -> 0 | AC62: =IF(AE62=0,0,Q56-(AE62-1)) -> 0 | AD62: =IF(ISNA(MATCH(T62,G56:G63,0)),0,VLOOKUP(T62,G56:Q63,11,FALSE)) -> 0 | AE62: =IF(ISNA(MATCH(T62,L56:L63,0)),0,VLOOKUP(T62,L56:Q63,6,FALSE)) -> 0 | AF62: 3 | AG62: 3
A63: 68 | B63: 6 | C63: 12 | D63: U15 Male | E63: Long Jump | F63: M | K63: 0 | P63: 0 | Q63: 0 | R63: 0 | S63: 0 | T63: ='Event Details'!C$29 -> 0 | U63: ='Event Details'!D$29 -> 0 | V63: =IF(ISNA(MATCH(T63,G56:G63,0)),0,VLOOKUP(T63,G56:K63,5,FALSE)) -> 0 | W63: =IF(ISNA(MATCH(T63,L56:L63,0))," ",VLOOKUP(T63,L56:P63,5,FALSE)) ->  | X63: =IF(ISNA(MATCH(T63,G56:G63,0)),0,VLOOKUP(T63,G56:I63,3,FALSE)) -> 0 | Y63: =IF(ISNA(MATCH(T63,L56:L63,0)),0,VLOOKUP(T63,L56:N63,3,FALSE)) -> 0 | Z63: =IF(ISNA(MATCH(T63,G56:G63,0)),0,VLOOKUP(T63,G56:J63,4,FALSE)) -> 0 | AA63: =IF(ISNA(MATCH(T63,L56:L63,0)),0,VLOOKUP(T63,L56:P63,4,FALSE)) -> 0 | AB63: =IF(AD63=0,0,Q56-(AD63-1)) -> 0 | AC63: =IF(AE63=0,0,Q56-(AE63-1)) -> 0 | AD63: =IF(ISNA(MATCH(T63,G56:G63,0)),0,VLOOKUP(T63,G56:Q63,11,FALSE)) -> 0 | AE63: =IF(ISNA(MATCH(T63,L56:L63,0)),0,VLOOKUP(T63,L56:Q63,6,FALSE)) -> 0 | AF63: 3 | AG63: 3
A64: =(B64*10)+1 -> 71 | B64: 7 | C64: =VLOOKUP(B64,EventsOrder,2,FALSE) -> 12.05 | D64: =VLOOKUP(B64,EventsOrder,4,FALSE) -> U17 F/Women | E64: =VLOOKUP(B64,EventsOrder,3,FALSE) -> 1500m | F64: =IF(MID(D64,5,1)="F","F","M") -> F | K64: 0 | P64: 0 | Q64: =Q$5 -> 7 | R64: 0 | S64: 0 | T64: ='Event Details'!C$22 -> L | U64: ='Event Details'!D$22 -> Daventry | V64: =IF(ISNA(MATCH(T64,G64:G71,0)),0,VLOOKUP(T64,G64:K71,5,FALSE)) -> 0 | W64: =IF(ISNA(MATCH(T64,L64:L71,0))," ",VLOOKUP(T64,L64:P71,5,FALSE)) ->  | X64: =IF(ISNA(MATCH(T64,G64:G71,0)),0,VLOOKUP(T64,G64:I71,3,FALSE)) -> 0 | Y64: =IF(ISNA(MATCH(T64,L64:L71,0)),0,VLOOKUP(T64,L64:N71,3,FALSE)) -> 0 | Z64: =IF(ISNA(MATCH(T64,G64:G71,0)),0,VLOOKUP(T64,G64:J71,4,FALSE)) -> 0 | AA64: =IF(ISNA(MATCH(T64,L64:L71,0)),0,VLOOKUP(T64,L64:P71,4,FALSE)) -> 0 | AB64: =IF(AD64=0,0,Q64-(AD64-1)) -> 0 | AC64: =IF(AE64=0,0,Q64-(AE64-1)) -> 0 | AD64: =IF(ISNA(MATCH(T64,G64:G71,0)),0,VLOOKUP(T64,G64:Q71,11,FALSE)) -> 0 | AE64: =IF(ISNA(MATCH(T64,L64:L71,0)),0,VLOOKUP(T64,L64:Q71,6,FALSE)) -> 0 | AF64: 3 | AG64: 3
A65: =A64+1 -> 72 | B65: =B64 -> 7 | C65: =C64 -> 12.05 | D65: =D64 -> U17 F/Women | E65: =E64 -> 1500m | F65: =F64 -> F | K65: 0 | P65: 0 | Q65: =Q64-1 -> 6 | R65: 0 | S65: 0 | T65: ='Event Details'!C$23 -> E | U65: ='Event Details'!D$23 -> Droitwich | V65: =IF(ISNA(MATCH(T65,G64:G71,0)),0,VLOOKUP(T65,G64:K71,5,FALSE)) -> 0 | W65: =IF(ISNA(MATCH(T65,L64:L71,0))," ",VLOOKUP(T65,L64:P71,5,FALSE)) ->  | X65: =IF(ISNA(MATCH(T65,G64:G71,0)),0,VLOOKUP(T65,G64:I71,3,FALSE)) -> 0 | Y65: =IF(ISNA(MATCH(T65,L64:L71,0)),0,VLOOKUP(T65,L64:N71,3,FALSE)) -> 0 | Z65: =IF(ISNA(MATCH(T65,G64:G71,0)),0,VLOOKUP(T65,G64:J71,4,FALSE)) -> 0 | AA65: =IF(ISNA(MATCH(T65,L64:L71,0)),0,VLOOKUP(T65,L64:P71,4,FALSE)) -> 0 | AB65: =IF(AD65=0,0,Q64-(AD65-1)) -> 0 | AC65: =IF(AE65=0,0,Q64-(AE65-1)) -> 0 | AD65: =IF(ISNA(MATCH(T65,G64:G71,0)),0,VLOOKUP(T65,G64:Q71,11,FALSE)) -> 0 | AE65: =IF(ISNA(MATCH(T65,L64:L71,0)),0,VLOOKUP(T65,L64:Q71,6,FALSE)) -> 0 | AF65: 3 | AG65: 3
A66: =A65+1 -> 73 | B66: =B65 -> 7 | C66: =C65 -> 12.05 | D66: =D65 -> U17 F/Women | E66: 1500m | F66: F | K66: 0 | P66: 0 | Q66: =Q65-1 -> 5 | R66: 0 | S66: 0 | T66: ='Event Details'!C$24 -> B | U66: ='Event Details'!D$24 -> Dudley & S'bridge | V66: =IF(ISNA(MATCH(T66,G64:G71,0)),0,VLOOKUP(T66,G64:K71,5,FALSE)) -> 0 | W66: =IF(ISNA(MATCH(T66,L64:L71,0))," ",VLOOKUP(T66,L64:P71,5,FALSE)) ->  | X66: =IF(ISNA(MATCH(T66,G64:G71,0)),0,VLOOKUP(T66,G64:I71,3,FALSE)) -> 0 | Y66: =IF(ISNA(MATCH(T66,L64:L71,0)),0,VLOOKUP(T66,L64:N71,3,FALSE)) -> 0 | Z66: =IF(ISNA(MATCH(T66,G64:G71,0)),0,VLOOKUP(T66,G64:J71,4,FALSE)) -> 0 | AA66: =IF(ISNA(MATCH(T66,L64:L71,0)),0,VLOOKUP(T66,L64:P71,4,FALSE)) -> 0 | AB66: =IF(AD66=0,0,Q64-(AD66-1)) -> 0 | AC66: =IF(AE66=0,0,Q64-(AE66-1)) -> 0 | AD66: =IF(ISNA(MATCH(T66,G64:G71,0)),0,VLOOKUP(T66,G64:Q71,11,FALSE)) -> 0 | AE66: =IF(ISNA(MATCH(T66,L64:L71,0)),0,VLOOKUP(T66,L64:Q71,6,FALSE)) -> 0 | AF66: 3 | AG66: 3
A67: 74 | B67: 7 | C67: 12.05 | D67: U17 F/Women | E67: 1500m | F67: F | K67: 0 | P67: 0 | Q67: 4 | R67: 0 | S67: 0 | T67: ='Event Details'!C$25 -> R | U67: ='Event Details'!D$25 -> Leamington AA | V67: =IF(ISNA(MATCH(T67,G64:G71,0)),0,VLOOKUP(T67,G64:K71,5,FALSE)) -> 0 | W67: =IF(ISNA(MATCH(T67,L64:L71,0))," ",VLOOKUP(T67,L64:P71,5,FALSE)) ->  | X67: =IF(ISNA(MATCH(T67,G64:G71,0)),0,VLOOKUP(T67,G64:I71,3,FALSE)) -> 0 | Y67: =IF(ISNA(MATCH(T67,L64:L71,0)),0,VLOOKUP(T67,L64:N71,3,FALSE)) -> 0 | Z67: =IF(ISNA(MATCH(T67,G64:G71,0)),0,VLOOKUP(T67,G64:J71,4,FALSE)) -> 0 | AA67: =IF(ISNA(MATCH(T67,L64:L71,0)),0,VLOOKUP(T67,L64:P71,4,FALSE)) -> 0 | AB67: =IF(AD67=0,0,Q64-(AD67-1)) -> 0 | AC67: =IF(AE67=0,0,Q64-(AE67-1)) -> 0 | AD67: =IF(ISNA(MATCH(T67,G64:G71,0)),0,VLOOKUP(T67,G64:Q71,11,FALSE)) -> 0 | AE67: =IF(ISNA(MATCH(T67,L64:L71,0)),0,VLOOKUP(T67,L64:Q71,6,FALSE)) -> 0 | AF67: 3 | AG67: 3
A68: 75 | B68: 7 | C68: 12.05 | D68: U17 F/Women | E68: 1500m | F68: F | K68: 0 | P68: 0 | Q68: 3 | R68: 0 | S68: 0 | T68: ='Event Details'!C$26 -> N | U68: ='Event Details'!D$26 -> Nuneaton | V68: =IF(ISNA(MATCH(T68,G64:G71,0)),0,VLOOKUP(T68,G64:K71,5,FALSE)) -> 0 | W68: =IF(ISNA(MATCH(T68,L64:L71,0))," ",VLOOKUP(T68,L64:P71,5,FALSE)) ->  | X68: =IF(ISNA(MATCH(T68,G64:G71,0)),0,VLOOKUP(T68,G64:I71,3,FALSE)) -> 0 | Y68: =IF(ISNA(MATCH(T68,L64:L71,0)),0,VLOOKUP(T68,L64:N71,3,FALSE)) -> 0 | Z68: =IF(ISNA(MATCH(T68,G64:G71,0)),0,VLOOKUP(T68,G64:J71,4,FALSE)) -> 0 | AA68: =IF(ISNA(MATCH(T68,L64:L71,0)),0,VLOOKUP(T68,L64:P71,4,FALSE)) -> 0 | AB68: =IF(AD68=0,0,Q64-(AD68-1)) -> 0 | AC68: =IF(AE68=0,0,Q64-(AE68-1)) -> 0 | AD68: =IF(ISNA(MATCH(T68,G64:G71,0)),0,VLOOKUP(T68,G64:Q71,11,FALSE)) -> 0 | AE68: =IF(ISNA(MATCH(T68,L64:L71,0)),0,VLOOKUP(T68,L64:Q71,6,FALSE)) -> 0 | AF68: 3 | AG68: 3
A69: 76 | B69: 7 | C69: 12.05 | D69: U17 F/Women | E69: 1500m | F69: F | K69: 0 | P69: 0 | Q69: 2 | R69: 0 | S69: 0 | T69: ='Event Details'!C$27 -> K | U69: ='Event Details'!D$27 -> Sparkhill | V69: =IF(ISNA(MATCH(T69,G64:G71,0)),0,VLOOKUP(T69,G64:K71,5,FALSE)) -> 0 | W69: =IF(ISNA(MATCH(T69,L64:L71,0))," ",VLOOKUP(T69,L64:P71,5,FALSE)) ->  | X69: =IF(ISNA(MATCH(T69,G64:G71,0)),0,VLOOKUP(T69,G64:I71,3,FALSE)) -> 0 | Y69: =IF(ISNA(MATCH(T69,L64:L71,0)),0,VLOOKUP(T69,L64:N71,3,FALSE)) -> 0 | Z69: =IF(ISNA(MATCH(T69,G64:G71,0)),0,VLOOKUP(T69,G64:J71,4,FALSE)) -> 0 | AA69: =IF(ISNA(MATCH(T69,L64:L71,0)),0,VLOOKUP(T69,L64:P71,4,FALSE)) -> 0 | AB69: =IF(AD69=0,0,Q64-(AD69-1)) -> 0 | AC69: =IF(AE69=0,0,Q64-(AE69-1)) -> 0 | AD69: =IF(ISNA(MATCH(T69,G64:G71,0)),0,VLOOKUP(T69,G64:Q71,11,FALSE)) -> 0 | AE69: =IF(ISNA(MATCH(T69,L64:L71,0)),0,VLOOKUP(T69,L64:Q71,6,FALSE)) -> 0 | AF69: 3 | AG69: 3
A70: 77 | B70: 7 | C70: 12.05 | D70: U17 F/Women | E70: 1500m | F70: F | K70: 0 | P70: 0 | Q70: 1 | R70: 0 | S70: 0 | T70: ='Event Details'!C$28 -> W | U70: ='Event Details'!D$28 -> Witney AC | V70: =IF(ISNA(MATCH(T70,G64:G71,0)),0,VLOOKUP(T70,G64:K71,5,FALSE)) -> 0 | W70: =IF(ISNA(MATCH(T70,L64:L71,0))," ",VLOOKUP(T70,L64:P71,5,FALSE)) ->  | X70: =IF(ISNA(MATCH(T70,G64:G71,0)),0,VLOOKUP(T70,G64:I71,3,FALSE)) -> 0 | Y70: =IF(ISNA(MATCH(T70,L64:L71,0)),0,VLOOKUP(T70,L64:N71,3,FALSE)) -> 0 | Z70: =IF(ISNA(MATCH(T70,G64:G71,0)),0,VLOOKUP(T70,G64:J71,4,FALSE)) -> 0 | AA70: =IF(ISNA(MATCH(T70,L64:L71,0)),0,VLOOKUP(T70,L64:P71,4,FALSE)) -> 0 | AB70: =IF(AD70=0,0,Q64-(AD70-1)) -> 0 | AC70: =IF(AE70=0,0,Q64-(AE70-1)) -> 0 | AD70: =IF(ISNA(MATCH(T70,G64:G71,0)),0,VLOOKUP(T70,G64:Q71,11,FALSE)) -> 0 | AE70: =IF(ISNA(MATCH(T70,L64:L71,0)),0,VLOOKUP(T70,L64:Q71,6,FALSE)) -> 0 | AF70: 3 | AG70: 3
A71: 78 | B71: 7 | C71: 12.05 | D71: U17 F/Women | E71: 1500m | F71: F | K71: 0 | P71: 0 | Q71: 0 | R71: 0 | S71: 0 | T71: ='Event Details'!C$29 -> 0 | U71: ='Event Details'!D$29 -> 0 | V71: =IF(ISNA(MATCH(T71,G64:G71,0)),0,VLOOKUP(T71,G64:K71,5,FALSE)) -> 0 | W71: =IF(ISNA(MATCH(T71,L64:L71,0))," ",VLOOKUP(T71,L64:P71,5,FALSE)) ->  | X71: =IF(ISNA(MATCH(T71,G64:G71,0)),0,VLOOKUP(T71,G64:I71,3,FALSE)) -> 0 | Y71: =IF(ISNA(MATCH(T71,L64:L71,0)),0,VLOOKUP(T71,L64:N71,3,FALSE)) -> 0 | Z71: =IF(ISNA(MATCH(T71,G64:G71,0)),0,VLOOKUP(T71,G64:J71,4,FALSE)) -> 0 | AA71: =IF(ISNA(MATCH(T71,L64:L71,0)),0,VLOOKUP(T71,L64:P71,4,FALSE)) -> 0 | AB71: =IF(AD71=0,0,Q64-(AD71-1)) -> 0 | AC71: =IF(AE71=0,0,Q64-(AE71-1)) -> 0 | AD71: =IF(ISNA(MATCH(T71,G64:G71,0)),0,VLOOKUP(T71,G64:Q71,11,FALSE)) -> 0 | AE71: =IF(ISNA(MATCH(T71,L64:L71,0)),0,VLOOKUP(T71,L64:Q71,6,FALSE)) -> 0 | AF71: 3 | AG71: 3
A72: =(B72*10)+1 -> 81 | B72: 8 | C72: =VLOOKUP(B72,EventsOrder,2,FALSE) -> 12.15 | D72: =VLOOKUP(B72,EventsOrder,4,FALSE) -> U17 Men | E72: =VLOOKUP(B72,EventsOrder,3,FALSE) -> Shot | F72: =IF(MID(D72,5,1)="F","F","M") -> M | G72: W | H72: W | I72: 8.01 | K72: Tom Miller | P72: 0 | Q72: =Q$5 -> 7 | R72: Wit | S72: 0 | T72: ='Event Details'!C$22 -> L | U72: ='Event Details'!D$22 -> Daventry | V72: =IF(ISNA(MATCH(T72,G72:G79,0)),0,VLOOKUP(T72,G72:K79,5,FALSE)) -> 0 | W72: =IF(ISNA(MATCH(T72,L72:L79,0))," ",VLOOKUP(T72,L72:P79,5,FALSE)) ->  | X72: =IF(ISNA(MATCH(T72,G72:G79,0)),0,VLOOKUP(T72,G72:I79,3,FALSE)) -> 0 | Y72: =IF(ISNA(MATCH(T72,L72:L79,0)),0,VLOOKUP(T72,L72:N79,3,FALSE)) -> 0 | Z72: =IF(ISNA(MATCH(T72,G72:G79,0)),0,VLOOKUP(T72,G72:J79,4,FALSE)) -> 0 | AA72: =IF(ISNA(MATCH(T72,L72:L79,0)),0,VLOOKUP(T72,L72:P79,4,FALSE)) -> 0 | AB72: =IF(AD72=0,0,Q72-(AD72-1)) -> 0 | AC72: =IF(AE72=0,0,Q72-(AE72-1)) -> 0 | AD72: =IF(ISNA(MATCH(T72,G72:G79,0)),0,VLOOKUP(T72,G72:Q79,11,FALSE)) -> 0 | AE72: =IF(ISNA(MATCH(T72,L72:L79,0)),0,VLOOKUP(T72,L72:Q79,6,FALSE)) -> 0 | AF72: 37 | AG72: 3
A73: =A72+1 -> 82 | B73: =B72 -> 8 | C73: =C72 -> 12.15 | D73: =D72 -> U17 Men | E73: =E72 -> Shot | F73: =F72 -> M | K73: 0 | P73: 0 | Q73: =Q72-1 -> 6 | R73: 0 | S73: 0 | T73: ='Event Details'!C$23 -> E | U73: ='Event Details'!D$23 -> Droitwich | V73: =IF(ISNA(MATCH(T73,G72:G79,0)),0,VLOOKUP(T73,G72:K79,5,FALSE)) -> 0 | W73: =IF(ISNA(MATCH(T73,L72:L79,0))," ",VLOOKUP(T73,L72:P79,5,FALSE)) ->  | X73: =IF(ISNA(MATCH(T73,G72:G79,0)),0,VLOOKUP(T73,G72:I79,3,FALSE)) -> 0 | Y73: =IF(ISNA(MATCH(T73,L72:L79,0)),0,VLOOKUP(T73,L72:N79,3,FALSE)) -> 0 | Z73: =IF(ISNA(MATCH(T73,G72:G79,0)),0,VLOOKUP(T73,G72:J79,4,FALSE)) -> 0 | AA73: =IF(ISNA(MATCH(T73,L72:L79,0)),0,VLOOKUP(T73,L72:P79,4,FALSE)) -> 0 | AB73: =IF(AD73=0,0,Q72-(AD73-1)) -> 0 | AC73: =IF(AE73=0,0,Q72-(AE73-1)) -> 0 | AD73: =IF(ISNA(MATCH(T73,G72:G79,0)),0,VLOOKUP(T73,G72:Q79,11,FALSE)) -> 0 | AE73: =IF(ISNA(MATCH(T73,L72:L79,0)),0,VLOOKUP(T73,L72:Q79,6,FALSE)) -> 0 | AF73: 3 | AG73: 3
A74: =A73+1 -> 83 | B74: =B73 -> 8 | C74: =C73 -> 12.15 | D74: =D73 -> U17 Men | E74: Shot | F74: M | K74: 0 | P74: 0 | Q74: =Q73-1 -> 5 | R74: 0 | S74: 0 | T74: ='Event Details'!C$24 -> B | U74: ='Event Details'!D$24 -> Dudley & S'bridge | V74: =IF(ISNA(MATCH(T74,G72:G79,0)),0,VLOOKUP(T74,G72:K79,5,FALSE)) -> 0 | W74: =IF(ISNA(MATCH(T74,L72:L79,0))," ",VLOOKUP(T74,L72:P79,5,FALSE)) ->  | X74: =IF(ISNA(MATCH(T74,G72:G79,0)),0,VLOOKUP(T74,G72:I79,3,FALSE)) -> 0 | Y74: =IF(ISNA(MATCH(T74,L72:L79,0)),0,VLOOKUP(T74,L72:N79,3,FALSE)) -> 0 | Z74: =IF(ISNA(MATCH(T74,G72:G79,0)),0,VLOOKUP(T74,G72:J79,4,FALSE)) -> 0 | AA74: =IF(ISNA(MATCH(T74,L72:L79,0)),0,VLOOKUP(T74,L72:P79,4,FALSE)) -> 0 | AB74: =IF(AD74=0,0,Q72-(AD74-1)) -> 0 | AC74: =IF(AE74=0,0,Q72-(AE74-1)) -> 0 | AD74: =IF(ISNA(MATCH(T74,G72:G79,0)),0,VLOOKUP(T74,G72:Q79,11,FALSE)) -> 0 | AE74: =IF(ISNA(MATCH(T74,L72:L79,0)),0,VLOOKUP(T74,L72:Q79,6,FALSE)) -> 0 | AF74: 3 | AG74: 3
A75: 84 | B75: 8 | C75: 12.15 | D75: U17 Men | E75: Shot | F75: M | K75: 0 | P75: 0 | Q75: 4 | R75: 0 | S75: 0 | T75: ='Event Details'!C$25 -> R | U75: ='Event Details'!D$25 -> Leamington AA | V75: =IF(ISNA(MATCH(T75,G72:G79,0)),0,VLOOKUP(T75,G72:K79,5,FALSE)) -> 0 | W75: =IF(ISNA(MATCH(T75,L72:L79,0))," ",VLOOKUP(T75,L72:P79,5,FALSE)) ->  | X75: =IF(ISNA(MATCH(T75,G72:G79,0)),0,VLOOKUP(T75,G72:I79,3,FALSE)) -> 0 | Y75: =IF(ISNA(MATCH(T75,L72:L79,0)),0,VLOOKUP(T75,L72:N79,3,FALSE)) -> 0 | Z75: =IF(ISNA(MATCH(T75,G72:G79,0)),0,VLOOKUP(T75,G72:J79,4,FALSE)) -> 0 | AA75: =IF(ISNA(MATCH(T75,L72:L79,0)),0,VLOOKUP(T75,L72:P79,4,FALSE)) -> 0 | AB75: =IF(AD75=0,0,Q72-(AD75-1)) -> 0 | AC75: =IF(AE75=0,0,Q72-(AE75-1)) -> 0 | AD75: =IF(ISNA(MATCH(T75,G72:G79,0)),0,VLOOKUP(T75,G72:Q79,11,FALSE)) -> 0 | AE75: =IF(ISNA(MATCH(T75,L72:L79,0)),0,VLOOKUP(T75,L72:Q79,6,FALSE)) -> 0 | AF75: 3 | AG75: 3
A76: 85 | B76: 8 | C76: 12.15 | D76: U17 Men | E76: Shot | F76: M | K76: 0 | P76: 0 | Q76: 3 | R76: 0 | S76: 0 | T76: ='Event Details'!C$26 -> N | U76: ='Event Details'!D$26 -> Nuneaton | V76: =IF(ISNA(MATCH(T76,G72:G79,0)),0,VLOOKUP(T76,G72:K79,5,FALSE)) -> 0 | W76: =IF(ISNA(MATCH(T76,L72:L79,0))," ",VLOOKUP(T76,L72:P79,5,FALSE)) ->  | X76: =IF(ISNA(MATCH(T76,G72:G79,0)),0,VLOOKUP(T76,G72:I79,3,FALSE)) -> 0 | Y76: =IF(ISNA(MATCH(T76,L72:L79,0)),0,VLOOKUP(T76,L72:N79,3,FALSE)) -> 0 | Z76: =IF(ISNA(MATCH(T76,G72:G79,0)),0,VLOOKUP(T76,G72:J79,4,FALSE)) -> 0 | AA76: =IF(ISNA(MATCH(T76,L72:L79,0)),0,VLOOKUP(T76,L72:P79,4,FALSE)) -> 0 | AB76: =IF(AD76=0,0,Q72-(AD76-1)) -> 0 | AC76: =IF(AE76=0,0,Q72-(AE76-1)) -> 0 | AD76: =IF(ISNA(MATCH(T76,G72:G79,0)),0,VLOOKUP(T76,G72:Q79,11,FALSE)) -> 0 | AE76: =IF(ISNA(MATCH(T76,L72:L79,0)),0,VLOOKUP(T76,L72:Q79,6,FALSE)) -> 0 | AF76: 3 | AG76: 3
A77: 86 | B77: 8 | C77: 12.15 | D77: U17 Men | E77: Shot | F77: M | K77: 0 | P77: 0 | Q77: 2 | R77: 0 | S77: 0 | T77: ='Event Details'!C$27 -> K | U77: ='Event Details'!D$27 -> Sparkhill | V77: =IF(ISNA(MATCH(T77,G72:G79,0)),0,VLOOKUP(T77,G72:K79,5,FALSE)) -> 0 | W77: =IF(ISNA(MATCH(T77,L72:L79,0))," ",VLOOKUP(T77,L72:P79,5,FALSE)) ->  | X77: =IF(ISNA(MATCH(T77,G72:G79,0)),0,VLOOKUP(T77,G72:I79,3,FALSE)) -> 0 | Y77: =IF(ISNA(MATCH(T77,L72:L79,0)),0,VLOOKUP(T77,L72:N79,3,FALSE)) -> 0 | Z77: =IF(ISNA(MATCH(T77,G72:G79,0)),0,VLOOKUP(T77,G72:J79,4,FALSE)) -> 0 | AA77: =IF(ISNA(MATCH(T77,L72:L79,0)),0,VLOOKUP(T77,L72:P79,4,FALSE)) -> 0 | AB77: =IF(AD77=0,0,Q72-(AD77-1)) -> 0 | AC77: =IF(AE77=0,0,Q72-(AE77-1)) -> 0 | AD77: =IF(ISNA(MATCH(T77,G72:G79,0)),0,VLOOKUP(T77,G72:Q79,11,FALSE)) -> 0 | AE77: =IF(ISNA(MATCH(T77,L72:L79,0)),0,VLOOKUP(T77,L72:Q79,6,FALSE)) -> 0 | AF77: 3 | AG77: 3
A78: 87 | B78: 8 | C78: 12.15 | D78: U17 Men | E78: Shot | F78: M | K78: 0 | P78: 0 | Q78: 1 | R78: 0 | S78: 0 | T78: ='Event Details'!C$28 -> W | U78: ='Event Details'!D$28 -> Witney AC | V78: =IF(ISNA(MATCH(T78,G72:G79,0)),0,VLOOKUP(T78,G72:K79,5,FALSE)) -> Tom Miller | W78: =IF(ISNA(MATCH(T78,L72:L79,0))," ",VLOOKUP(T78,L72:P79,5,FALSE)) ->  | X78: =IF(ISNA(MATCH(T78,G72:G79,0)),0,VLOOKUP(T78,G72:I79,3,FALSE)) -> 8.01 | Y78: =IF(ISNA(MATCH(T78,L72:L79,0)),0,VLOOKUP(T78,L72:N79,3,FALSE)) -> 0 | Z78: =IF(ISNA(MATCH(T78,G72:G79,0)),0,VLOOKUP(T78,G72:J79,4,FALSE)) -> 0 | AA78: =IF(ISNA(MATCH(T78,L72:L79,0)),0,VLOOKUP(T78,L72:P79,4,FALSE)) -> 0 | AB78: =IF(AD78=0,0,Q72-(AD78-1)) -> 1 | AC78: =IF(AE78=0,0,Q72-(AE78-1)) -> 0 | AD78: =IF(ISNA(MATCH(T78,G72:G79,0)),0,VLOOKUP(T78,G72:Q79,11,FALSE)) -> 7 | AE78: =IF(ISNA(MATCH(T78,L72:L79,0)),0,VLOOKUP(T78,L72:Q79,6,FALSE)) -> 0 | AF78: 3 | AG78: 3
A79: 88 | B79: 8 | C79: 12.15 | D79: U17 Men | E79: Shot | F79: M | K79: 0 | P79: 0 | Q79: 0 | R79: 0 | S79: 0 | T79: ='Event Details'!C$29 -> 0 | U79: ='Event Details'!D$29 -> 0 | V79: =IF(ISNA(MATCH(T79,G72:G79,0)),0,VLOOKUP(T79,G72:K79,5,FALSE)) -> 0 | W79: =IF(ISNA(MATCH(T79,L72:L79,0))," ",VLOOKUP(T79,L72:P79,5,FALSE)) ->  | X79: =IF(ISNA(MATCH(T79,G72:G79,0)),0,VLOOKUP(T79,G72:I79,3,FALSE)) -> 0 | Y79: =IF(ISNA(MATCH(T79,L72:L79,0)),0,VLOOKUP(T79,L72:N79,3,FALSE)) -> 0 | Z79: =IF(ISNA(MATCH(T79,G72:G79,0)),0,VLOOKUP(T79,G72:J79,4,FALSE)) -> 0 | AA79: =IF(ISNA(MATCH(T79,L72:L79,0)),0,VLOOKUP(T79,L72:P79,4,FALSE)) -> 0 | AB79: =IF(AD79=0,0,Q72-(AD79-1)) -> 0 | AC79: =IF(AE79=0,0,Q72-(AE79-1)) -> 0 | AD79: =IF(ISNA(MATCH(T79,G72:G79,0)),0,VLOOKUP(T79,G72:Q79,11,FALSE)) -> 0 | AE79: =IF(ISNA(MATCH(T79,L72:L79,0)),0,VLOOKUP(T79,L72:Q79,6,FALSE)) -> 0 | AF79: 3 | AG79: 3
A80: =(B80*10)+1 -> 91 | B80: 9 | C80: =VLOOKUP(B80,EventsOrder,2,FALSE) -> 12.15 | D80: =VLOOKUP(B80,EventsOrder,4,FALSE) -> U15 Female | E80: =VLOOKUP(B80,EventsOrder,3,FALSE) -> Discus | F80: =IF(MID(D80,5,1)="F","F","M") -> F | G80: =LEFT(H80,1) ->  | K80: =VLOOKUP($B80,IF(F80="F",TeamSheetFemale,TeamSheetMale),IF(LEN(H80)=1,AF80,AF80+2),FALSE) -> 0 | L80: =LEFT(M80,1) ->  | P80: =VLOOKUP($B80,IF(F80="F",TeamSheetFemale,TeamSheetMale),IF(LEN(M80)=1,AG80,AG80+2),FALSE) -> 0 | Q80: =Q$5 -> 7 | R80: =IF(LEN(G80)>0,VLOOKUP(LEFT(G80,1),Clubs,5,FALSE),0) -> 0 | S80: =IF(LEN(L80)>0,VLOOKUP(LEFT(L80,1),Clubs,5,FALSE),0) -> 0 | T80: ='Event Details'!C$22 -> L | U80: ='Event Details'!D$22 -> Daventry | V80: =IF(ISNA(MATCH(T80,G80:G87,0)),0,VLOOKUP(T80,G80:K87,5,FALSE)) -> 0 | W80: =IF(ISNA(MATCH(T80,L80:L87,0))," ",VLOOKUP(T80,L80:P87,5,FALSE)) ->  | X80: =IF(ISNA(MATCH(T80,G80:G87,0)),0,VLOOKUP(T80,G80:I87,3,FALSE)) -> 0 | Y80: =IF(ISNA(MATCH(T80,L80:L87,0)),0,VLOOKUP(T80,L80:N87,3,FALSE)) -> 0 | Z80: =IF(ISNA(MATCH(T80,G80:G87,0)),0,VLOOKUP(T80,G80:J87,4,FALSE)) -> 0 | AA80: =IF(ISNA(MATCH(T80,L80:L87,0)),0,VLOOKUP(T80,L80:P87,4,FALSE)) -> 0 | AB80: =IF(AD80=0,0,Q80-(AD80-1)) -> 0 | AC80: =IF(AE80=0,0,Q80-(AE80-1)) -> 0 | AD80: =IF(ISNA(MATCH(T80,G80:G87,0)),0,VLOOKUP(T80,G80:Q87,11,FALSE)) -> 0 | AE80: =IF(ISNA(MATCH(T80,L80:L87,0)),0,VLOOKUP(T80,L80:Q87,6,FALSE)) -> 0 | AF80: 3 | AG80: 3
A81: =A80+1 -> 92 | B81: =B80 -> 9 | C81: =C80 -> 12.15 | D81: =D80 -> U15 Female | E81: =E80 -> Discus | F81: =F80 -> F | K81: 0 | P81: 0 | Q81: =Q80-1 -> 6 | R81: 0 | S81: 0 | T81: ='Event Details'!C$23 -> E | U81: ='Event Details'!D$23 -> Droitwich | V81: =IF(ISNA(MATCH(T81,G80:G87,0)),0,VLOOKUP(T81,G80:K87,5,FALSE)) -> 0 | W81: =IF(ISNA(MATCH(T81,L80:L87,0))," ",VLOOKUP(T81,L80:P87,5,FALSE)) ->  | X81: =IF(ISNA(MATCH(T81,G80:G87,0)),0,VLOOKUP(T81,G80:I87,3,FALSE)) -> 0 | Y81: =IF(ISNA(MATCH(T81,L80:L87,0)),0,VLOOKUP(T81,L80:N87,3,FALSE)) -> 0 | Z81: =IF(ISNA(MATCH(T81,G80:G87,0)),0,VLOOKUP(T81,G80:J87,4,FALSE)) -> 0 | AA81: =IF(ISNA(MATCH(T81,L80:L87,0)),0,VLOOKUP(T81,L80:P87,4,FALSE)) -> 0 | AB81: =IF(AD81=0,0,Q80-(AD81-1)) -> 0 | AC81: =IF(AE81=0,0,Q80-(AE81-1)) -> 0 | AD81: =IF(ISNA(MATCH(T81,G80:G87,0)),0,VLOOKUP(T81,G80:Q87,11,FALSE)) -> 0 | AE81: =IF(ISNA(MATCH(T81,L80:L87,0)),0,VLOOKUP(T81,L80:Q87,6,FALSE)) -> 0 | AF81: 3 | AG81: 3
A82: =A81+1 -> 93 | B82: =B81 -> 9 | C82: =C81 -> 12.15 | D82: =D81 -> U15 Female | E82: Discus | F82: F | K82: 0 | P82: 0 | Q82: =Q81-1 -> 5 | R82: 0 | S82: 0 | T82: ='Event Details'!C$24 -> B | U82: ='Event Details'!D$24 -> Dudley & S'bridge | V82: =IF(ISNA(MATCH(T82,G80:G87,0)),0,VLOOKUP(T82,G80:K87,5,FALSE)) -> 0 | W82: =IF(ISNA(MATCH(T82,L80:L87,0))," ",VLOOKUP(T82,L80:P87,5,FALSE)) ->  | X82: =IF(ISNA(MATCH(T82,G80:G87,0)),0,VLOOKUP(T82,G80:I87,3,FALSE)) -> 0 | Y82: =IF(ISNA(MATCH(T82,L80:L87,0)),0,VLOOKUP(T82,L80:N87,3,FALSE)) -> 0 | Z82: =IF(ISNA(MATCH(T82,G80:G87,0)),0,VLOOKUP(T82,G80:J87,4,FALSE)) -> 0 | AA82: =IF(ISNA(MATCH(T82,L80:L87,0)),0,VLOOKUP(T82,L80:P87,4,FALSE)) -> 0 | AB82: =IF(AD82=0,0,Q80-(AD82-1)) -> 0 | AC82: =IF(AE82=0,0,Q80-(AE82-1)) -> 0 | AD82: =IF(ISNA(MATCH(T82,G80:G87,0)),0,VLOOKUP(T82,G80:Q87,11,FALSE)) -> 0 | AE82: =IF(ISNA(MATCH(T82,L80:L87,0)),0,VLOOKUP(T82,L80:Q87,6,FALSE)) -> 0 | AF82: 3 | AG82: 3
A83: 94 | B83: 9 | C83: 12.15 | D83: U15 Female | E83: Discus | F83: F | K83: 0 | P83: 0 | Q83: 4 | R83: 0 | S83: 0 | T83: ='Event Details'!C$25 -> R | U83: ='Event Details'!D$25 -> Leamington AA | V83: =IF(ISNA(MATCH(T83,G80:G87,0)),0,VLOOKUP(T83,G80:K87,5,FALSE)) -> 0 | W83: =IF(ISNA(MATCH(T83,L80:L87,0))," ",VLOOKUP(T83,L80:P87,5,FALSE)) ->  | X83: =IF(ISNA(MATCH(T83,G80:G87,0)),0,VLOOKUP(T83,G80:I87,3,FALSE)) -> 0 | Y83: =IF(ISNA(MATCH(T83,L80:L87,0)),0,VLOOKUP(T83,L80:N87,3,FALSE)) -> 0 | Z83: =IF(ISNA(MATCH(T83,G80:G87,0)),0,VLOOKUP(T83,G80:J87,4,FALSE)) -> 0 | AA83: =IF(ISNA(MATCH(T83,L80:L87,0)),0,VLOOKUP(T83,L80:P87,4,FALSE)) -> 0 | AB83: =IF(AD83=0,0,Q80-(AD83-1)) -> 0 | AC83: =IF(AE83=0,0,Q80-(AE83-1)) -> 0 | AD83: =IF(ISNA(MATCH(T83,G80:G87,0)),0,VLOOKUP(T83,G80:Q87,11,FALSE)) -> 0 | AE83: =IF(ISNA(MATCH(T83,L80:L87,0)),0,VLOOKUP(T83,L80:Q87,6,FALSE)) -> 0 | AF83: 3 | AG83: 3
A84: 95 | B84: 9 | C84: 12.15 | D84: U15 Female | E84: Discus | F84: F | K84: 0 | P84: 0 | Q84: 3 | R84: 0 | S84: 0 | T84: ='Event Details'!C$26 -> N | U84: ='Event Details'!D$26 -> Nuneaton | V84: =IF(ISNA(MATCH(T84,G80:G87,0)),0,VLOOKUP(T84,G80:K87,5,FALSE)) -> 0 | W84: =IF(ISNA(MATCH(T84,L80:L87,0))," ",VLOOKUP(T84,L80:P87,5,FALSE)) ->  | X84: =IF(ISNA(MATCH(T84,G80:G87,0)),0,VLOOKUP(T84,G80:I87,3,FALSE)) -> 0 | Y84: =IF(ISNA(MATCH(T84,L80:L87,0)),0,VLOOKUP(T84,L80:N87,3,FALSE)) -> 0 | Z84: =IF(ISNA(MATCH(T84,G80:G87,0)),0,VLOOKUP(T84,G80:J87,4,FALSE)) -> 0 | AA84: =IF(ISNA(MATCH(T84,L80:L87,0)),0,VLOOKUP(T84,L80:P87,4,FALSE)) -> 0 | AB84: =IF(AD84=0,0,Q80-(AD84-1)) -> 0 | AC84: =IF(AE84=0,0,Q80-(AE84-1)) -> 0 | AD84: =IF(ISNA(MATCH(T84,G80:G87,0)),0,VLOOKUP(T84,G80:Q87,11,FALSE)) -> 0 | AE84: =IF(ISNA(MATCH(T84,L80:L87,0)),0,VLOOKUP(T84,L80:Q87,6,FALSE)) -> 0 | AF84: 3 | AG84: 3
A85: 96 | B85: 9 | C85: 12.15 | D85: U15 Female | E85: Discus | F85: F | K85: 0 | P85: 0 | Q85: 2 | R85: 0 | S85: 0 | T85: ='Event Details'!C$27 -> K | U85: ='Event Details'!D$27 -> Sparkhill | V85: =IF(ISNA(MATCH(T85,G80:G87,0)),0,VLOOKUP(T85,G80:K87,5,FALSE)) -> 0 | W85: =IF(ISNA(MATCH(T85,L80:L87,0))," ",VLOOKUP(T85,L80:P87,5,FALSE)) ->  | X85: =IF(ISNA(MATCH(T85,G80:G87,0)),0,VLOOKUP(T85,G80:I87,3,FALSE)) -> 0 | Y85: =IF(ISNA(MATCH(T85,L80:L87,0)),0,VLOOKUP(T85,L80:N87,3,FALSE)) -> 0 | Z85: =IF(ISNA(MATCH(T85,G80:G87,0)),0,VLOOKUP(T85,G80:J87,4,FALSE)) -> 0 | AA85: =IF(ISNA(MATCH(T85,L80:L87,0)),0,VLOOKUP(T85,L80:P87,4,FALSE)) -> 0 | AB85: =IF(AD85=0,0,Q80-(AD85-1)) -> 0 | AC85: =IF(AE85=0,0,Q80-(AE85-1)) -> 0 | AD85: =IF(ISNA(MATCH(T85,G80:G87,0)),0,VLOOKUP(T85,G80:Q87,11,FALSE)) -> 0 | AE85: =IF(ISNA(MATCH(T85,L80:L87,0)),0,VLOOKUP(T85,L80:Q87,6,FALSE)) -> 0 | AF85: 3 | AG85: 3
A86: 97 | B86: 9 | C86: 12.15 | D86: U15 Female | E86: Discus | F86: F | K86: 0 | P86: 0 | Q86: 1 | R86: 0 | S86: 0 | T86: ='Event Details'!C$28 -> W | U86: ='Event Details'!D$28 -> Witney AC | V86: =IF(ISNA(MATCH(T86,G80:G87,0)),0,VLOOKUP(T86,G80:K87,5,FALSE)) -> 0 | W86: =IF(ISNA(MATCH(T86,L80:L87,0))," ",VLOOKUP(T86,L80:P87,5,FALSE)) ->  | X86: =IF(ISNA(MATCH(T86,G80:G87,0)),0,VLOOKUP(T86,G80:I87,3,FALSE)) -> 0 | Y86: =IF(ISNA(MATCH(T86,L80:L87,0)),0,VLOOKUP(T86,L80:N87,3,FALSE)) -> 0 | Z86: =IF(ISNA(MATCH(T86,G80:G87,0)),0,VLOOKUP(T86,G80:J87,4,FALSE)) -> 0 | AA86: =IF(ISNA(MATCH(T86,L80:L87,0)),0,VLOOKUP(T86,L80:P87,4,FALSE)) -> 0 | AB86: =IF(AD86=0,0,Q80-(AD86-1)) -> 0 | AC86: =IF(AE86=0,0,Q80-(AE86-1)) -> 0 | AD86: =IF(ISNA(MATCH(T86,G80:G87,0)),0,VLOOKUP(T86,G80:Q87,11,FALSE)) -> 0 | AE86: =IF(ISNA(MATCH(T86,L80:L87,0)),0,VLOOKUP(T86,L80:Q87,6,FALSE)) -> 0 | AF86: 3 | AG86: 3
A87: 98 | B87: 9 | C87: 12.15 | D87: U15 Female | E87: Discus | F87: F | K87: 0 | P87: 0 | Q87: 0 | R87: 0 | S87: 0 | T87: ='Event Details'!C$29 -> 0 | U87: ='Event Details'!D$29 -> 0 | V87: =IF(ISNA(MATCH(T87,G80:G87,0)),0,VLOOKUP(T87,G80:K87,5,FALSE)) -> 0 | W87: =IF(ISNA(MATCH(T87,L80:L87,0))," ",VLOOKUP(T87,L80:P87,5,FALSE)) ->  | X87: =IF(ISNA(MATCH(T87,G80:G87,0)),0,VLOOKUP(T87,G80:I87,3,FALSE)) -> 0 | Y87: =IF(ISNA(MATCH(T87,L80:L87,0)),0,VLOOKUP(T87,L80:N87,3,FALSE)) -> 0 | Z87: =IF(ISNA(MATCH(T87,G80:G87,0)),0,VLOOKUP(T87,G80:J87,4,FALSE)) -> 0 | AA87: =IF(ISNA(MATCH(T87,L80:L87,0)),0,VLOOKUP(T87,L80:P87,4,FALSE)) -> 0 | AB87: =IF(AD87=0,0,Q80-(AD87-1)) -> 0 | AC87: =IF(AE87=0,0,Q80-(AE87-1)) -> 0 | AD87: =IF(ISNA(MATCH(T87,G80:G87,0)),0,VLOOKUP(T87,G80:Q87,11,FALSE)) -> 0 | AE87: =IF(ISNA(MATCH(T87,L80:L87,0)),0,VLOOKUP(T87,L80:Q87,6,FALSE)) -> 0 | AF87: 3 | AG87: 3
A88: =(B88*10)+1 -> 101 | B88: 10 | C88: =VLOOKUP(B88,EventsOrder,2,FALSE) -> 12.15 | D88: =VLOOKUP(B88,EventsOrder,4,FALSE) -> U17 Female | E88: =VLOOKUP(B88,EventsOrder,3,FALSE) -> Javelin (U17) | F88: =IF(MID(D88,5,1)="F","F","M") -> F | G88: W | H88: W | I88: 15.08 | K88: Hannah Jarrett | L88: W | M88: WW | N88: 12.12 | O88: WW | P88: Sian Tanner | Q88: =Q$5 -> 7 | R88: Wit | S88: Wit | T88: ='Event Details'!C$22 -> L | U88: ='Event Details'!D$22 -> Daventry | V88: =IF(ISNA(MATCH(T88,G88:G95,0)),0,VLOOKUP(T88,G88:K95,5,FALSE)) -> 0 | W88: =IF(ISNA(MATCH(T88,L88:L95,0))," ",VLOOKUP(T88,L88:P95,5,FALSE)) ->  | X88: =IF(ISNA(MATCH(T88,G88:G95,0)),0,VLOOKUP(T88,G88:I95,3,FALSE)) -> 0 | Y88: =IF(ISNA(MATCH(T88,L88:L95,0)),0,VLOOKUP(T88,L88:N95,3,FALSE)) -> 0 | Z88: =IF(ISNA(MATCH(T88,G88:G95,0)),0,VLOOKUP(T88,G88:J95,4,FALSE)) -> 0 | AA88: =IF(ISNA(MATCH(T88,L88:L95,0)),0,VLOOKUP(T88,L88:P95,4,FALSE)) -> 0 | AB88: =IF(AD88=0,0,Q88-(AD88-1)) -> 0 | AC88: =IF(AE88=0,0,Q88-(AE88-1)) -> 0 | AD88: =IF(ISNA(MATCH(T88,G88:G95,0)),0,VLOOKUP(T88,G88:Q95,11,FALSE)) -> 0 | AE88: =IF(ISNA(MATCH(T88,L88:L95,0)),0,VLOOKUP(T88,L88:Q95,6,FALSE)) -> 0 | AF88: 37 | AG88: 37
A89: =A88+1 -> 102 | B89: =B88 -> 10 | C89: =C88 -> 12.15 | D89: =D88 -> U17 Female | E89: =E88 -> Javelin (U17) | F89: =F88 -> F | G89: K | H89: K | I89: 13.85 | J89: K | K89: Aaliyah Mushtaq | P89: 0 | Q89: =Q88-1 -> 6 | R89: Spark | S89: 0 | T89: ='Event Details'!C$23 -> E | U89: ='Event Details'!D$23 -> Droitwich | V89: =IF(ISNA(MATCH(T89,G88:G95,0)),0,VLOOKUP(T89,G88:K95,5,FALSE)) -> 0 | W89: =IF(ISNA(MATCH(T89,L88:L95,0))," ",VLOOKUP(T89,L88:P95,5,FALSE)) ->  | X89: =IF(ISNA(MATCH(T89,G88:G95,0)),0,VLOOKUP(T89,G88:I95,3,FALSE)) -> 0 | Y89: =IF(ISNA(MATCH(T89,L88:L95,0)),0,VLOOKUP(T89,L88:N95,3,FALSE)) -> 0 | Z89: =IF(ISNA(MATCH(T89,G88:G95,0)),0,VLOOKUP(T89,G88:J95,4,FALSE)) -> 0 | AA89: =IF(ISNA(MATCH(T89,L88:L95,0)),0,VLOOKUP(T89,L88:P95,4,FALSE)) -> 0 | AB89: =IF(AD89=0,0,Q88-(AD89-1)) -> 0 | AC89: =IF(AE89=0,0,Q88-(AE89-1)) -> 0 | AD89: =IF(ISNA(MATCH(T89,G88:G95,0)),0,VLOOKUP(T89,G88:Q95,11,FALSE)) -> 0 | AE89: =IF(ISNA(MATCH(T89,L88:L95,0)),0,VLOOKUP(T89,L88:Q95,6,FALSE)) -> 0 | AF89: 32 | AG89: 3
A90: =A89+1 -> 103 | B90: =B89 -> 10 | C90: =C89 -> 12.15 | D90: =D89 -> U17 Female | E90: Javelin (U17) | F90: F | K90: 0 | P90: 0 | Q90: =Q89-1 -> 5 | R90: 0 | S90: 0 | T90: ='Event Details'!C$24 -> B | U90: ='Event Details'!D$24 -> Dudley & S'bridge | V90: =IF(ISNA(MATCH(T90,G88:G95,0)),0,VLOOKUP(T90,G88:K95,5,FALSE)) -> 0 | W90: =IF(ISNA(MATCH(T90,L88:L95,0))," ",VLOOKUP(T90,L88:P95,5,FALSE)) ->  | X90: =IF(ISNA(MATCH(T90,G88:G95,0)),0,VLOOKUP(T90,G88:I95,3,FALSE)) -> 0 | Y90: =IF(ISNA(MATCH(T90,L88:L95,0)),0,VLOOKUP(T90,L88:N95,3,FALSE)) -> 0 | Z90: =IF(ISNA(MATCH(T90,G88:G95,0)),0,VLOOKUP(T90,G88:J95,4,FALSE)) -> 0 | AA90: =IF(ISNA(MATCH(T90,L88:L95,0)),0,VLOOKUP(T90,L88:P95,4,FALSE)) -> 0 | AB90: =IF(AD90=0,0,Q88-(AD90-1)) -> 0 | AC90: =IF(AE90=0,0,Q88-(AE90-1)) -> 0 | AD90: =IF(ISNA(MATCH(T90,G88:G95,0)),0,VLOOKUP(T90,G88:Q95,11,FALSE)) -> 0 | AE90: =IF(ISNA(MATCH(T90,L88:L95,0)),0,VLOOKUP(T90,L88:Q95,6,FALSE)) -> 0 | AF90: =IF(LEN(H90)=0,3,VLOOKUP(LEFT(H90,1),$AF$5:$AI$12,3,FALSE)) -> 3 | AG90: =IF(LEN(M90)=0,3,VLOOKUP(LEFT(M90,1),$AF$5:$AI$12,3,FALSE)) -> 3
A91: 104 | B91: 10 | C91: 12.15 | D91: U17 Female | E91: Javelin (U17) | F91: F | K91: 0 | P91: 0 | Q91: 4 | R91: 0 | S91: 0 | T91: ='Event Details'!C$25 -> R | U91: ='Event Details'!D$25 -> Leamington AA | V91: =IF(ISNA(MATCH(T91,G88:G95,0)),0,VLOOKUP(T91,G88:K95,5,FALSE)) -> 0 | W91: =IF(ISNA(MATCH(T91,L88:L95,0))," ",VLOOKUP(T91,L88:P95,5,FALSE)) ->  | X91: =IF(ISNA(MATCH(T91,G88:G95,0)),0,VLOOKUP(T91,G88:I95,3,FALSE)) -> 0 | Y91: =IF(ISNA(MATCH(T91,L88:L95,0)),0,VLOOKUP(T91,L88:N95,3,FALSE)) -> 0 | Z91: =IF(ISNA(MATCH(T91,G88:G95,0)),0,VLOOKUP(T91,G88:J95,4,FALSE)) -> 0 | AA91: =IF(ISNA(MATCH(T91,L88:L95,0)),0,VLOOKUP(T91,L88:P95,4,FALSE)) -> 0 | AB91: =IF(AD91=0,0,Q88-(AD91-1)) -> 0 | AC91: =IF(AE91=0,0,Q88-(AE91-1)) -> 0 | AD91: =IF(ISNA(MATCH(T91,G88:G95,0)),0,VLOOKUP(T91,G88:Q95,11,FALSE)) -> 0 | AE91: =IF(ISNA(MATCH(T91,L88:L95,0)),0,VLOOKUP(T91,L88:Q95,6,FALSE)) -> 0 | AF91: 3 | AG91: 3
A92: 105 | B92: 10 | C92: 12.15 | D92: U17 Female | E92: Javelin (U17) | F92: F | K92: 0 | P92: 0 | Q92: 3 | R92: 0 | S92: 0 | T92: ='Event Details'!C$26 -> N | U92: ='Event Details'!D$26 -> Nuneaton | V92: =IF(ISNA(MATCH(T92,G88:G95,0)),0,VLOOKUP(T92,G88:K95,5,FALSE)) -> 0 | W92: =IF(ISNA(MATCH(T92,L88:L95,0))," ",VLOOKUP(T92,L88:P95,5,FALSE)) ->  | X92: =IF(ISNA(MATCH(T92,G88:G95,0)),0,VLOOKUP(T92,G88:I95,3,FALSE)) -> 0 | Y92: =IF(ISNA(MATCH(T92,L88:L95,0)),0,VLOOKUP(T92,L88:N95,3,FALSE)) -> 0 | Z92: =IF(ISNA(MATCH(T92,G88:G95,0)),0,VLOOKUP(T92,G88:J95,4,FALSE)) -> 0 | AA92: =IF(ISNA(MATCH(T92,L88:L95,0)),0,VLOOKUP(T92,L88:P95,4,FALSE)) -> 0 | AB92: =IF(AD92=0,0,Q88-(AD92-1)) -> 0 | AC92: =IF(AE92=0,0,Q88-(AE92-1)) -> 0 | AD92: =IF(ISNA(MATCH(T92,G88:G95,0)),0,VLOOKUP(T92,G88:Q95,11,FALSE)) -> 0 | AE92: =IF(ISNA(MATCH(T92,L88:L95,0)),0,VLOOKUP(T92,L88:Q95,6,FALSE)) -> 0 | AF92: 3 | AG92: 3
A93: 106 | B93: 10 | C93: 12.15 | D93: U17 Female | E93: Javelin (U17) | F93: F | K93: 0 | P93: 0 | Q93: 2 | R93: 0 | S93: 0 | T93: ='Event Details'!C$27 -> K | U93: ='Event Details'!D$27 -> Sparkhill | V93: =IF(ISNA(MATCH(T93,G88:G95,0)),0,VLOOKUP(T93,G88:K95,5,FALSE)) -> Aaliyah Mushtaq | W93: =IF(ISNA(MATCH(T93,L88:L95,0))," ",VLOOKUP(T93,L88:P95,5,FALSE)) ->  | X93: =IF(ISNA(MATCH(T93,G88:G95,0)),0,VLOOKUP(T93,G88:I95,3,FALSE)) -> 13.85 | Y93: =IF(ISNA(MATCH(T93,L88:L95,0)),0,VLOOKUP(T93,L88:N95,3,FALSE)) -> 0 | Z93: =IF(ISNA(MATCH(T93,G88:G95,0)),0,VLOOKUP(T93,G88:J95,4,FALSE)) -> K | AA93: =IF(ISNA(MATCH(T93,L88:L95,0)),0,VLOOKUP(T93,L88:P95,4,FALSE)) -> 0 | AB93: =IF(AD93=0,0,Q88-(AD93-1)) -> 2 | AC93: =IF(AE93=0,0,Q88-(AE93-1)) -> 0 | AD93: =IF(ISNA(MATCH(T93,G88:G95,0)),0,VLOOKUP(T93,G88:Q95,11,FALSE)) -> 6 | AE93: =IF(ISNA(MATCH(T93,L88:L95,0)),0,VLOOKUP(T93,L88:Q95,6,FALSE)) -> 0 | AF93: 3 | AG93: 3
A94: 107 | B94: 10 | C94: 12.15 | D94: U17 Female | E94: Javelin (U17) | F94: F | K94: 0 | P94: 0 | Q94: 1 | R94: 0 | S94: 0 | T94: ='Event Details'!C$28 -> W | U94: ='Event Details'!D$28 -> Witney AC | V94: =IF(ISNA(MATCH(T94,G88:G95,0)),0,VLOOKUP(T94,G88:K95,5,FALSE)) -> Hannah Jarrett | W94: =IF(ISNA(MATCH(T94,L88:L95,0))," ",VLOOKUP(T94,L88:P95,5,FALSE)) -> Sian Tanner | X94: =IF(ISNA(MATCH(T94,G88:G95,0)),0,VLOOKUP(T94,G88:I95,3,FALSE)) -> 15.08 | Y94: =IF(ISNA(MATCH(T94,L88:L95,0)),0,VLOOKUP(T94,L88:N95,3,FALSE)) -> 12.12 | Z94: =IF(ISNA(MATCH(T94,G88:G95,0)),0,VLOOKUP(T94,G88:J95,4,FALSE)) -> 0 | AA94: =IF(ISNA(MATCH(T94,L88:L95,0)),0,VLOOKUP(T94,L88:P95,4,FALSE)) -> WW | AB94: =IF(AD94=0,0,Q88-(AD94-1)) -> 1 | AC94: =IF(AE94=0,0,Q88-(AE94-1)) -> 1 | AD94: =IF(ISNA(MATCH(T94,G88:G95,0)),0,VLOOKUP(T94,G88:Q95,11,FALSE)) -> 7 | AE94: =IF(ISNA(MATCH(T94,L88:L95,0)),0,VLOOKUP(T94,L88:Q95,6,FALSE)) -> 7 | AF94: 3 | AG94: 3
A95: 108 | B95: 10 | C95: 12.15 | D95: U17 Female | E95: Javelin (U17) | F95: F | K95: 0 | P95: 0 | Q95: 0 | R95: 0 | S95: 0 | T95: ='Event Details'!C$29 -> 0 | U95: ='Event Details'!D$29 -> 0 | V95: =IF(ISNA(MATCH(T95,G88:G95,0)),0,VLOOKUP(T95,G88:K95,5,FALSE)) -> 0 | W95: =IF(ISNA(MATCH(T95,L88:L95,0))," ",VLOOKUP(T95,L88:P95,5,FALSE)) ->  | X95: =IF(ISNA(MATCH(T95,G88:G95,0)),0,VLOOKUP(T95,G88:I95,3,FALSE)) -> 0 | Y95: =IF(ISNA(MATCH(T95,L88:L95,0)),0,VLOOKUP(T95,L88:N95,3,FALSE)) -> 0 | Z95: =IF(ISNA(MATCH(T95,G88:G95,0)),0,VLOOKUP(T95,G88:J95,4,FALSE)) -> 0 | AA95: =IF(ISNA(MATCH(T95,L88:L95,0)),0,VLOOKUP(T95,L88:P95,4,FALSE)) -> 0 | AB95: =IF(AD95=0,0,Q88-(AD95-1)) -> 0 | AC95: =IF(AE95=0,0,Q88-(AE95-1)) -> 0 | AD95: =IF(ISNA(MATCH(T95,G88:G95,0)),0,VLOOKUP(T95,G88:Q95,11,FALSE)) -> 0 | AE95: =IF(ISNA(MATCH(T95,L88:L95,0)),0,VLOOKUP(T95,L88:Q95,6,FALSE)) -> 0 | AF95: 3 | AG95: 3
A96: =(B96*10)+1 -> 111 | B96: 11 | C96: =VLOOKUP(B96,EventsOrder,2,FALSE) -> 12.15 | D96: =VLOOKUP(B96,EventsOrder,4,FALSE) -> U13 Female | E96: =VLOOKUP(B96,EventsOrder,3,FALSE) -> 70m hurdles | F96: =IF(MID(D96,5,1)="F","F","M") -> F | G96: R | H96: R | I96: 12.5 | K96: Charlotte Ratley | L96: N | M96: NN | N96: 14.5 | O96: NN | P96: Jessica Tuckley | Q96: =Q$5 -> 7 | R96: Leam | S96: Nun | T96: ='Event Details'!C$22 -> L | U96: ='Event Details'!D$22 -> Daventry | V96: =IF(ISNA(MATCH(T96,G96:G103,0)),0,VLOOKUP(T96,G96:K103,5,FALSE)) -> Annalise Foxon-Day | W96: =IF(ISNA(MATCH(T96,L96:L103,0))," ",VLOOKUP(T96,L96:P103,5,FALSE)) ->  | X96: =IF(ISNA(MATCH(T96,G96:G103,0)),0,VLOOKUP(T96,G96:I103,3,FALSE)) -> 14.4 | Y96: =IF(ISNA(MATCH(T96,L96:L103,0)),0,VLOOKUP(T96,L96:N103,3,FALSE)) -> 0 | Z96: =IF(ISNA(MATCH(T96,G96:G103,0)),0,VLOOKUP(T96,G96:J103,4,FALSE)) -> L | AA96: =IF(ISNA(MATCH(T96,L96:L103,0)),0,VLOOKUP(T96,L96:P103,4,FALSE)) -> 0 | AB96: =IF(AD96=0,0,Q96-(AD96-1)) -> 3 | AC96: =IF(AE96=0,0,Q96-(AE96-1)) -> 0 | AD96: =IF(ISNA(MATCH(T96,G96:G103,0)),0,VLOOKUP(T96,G96:Q103,11,FALSE)) -> 5 | AE96: =IF(ISNA(MATCH(T96,L96:L103,0)),0,VLOOKUP(T96,L96:Q103,6,FALSE)) -> 0 | AF96: 22 | AG96: 27
A97: =A96+1 -> 112 | B97: =B96 -> 11 | C97: =C96 -> 12.15 | D97: =D96 -> U13 Female | E97: =E96 -> 70m hurdles | F97: =F96 -> F | G97: N | H97: N | I97: 12.6 | J97: N | K97: Lucy Poulsen | L97: R | M97: RR | N97: 16.6 | O97: RR | P97: Ellie Langhan | Q97: =Q96-1 -> 6 | R97: Nun | S97: Leam | T97: ='Event Details'!C$23 -> E | U97: ='Event Details'!D$23 -> Droitwich | V97: =IF(ISNA(MATCH(T97,G96:G103,0)),0,VLOOKUP(T97,G96:K103,5,FALSE)) -> 0 | W97: =IF(ISNA(MATCH(T97,L96:L103,0))," ",VLOOKUP(T97,L96:P103,5,FALSE)) ->  | X97: =IF(ISNA(MATCH(T97,G96:G103,0)),0,VLOOKUP(T97,G96:I103,3,FALSE)) -> 0 | Y97: =IF(ISNA(MATCH(T97,L96:L103,0)),0,VLOOKUP(T97,L96:N103,3,FALSE)) -> 0 | Z97: =IF(ISNA(MATCH(T97,G96:G103,0)),0,VLOOKUP(T97,G96:J103,4,FALSE)) -> 0 | AA97: =IF(ISNA(MATCH(T97,L96:L103,0)),0,VLOOKUP(T97,L96:P103,4,FALSE)) -> 0 | AB97: =IF(AD97=0,0,Q96-(AD97-1)) -> 0 | AC97: =IF(AE97=0,0,Q96-(AE97-1)) -> 0 | AD97: =IF(ISNA(MATCH(T97,G96:G103,0)),0,VLOOKUP(T97,G96:Q103,11,FALSE)) -> 0 | AE97: =IF(ISNA(MATCH(T97,L96:L103,0)),0,VLOOKUP(T97,L96:Q103,6,FALSE)) -> 0 | AF97: 27 | AG97: 22
A98: =A97+1 -> 113 | B98: =B97 -> 11 | C98: =C97 -> 12.15 | D98: =D97 -> U13 Female | E98: 70m hurdles | F98: F | G98: L | H98: L | I98: 14.4 | J98: L | K98: Annalise Foxon-Day | P98: 0 | Q98: =Q97-1 -> 5 | R98: Dav | S98: 0 | T98: ='Event Details'!C$24 -> B | U98: ='Event Details'!D$24 -> Dudley & S'bridge | V98: =IF(ISNA(MATCH(T98,G96:G103,0)),0,VLOOKUP(T98,G96:K103,5,FALSE)) -> 0 | W98: =IF(ISNA(MATCH(T98,L96:L103,0))," ",VLOOKUP(T98,L96:P103,5,FALSE)) ->  | X98: =IF(ISNA(MATCH(T98,G96:G103,0)),0,VLOOKUP(T98,G96:I103,3,FALSE)) -> 0 | Y98: =IF(ISNA(MATCH(T98,L96:L103,0)),0,VLOOKUP(T98,L96:N103,3,FALSE)) -> 0 | Z98: =IF(ISNA(MATCH(T98,G96:G103,0)),0,VLOOKUP(T98,G96:J103,4,FALSE)) -> 0 | AA98: =IF(ISNA(MATCH(T98,L96:L103,0)),0,VLOOKUP(T98,L96:P103,4,FALSE)) -> 0 | AB98: =IF(AD98=0,0,Q96-(AD98-1)) -> 0 | AC98: =IF(AE98=0,0,Q96-(AE98-1)) -> 0 | AD98: =IF(ISNA(MATCH(T98,G96:G103,0)),0,VLOOKUP(T98,G96:Q103,11,FALSE)) -> 0 | AE98: =IF(ISNA(MATCH(T98,L96:L103,0)),0,VLOOKUP(T98,L96:Q103,6,FALSE)) -> 0 | AF98: 7 | AG98: 3
A99: 114 | B99: 11 | C99: 12.15 | D99: U13 Female | E99: 70m hurdles | F99: F | K99: 0 | P99: 0 | Q99: 4 | R99: 0 | S99: 0 | T99: ='Event Details'!C$25 -> R | U99: ='Event Details'!D$25 -> Leamington AA | V99: =IF(ISNA(MATCH(T99,G96:G103,0)),0,VLOOKUP(T99,G96:K103,5,FALSE)) -> Charlotte Ratley | W99: =IF(ISNA(MATCH(T99,L96:L103,0))," ",VLOOKUP(T99,L96:P103,5,FALSE)) -> Ellie Langhan | X99: =IF(ISNA(MATCH(T99,G96:G103,0)),0,VLOOKUP(T99,G96:I103,3,FALSE)) -> 12.5 | Y99: =IF(ISNA(MATCH(T99,L96:L103,0)),0,VLOOKUP(T99,L96:N103,3,FALSE)) -> 16.6 | Z99: =IF(ISNA(MATCH(T99,G96:G103,0)),0,VLOOKUP(T99,G96:J103,4,FALSE)) -> 0 | AA99: =IF(ISNA(MATCH(T99,L96:L103,0)),0,VLOOKUP(T99,L96:P103,4,FALSE)) -> RR | AB99: =IF(AD99=0,0,Q96-(AD99-1)) -> 1 | AC99: =IF(AE99=0,0,Q96-(AE99-1)) -> 2 | AD99: =IF(ISNA(MATCH(T99,G96:G103,0)),0,VLOOKUP(T99,G96:Q103,11,FALSE)) -> 7 | AE99: =IF(ISNA(MATCH(T99,L96:L103,0)),0,VLOOKUP(T99,L96:Q103,6,FALSE)) -> 6 | AF99: 3 | AG99: 3
A100: 115 | B100: 11 | C100: 12.15 | D100: U13 Female | E100: 70m hurdles | F100: F | K100: 0 | P100: 0 | Q100: 3 | R100: 0 | S100: 0 | T100: ='Event Details'!C$26 -> N | U100: ='Event Details'!D$26 -> Nuneaton | V100: =IF(ISNA(MATCH(T100,G96:G103,0)),0,VLOOKUP(T100,G96:K103,5,FALSE)) -> Lucy Poulsen | W100: =IF(ISNA(MATCH(T100,L96:L103,0))," ",VLOOKUP(T100,L96:P103,5,FALSE)) -> Jessica Tuckley | X100: =IF(ISNA(MATCH(T100,G96:G103,0)),0,VLOOKUP(T100,G96:I103,3,FALSE)) -> 12.6 | Y100: =IF(ISNA(MATCH(T100,L96:L103,0)),0,VLOOKUP(T100,L96:N103,3,FALSE)) -> 14.5 | Z100: =IF(ISNA(MATCH(T100,G96:G103,0)),0,VLOOKUP(T100,G96:J103,4,FALSE)) -> N | AA100: =IF(ISNA(MATCH(T100,L96:L103,0)),0,VLOOKUP(T100,L96:P103,4,FALSE)) -> NN | AB100: =IF(AD100=0,0,Q96-(AD100-1)) -> 2 | AC100: =IF(AE100=0,0,Q96-(AE100-1)) -> 1 | AD100: =IF(ISNA(MATCH(T100,G96:G103,0)),0,VLOOKUP(T100,G96:Q103,11,FALSE)) -> 6 | AE100: =IF(ISNA(MATCH(T100,L96:L103,0)),0,VLOOKUP(T100,L96:Q103,6,FALSE)) -> 7 | AF100: 3 | AG100: 3
A101: 116 | B101: 11 | C101: 12.15 | D101: U13 Female | E101: 70m hurdles | F101: F | K101: 0 | P101: 0 | Q101: 2 | R101: 0 | S101: 0 | T101: ='Event Details'!C$27 -> K | U101: ='Event Details'!D$27 -> Sparkhill | V101: =IF(ISNA(MATCH(T101,G96:G103,0)),0,VLOOKUP(T101,G96:K103,5,FALSE)) -> 0 | W101: =IF(ISNA(MATCH(T101,L96:L103,0))," ",VLOOKUP(T101,L96:P103,5,FALSE)) ->  | X101: =IF(ISNA(MATCH(T101,G96:G103,0)),0,VLOOKUP(T101,G96:I103,3,FALSE)) -> 0 | Y101: =IF(ISNA(MATCH(T101,L96:L103,0)),0,VLOOKUP(T101,L96:N103,3,FALSE)) -> 0 | Z101: =IF(ISNA(MATCH(T101,G96:G103,0)),0,VLOOKUP(T101,G96:J103,4,FALSE)) -> 0 | AA101: =IF(ISNA(MATCH(T101,L96:L103,0)),0,VLOOKUP(T101,L96:P103,4,FALSE)) -> 0 | AB101: =IF(AD101=0,0,Q96-(AD101-1)) -> 0 | AC101: =IF(AE101=0,0,Q96-(AE101-1)) -> 0 | AD101: =IF(ISNA(MATCH(T101,G96:G103,0)),0,VLOOKUP(T101,G96:Q103,11,FALSE)) -> 0 | AE101: =IF(ISNA(MATCH(T101,L96:L103,0)),0,VLOOKUP(T101,L96:Q103,6,FALSE)) -> 0 | AF101: 3 | AG101: 3
A102: 117 | B102: 11 | C102: 12.15 | D102: U13 Female | E102: 70m hurdles | F102: F | K102: 0 | P102: 0 | Q102: 1 | R102: 0 | S102: 0 | T102: ='Event Details'!C$28 -> W | U102: ='Event Details'!D$28 -> Witney AC | V102: =IF(ISNA(MATCH(T102,G96:G103,0)),0,VLOOKUP(T102,G96:K103,5,FALSE)) -> 0 | W102: =IF(ISNA(MATCH(T102,L96:L103,0))," ",VLOOKUP(T102,L96:P103,5,FALSE)) ->  | X102: =IF(ISNA(MATCH(T102,G96:G103,0)),0,VLOOKUP(T102,G96:I103,3,FALSE)) -> 0 | Y102: =IF(ISNA(MATCH(T102,L96:L103,0)),0,VLOOKUP(T102,L96:N103,3,FALSE)) -> 0 | Z102: =IF(ISNA(MATCH(T102,G96:G103,0)),0,VLOOKUP(T102,G96:J103,4,FALSE)) -> 0 | AA102: =IF(ISNA(MATCH(T102,L96:L103,0)),0,VLOOKUP(T102,L96:P103,4,FALSE)) -> 0 | AB102: =IF(AD102=0,0,Q96-(AD102-1)) -> 0 | AC102: =IF(AE102=0,0,Q96-(AE102-1)) -> 0 | AD102: =IF(ISNA(MATCH(T102,G96:G103,0)),0,VLOOKUP(T102,G96:Q103,11,FALSE)) -> 0 | AE102: =IF(ISNA(MATCH(T102,L96:L103,0)),0,VLOOKUP(T102,L96:Q103,6,FALSE)) -> 0 | AF102: 3 | AG102: 3
A103: 118 | B103: 11 | C103: 12.15 | D103: U13 Female | E103: 70m hurdles | F103: F | K103: 0 | P103: 0 | Q103: 0 | R103: 0 | S103: 0 | T103: ='Event Details'!C$29 -> 0 | U103: ='Event Details'!D$29 -> 0 | V103: =IF(ISNA(MATCH(T103,G96:G103,0)),0,VLOOKUP(T103,G96:K103,5,FALSE)) -> 0 | W103: =IF(ISNA(MATCH(T103,L96:L103,0))," ",VLOOKUP(T103,L96:P103,5,FALSE)) ->  | X103: =IF(ISNA(MATCH(T103,G96:G103,0)),0,VLOOKUP(T103,G96:I103,3,FALSE)) -> 0 | Y103: =IF(ISNA(MATCH(T103,L96:L103,0)),0,VLOOKUP(T103,L96:N103,3,FALSE)) -> 0 | Z103: =IF(ISNA(MATCH(T103,G96:G103,0)),0,VLOOKUP(T103,G96:J103,4,FALSE)) -> 0 | AA103: =IF(ISNA(MATCH(T103,L96:L103,0)),0,VLOOKUP(T103,L96:P103,4,FALSE)) -> 0 | AB103: =IF(AD103=0,0,Q96-(AD103-1)) -> 0 | AC103: =IF(AE103=0,0,Q96-(AE103-1)) -> 0 | AD103: =IF(ISNA(MATCH(T103,G96:G103,0)),0,VLOOKUP(T103,G96:Q103,11,FALSE)) -> 0 | AE103: =IF(ISNA(MATCH(T103,L96:L103,0)),0,VLOOKUP(T103,L96:Q103,6,FALSE)) -> 0 | AF103: 3 | AG103: 3
A104: =(B104*10)+1 -> 121 | B104: 12 | C104: =VLOOKUP(B104,EventsOrder,2,FALSE) -> 12.2 | D104: =VLOOKUP(B104,EventsOrder,4,FALSE) -> U13 Male | E104: =VLOOKUP(B104,EventsOrder,3,FALSE) -> 800m | F104: =IF(MID(D104,5,1)="F","F","M") -> M | G104: K | H104: K | I104: 2.39.1 | K104: James Phillips | L104: R | M104: RR | N104: 2.50.0 | O104: RR | P104: Hayden Twycross | Q104: =Q$5 -> 7 | R104: Spark | S104: Leam | T104: ='Event Details'!C$22 -> L | U104: ='Event Details'!D$22 -> Daventry | V104: =IF(ISNA(MATCH(T104,G104:G111,0)),0,VLOOKUP(T104,G104:K111,5,FALSE)) -> 0 | W104: =IF(ISNA(MATCH(T104,L104:L111,0))," ",VLOOKUP(T104,L104:P111,5,FALSE)) ->  | X104: =IF(ISNA(MATCH(T104,G104:G111,0)),0,VLOOKUP(T104,G104:I111,3,FALSE)) -> 0 | Y104: =IF(ISNA(MATCH(T104,L104:L111,0)),0,VLOOKUP(T104,L104:N111,3,FALSE)) -> 0 | Z104: =IF(ISNA(MATCH(T104,G104:G111,0)),0,VLOOKUP(T104,G104:J111,4,FALSE)) -> 0 | AA104: =IF(ISNA(MATCH(T104,L104:L111,0)),0,VLOOKUP(T104,L104:P111,4,FALSE)) -> 0 | AB104: =IF(AD104=0,0,Q104-(AD104-1)) -> 0 | AC104: =IF(AE104=0,0,Q104-(AE104-1)) -> 0 | AD104: =IF(ISNA(MATCH(T104,G104:G111,0)),0,VLOOKUP(T104,G104:Q111,11,FALSE)) -> 0 | AE104: =IF(ISNA(MATCH(T104,L104:L111,0)),0,VLOOKUP(T104,L104:Q111,6,FALSE)) -> 0 | AF104: 32 | AG104: 22
A105: =A104+1 -> 122 | B105: =B104 -> 12 | C105: =C104 -> 12.2 | D105: =D104 -> U13 Male | E105: =E104 -> 800m | F105: =F104 -> M | G105: R | H105: R | I105: 2.42.3 | J105: R | K105: Dan Wilks | L105: B | M105: BB | N105: 3.06.8 | O105: BB | P105: Cian Wood | Q105: =Q104-1 -> 6 | R105: Leam | S105: DASH | T105: ='Event Details'!C$23 -> E | U105: ='Event Details'!D$23 -> Droitwich | V105: =IF(ISNA(MATCH(T105,G104:G111,0)),0,VLOOKUP(T105,G104:K111,5,FALSE)) -> 0 | W105: =IF(ISNA(MATCH(T105,L104:L111,0))," ",VLOOKUP(T105,L104:P111,5,FALSE)) ->  | X105: =IF(ISNA(MATCH(T105,G104:G111,0)),0,VLOOKUP(T105,G104:I111,3,FALSE)) -> 0 | Y105: =IF(ISNA(MATCH(T105,L104:L111,0)),0,VLOOKUP(T105,L104:N111,3,FALSE)) -> 0 | Z105: =IF(ISNA(MATCH(T105,G104:G111,0)),0,VLOOKUP(T105,G104:J111,4,FALSE)) -> 0 | AA105: =IF(ISNA(MATCH(T105,L104:L111,0)),0,VLOOKUP(T105,L104:P111,4,FALSE)) -> 0 | AB105: =IF(AD105=0,0,Q104-(AD105-1)) -> 0 | AC105: =IF(AE105=0,0,Q104-(AE105-1)) -> 0 | AD105: =IF(ISNA(MATCH(T105,G104:G111,0)),0,VLOOKUP(T105,G104:Q111,11,FALSE)) -> 0 | AE105: =IF(ISNA(MATCH(T105,L104:L111,0)),0,VLOOKUP(T105,L104:Q111,6,FALSE)) -> 0 | AF105: 22 | AG105: 17
A106: =A105+1 -> 123 | B106: =B105 -> 12 | C106: =C105 -> 12.2 | D106: =D105 -> U13 Male | E106: 800m | F106: M | G106: B | H106: B | I106: 2.56.1 | J106: B | K106: Nicholas Hayes | P106: 0 | Q106: =Q105-1 -> 5 | R106: DASH | S106: 0 | T106: ='Event Details'!C$24 -> B | U106: ='Event Details'!D$24 -> Dudley & S'bridge | V106: =IF(ISNA(MATCH(T106,G104:G111,0)),0,VLOOKUP(T106,G104:K111,5,FALSE)) -> Nicholas Hayes | W106: =IF(ISNA(MATCH(T106,L104:L111,0))," ",VLOOKUP(T106,L104:P111,5,FALSE)) -> Cian Wood | X106: =IF(ISNA(MATCH(T106,G104:G111,0)),0,VLOOKUP(T106,G104:I111,3,FALSE)) -> 2.56.1 | Y106: =IF(ISNA(MATCH(T106,L104:L111,0)),0,VLOOKUP(T106,L104:N111,3,FALSE)) -> 3.06.8 | Z106: =IF(ISNA(MATCH(T106,G104:G111,0)),0,VLOOKUP(T106,G104:J111,4,FALSE)) -> B | AA106: =IF(ISNA(MATCH(T106,L104:L111,0)),0,VLOOKUP(T106,L104:P111,4,FALSE)) -> BB | AB106: =IF(AD106=0,0,Q104-(AD106-1)) -> 3 | AC106: =IF(AE106=0,0,Q104-(AE106-1)) -> 2 | AD106: =IF(ISNA(MATCH(T106,G104:G111,0)),0,VLOOKUP(T106,G104:Q111,11,FALSE)) -> 5 | AE106: =IF(ISNA(MATCH(T106,L104:L111,0)),0,VLOOKUP(T106,L104:Q111,6,FALSE)) -> 6 | AF106: 17 | AG106: 3
A107: 124 | B107: 12 | C107: 12.2 | D107: U13 Male | E107: 800m | F107: M | G107: N | H107: N | I107: 3.09.8 | J107: N | K107: George Riley-Flinders | P107: 0 | Q107: 4 | R107: Nun | S107: 0 | T107: ='Event Details'!C$25 -> R | U107: ='Event Details'!D$25 -> Leamington AA | V107: =IF(ISNA(MATCH(T107,G104:G111,0)),0,VLOOKUP(T107,G104:K111,5,FALSE)) -> Dan Wilks | W107: =IF(ISNA(MATCH(T107,L104:L111,0))," ",VLOOKUP(T107,L104:P111,5,FALSE)) -> Hayden Twycross | X107: =IF(ISNA(MATCH(T107,G104:G111,0)),0,VLOOKUP(T107,G104:I111,3,FALSE)) -> 2.42.3 | Y107: =IF(ISNA(MATCH(T107,L104:L111,0)),0,VLOOKUP(T107,L104:N111,3,FALSE)) -> 2.50.0 | Z107: =IF(ISNA(MATCH(T107,G104:G111,0)),0,VLOOKUP(T107,G104:J111,4,FALSE)) -> R | AA107: =IF(ISNA(MATCH(T107,L104:L111,0)),0,VLOOKUP(T107,L104:P111,4,FALSE)) -> RR | AB107: =IF(AD107=0,0,Q104-(AD107-1)) -> 2 | AC107: =IF(AE107=0,0,Q104-(AE107-1)) -> 1 | AD107: =IF(ISNA(MATCH(T107,G104:G111,0)),0,VLOOKUP(T107,G104:Q111,11,FALSE)) -> 6 | AE107: =IF(ISNA(MATCH(T107,L104:L111,0)),0,VLOOKUP(T107,L104:Q111,6,FALSE)) -> 7 | AF107: 27 | AG107: 3
A108: 125 | B108: 12 | C108: 12.2 | D108: U13 Male | E108: 800m | F108: M | K108: 0 | P108: 0 | Q108: 3 | R108: 0 | S108: 0 | T108: ='Event Details'!C$26 -> N | U108: ='Event Details'!D$26 -> Nuneaton | V108: =IF(ISNA(MATCH(T108,G104:G111,0)),0,VLOOKUP(T108,G104:K111,5,FALSE)) -> George Riley-Flinders | W108: =IF(ISNA(MATCH(T108,L104:L111,0))," ",VLOOKUP(T108,L104:P111,5,FALSE)) ->  | X108: =IF(ISNA(MATCH(T108,G104:G111,0)),0,VLOOKUP(T108,G104:I111,3,FALSE)) -> 3.09.8 | Y108: =IF(ISNA(MATCH(T108,L104:L111,0)),0,VLOOKUP(T108,L104:N111,3,FALSE)) -> 0 | Z108: =IF(ISNA(MATCH(T108,G104:G111,0)),0,VLOOKUP(T108,G104:J111,4,FALSE)) -> N | AA108: =IF(ISNA(MATCH(T108,L104:L111,0)),0,VLOOKUP(T108,L104:P111,4,FALSE)) -> 0 | AB108: =IF(AD108=0,0,Q104-(AD108-1)) -> 4 | AC108: =IF(AE108=0,0,Q104-(AE108-1)) -> 0 | AD108: =IF(ISNA(MATCH(T108,G104:G111,0)),0,VLOOKUP(T108,G104:Q111,11,FALSE)) -> 4 | AE108: =IF(ISNA(MATCH(T108,L104:L111,0)),0,VLOOKUP(T108,L104:Q111,6,FALSE)) -> 0 | AF108: 3 | AG108: 3
A109: 126 | B109: 12 | C109: 12.2 | D109: U13 Male | E109: 800m | F109: M | K109: 0 | P109: 0 | Q109: 2 | R109: 0 | S109: 0 | T109: ='Event Details'!C$27 -> K | U109: ='Event Details'!D$27 -> Sparkhill | V109: =IF(ISNA(MATCH(T109,G104:G111,0)),0,VLOOKUP(T109,G104:K111,5,FALSE)) -> James Phillips | W109: =IF(ISNA(MATCH(T109,L104:L111,0))," ",VLOOKUP(T109,L104:P111,5,FALSE)) ->  | X109: =IF(ISNA(MATCH(T109,G104:G111,0)),0,VLOOKUP(T109,G104:I111,3,FALSE)) -> 2.39.1 | Y109: =IF(ISNA(MATCH(T109,L104:L111,0)),0,VLOOKUP(T109,L104:N111,3,FALSE)) -> 0 | Z109: =IF(ISNA(MATCH(T109,G104:G111,0)),0,VLOOKUP(T109,G104:J111,4,FALSE)) -> 0 | AA109: =IF(ISNA(MATCH(T109,L104:L111,0)),0,VLOOKUP(T109,L104:P111,4,FALSE)) -> 0 | AB109: =IF(AD109=0,0,Q104-(AD109-1)) -> 1 | AC109: =IF(AE109=0,0,Q104-(AE109-1)) -> 0 | AD109: =IF(ISNA(MATCH(T109,G104:G111,0)),0,VLOOKUP(T109,G104:Q111,11,FALSE)) -> 7 | AE109: =IF(ISNA(MATCH(T109,L104:L111,0)),0,VLOOKUP(T109,L104:Q111,6,FALSE)) -> 0 | AF109: 3 | AG109: 3
A110: 127 | B110: 12 | C110: 12.2 | D110: U13 Male | E110: 800m | F110: M | K110: 0 | P110: 0 | Q110: 1 | R110: 0 | S110: 0 | T110: ='Event Details'!C$28 -> W | U110: ='Event Details'!D$28 -> Witney AC | V110: =IF(ISNA(MATCH(T110,G104:G111,0)),0,VLOOKUP(T110,G104:K111,5,FALSE)) -> 0 | W110: =IF(ISNA(MATCH(T110,L104:L111,0))," ",VLOOKUP(T110,L104:P111,5,FALSE)) ->  | X110: =IF(ISNA(MATCH(T110,G104:G111,0)),0,VLOOKUP(T110,G104:I111,3,FALSE)) -> 0 | Y110: =IF(ISNA(MATCH(T110,L104:L111,0)),0,VLOOKUP(T110,L104:N111,3,FALSE)) -> 0 | Z110: =IF(ISNA(MATCH(T110,G104:G111,0)),0,VLOOKUP(T110,G104:J111,4,FALSE)) -> 0 | AA110: =IF(ISNA(MATCH(T110,L104:L111,0)),0,VLOOKUP(T110,L104:P111,4,FALSE)) -> 0 | AB110: =IF(AD110=0,0,Q104-(AD110-1)) -> 0 | AC110: =IF(AE110=0,0,Q104-(AE110-1)) -> 0 | AD110: =IF(ISNA(MATCH(T110,G104:G111,0)),0,VLOOKUP(T110,G104:Q111,11,FALSE)) -> 0 | AE110: =IF(ISNA(MATCH(T110,L104:L111,0)),0,VLOOKUP(T110,L104:Q111,6,FALSE)) -> 0 | AF110: 3 | AG110: 3
A111: 128 | B111: 12 | C111: 12.2 | D111: U13 Male | E111: 800m | F111: M | K111: 0 | P111: 0 | Q111: 0 | R111: 0 | S111: 0 | T111: ='Event Details'!C$29 -> 0 | U111: ='Event Details'!D$29 -> 0 | V111: =IF(ISNA(MATCH(T111,G104:G111,0)),0,VLOOKUP(T111,G104:K111,5,FALSE)) -> 0 | W111: =IF(ISNA(MATCH(T111,L104:L111,0))," ",VLOOKUP(T111,L104:P111,5,FALSE)) ->  | X111: =IF(ISNA(MATCH(T111,G104:G111,0)),0,VLOOKUP(T111,G104:I111,3,FALSE)) -> 0 | Y111: =IF(ISNA(MATCH(T111,L104:L111,0)),0,VLOOKUP(T111,L104:N111,3,FALSE)) -> 0 | Z111: =IF(ISNA(MATCH(T111,G104:G111,0)),0,VLOOKUP(T111,G104:J111,4,FALSE)) -> 0 | AA111: =IF(ISNA(MATCH(T111,L104:L111,0)),0,VLOOKUP(T111,L104:P111,4,FALSE)) -> 0 | AB111: =IF(AD111=0,0,Q104-(AD111-1)) -> 0 | AC111: =IF(AE111=0,0,Q104-(AE111-1)) -> 0 | AD111: =IF(ISNA(MATCH(T111,G104:G111,0)),0,VLOOKUP(T111,G104:Q111,11,FALSE)) -> 0 | AE111: =IF(ISNA(MATCH(T111,L104:L111,0)),0,VLOOKUP(T111,L104:Q111,6,FALSE)) -> 0 | AF111: 3 | AG111: 3
A112: =(B112*10)+1 -> 131 | B112: 13 | C112: =VLOOKUP(B112,EventsOrder,2,FALSE) -> 12.3 | D112: =VLOOKUP(B112,EventsOrder,4,FALSE) -> U15 Female | E112: =VLOOKUP(B112,EventsOrder,3,FALSE) -> 75m hurdles | F112: =IF(MID(D112,5,1)="F","F","M") -> F | G112: N | H112: N | I112: 12 | K112: Jessica Day | L112: N | M112: NN | N112: 12.5 | O112: NN | P112: Hannah Burton | Q112: =Q$5 -> 7 | R112: Nun | S112: Nun | T112: ='Event Details'!C$22 -> L | U112: ='Event Details'!D$22 -> Daventry | V112: =IF(ISNA(MATCH(T112,G112:G119,0)),0,VLOOKUP(T112,G112:K119,5,FALSE)) -> 0 | W112: =IF(ISNA(MATCH(T112,L112:L119,0))," ",VLOOKUP(T112,L112:P119,5,FALSE)) ->  | X112: =IF(ISNA(MATCH(T112,G112:G119,0)),0,VLOOKUP(T112,G112:I119,3,FALSE)) -> 0 | Y112: =IF(ISNA(MATCH(T112,L112:L119,0)),0,VLOOKUP(T112,L112:N119,3,FALSE)) -> 0 | Z112: =IF(ISNA(MATCH(T112,G112:G119,0)),0,VLOOKUP(T112,G112:J119,4,FALSE)) -> 0 | AA112: =IF(ISNA(MATCH(T112,L112:L119,0)),0,VLOOKUP(T112,L112:P119,4,FALSE)) -> 0 | AB112: =IF(AD112=0,0,Q112-(AD112-1)) -> 0 | AC112: =IF(AE112=0,0,Q112-(AE112-1)) -> 0 | AD112: =IF(ISNA(MATCH(T112,G112:G119,0)),0,VLOOKUP(T112,G112:Q119,11,FALSE)) -> 0 | AE112: =IF(ISNA(MATCH(T112,L112:L119,0)),0,VLOOKUP(T112,L112:Q119,6,FALSE)) -> 0 | AF112: 27 | AG112: 27
A113: =A112+1 -> 132 | B113: =B112 -> 13 | C113: =C112 -> 12.3 | D113: =D112 -> U15 Female | E113: =E112 -> 75m hurdles | F113: =F112 -> F | G113: B | H113: B | I113: 12.8 | J113: B | K113: Madelene Crowe | P113: 0 | Q113: =Q112-1 -> 6 | R113: DASH | S113: 0 | T113: ='Event Details'!C$23 -> E | U113: ='Event Details'!D$23 -> Droitwich | V113: =IF(ISNA(MATCH(T113,G112:G119,0)),0,VLOOKUP(T113,G112:K119,5,FALSE)) -> 0 | W113: =IF(ISNA(MATCH(T113,L112:L119,0))," ",VLOOKUP(T113,L112:P119,5,FALSE)) ->  | X113: =IF(ISNA(MATCH(T113,G112:G119,0)),0,VLOOKUP(T113,G112:I119,3,FALSE)) -> 0 | Y113: =IF(ISNA(MATCH(T113,L112:L119,0)),0,VLOOKUP(T113,L112:N119,3,FALSE)) -> 0 | Z113: =IF(ISNA(MATCH(T113,G112:G119,0)),0,VLOOKUP(T113,G112:J119,4,FALSE)) -> 0 | AA113: =IF(ISNA(MATCH(T113,L112:L119,0)),0,VLOOKUP(T113,L112:P119,4,FALSE)) -> 0 | AB113: =IF(AD113=0,0,Q112-(AD113-1)) -> 0 | AC113: =IF(AE113=0,0,Q112-(AE113-1)) -> 0 | AD113: =IF(ISNA(MATCH(T113,G112:G119,0)),0,VLOOKUP(T113,G112:Q119,11,FALSE)) -> 0 | AE113: =IF(ISNA(MATCH(T113,L112:L119,0)),0,VLOOKUP(T113,L112:Q119,6,FALSE)) -> 0 | AF113: 17 | AG113: 3
A114: =A113+1 -> 133 | B114: =B113 -> 13 | C114: =C113 -> 12.3 | D114: =D113 -> U15 Female | E114: 75m hurdles | F114: F | G114: R | H114: R | I114: 13.2 | J114: R | K114: Imogen George | P114: 0 | Q114: =Q113-1 -> 5 | R114: Leam | S114: 0 | T114: ='Event Details'!C$24 -> B | U114: ='Event Details'!D$24 -> Dudley & S'bridge | V114: =IF(ISNA(MATCH(T114,G112:G119,0)),0,VLOOKUP(T114,G112:K119,5,FALSE)) -> Madelene Crowe | W114: =IF(ISNA(MATCH(T114,L112:L119,0))," ",VLOOKUP(T114,L112:P119,5,FALSE)) ->  | X114: =IF(ISNA(MATCH(T114,G112:G119,0)),0,VLOOKUP(T114,G112:I119,3,FALSE)) -> 12.8 | Y114: =IF(ISNA(MATCH(T114,L112:L119,0)),0,VLOOKUP(T114,L112:N119,3,FALSE)) -> 0 | Z114: =IF(ISNA(MATCH(T114,G112:G119,0)),0,VLOOKUP(T114,G112:J119,4,FALSE)) -> B | AA114: =IF(ISNA(MATCH(T114,L112:L119,0)),0,VLOOKUP(T114,L112:P119,4,FALSE)) -> 0 | AB114: =IF(AD114=0,0,Q112-(AD114-1)) -> 2 | AC114: =IF(AE114=0,0,Q112-(AE114-1)) -> 0 | AD114: =IF(ISNA(MATCH(T114,G112:G119,0)),0,VLOOKUP(T114,G112:Q119,11,FALSE)) -> 6 | AE114: =IF(ISNA(MATCH(T114,L112:L119,0)),0,VLOOKUP(T114,L112:Q119,6,FALSE)) -> 0 | AF114: 22 | AG114: 3
A115: 134 | B115: 13 | C115: 12.3 | D115: U15 Female | E115: 75m hurdles | F115: F | K115: 0 | P115: 0 | Q115: 4 | R115: 0 | S115: 0 | T115: ='Event Details'!C$25 -> R | U115: ='Event Details'!D$25 -> Leamington AA | V115: =IF(ISNA(MATCH(T115,G112:G119,0)),0,VLOOKUP(T115,G112:K119,5,FALSE)) -> Imogen George | W115: =IF(ISNA(MATCH(T115,L112:L119,0))," ",VLOOKUP(T115,L112:P119,5,FALSE)) ->  | X115: =IF(ISNA(MATCH(T115,G112:G119,0)),0,VLOOKUP(T115,G112:I119,3,FALSE)) -> 13.2 | Y115: =IF(ISNA(MATCH(T115,L112:L119,0)),0,VLOOKUP(T115,L112:N119,3,FALSE)) -> 0 | Z115: =IF(ISNA(MATCH(T115,G112:G119,0)),0,VLOOKUP(T115,G112:J119,4,FALSE)) -> R | AA115: =IF(ISNA(MATCH(T115,L112:L119,0)),0,VLOOKUP(T115,L112:P119,4,FALSE)) -> 0 | AB115: =IF(AD115=0,0,Q112-(AD115-1)) -> 3 | AC115: =IF(AE115=0,0,Q112-(AE115-1)) -> 0 | AD115: =IF(ISNA(MATCH(T115,G112:G119,0)),0,VLOOKUP(T115,G112:Q119,11,FALSE)) -> 5 | AE115: =IF(ISNA(MATCH(T115,L112:L119,0)),0,VLOOKUP(T115,L112:Q119,6,FALSE)) -> 0 | AF115: 3 | AG115: 3
A116: 135 | B116: 13 | C116: 12.3 | D116: U15 Female | E116: 75m hurdles | F116: F | K116: 0 | P116: 0 | Q116: 3 | R116: 0 | S116: 0 | T116: ='Event Details'!C$26 -> N | U116: ='Event Details'!D$26 -> Nuneaton | V116: =IF(ISNA(MATCH(T116,G112:G119,0)),0,VLOOKUP(T116,G112:K119,5,FALSE)) -> Jessica Day | W116: =IF(ISNA(MATCH(T116,L112:L119,0))," ",VLOOKUP(T116,L112:P119,5,FALSE)) -> Hannah Burton | X116: =IF(ISNA(MATCH(T116,G112:G119,0)),0,VLOOKUP(T116,G112:I119,3,FALSE)) -> 12 | Y116: =IF(ISNA(MATCH(T116,L112:L119,0)),0,VLOOKUP(T116,L112:N119,3,FALSE)) -> 12.5 | Z116: =IF(ISNA(MATCH(T116,G112:G119,0)),0,VLOOKUP(T116,G112:J119,4,FALSE)) -> 0 | AA116: =IF(ISNA(MATCH(T116,L112:L119,0)),0,VLOOKUP(T116,L112:P119,4,FALSE)) -> NN | AB116: =IF(AD116=0,0,Q112-(AD116-1)) -> 1 | AC116: =IF(AE116=0,0,Q112-(AE116-1)) -> 1 | AD116: =IF(ISNA(MATCH(T116,G112:G119,0)),0,VLOOKUP(T116,G112:Q119,11,FALSE)) -> 7 | AE116: =IF(ISNA(MATCH(T116,L112:L119,0)),0,VLOOKUP(T116,L112:Q119,6,FALSE)) -> 7 | AF116: 3 | AG116: 3
A117: 136 | B117: 13 | C117: 12.3 | D117: U15 Female | E117: 75m hurdles | F117: F | K117: 0 | P117: 0 | Q117: 2 | R117: 0 | S117: 0 | T117: ='Event Details'!C$27 -> K | U117: ='Event Details'!D$27 -> Sparkhill | V117: =IF(ISNA(MATCH(T117,G112:G119,0)),0,VLOOKUP(T117,G112:K119,5,FALSE)) -> 0 | W117: =IF(ISNA(MATCH(T117,L112:L119,0))," ",VLOOKUP(T117,L112:P119,5,FALSE)) ->  | X117: =IF(ISNA(MATCH(T117,G112:G119,0)),0,VLOOKUP(T117,G112:I119,3,FALSE)) -> 0 | Y117: =IF(ISNA(MATCH(T117,L112:L119,0)),0,VLOOKUP(T117,L112:N119,3,FALSE)) -> 0 | Z117: =IF(ISNA(MATCH(T117,G112:G119,0)),0,VLOOKUP(T117,G112:J119,4,FALSE)) -> 0 | AA117: =IF(ISNA(MATCH(T117,L112:L119,0)),0,VLOOKUP(T117,L112:P119,4,FALSE)) -> 0 | AB117: =IF(AD117=0,0,Q112-(AD117-1)) -> 0 | AC117: =IF(AE117=0,0,Q112-(AE117-1)) -> 0 | AD117: =IF(ISNA(MATCH(T117,G112:G119,0)),0,VLOOKUP(T117,G112:Q119,11,FALSE)) -> 0 | AE117: =IF(ISNA(MATCH(T117,L112:L119,0)),0,VLOOKUP(T117,L112:Q119,6,FALSE)) -> 0 | AF117: 3 | AG117: 3
A118: 137 | B118: 13 | C118: 12.3 | D118: U15 Female | E118: 75m hurdles | F118: F | K118: 0 | P118: 0 | Q118: 1 | R118: 0 | S118: 0 | T118: ='Event Details'!C$28 -> W | U118: ='Event Details'!D$28 -> Witney AC | V118: =IF(ISNA(MATCH(T118,G112:G119,0)),0,VLOOKUP(T118,G112:K119,5,FALSE)) -> 0 | W118: =IF(ISNA(MATCH(T118,L112:L119,0))," ",VLOOKUP(T118,L112:P119,5,FALSE)) ->  | X118: =IF(ISNA(MATCH(T118,G112:G119,0)),0,VLOOKUP(T118,G112:I119,3,FALSE)) -> 0 | Y118: =IF(ISNA(MATCH(T118,L112:L119,0)),0,VLOOKUP(T118,L112:N119,3,FALSE)) -> 0 | Z118: =IF(ISNA(MATCH(T118,G112:G119,0)),0,VLOOKUP(T118,G112:J119,4,FALSE)) -> 0 | AA118: =IF(ISNA(MATCH(T118,L112:L119,0)),0,VLOOKUP(T118,L112:P119,4,FALSE)) -> 0 | AB118: =IF(AD118=0,0,Q112-(AD118-1)) -> 0 | AC118: =IF(AE118=0,0,Q112-(AE118-1)) -> 0 | AD118: =IF(ISNA(MATCH(T118,G112:G119,0)),0,VLOOKUP(T118,G112:Q119,11,FALSE)) -> 0 | AE118: =IF(ISNA(MATCH(T118,L112:L119,0)),0,VLOOKUP(T118,L112:Q119,6,FALSE)) -> 0 | AF118: 3 | AG118: 3
A119: 138 | B119: 13 | C119: 12.3 | D119: U15 Female | E119: 75m hurdles | F119: F | K119: 0 | P119: 0 | Q119: 0 | R119: 0 | S119: 0 | T119: ='Event Details'!C$29 -> 0 | U119: ='Event Details'!D$29 -> 0 | V119: =IF(ISNA(MATCH(T119,G112:G119,0)),0,VLOOKUP(T119,G112:K119,5,FALSE)) -> 0 | W119: =IF(ISNA(MATCH(T119,L112:L119,0))," ",VLOOKUP(T119,L112:P119,5,FALSE)) ->  | X119: =IF(ISNA(MATCH(T119,G112:G119,0)),0,VLOOKUP(T119,G112:I119,3,FALSE)) -> 0 | Y119: =IF(ISNA(MATCH(T119,L112:L119,0)),0,VLOOKUP(T119,L112:N119,3,FALSE)) -> 0 | Z119: =IF(ISNA(MATCH(T119,G112:G119,0)),0,VLOOKUP(T119,G112:J119,4,FALSE)) -> 0 | AA119: =IF(ISNA(MATCH(T119,L112:L119,0)),0,VLOOKUP(T119,L112:P119,4,FALSE)) -> 0 | AB119: =IF(AD119=0,0,Q112-(AD119-1)) -> 0 | AC119: =IF(AE119=0,0,Q112-(AE119-1)) -> 0 | AD119: =IF(ISNA(MATCH(T119,G112:G119,0)),0,VLOOKUP(T119,G112:Q119,11,FALSE)) -> 0 | AE119: =IF(ISNA(MATCH(T119,L112:L119,0)),0,VLOOKUP(T119,L112:Q119,6,FALSE)) -> 0 | AF119: 3 | AG119: 3
A120: =(B120*10)+1 -> 141 | B120: 14 | C120: =VLOOKUP(B120,EventsOrder,2,FALSE) -> 12.3 | D120: =VLOOKUP(B120,EventsOrder,4,FALSE) -> U11 Male | E120: =VLOOKUP(B120,EventsOrder,3,FALSE) -> Long Jump | F120: =IF(MID(D120,5,1)="F","F","M") -> M | G120: B | H120: B | I120: 3.98 | K120: Harry Fallon | L120: B | M120: BB | N120: 3.12 | O120: BB | P120: Jonathan Hayes | Q120: =Q$5 -> 7 | R120: DASH | S120: DASH | T120: ='Event Details'!C$22 -> L | U120: ='Event Details'!D$22 -> Daventry | V120: =IF(ISNA(MATCH(T120,G120:G127,0)),0,VLOOKUP(T120,G120:K127,5,FALSE)) -> 0 | W120: =IF(ISNA(MATCH(T120,L120:L127,0))," ",VLOOKUP(T120,L120:P127,5,FALSE)) ->  | X120: =IF(ISNA(MATCH(T120,G120:G127,0)),0,VLOOKUP(T120,G120:I127,3,FALSE)) -> 0 | Y120: =IF(ISNA(MATCH(T120,L120:L127,0)),0,VLOOKUP(T120,L120:N127,3,FALSE)) -> 0 | Z120: =IF(ISNA(MATCH(T120,G120:G127,0)),0,VLOOKUP(T120,G120:J127,4,FALSE)) -> 0 | AA120: =IF(ISNA(MATCH(T120,L120:L127,0)),0,VLOOKUP(T120,L120:P127,4,FALSE)) -> 0 | AB120: =IF(AD120=0,0,Q120-(AD120-1)) -> 0 | AC120: =IF(AE120=0,0,Q120-(AE120-1)) -> 0 | AD120: =IF(ISNA(MATCH(T120,G120:G127,0)),0,VLOOKUP(T120,G120:Q127,11,FALSE)) -> 0 | AE120: =IF(ISNA(MATCH(T120,L120:L127,0)),0,VLOOKUP(T120,L120:Q127,6,FALSE)) -> 0 | AF120: 17 | AG120: 17
A121: =A120+1 -> 142 | B121: =B120 -> 14 | C121: =C120 -> 12.3 | D121: =D120 -> U11 Male | E121: =E120 -> Long Jump | F121: =F120 -> M | G121: R | H121: R | I121: 3.95 | J121: R | K121: Andre Onyekwe | L121: N | M121: NN | N121: 2.79 | O121: NN | P121: Owen Jayne | Q121: =Q120-1 -> 6 | R121: Leam | S121: Nun | T121: ='Event Details'!C$23 -> E | U121: ='Event Details'!D$23 -> Droitwich | V121: =IF(ISNA(MATCH(T121,G120:G127,0)),0,VLOOKUP(T121,G120:K127,5,FALSE)) -> Alex Payne | W121: =IF(ISNA(MATCH(T121,L120:L127,0))," ",VLOOKUP(T121,L120:P127,5,FALSE)) ->  | X121: =IF(ISNA(MATCH(T121,G120:G127,0)),0,VLOOKUP(T121,G120:I127,3,FALSE)) -> 2.75 | Y121: =IF(ISNA(MATCH(T121,L120:L127,0)),0,VLOOKUP(T121,L120:N127,3,FALSE)) -> 0 | Z121: =IF(ISNA(MATCH(T121,G120:G127,0)),0,VLOOKUP(T121,G120:J127,4,FALSE)) -> E | AA121: =IF(ISNA(MATCH(T121,L120:L127,0)),0,VLOOKUP(T121,L120:P127,4,FALSE)) -> 0 | AB121: =IF(AD121=0,0,Q120-(AD121-1)) -> 4 | AC121: =IF(AE121=0,0,Q120-(AE121-1)) -> 0 | AD121: =IF(ISNA(MATCH(T121,G120:G127,0)),0,VLOOKUP(T121,G120:Q127,11,FALSE)) -> 4 | AE121: =IF(ISNA(MATCH(T121,L120:L127,0)),0,VLOOKUP(T121,L120:Q127,6,FALSE)) -> 0 | AF121: 22 | AG121: 27
A122: =A121+1 -> 143 | B122: =B121 -> 14 | C122: =C121 -> 12.3 | D122: =D121 -> U11 Male | E122: Long Jump | F122: M | G122: N | H122: N | I122: 2.86 | J122: N | K122: Charlie Yates | L122: R | M122: RR | N122: 2.41 | O122: RR | P122: Sam Merrit | Q122: =Q121-1 -> 5 | R122: Nun | S122: Leam | T122: ='Event Details'!C$24 -> B | U122: ='Event Details'!D$24 -> Dudley & S'bridge | V122: =IF(ISNA(MATCH(T122,G120:G127,0)),0,VLOOKUP(T122,G120:K127,5,FALSE)) -> Harry Fallon | W122: =IF(ISNA(MATCH(T122,L120:L127,0))," ",VLOOKUP(T122,L120:P127,5,FALSE)) -> Jonathan Hayes | X122: =IF(ISNA(MATCH(T122,G120:G127,0)),0,VLOOKUP(T122,G120:I127,3,FALSE)) -> 3.98 | Y122: =IF(ISNA(MATCH(T122,L120:L127,0)),0,VLOOKUP(T122,L120:N127,3,FALSE)) -> 3.12 | Z122: =IF(ISNA(MATCH(T122,G120:G127,0)),0,VLOOKUP(T122,G120:J127,4,FALSE)) -> 0 | AA122: =IF(ISNA(MATCH(T122,L120:L127,0)),0,VLOOKUP(T122,L120:P127,4,FALSE)) -> BB | AB122: =IF(AD122=0,0,Q120-(AD122-1)) -> 1 | AC122: =IF(AE122=0,0,Q120-(AE122-1)) -> 1 | AD122: =IF(ISNA(MATCH(T122,G120:G127,0)),0,VLOOKUP(T122,G120:Q127,11,FALSE)) -> 7 | AE122: =IF(ISNA(MATCH(T122,L120:L127,0)),0,VLOOKUP(T122,L120:Q127,6,FALSE)) -> 7 | AF122: 27 | AG122: 22
A123: 144 | B123: 14 | C123: 12.3 | D123: U11 Male | E123: Long Jump | F123: M | G123: E | H123: E | I123: 2.75 | J123: E | K123: Alex Payne | L123: W | M123: WW | N123: 1.99 | O123: WW | P123: Ned Herbert | Q123: 4 | R123: Droit | S123: Wit | T123: ='Event Details'!C$25 -> R | U123: ='Event Details'!D$25 -> Leamington AA | V123: =IF(ISNA(MATCH(T123,G120:G127,0)),0,VLOOKUP(T123,G120:K127,5,FALSE)) -> Andre Onyekwe | W123: =IF(ISNA(MATCH(T123,L120:L127,0))," ",VLOOKUP(T123,L120:P127,5,FALSE)) -> Sam Merrit | X123: =IF(ISNA(MATCH(T123,G120:G127,0)),0,VLOOKUP(T123,G120:I127,3,FALSE)) -> 3.95 | Y123: =IF(ISNA(MATCH(T123,L120:L127,0)),0,VLOOKUP(T123,L120:N127,3,FALSE)) -> 2.41 | Z123: =IF(ISNA(MATCH(T123,G120:G127,0)),0,VLOOKUP(T123,G120:J127,4,FALSE)) -> R | AA123: =IF(ISNA(MATCH(T123,L120:L127,0)),0,VLOOKUP(T123,L120:P127,4,FALSE)) -> RR | AB123: =IF(AD123=0,0,Q120-(AD123-1)) -> 2 | AC123: =IF(AE123=0,0,Q120-(AE123-1)) -> 3 | AD123: =IF(ISNA(MATCH(T123,G120:G127,0)),0,VLOOKUP(T123,G120:Q127,11,FALSE)) -> 6 | AE123: =IF(ISNA(MATCH(T123,L120:L127,0)),0,VLOOKUP(T123,L120:Q127,6,FALSE)) -> 5 | AF123: 12 | AG123: 37
A124: 145 | B124: 14 | C124: 12.3 | D124: U11 Male | E124: Long Jump | F124: M | G124: W | H124: W | I124: 2.28 | J124: W | K124: Rhys Jones | P124: 0 | Q124: 3 | R124: Wit | S124: 0 | T124: ='Event Details'!C$26 -> N | U124: ='Event Details'!D$26 -> Nuneaton | V124: =IF(ISNA(MATCH(T124,G120:G127,0)),0,VLOOKUP(T124,G120:K127,5,FALSE)) -> Charlie Yates | W124: =IF(ISNA(MATCH(T124,L120:L127,0))," ",VLOOKUP(T124,L120:P127,5,FALSE)) -> Owen Jayne | X124: =IF(ISNA(MATCH(T124,G120:G127,0)),0,VLOOKUP(T124,G120:I127,3,FALSE)) -> 2.86 | Y124: =IF(ISNA(MATCH(T124,L120:L127,0)),0,VLOOKUP(T124,L120:N127,3,FALSE)) -> 2.79 | Z124: =IF(ISNA(MATCH(T124,G120:G127,0)),0,VLOOKUP(T124,G120:J127,4,FALSE)) -> N | AA124: =IF(ISNA(MATCH(T124,L120:L127,0)),0,VLOOKUP(T124,L120:P127,4,FALSE)) -> NN | AB124: =IF(AD124=0,0,Q120-(AD124-1)) -> 3 | AC124: =IF(AE124=0,0,Q120-(AE124-1)) -> 2 | AD124: =IF(ISNA(MATCH(T124,G120:G127,0)),0,VLOOKUP(T124,G120:Q127,11,FALSE)) -> 5 | AE124: =IF(ISNA(MATCH(T124,L120:L127,0)),0,VLOOKUP(T124,L120:Q127,6,FALSE)) -> 6 | AF124: 37 | AG124: 3
A125: 146 | B125: 14 | C125: 12.3 | D125: U11 Male | E125: Long Jump | F125: M | K125: 0 | P125: 0 | Q125: 2 | R125: 0 | S125: 0 | T125: ='Event Details'!C$27 -> K | U125: ='Event Details'!D$27 -> Sparkhill | V125: =IF(ISNA(MATCH(T125,G120:G127,0)),0,VLOOKUP(T125,G120:K127,5,FALSE)) -> 0 | W125: =IF(ISNA(MATCH(T125,L120:L127,0))," ",VLOOKUP(T125,L120:P127,5,FALSE)) ->  | X125: =IF(ISNA(MATCH(T125,G120:G127,0)),0,VLOOKUP(T125,G120:I127,3,FALSE)) -> 0 | Y125: =IF(ISNA(MATCH(T125,L120:L127,0)),0,VLOOKUP(T125,L120:N127,3,FALSE)) -> 0 | Z125: =IF(ISNA(MATCH(T125,G120:G127,0)),0,VLOOKUP(T125,G120:J127,4,FALSE)) -> 0 | AA125: =IF(ISNA(MATCH(T125,L120:L127,0)),0,VLOOKUP(T125,L120:P127,4,FALSE)) -> 0 | AB125: =IF(AD125=0,0,Q120-(AD125-1)) -> 0 | AC125: =IF(AE125=0,0,Q120-(AE125-1)) -> 0 | AD125: =IF(ISNA(MATCH(T125,G120:G127,0)),0,VLOOKUP(T125,G120:Q127,11,FALSE)) -> 0 | AE125: =IF(ISNA(MATCH(T125,L120:L127,0)),0,VLOOKUP(T125,L120:Q127,6,FALSE)) -> 0 | AF125: 3 | AG125: 3
A126: 147 | B126: 14 | C126: 12.3 | D126: U11 Male | E126: Long Jump | F126: M | K126: 0 | P126: 0 | Q126: 1 | R126: 0 | S126: 0 | T126: ='Event Details'!C$28 -> W | U126: ='Event Details'!D$28 -> Witney AC | V126: =IF(ISNA(MATCH(T126,G120:G127,0)),0,VLOOKUP(T126,G120:K127,5,FALSE)) -> Rhys Jones | W126: =IF(ISNA(MATCH(T126,L120:L127,0))," ",VLOOKUP(T126,L120:P127,5,FALSE)) -> Ned Herbert | X126: =IF(ISNA(MATCH(T126,G120:G127,0)),0,VLOOKUP(T126,G120:I127,3,FALSE)) -> 2.28 | Y126: =IF(ISNA(MATCH(T126,L120:L127,0)),0,VLOOKUP(T126,L120:N127,3,FALSE)) -> 1.99 | Z126: =IF(ISNA(MATCH(T126,G120:G127,0)),0,VLOOKUP(T126,G120:J127,4,FALSE)) -> W | AA126: =IF(ISNA(MATCH(T126,L120:L127,0)),0,VLOOKUP(T126,L120:P127,4,FALSE)) -> WW | AB126: =IF(AD126=0,0,Q120-(AD126-1)) -> 5 | AC126: =IF(AE126=0,0,Q120-(AE126-1)) -> 4 | AD126: =IF(ISNA(MATCH(T126,G120:G127,0)),0,VLOOKUP(T126,G120:Q127,11,FALSE)) -> 3 | AE126: =IF(ISNA(MATCH(T126,L120:L127,0)),0,VLOOKUP(T126,L120:Q127,6,FALSE)) -> 4 | AF126: 3 | AG126: 3
A127: 148 | B127: 14 | C127: 12.3 | D127: U11 Male | E127: Long Jump | F127: M | K127: 0 | P127: 0 | Q127: 0 | R127: 0 | S127: 0 | T127: ='Event Details'!C$29 -> 0 | U127: ='Event Details'!D$29 -> 0 | V127: =IF(ISNA(MATCH(T127,G120:G127,0)),0,VLOOKUP(T127,G120:K127,5,FALSE)) -> 0 | W127: =IF(ISNA(MATCH(T127,L120:L127,0))," ",VLOOKUP(T127,L120:P127,5,FALSE)) ->  | X127: =IF(ISNA(MATCH(T127,G120:G127,0)),0,VLOOKUP(T127,G120:I127,3,FALSE)) -> 0 | Y127: =IF(ISNA(MATCH(T127,L120:L127,0)),0,VLOOKUP(T127,L120:N127,3,FALSE)) -> 0 | Z127: =IF(ISNA(MATCH(T127,G120:G127,0)),0,VLOOKUP(T127,G120:J127,4,FALSE)) -> 0 | AA127: =IF(ISNA(MATCH(T127,L120:L127,0)),0,VLOOKUP(T127,L120:P127,4,FALSE)) -> 0 | AB127: =IF(AD127=0,0,Q120-(AD127-1)) -> 0 | AC127: =IF(AE127=0,0,Q120-(AE127-1)) -> 0 | AD127: =IF(ISNA(MATCH(T127,G120:G127,0)),0,VLOOKUP(T127,G120:Q127,11,FALSE)) -> 0 | AE127: =IF(ISNA(MATCH(T127,L120:L127,0)),0,VLOOKUP(T127,L120:Q127,6,FALSE)) -> 0 | AF127: 3 | AG127: 3
A128: =(B128*10)+1 -> 151 | B128: 15 | C128: =VLOOKUP(B128,EventsOrder,2,FALSE) -> 12.35 | D128: =VLOOKUP(B128,EventsOrder,4,FALSE) -> U13 Male | E128: =VLOOKUP(B128,EventsOrder,3,FALSE) -> 75m hurdles | F128: =IF(MID(D128,5,1)="F","F","M") -> M | G128: B | H128: B | I128: 15.4 | K128: Freddie Fletcher | P128: 0 | Q128: =Q$5 -> 7 | R128: DASH | S128: 0 | T128: ='Event Details'!C$22 -> L | U128: ='Event Details'!D$22 -> Daventry | V128: =IF(ISNA(MATCH(T128,G128:G135,0)),0,VLOOKUP(T128,G128:K135,5,FALSE)) -> 0 | W128: =IF(ISNA(MATCH(T128,L128:L135,0))," ",VLOOKUP(T128,L128:P135,5,FALSE)) ->  | X128: =IF(ISNA(MATCH(T128,G128:G135,0)),0,VLOOKUP(T128,G128:I135,3,FALSE)) -> 0 | Y128: =IF(ISNA(MATCH(T128,L128:L135,0)),0,VLOOKUP(T128,L128:N135,3,FALSE)) -> 0 | Z128: =IF(ISNA(MATCH(T128,G128:G135,0)),0,VLOOKUP(T128,G128:J135,4,FALSE)) -> 0 | AA128: =IF(ISNA(MATCH(T128,L128:L135,0)),0,VLOOKUP(T128,L128:P135,4,FALSE)) -> 0 | AB128: =IF(AD128=0,0,Q128-(AD128-1)) -> 0 | AC128: =IF(AE128=0,0,Q128-(AE128-1)) -> 0 | AD128: =IF(ISNA(MATCH(T128,G128:G135,0)),0,VLOOKUP(T128,G128:Q135,11,FALSE)) -> 0 | AE128: =IF(ISNA(MATCH(T128,L128:L135,0)),0,VLOOKUP(T128,L128:Q135,6,FALSE)) -> 0 | AF128: 17 | AG128: 3
A129: =A128+1 -> 152 | B129: =B128 -> 15 | C129: =C128 -> 12.35 | D129: =D128 -> U13 Male | E129: =E128 -> 75m hurdles | F129: =F128 -> M | G129: W | H129: W | I129: 15.8 | J129: W | K129: Jack Jones | P129: 0 | Q129: =Q128-1 -> 6 | R129: Wit | S129: 0 | T129: ='Event Details'!C$23 -> E | U129: ='Event Details'!D$23 -> Droitwich | V129: =IF(ISNA(MATCH(T129,G128:G135,0)),0,VLOOKUP(T129,G128:K135,5,FALSE)) -> 0 | W129: =IF(ISNA(MATCH(T129,L128:L135,0))," ",VLOOKUP(T129,L128:P135,5,FALSE)) ->  | X129: =IF(ISNA(MATCH(T129,G128:G135,0)),0,VLOOKUP(T129,G128:I135,3,FALSE)) -> 0 | Y129: =IF(ISNA(MATCH(T129,L128:L135,0)),0,VLOOKUP(T129,L128:N135,3,FALSE)) -> 0 | Z129: =IF(ISNA(MATCH(T129,G128:G135,0)),0,VLOOKUP(T129,G128:J135,4,FALSE)) -> 0 | AA129: =IF(ISNA(MATCH(T129,L128:L135,0)),0,VLOOKUP(T129,L128:P135,4,FALSE)) -> 0 | AB129: =IF(AD129=0,0,Q128-(AD129-1)) -> 0 | AC129: =IF(AE129=0,0,Q128-(AE129-1)) -> 0 | AD129: =IF(ISNA(MATCH(T129,G128:G135,0)),0,VLOOKUP(T129,G128:Q135,11,FALSE)) -> 0 | AE129: =IF(ISNA(MATCH(T129,L128:L135,0)),0,VLOOKUP(T129,L128:Q135,6,FALSE)) -> 0 | AF129: 37 | AG129: 3
A130: =A129+1 -> 153 | B130: =B129 -> 15 | C130: =C129 -> 12.35 | D130: =D129 -> U13 Male | E130: 75m hurdles | F130: M | G130: R | H130: R | I130: 17.4 | J130: R | K130: Tobias Wollaston | P130: 0 | Q130: =Q129-1 -> 5 | R130: Leam | S130: 0 | T130: ='Event Details'!C$24 -> B | U130: ='Event Details'!D$24 -> Dudley & S'bridge | V130: =IF(ISNA(MATCH(T130,G128:G135,0)),0,VLOOKUP(T130,G128:K135,5,FALSE)) -> Freddie Fletcher | W130: =IF(ISNA(MATCH(T130,L128:L135,0))," ",VLOOKUP(T130,L128:P135,5,FALSE)) ->  | X130: =IF(ISNA(MATCH(T130,G128:G135,0)),0,VLOOKUP(T130,G128:I135,3,FALSE)) -> 15.4 | Y130: =IF(ISNA(MATCH(T130,L128:L135,0)),0,VLOOKUP(T130,L128:N135,3,FALSE)) -> 0 | Z130: =IF(ISNA(MATCH(T130,G128:G135,0)),0,VLOOKUP(T130,G128:J135,4,FALSE)) -> 0 | AA130: =IF(ISNA(MATCH(T130,L128:L135,0)),0,VLOOKUP(T130,L128:P135,4,FALSE)) -> 0 | AB130: =IF(AD130=0,0,Q128-(AD130-1)) -> 1 | AC130: =IF(AE130=0,0,Q128-(AE130-1)) -> 0 | AD130: =IF(ISNA(MATCH(T130,G128:G135,0)),0,VLOOKUP(T130,G128:Q135,11,FALSE)) -> 7 | AE130: =IF(ISNA(MATCH(T130,L128:L135,0)),0,VLOOKUP(T130,L128:Q135,6,FALSE)) -> 0 | AF130: 22 | AG130: 3
A131: 154 | B131: 15 | C131: 12.35 | D131: U13 Male | E131: 75m hurdles | F131: M | K131: 0 | P131: 0 | Q131: 4 | R131: 0 | S131: 0 | T131: ='Event Details'!C$25 -> R | U131: ='Event Details'!D$25 -> Leamington AA | V131: =IF(ISNA(MATCH(T131,G128:G135,0)),0,VLOOKUP(T131,G128:K135,5,FALSE)) -> Tobias Wollaston | W131: =IF(ISNA(MATCH(T131,L128:L135,0))," ",VLOOKUP(T131,L128:P135,5,FALSE)) ->  | X131: =IF(ISNA(MATCH(T131,G128:G135,0)),0,VLOOKUP(T131,G128:I135,3,FALSE)) -> 17.4 | Y131: =IF(ISNA(MATCH(T131,L128:L135,0)),0,VLOOKUP(T131,L128:N135,3,FALSE)) -> 0 | Z131: =IF(ISNA(MATCH(T131,G128:G135,0)),0,VLOOKUP(T131,G128:J135,4,FALSE)) -> R | AA131: =IF(ISNA(MATCH(T131,L128:L135,0)),0,VLOOKUP(T131,L128:P135,4,FALSE)) -> 0 | AB131: =IF(AD131=0,0,Q128-(AD131-1)) -> 3 | AC131: =IF(AE131=0,0,Q128-(AE131-1)) -> 0 | AD131: =IF(ISNA(MATCH(T131,G128:G135,0)),0,VLOOKUP(T131,G128:Q135,11,FALSE)) -> 5 | AE131: =IF(ISNA(MATCH(T131,L128:L135,0)),0,VLOOKUP(T131,L128:Q135,6,FALSE)) -> 0 | AF131: 3 | AG131: 3
A132: 155 | B132: 15 | C132: 12.35 | D132: U13 Male | E132: 75m hurdles | F132: M | K132: 0 | P132: 0 | Q132: 3 | R132: 0 | S132: 0 | T132: ='Event Details'!C$26 -> N | U132: ='Event Details'!D$26 -> Nuneaton | V132: =IF(ISNA(MATCH(T132,G128:G135,0)),0,VLOOKUP(T132,G128:K135,5,FALSE)) -> 0 | W132: =IF(ISNA(MATCH(T132,L128:L135,0))," ",VLOOKUP(T132,L128:P135,5,FALSE)) ->  | X132: =IF(ISNA(MATCH(T132,G128:G135,0)),0,VLOOKUP(T132,G128:I135,3,FALSE)) -> 0 | Y132: =IF(ISNA(MATCH(T132,L128:L135,0)),0,VLOOKUP(T132,L128:N135,3,FALSE)) -> 0 | Z132: =IF(ISNA(MATCH(T132,G128:G135,0)),0,VLOOKUP(T132,G128:J135,4,FALSE)) -> 0 | AA132: =IF(ISNA(MATCH(T132,L128:L135,0)),0,VLOOKUP(T132,L128:P135,4,FALSE)) -> 0 | AB132: =IF(AD132=0,0,Q128-(AD132-1)) -> 0 | AC132: =IF(AE132=0,0,Q128-(AE132-1)) -> 0 | AD132: =IF(ISNA(MATCH(T132,G128:G135,0)),0,VLOOKUP(T132,G128:Q135,11,FALSE)) -> 0 | AE132: =IF(ISNA(MATCH(T132,L128:L135,0)),0,VLOOKUP(T132,L128:Q135,6,FALSE)) -> 0 | AF132: 3 | AG132: 3
A133: 156 | B133: 15 | C133: 12.35 | D133: U13 Male | E133: 75m hurdles | F133: M | K133: 0 | P133: 0 | Q133: 2 | R133: 0 | S133: 0 | T133: ='Event Details'!C$27 -> K | U133: ='Event Details'!D$27 -> Sparkhill | V133: =IF(ISNA(MATCH(T133,G128:G135,0)),0,VLOOKUP(T133,G128:K135,5,FALSE)) -> 0 | W133: =IF(ISNA(MATCH(T133,L128:L135,0))," ",VLOOKUP(T133,L128:P135,5,FALSE)) ->  | X133: =IF(ISNA(MATCH(T133,G128:G135,0)),0,VLOOKUP(T133,G128:I135,3,FALSE)) -> 0 | Y133: =IF(ISNA(MATCH(T133,L128:L135,0)),0,VLOOKUP(T133,L128:N135,3,FALSE)) -> 0 | Z133: =IF(ISNA(MATCH(T133,G128:G135,0)),0,VLOOKUP(T133,G128:J135,4,FALSE)) -> 0 | AA133: =IF(ISNA(MATCH(T133,L128:L135,0)),0,VLOOKUP(T133,L128:P135,4,FALSE)) -> 0 | AB133: =IF(AD133=0,0,Q128-(AD133-1)) -> 0 | AC133: =IF(AE133=0,0,Q128-(AE133-1)) -> 0 | AD133: =IF(ISNA(MATCH(T133,G128:G135,0)),0,VLOOKUP(T133,G128:Q135,11,FALSE)) -> 0 | AE133: =IF(ISNA(MATCH(T133,L128:L135,0)),0,VLOOKUP(T133,L128:Q135,6,FALSE)) -> 0 | AF133: 3 | AG133: 3
A134: 157 | B134: 15 | C134: 12.35 | D134: U13 Male | E134: 75m hurdles | F134: M | K134: 0 | P134: 0 | Q134: 1 | R134: 0 | S134: 0 | T134: ='Event Details'!C$28 -> W | U134: ='Event Details'!D$28 -> Witney AC | V134: =IF(ISNA(MATCH(T134,G128:G135,0)),0,VLOOKUP(T134,G128:K135,5,FALSE)) -> Jack Jones | W134: =IF(ISNA(MATCH(T134,L128:L135,0))," ",VLOOKUP(T134,L128:P135,5,FALSE)) ->  | X134: =IF(ISNA(MATCH(T134,G128:G135,0)),0,VLOOKUP(T134,G128:I135,3,FALSE)) -> 15.8 | Y134: =IF(ISNA(MATCH(T134,L128:L135,0)),0,VLOOKUP(T134,L128:N135,3,FALSE)) -> 0 | Z134: =IF(ISNA(MATCH(T134,G128:G135,0)),0,VLOOKUP(T134,G128:J135,4,FALSE)) -> W | AA134: =IF(ISNA(MATCH(T134,L128:L135,0)),0,VLOOKUP(T134,L128:P135,4,FALSE)) -> 0 | AB134: =IF(AD134=0,0,Q128-(AD134-1)) -> 2 | AC134: =IF(AE134=0,0,Q128-(AE134-1)) -> 0 | AD134: =IF(ISNA(MATCH(T134,G128:G135,0)),0,VLOOKUP(T134,G128:Q135,11,FALSE)) -> 6 | AE134: =IF(ISNA(MATCH(T134,L128:L135,0)),0,VLOOKUP(T134,L128:Q135,6,FALSE)) -> 0 | AF134: 3 | AG134: 3
A135: 158 | B135: 15 | C135: 12.35 | D135: U13 Male | E135: 75m hurdles | F135: M | K135: 0 | P135: 0 | Q135: 0 | R135: 0 | S135: 0 | T135: ='Event Details'!C$29 -> 0 | U135: ='Event Details'!D$29 -> 0 | V135: =IF(ISNA(MATCH(T135,G128:G135,0)),0,VLOOKUP(T135,G128:K135,5,FALSE)) -> 0 | W135: =IF(ISNA(MATCH(T135,L128:L135,0))," ",VLOOKUP(T135,L128:P135,5,FALSE)) ->  | X135: =IF(ISNA(MATCH(T135,G128:G135,0)),0,VLOOKUP(T135,G128:I135,3,FALSE)) -> 0 | Y135: =IF(ISNA(MATCH(T135,L128:L135,0)),0,VLOOKUP(T135,L128:N135,3,FALSE)) -> 0 | Z135: =IF(ISNA(MATCH(T135,G128:G135,0)),0,VLOOKUP(T135,G128:J135,4,FALSE)) -> 0 | AA135: =IF(ISNA(MATCH(T135,L128:L135,0)),0,VLOOKUP(T135,L128:P135,4,FALSE)) -> 0 | AB135: =IF(AD135=0,0,Q128-(AD135-1)) -> 0 | AC135: =IF(AE135=0,0,Q128-(AE135-1)) -> 0 | AD135: =IF(ISNA(MATCH(T135,G128:G135,0)),0,VLOOKUP(T135,G128:Q135,11,FALSE)) -> 0 | AE135: =IF(ISNA(MATCH(T135,L128:L135,0)),0,VLOOKUP(T135,L128:Q135,6,FALSE)) -> 0 | AF135: 3 | AG135: 3
A136: =(B136*10)+1 -> 161 | B136: 16 | C136: =VLOOKUP(B136,EventsOrder,2,FALSE) -> 12.4 | D136: =VLOOKUP(B136,EventsOrder,4,FALSE) -> U15 Male | E136: =VLOOKUP(B136,EventsOrder,3,FALSE) -> 800m | F136: =IF(MID(D136,5,1)="F","F","M") -> M | G136: N | H136: N | I136: 2.26.5 | K136: Robert Currie | L136: N | M136: NN | N136: 2.27.9 | O136: NN | P136: Sam Yates | Q136: =Q$5 -> 7 | R136: Nun | S136: Nun | T136: ='Event Details'!C$22 -> L | U136: ='Event Details'!D$22 -> Daventry | V136: =IF(ISNA(MATCH(T136,G136:G143,0)),0,VLOOKUP(T136,G136:K143,5,FALSE)) -> Zak Beswick | W136: =IF(ISNA(MATCH(T136,L136:L143,0))," ",VLOOKUP(T136,L136:P143,5,FALSE)) ->  | X136: =IF(ISNA(MATCH(T136,G136:G143,0)),0,VLOOKUP(T136,G136:I143,3,FALSE)) -> 3.05.7 | Y136: =IF(ISNA(MATCH(T136,L136:L143,0)),0,VLOOKUP(T136,L136:N143,3,FALSE)) -> 0 | Z136: =IF(ISNA(MATCH(T136,G136:G143,0)),0,VLOOKUP(T136,G136:J143,4,FALSE)) -> L | AA136: =IF(ISNA(MATCH(T136,L136:L143,0)),0,VLOOKUP(T136,L136:P143,4,FALSE)) -> 0 | AB136: =IF(AD136=0,0,Q136-(AD136-1)) -> 2 | AC136: =IF(AE136=0,0,Q136-(AE136-1)) -> 0 | AD136: =IF(ISNA(MATCH(T136,G136:G143,0)),0,VLOOKUP(T136,G136:Q143,11,FALSE)) -> 6 | AE136: =IF(ISNA(MATCH(T136,L136:L143,0)),0,VLOOKUP(T136,L136:Q143,6,FALSE)) -> 0 | AF136: 27 | AG136: 27
A137: =A136+1 -> 162 | B137: =B136 -> 16 | C137: =C136 -> 12.4 | D137: =D136 -> U15 Male | E137: =E136 -> 800m | F137: =F136 -> M | G137: L | H137: L | I137: 3.05.7 | J137: L | K137: Zak Beswick | P137: 0 | Q137: =Q136-1 -> 6 | R137: Dav | S137: 0 | T137: ='Event Details'!C$23 -> E | U137: ='Event Details'!D$23 -> Droitwich | V137: =IF(ISNA(MATCH(T137,G136:G143,0)),0,VLOOKUP(T137,G136:K143,5,FALSE)) -> 0 | W137: =IF(ISNA(MATCH(T137,L136:L143,0))," ",VLOOKUP(T137,L136:P143,5,FALSE)) ->  | X137: =IF(ISNA(MATCH(T137,G136:G143,0)),0,VLOOKUP(T137,G136:I143,3,FALSE)) -> 0 | Y137: =IF(ISNA(MATCH(T137,L136:L143,0)),0,VLOOKUP(T137,L136:N143,3,FALSE)) -> 0 | Z137: =IF(ISNA(MATCH(T137,G136:G143,0)),0,VLOOKUP(T137,G136:J143,4,FALSE)) -> 0 | AA137: =IF(ISNA(MATCH(T137,L136:L143,0)),0,VLOOKUP(T137,L136:P143,4,FALSE)) -> 0 | AB137: =IF(AD137=0,0,Q136-(AD137-1)) -> 0 | AC137: =IF(AE137=0,0,Q136-(AE137-1)) -> 0 | AD137: =IF(ISNA(MATCH(T137,G136:G143,0)),0,VLOOKUP(T137,G136:Q143,11,FALSE)) -> 0 | AE137: =IF(ISNA(MATCH(T137,L136:L143,0)),0,VLOOKUP(T137,L136:Q143,6,FALSE)) -> 0 | AF137: 7 | AG137: 3
A138: =A137+1 -> 163 | B138: =B137 -> 16 | C138: =C137 -> 12.4 | D138: =D137 -> U15 Male | E138: 800m | F138: M | G138: K | H138: K | I138: 3.06.9 | J138: K | K138: Praveer Phull | P138: 0 | Q138: =Q137-1 -> 5 | R138: Spark | S138: 0 | T138: ='Event Details'!C$24 -> B | U138: ='Event Details'!D$24 -> Dudley & S'bridge | V138: =IF(ISNA(MATCH(T138,G136:G143,0)),0,VLOOKUP(T138,G136:K143,5,FALSE)) -> 0 | W138: =IF(ISNA(MATCH(T138,L136:L143,0))," ",VLOOKUP(T138,L136:P143,5,FALSE)) ->  | X138: =IF(ISNA(MATCH(T138,G136:G143,0)),0,VLOOKUP(T138,G136:I143,3,FALSE)) -> 0 | Y138: =IF(ISNA(MATCH(T138,L136:L143,0)),0,VLOOKUP(T138,L136:N143,3,FALSE)) -> 0 | Z138: =IF(ISNA(MATCH(T138,G136:G143,0)),0,VLOOKUP(T138,G136:J143,4,FALSE)) -> 0 | AA138: =IF(ISNA(MATCH(T138,L136:L143,0)),0,VLOOKUP(T138,L136:P143,4,FALSE)) -> 0 | AB138: =IF(AD138=0,0,Q136-(AD138-1)) -> 0 | AC138: =IF(AE138=0,0,Q136-(AE138-1)) -> 0 | AD138: =IF(ISNA(MATCH(T138,G136:G143,0)),0,VLOOKUP(T138,G136:Q143,11,FALSE)) -> 0 | AE138: =IF(ISNA(MATCH(T138,L136:L143,0)),0,VLOOKUP(T138,L136:Q143,6,FALSE)) -> 0 | AF138: 32 | AG138: 3
A139: 164 | B139: 16 | C139: 12.4 | D139: U15 Male | E139: 800m | F139: M | K139: 0 | P139: 0 | Q139: 4 | R139: 0 | S139: 0 | T139: ='Event Details'!C$25 -> R | U139: ='Event Details'!D$25 -> Leamington AA | V139: =IF(ISNA(MATCH(T139,G136:G143,0)),0,VLOOKUP(T139,G136:K143,5,FALSE)) -> 0 | W139: =IF(ISNA(MATCH(T139,L136:L143,0))," ",VLOOKUP(T139,L136:P143,5,FALSE)) ->  | X139: =IF(ISNA(MATCH(T139,G136:G143,0)),0,VLOOKUP(T139,G136:I143,3,FALSE)) -> 0 | Y139: =IF(ISNA(MATCH(T139,L136:L143,0)),0,VLOOKUP(T139,L136:N143,3,FALSE)) -> 0 | Z139: =IF(ISNA(MATCH(T139,G136:G143,0)),0,VLOOKUP(T139,G136:J143,4,FALSE)) -> 0 | AA139: =IF(ISNA(MATCH(T139,L136:L143,0)),0,VLOOKUP(T139,L136:P143,4,FALSE)) -> 0 | AB139: =IF(AD139=0,0,Q136-(AD139-1)) -> 0 | AC139: =IF(AE139=0,0,Q136-(AE139-1)) -> 0 | AD139: =IF(ISNA(MATCH(T139,G136:G143,0)),0,VLOOKUP(T139,G136:Q143,11,FALSE)) -> 0 | AE139: =IF(ISNA(MATCH(T139,L136:L143,0)),0,VLOOKUP(T139,L136:Q143,6,FALSE)) -> 0 | AF139: 3 | AG139: 3
A140: 165 | B140: 16 | C140: 12.4 | D140: U15 Male | E140: 800m | F140: M | K140: 0 | P140: 0 | Q140: 3 | R140: 0 | S140: 0 | T140: ='Event Details'!C$26 -> N | U140: ='Event Details'!D$26 -> Nuneaton | V140: =IF(ISNA(MATCH(T140,G136:G143,0)),0,VLOOKUP(T140,G136:K143,5,FALSE)) -> Robert Currie | W140: =IF(ISNA(MATCH(T140,L136:L143,0))," ",VLOOKUP(T140,L136:P143,5,FALSE)) -> Sam Yates | X140: =IF(ISNA(MATCH(T140,G136:G143,0)),0,VLOOKUP(T140,G136:I143,3,FALSE)) -> 2.26.5 | Y140: =IF(ISNA(MATCH(T140,L136:L143,0)),0,VLOOKUP(T140,L136:N143,3,FALSE)) -> 2.27.9 | Z140: =IF(ISNA(MATCH(T140,G136:G143,0)),0,VLOOKUP(T140,G136:J143,4,FALSE)) -> 0 | AA140: =IF(ISNA(MATCH(T140,L136:L143,0)),0,VLOOKUP(T140,L136:P143,4,FALSE)) -> NN | AB140: =IF(AD140=0,0,Q136-(AD140-1)) -> 1 | AC140: =IF(AE140=0,0,Q136-(AE140-1)) -> 1 | AD140: =IF(ISNA(MATCH(T140,G136:G143,0)),0,VLOOKUP(T140,G136:Q143,11,FALSE)) -> 7 | AE140: =IF(ISNA(MATCH(T140,L136:L143,0)),0,VLOOKUP(T140,L136:Q143,6,FALSE)) -> 7 | AF140: 3 | AG140: 3
A141: 166 | B141: 16 | C141: 12.4 | D141: U15 Male | E141: 800m | F141: M | K141: 0 | P141: 0 | Q141: 2 | R141: 0 | S141: 0 | T141: ='Event Details'!C$27 -> K | U141: ='Event Details'!D$27 -> Sparkhill | V141: =IF(ISNA(MATCH(T141,G136:G143,0)),0,VLOOKUP(T141,G136:K143,5,FALSE)) -> Praveer Phull | W141: =IF(ISNA(MATCH(T141,L136:L143,0))," ",VLOOKUP(T141,L136:P143,5,FALSE)) ->  | X141: =IF(ISNA(MATCH(T141,G136:G143,0)),0,VLOOKUP(T141,G136:I143,3,FALSE)) -> 3.06.9 | Y141: =IF(ISNA(MATCH(T141,L136:L143,0)),0,VLOOKUP(T141,L136:N143,3,FALSE)) -> 0 | Z141: =IF(ISNA(MATCH(T141,G136:G143,0)),0,VLOOKUP(T141,G136:J143,4,FALSE)) -> K | AA141: =IF(ISNA(MATCH(T141,L136:L143,0)),0,VLOOKUP(T141,L136:P143,4,FALSE)) -> 0 | AB141: =IF(AD141=0,0,Q136-(AD141-1)) -> 3 | AC141: =IF(AE141=0,0,Q136-(AE141-1)) -> 0 | AD141: =IF(ISNA(MATCH(T141,G136:G143,0)),0,VLOOKUP(T141,G136:Q143,11,FALSE)) -> 5 | AE141: =IF(ISNA(MATCH(T141,L136:L143,0)),0,VLOOKUP(T141,L136:Q143,6,FALSE)) -> 0 | AF141: 3 | AG141: 3
A142: 167 | B142: 16 | C142: 12.4 | D142: U15 Male | E142: 800m | F142: M | K142: 0 | P142: 0 | Q142: 1 | R142: 0 | S142: 0 | T142: ='Event Details'!C$28 -> W | U142: ='Event Details'!D$28 -> Witney AC | V142: =IF(ISNA(MATCH(T142,G136:G143,0)),0,VLOOKUP(T142,G136:K143,5,FALSE)) -> 0 | W142: =IF(ISNA(MATCH(T142,L136:L143,0))," ",VLOOKUP(T142,L136:P143,5,FALSE)) ->  | X142: =IF(ISNA(MATCH(T142,G136:G143,0)),0,VLOOKUP(T142,G136:I143,3,FALSE)) -> 0 | Y142: =IF(ISNA(MATCH(T142,L136:L143,0)),0,VLOOKUP(T142,L136:N143,3,FALSE)) -> 0 | Z142: =IF(ISNA(MATCH(T142,G136:G143,0)),0,VLOOKUP(T142,G136:J143,4,FALSE)) -> 0 | AA142: =IF(ISNA(MATCH(T142,L136:L143,0)),0,VLOOKUP(T142,L136:P143,4,FALSE)) -> 0 | AB142: =IF(AD142=0,0,Q136-(AD142-1)) -> 0 | AC142: =IF(AE142=0,0,Q136-(AE142-1)) -> 0 | AD142: =IF(ISNA(MATCH(T142,G136:G143,0)),0,VLOOKUP(T142,G136:Q143,11,FALSE)) -> 0 | AE142: =IF(ISNA(MATCH(T142,L136:L143,0)),0,VLOOKUP(T142,L136:Q143,6,FALSE)) -> 0 | AF142: 3 | AG142: 3
A143: 168 | B143: 16 | C143: 12.4 | D143: U15 Male | E143: 800m | F143: M | K143: 0 | P143: 0 | Q143: 0 | R143: 0 | S143: 0 | T143: ='Event Details'!C$29 -> 0 | U143: ='Event Details'!D$29 -> 0 | V143: =IF(ISNA(MATCH(T143,G136:G143,0)),0,VLOOKUP(T143,G136:K143,5,FALSE)) -> 0 | W143: =IF(ISNA(MATCH(T143,L136:L143,0))," ",VLOOKUP(T143,L136:P143,5,FALSE)) ->  | X143: =IF(ISNA(MATCH(T143,G136:G143,0)),0,VLOOKUP(T143,G136:I143,3,FALSE)) -> 0 | Y143: =IF(ISNA(MATCH(T143,L136:L143,0)),0,VLOOKUP(T143,L136:N143,3,FALSE)) -> 0 | Z143: =IF(ISNA(MATCH(T143,G136:G143,0)),0,VLOOKUP(T143,G136:J143,4,FALSE)) -> 0 | AA143: =IF(ISNA(MATCH(T143,L136:L143,0)),0,VLOOKUP(T143,L136:P143,4,FALSE)) -> 0 | AB143: =IF(AD143=0,0,Q136-(AD143-1)) -> 0 | AC143: =IF(AE143=0,0,Q136-(AE143-1)) -> 0 | AD143: =IF(ISNA(MATCH(T143,G136:G143,0)),0,VLOOKUP(T143,G136:Q143,11,FALSE)) -> 0 | AE143: =IF(ISNA(MATCH(T143,L136:L143,0)),0,VLOOKUP(T143,L136:Q143,6,FALSE)) -> 0 | AF143: 3 | AG143: 3
A144: =(B144*10)+1 -> 171 | B144: 17 | C144: =VLOOKUP(B144,EventsOrder,2,FALSE) -> 12.55 | D144: =VLOOKUP(B144,EventsOrder,4,FALSE) -> U15 Female | E144: =VLOOKUP(B144,EventsOrder,3,FALSE) -> High Jump | F144: =IF(MID(D144,5,1)="F","F","M") -> F | G144: =LEFT(H144,1) -> B | H144: B | I144: 1.35 | K144: =VLOOKUP($B144,IF(F144="F",TeamSheetFemale,TeamSheetMale),IF(LEN(H144)=1,AF144,AF144+2),FALSE) -> Madelene Crowe | L144: =LEFT(M144,1) ->  | P144: =VLOOKUP($B144,IF(F144="F",TeamSheetFemale,TeamSheetMale),IF(LEN(M144)=1,AG144,AG144+2),FALSE) -> 0 | Q144: =Q$5 -> 7 | R144: =IF(LEN(G144)>0,VLOOKUP(LEFT(G144,1),Clubs,5,FALSE),0) -> DASH | S144: =IF(LEN(L144)>0,VLOOKUP(LEFT(L144,1),Clubs,5,FALSE),0) -> 0 | T144: ='Event Details'!C$22 -> L | U144: ='Event Details'!D$22 -> Daventry | V144: =IF(ISNA(MATCH(T144,G144:G151,0)),0,VLOOKUP(T144,G144:K151,5,FALSE)) -> 0 | W144: =IF(ISNA(MATCH(T144,L144:L151,0))," ",VLOOKUP(T144,L144:P151,5,FALSE)) ->  | X144: =IF(ISNA(MATCH(T144,G144:G151,0)),0,VLOOKUP(T144,G144:I151,3,FALSE)) -> 0 | Y144: =IF(ISNA(MATCH(T144,L144:L151,0)),0,VLOOKUP(T144,L144:N151,3,FALSE)) -> 0 | Z144: =IF(ISNA(MATCH(T144,G144:G151,0)),0,VLOOKUP(T144,G144:J151,4,FALSE)) -> 0 | AA144: =IF(ISNA(MATCH(T144,L144:L151,0)),0,VLOOKUP(T144,L144:P151,4,FALSE)) -> 0 | AB144: =IF(AD144=0,0,Q144-(AD144-1)) -> 0 | AC144: =IF(AE144=0,0,Q144-(AE144-1)) -> 0 | AD144: =IF(ISNA(MATCH(T144,G144:G151,0)),0,VLOOKUP(T144,G144:Q151,11,FALSE)) -> 0 | AE144: =IF(ISNA(MATCH(T144,L144:L151,0)),0,VLOOKUP(T144,L144:Q151,6,FALSE)) -> 0 | AF144: 17 | AG144: 3
A145: =A144+1 -> 172 | B145: =B144 -> 17 | C145: =C144 -> 12.55 | D145: =D144 -> U15 Female | E145: =E144 -> High Jump | F145: =F144 -> F | K145: 0 | P145: 0 | Q145: =Q144-1 -> 6 | R145: 0 | S145: 0 | T145: ='Event Details'!C$23 -> E | U145: ='Event Details'!D$23 -> Droitwich | V145: =IF(ISNA(MATCH(T145,G144:G151,0)),0,VLOOKUP(T145,G144:K151,5,FALSE)) -> 0 | W145: =IF(ISNA(MATCH(T145,L144:L151,0))," ",VLOOKUP(T145,L144:P151,5,FALSE)) ->  | X145: =IF(ISNA(MATCH(T145,G144:G151,0)),0,VLOOKUP(T145,G144:I151,3,FALSE)) -> 0 | Y145: =IF(ISNA(MATCH(T145,L144:L151,0)),0,VLOOKUP(T145,L144:N151,3,FALSE)) -> 0 | Z145: =IF(ISNA(MATCH(T145,G144:G151,0)),0,VLOOKUP(T145,G144:J151,4,FALSE)) -> 0 | AA145: =IF(ISNA(MATCH(T145,L144:L151,0)),0,VLOOKUP(T145,L144:P151,4,FALSE)) -> 0 | AB145: =IF(AD145=0,0,Q144-(AD145-1)) -> 0 | AC145: =IF(AE145=0,0,Q144-(AE145-1)) -> 0 | AD145: =IF(ISNA(MATCH(T145,G144:G151,0)),0,VLOOKUP(T145,G144:Q151,11,FALSE)) -> 0 | AE145: =IF(ISNA(MATCH(T145,L144:L151,0)),0,VLOOKUP(T145,L144:Q151,6,FALSE)) -> 0 | AF145: 3 | AG145: 3
A146: =A145+1 -> 173 | B146: =B145 -> 17 | C146: =C145 -> 12.55 | D146: =D145 -> U15 Female | E146: High Jump | F146: F | K146: 0 | P146: 0 | Q146: =Q145-1 -> 5 | R146: 0 | S146: 0 | T146: ='Event Details'!C$24 -> B | U146: ='Event Details'!D$24 -> Dudley & S'bridge | V146: =IF(ISNA(MATCH(T146,G144:G151,0)),0,VLOOKUP(T146,G144:K151,5,FALSE)) -> Madelene Crowe | W146: =IF(ISNA(MATCH(T146,L144:L151,0))," ",VLOOKUP(T146,L144:P151,5,FALSE)) ->  | X146: =IF(ISNA(MATCH(T146,G144:G151,0)),0,VLOOKUP(T146,G144:I151,3,FALSE)) -> 1.35 | Y146: =IF(ISNA(MATCH(T146,L144:L151,0)),0,VLOOKUP(T146,L144:N151,3,FALSE)) -> 0 | Z146: =IF(ISNA(MATCH(T146,G144:G151,0)),0,VLOOKUP(T146,G144:J151,4,FALSE)) -> 0 | AA146: =IF(ISNA(MATCH(T146,L144:L151,0)),0,VLOOKUP(T146,L144:P151,4,FALSE)) -> 0 | AB146: =IF(AD146=0,0,Q144-(AD146-1)) -> 1 | AC146: =IF(AE146=0,0,Q144-(AE146-1)) -> 0 | AD146: =IF(ISNA(MATCH(T146,G144:G151,0)),0,VLOOKUP(T146,G144:Q151,11,FALSE)) -> 7 | AE146: =IF(ISNA(MATCH(T146,L144:L151,0)),0,VLOOKUP(T146,L144:Q151,6,FALSE)) -> 0 | AF146: 3 | AG146: 3
A147: 174 | B147: 17 | C147: 12.55 | D147: U15 Female | E147: High Jump | F147: F | K147: 0 | P147: 0 | Q147: 4 | R147: 0 | S147: 0 | T147: ='Event Details'!C$25 -> R | U147: ='Event Details'!D$25 -> Leamington AA | V147: =IF(ISNA(MATCH(T147,G144:G151,0)),0,VLOOKUP(T147,G144:K151,5,FALSE)) -> 0 | W147: =IF(ISNA(MATCH(T147,L144:L151,0))," ",VLOOKUP(T147,L144:P151,5,FALSE)) ->  | X147: =IF(ISNA(MATCH(T147,G144:G151,0)),0,VLOOKUP(T147,G144:I151,3,FALSE)) -> 0 | Y147: =IF(ISNA(MATCH(T147,L144:L151,0)),0,VLOOKUP(T147,L144:N151,3,FALSE)) -> 0 | Z147: =IF(ISNA(MATCH(T147,G144:G151,0)),0,VLOOKUP(T147,G144:J151,4,FALSE)) -> 0 | AA147: =IF(ISNA(MATCH(T147,L144:L151,0)),0,VLOOKUP(T147,L144:P151,4,FALSE)) -> 0 | AB147: =IF(AD147=0,0,Q144-(AD147-1)) -> 0 | AC147: =IF(AE147=0,0,Q144-(AE147-1)) -> 0 | AD147: =IF(ISNA(MATCH(T147,G144:G151,0)),0,VLOOKUP(T147,G144:Q151,11,FALSE)) -> 0 | AE147: =IF(ISNA(MATCH(T147,L144:L151,0)),0,VLOOKUP(T147,L144:Q151,6,FALSE)) -> 0 | AF147: 3 | AG147: 3
A148: 175 | B148: 17 | C148: 12.55 | D148: U15 Female | E148: High Jump | F148: F | K148: 0 | P148: 0 | Q148: 3 | R148: 0 | S148: 0 | T148: ='Event Details'!C$26 -> N | U148: ='Event Details'!D$26 -> Nuneaton | V148: =IF(ISNA(MATCH(T148,G144:G151,0)),0,VLOOKUP(T148,G144:K151,5,FALSE)) -> 0 | W148: =IF(ISNA(MATCH(T148,L144:L151,0))," ",VLOOKUP(T148,L144:P151,5,FALSE)) ->  | X148: =IF(ISNA(MATCH(T148,G144:G151,0)),0,VLOOKUP(T148,G144:I151,3,FALSE)) -> 0 | Y148: =IF(ISNA(MATCH(T148,L144:L151,0)),0,VLOOKUP(T148,L144:N151,3,FALSE)) -> 0 | Z148: =IF(ISNA(MATCH(T148,G144:G151,0)),0,VLOOKUP(T148,G144:J151,4,FALSE)) -> 0 | AA148: =IF(ISNA(MATCH(T148,L144:L151,0)),0,VLOOKUP(T148,L144:P151,4,FALSE)) -> 0 | AB148: =IF(AD148=0,0,Q144-(AD148-1)) -> 0 | AC148: =IF(AE148=0,0,Q144-(AE148-1)) -> 0 | AD148: =IF(ISNA(MATCH(T148,G144:G151,0)),0,VLOOKUP(T148,G144:Q151,11,FALSE)) -> 0 | AE148: =IF(ISNA(MATCH(T148,L144:L151,0)),0,VLOOKUP(T148,L144:Q151,6,FALSE)) -> 0 | AF148: 3 | AG148: 3
A149: 176 | B149: 17 | C149: 12.55 | D149: U15 Female | E149: High Jump | F149: F | K149: 0 | P149: 0 | Q149: 2 | R149: 0 | S149: 0 | T149: ='Event Details'!C$27 -> K | U149: ='Event Details'!D$27 -> Sparkhill | V149: =IF(ISNA(MATCH(T149,G144:G151,0)),0,VLOOKUP(T149,G144:K151,5,FALSE)) -> 0 | W149: =IF(ISNA(MATCH(T149,L144:L151,0))," ",VLOOKUP(T149,L144:P151,5,FALSE)) ->  | X149: =IF(ISNA(MATCH(T149,G144:G151,0)),0,VLOOKUP(T149,G144:I151,3,FALSE)) -> 0 | Y149: =IF(ISNA(MATCH(T149,L144:L151,0)),0,VLOOKUP(T149,L144:N151,3,FALSE)) -> 0 | Z149: =IF(ISNA(MATCH(T149,G144:G151,0)),0,VLOOKUP(T149,G144:J151,4,FALSE)) -> 0 | AA149: =IF(ISNA(MATCH(T149,L144:L151,0)),0,VLOOKUP(T149,L144:P151,4,FALSE)) -> 0 | AB149: =IF(AD149=0,0,Q144-(AD149-1)) -> 0 | AC149: =IF(AE149=0,0,Q144-(AE149-1)) -> 0 | AD149: =IF(ISNA(MATCH(T149,G144:G151,0)),0,VLOOKUP(T149,G144:Q151,11,FALSE)) -> 0 | AE149: =IF(ISNA(MATCH(T149,L144:L151,0)),0,VLOOKUP(T149,L144:Q151,6,FALSE)) -> 0 | AF149: 3 | AG149: 3
A150: 177 | B150: 17 | C150: 12.55 | D150: U15 Female | E150: High Jump | F150: F | K150: 0 | P150: 0 | Q150: 1 | R150: 0 | S150: 0 | T150: ='Event Details'!C$28 -> W | U150: ='Event Details'!D$28 -> Witney AC | V150: =IF(ISNA(MATCH(T150,G144:G151,0)),0,VLOOKUP(T150,G144:K151,5,FALSE)) -> 0 | W150: =IF(ISNA(MATCH(T150,L144:L151,0))," ",VLOOKUP(T150,L144:P151,5,FALSE)) ->  | X150: =IF(ISNA(MATCH(T150,G144:G151,0)),0,VLOOKUP(T150,G144:I151,3,FALSE)) -> 0 | Y150: =IF(ISNA(MATCH(T150,L144:L151,0)),0,VLOOKUP(T150,L144:N151,3,FALSE)) -> 0 | Z150: =IF(ISNA(MATCH(T150,G144:G151,0)),0,VLOOKUP(T150,G144:J151,4,FALSE)) -> 0 | AA150: =IF(ISNA(MATCH(T150,L144:L151,0)),0,VLOOKUP(T150,L144:P151,4,FALSE)) -> 0 | AB150: =IF(AD150=0,0,Q144-(AD150-1)) -> 0 | AC150: =IF(AE150=0,0,Q144-(AE150-1)) -> 0 | AD150: =IF(ISNA(MATCH(T150,G144:G151,0)),0,VLOOKUP(T150,G144:Q151,11,FALSE)) -> 0 | AE150: =IF(ISNA(MATCH(T150,L144:L151,0)),0,VLOOKUP(T150,L144:Q151,6,FALSE)) -> 0 | AF150: 3 | AG150: 3
A151: 178 | B151: 17 | C151: 12.55 | D151: U15 Female | E151: High Jump | F151: F | K151: 0 | P151: 0 | Q151: 0 | R151: 0 | S151: 0 | T151: ='Event Details'!C$29 -> 0 | U151: ='Event Details'!D$29 -> 0 | V151: =IF(ISNA(MATCH(T151,G144:G151,0)),0,VLOOKUP(T151,G144:K151,5,FALSE)) -> 0 | W151: =IF(ISNA(MATCH(T151,L144:L151,0))," ",VLOOKUP(T151,L144:P151,5,FALSE)) ->  | X151: =IF(ISNA(MATCH(T151,G144:G151,0)),0,VLOOKUP(T151,G144:I151,3,FALSE)) -> 0 | Y151: =IF(ISNA(MATCH(T151,L144:L151,0)),0,VLOOKUP(T151,L144:N151,3,FALSE)) -> 0 | Z151: =IF(ISNA(MATCH(T151,G144:G151,0)),0,VLOOKUP(T151,G144:J151,4,FALSE)) -> 0 | AA151: =IF(ISNA(MATCH(T151,L144:L151,0)),0,VLOOKUP(T151,L144:P151,4,FALSE)) -> 0 | AB151: =IF(AD151=0,0,Q144-(AD151-1)) -> 0 | AC151: =IF(AE151=0,0,Q144-(AE151-1)) -> 0 | AD151: =IF(ISNA(MATCH(T151,G144:G151,0)),0,VLOOKUP(T151,G144:Q151,11,FALSE)) -> 0 | AE151: =IF(ISNA(MATCH(T151,L144:L151,0)),0,VLOOKUP(T151,L144:Q151,6,FALSE)) -> 0 | AF151: 3 | AG151: 3
A152: =(B152*10)+1 -> 181 | B152: 18 | C152: =VLOOKUP(B152,EventsOrder,2,FALSE) -> 12.5 | D152: =VLOOKUP(B152,EventsOrder,4,FALSE) -> U17 Men | E152: =VLOOKUP(B152,EventsOrder,3,FALSE) -> 800m | F152: =IF(MID(D152,5,1)="F","F","M") -> M | G152: B | H152: B | I152: 2.16.5 | K152: Tom Slater | L152: B | M152: BB | N152: 2.21.4 | O152: BB | P152: Harry Walters | Q152: =Q$5 -> 7 | R152: DASH | S152: DASH | T152: ='Event Details'!C$22 -> L | U152: ='Event Details'!D$22 -> Daventry | V152: =IF(ISNA(MATCH(T152,G152:G159,0)),0,VLOOKUP(T152,G152:K159,5,FALSE)) -> 0 | W152: =IF(ISNA(MATCH(T152,L152:L159,0))," ",VLOOKUP(T152,L152:P159,5,FALSE)) ->  | X152: =IF(ISNA(MATCH(T152,G152:G159,0)),0,VLOOKUP(T152,G152:I159,3,FALSE)) -> 0 | Y152: =IF(ISNA(MATCH(T152,L152:L159,0)),0,VLOOKUP(T152,L152:N159,3,FALSE)) -> 0 | Z152: =IF(ISNA(MATCH(T152,G152:G159,0)),0,VLOOKUP(T152,G152:J159,4,FALSE)) -> 0 | AA152: =IF(ISNA(MATCH(T152,L152:L159,0)),0,VLOOKUP(T152,L152:P159,4,FALSE)) -> 0 | AB152: =IF(AD152=0,0,Q152-(AD152-1)) -> 0 | AC152: =IF(AE152=0,0,Q152-(AE152-1)) -> 0 | AD152: =IF(ISNA(MATCH(T152,G152:G159,0)),0,VLOOKUP(T152,G152:Q159,11,FALSE)) -> 0 | AE152: =IF(ISNA(MATCH(T152,L152:L159,0)),0,VLOOKUP(T152,L152:Q159,6,FALSE)) -> 0 | AF152: 17 | AG152: 17
A153: =A152+1 -> 182 | B153: =B152 -> 18 | C153: =C152 -> 12.5 | D153: =D152 -> U17 Men | E153: =E152 -> 800m | F153: =F152 -> M | K153: 0 | P153: 0 | Q153: =Q152-1 -> 6 | R153: 0 | S153: 0 | T153: ='Event Details'!C$23 -> E | U153: ='Event Details'!D$23 -> Droitwich | V153: =IF(ISNA(MATCH(T153,G152:G159,0)),0,VLOOKUP(T153,G152:K159,5,FALSE)) -> 0 | W153: =IF(ISNA(MATCH(T153,L152:L159,0))," ",VLOOKUP(T153,L152:P159,5,FALSE)) ->  | X153: =IF(ISNA(MATCH(T153,G152:G159,0)),0,VLOOKUP(T153,G152:I159,3,FALSE)) -> 0 | Y153: =IF(ISNA(MATCH(T153,L152:L159,0)),0,VLOOKUP(T153,L152:N159,3,FALSE)) -> 0 | Z153: =IF(ISNA(MATCH(T153,G152:G159,0)),0,VLOOKUP(T153,G152:J159,4,FALSE)) -> 0 | AA153: =IF(ISNA(MATCH(T153,L152:L159,0)),0,VLOOKUP(T153,L152:P159,4,FALSE)) -> 0 | AB153: =IF(AD153=0,0,Q152-(AD153-1)) -> 0 | AC153: =IF(AE153=0,0,Q152-(AE153-1)) -> 0 | AD153: =IF(ISNA(MATCH(T153,G152:G159,0)),0,VLOOKUP(T153,G152:Q159,11,FALSE)) -> 0 | AE153: =IF(ISNA(MATCH(T153,L152:L159,0)),0,VLOOKUP(T153,L152:Q159,6,FALSE)) -> 0 | AF153: 3 | AG153: 3
A154: =A153+1 -> 183 | B154: =B153 -> 18 | C154: =C153 -> 12.5 | D154: =D153 -> U17 Men | E154: 800m | F154: M | K154: 0 | P154: 0 | Q154: =Q153-1 -> 5 | R154: 0 | S154: 0 | T154: ='Event Details'!C$24 -> B | U154: ='Event Details'!D$24 -> Dudley & S'bridge | V154: =IF(ISNA(MATCH(T154,G152:G159,0)),0,VLOOKUP(T154,G152:K159,5,FALSE)) -> Tom Slater | W154: =IF(ISNA(MATCH(T154,L152:L159,0))," ",VLOOKUP(T154,L152:P159,5,FALSE)) -> Harry Walters | X154: =IF(ISNA(MATCH(T154,G152:G159,0)),0,VLOOKUP(T154,G152:I159,3,FALSE)) -> 2.16.5 | Y154: =IF(ISNA(MATCH(T154,L152:L159,0)),0,VLOOKUP(T154,L152:N159,3,FALSE)) -> 2.21.4 | Z154: =IF(ISNA(MATCH(T154,G152:G159,0)),0,VLOOKUP(T154,G152:J159,4,FALSE)) -> 0 | AA154: =IF(ISNA(MATCH(T154,L152:L159,0)),0,VLOOKUP(T154,L152:P159,4,FALSE)) -> BB | AB154: =IF(AD154=0,0,Q152-(AD154-1)) -> 1 | AC154: =IF(AE154=0,0,Q152-(AE154-1)) -> 1 | AD154: =IF(ISNA(MATCH(T154,G152:G159,0)),0,VLOOKUP(T154,G152:Q159,11,FALSE)) -> 7 | AE154: =IF(ISNA(MATCH(T154,L152:L159,0)),0,VLOOKUP(T154,L152:Q159,6,FALSE)) -> 7 | AF154: =IF(LEN(H154)=0,3,VLOOKUP(LEFT(H154,1),$AF$5:$AI$12,3,FALSE)) -> 3 | AG154: =IF(LEN(M154)=0,3,VLOOKUP(LEFT(M154,1),$AF$5:$AI$12,3,FALSE)) -> 3
A155: 184 | B155: 18 | C155: 12.5 | D155: U17 Men | E155: 800m | F155: M | K155: 0 | P155: 0 | Q155: 4 | R155: 0 | S155: 0 | T155: ='Event Details'!C$25 -> R | U155: ='Event Details'!D$25 -> Leamington AA | V155: =IF(ISNA(MATCH(T155,G152:G159,0)),0,VLOOKUP(T155,G152:K159,5,FALSE)) -> 0 | W155: =IF(ISNA(MATCH(T155,L152:L159,0))," ",VLOOKUP(T155,L152:P159,5,FALSE)) ->  | X155: =IF(ISNA(MATCH(T155,G152:G159,0)),0,VLOOKUP(T155,G152:I159,3,FALSE)) -> 0 | Y155: =IF(ISNA(MATCH(T155,L152:L159,0)),0,VLOOKUP(T155,L152:N159,3,FALSE)) -> 0 | Z155: =IF(ISNA(MATCH(T155,G152:G159,0)),0,VLOOKUP(T155,G152:J159,4,FALSE)) -> 0 | AA155: =IF(ISNA(MATCH(T155,L152:L159,0)),0,VLOOKUP(T155,L152:P159,4,FALSE)) -> 0 | AB155: =IF(AD155=0,0,Q152-(AD155-1)) -> 0 | AC155: =IF(AE155=0,0,Q152-(AE155-1)) -> 0 | AD155: =IF(ISNA(MATCH(T155,G152:G159,0)),0,VLOOKUP(T155,G152:Q159,11,FALSE)) -> 0 | AE155: =IF(ISNA(MATCH(T155,L152:L159,0)),0,VLOOKUP(T155,L152:Q159,6,FALSE)) -> 0 | AF155: 3 | AG155: 3
A156: 185 | B156: 18 | C156: 12.5 | D156: U17 Men | E156: 800m | F156: M | K156: 0 | P156: 0 | Q156: 3 | R156: 0 | S156: 0 | T156: ='Event Details'!C$26 -> N | U156: ='Event Details'!D$26 -> Nuneaton | V156: =IF(ISNA(MATCH(T156,G152:G159,0)),0,VLOOKUP(T156,G152:K159,5,FALSE)) -> 0 | W156: =IF(ISNA(MATCH(T156,L152:L159,0))," ",VLOOKUP(T156,L152:P159,5,FALSE)) ->  | X156: =IF(ISNA(MATCH(T156,G152:G159,0)),0,VLOOKUP(T156,G152:I159,3,FALSE)) -> 0 | Y156: =IF(ISNA(MATCH(T156,L152:L159,0)),0,VLOOKUP(T156,L152:N159,3,FALSE)) -> 0 | Z156: =IF(ISNA(MATCH(T156,G152:G159,0)),0,VLOOKUP(T156,G152:J159,4,FALSE)) -> 0 | AA156: =IF(ISNA(MATCH(T156,L152:L159,0)),0,VLOOKUP(T156,L152:P159,4,FALSE)) -> 0 | AB156: =IF(AD156=0,0,Q152-(AD156-1)) -> 0 | AC156: =IF(AE156=0,0,Q152-(AE156-1)) -> 0 | AD156: =IF(ISNA(MATCH(T156,G152:G159,0)),0,VLOOKUP(T156,G152:Q159,11,FALSE)) -> 0 | AE156: =IF(ISNA(MATCH(T156,L152:L159,0)),0,VLOOKUP(T156,L152:Q159,6,FALSE)) -> 0 | AF156: 3 | AG156: 3
A157: 186 | B157: 18 | C157: 12.5 | D157: U17 Men | E157: 800m | F157: M | K157: 0 | P157: 0 | Q157: 2 | R157: 0 | S157: 0 | T157: ='Event Details'!C$27 -> K | U157: ='Event Details'!D$27 -> Sparkhill | V157: =IF(ISNA(MATCH(T157,G152:G159,0)),0,VLOOKUP(T157,G152:K159,5,FALSE)) -> 0 | W157: =IF(ISNA(MATCH(T157,L152:L159,0))," ",VLOOKUP(T157,L152:P159,5,FALSE)) ->  | X157: =IF(ISNA(MATCH(T157,G152:G159,0)),0,VLOOKUP(T157,G152:I159,3,FALSE)) -> 0 | Y157: =IF(ISNA(MATCH(T157,L152:L159,0)),0,VLOOKUP(T157,L152:N159,3,FALSE)) -> 0 | Z157: =IF(ISNA(MATCH(T157,G152:G159,0)),0,VLOOKUP(T157,G152:J159,4,FALSE)) -> 0 | AA157: =IF(ISNA(MATCH(T157,L152:L159,0)),0,VLOOKUP(T157,L152:P159,4,FALSE)) -> 0 | AB157: =IF(AD157=0,0,Q152-(AD157-1)) -> 0 | AC157: =IF(AE157=0,0,Q152-(AE157-1)) -> 0 | AD157: =IF(ISNA(MATCH(T157,G152:G159,0)),0,VLOOKUP(T157,G152:Q159,11,FALSE)) -> 0 | AE157: =IF(ISNA(MATCH(T157,L152:L159,0)),0,VLOOKUP(T157,L152:Q159,6,FALSE)) -> 0 | AF157: 3 | AG157: 3
A158: 187 | B158: 18 | C158: 12.5 | D158: U17 Men | E158: 800m | F158: M | K158: 0 | P158: 0 | Q158: 1 | R158: 0 | S158: 0 | T158: ='Event Details'!C$28 -> W | U158: ='Event Details'!D$28 -> Witney AC | V158: =IF(ISNA(MATCH(T158,G152:G159,0)),0,VLOOKUP(T158,G152:K159,5,FALSE)) -> 0 | W158: =IF(ISNA(MATCH(T158,L152:L159,0))," ",VLOOKUP(T158,L152:P159,5,FALSE)) ->  | X158: =IF(ISNA(MATCH(T158,G152:G159,0)),0,VLOOKUP(T158,G152:I159,3,FALSE)) -> 0 | Y158: =IF(ISNA(MATCH(T158,L152:L159,0)),0,VLOOKUP(T158,L152:N159,3,FALSE)) -> 0 | Z158: =IF(ISNA(MATCH(T158,G152:G159,0)),0,VLOOKUP(T158,G152:J159,4,FALSE)) -> 0 | AA158: =IF(ISNA(MATCH(T158,L152:L159,0)),0,VLOOKUP(T158,L152:P159,4,FALSE)) -> 0 | AB158: =IF(AD158=0,0,Q152-(AD158-1)) -> 0 | AC158: =IF(AE158=0,0,Q152-(AE158-1)) -> 0 | AD158: =IF(ISNA(MATCH(T158,G152:G159,0)),0,VLOOKUP(T158,G152:Q159,11,FALSE)) -> 0 | AE158: =IF(ISNA(MATCH(T158,L152:L159,0)),0,VLOOKUP(T158,L152:Q159,6,FALSE)) -> 0 | AF158: 3 | AG158: 3
A159: 188 | B159: 18 | C159: 12.5 | D159: U17 Men | E159: 800m | F159: M | K159: 0 | P159: 0 | Q159: 0 | R159: 0 | S159: 0 | T159: ='Event Details'!C$29 -> 0 | U159: ='Event Details'!D$29 -> 0 | V159: =IF(ISNA(MATCH(T159,G152:G159,0)),0,VLOOKUP(T159,G152:K159,5,FALSE)) -> 0 | W159: =IF(ISNA(MATCH(T159,L152:L159,0))," ",VLOOKUP(T159,L152:P159,5,FALSE)) ->  | X159: =IF(ISNA(MATCH(T159,G152:G159,0)),0,VLOOKUP(T159,G152:I159,3,FALSE)) -> 0 | Y159: =IF(ISNA(MATCH(T159,L152:L159,0)),0,VLOOKUP(T159,L152:N159,3,FALSE)) -> 0 | Z159: =IF(ISNA(MATCH(T159,G152:G159,0)),0,VLOOKUP(T159,G152:J159,4,FALSE)) -> 0 | AA159: =IF(ISNA(MATCH(T159,L152:L159,0)),0,VLOOKUP(T159,L152:P159,4,FALSE)) -> 0 | AB159: =IF(AD159=0,0,Q152-(AD159-1)) -> 0 | AC159: =IF(AE159=0,0,Q152-(AE159-1)) -> 0 | AD159: =IF(ISNA(MATCH(T159,G152:G159,0)),0,VLOOKUP(T159,G152:Q159,11,FALSE)) -> 0 | AE159: =IF(ISNA(MATCH(T159,L152:L159,0)),0,VLOOKUP(T159,L152:Q159,6,FALSE)) -> 0 | AF159: 3 | AG159: 3
A160: =(B160*10)+1 -> 191 | B160: 19 | C160: =VLOOKUP(B160,EventsOrder,2,FALSE) -> 1 | D160: =VLOOKUP(B160,EventsOrder,4,FALSE) -> U17 Female | E160: =VLOOKUP(B160,EventsOrder,3,FALSE) -> 80m hurdles (U17) | F160: =IF(MID(D160,5,1)="F","F","M") -> F | G160: w | H160: w | I160: 20.3 | K160: Hannah Jarrett | P160: 0 | Q160: =Q$5 -> 7 | R160: Wit | S160: 0 | T160: ='Event Details'!C$22 -> L | U160: ='Event Details'!D$22 -> Daventry | V160: =IF(ISNA(MATCH(T160,G160:G167,0)),0,VLOOKUP(T160,G160:K167,5,FALSE)) -> 0 | W160: =IF(ISNA(MATCH(T160,L160:L167,0))," ",VLOOKUP(T160,L160:P167,5,FALSE)) ->  | X160: =IF(ISNA(MATCH(T160,G160:G167,0)),0,VLOOKUP(T160,G160:I167,3,FALSE)) -> 0 | Y160: =IF(ISNA(MATCH(T160,L160:L167,0)),0,VLOOKUP(T160,L160:N167,3,FALSE)) -> 0 | Z160: =IF(ISNA(MATCH(T160,G160:G167,0)),0,VLOOKUP(T160,G160:J167,4,FALSE)) -> 0 | AA160: =IF(ISNA(MATCH(T160,L160:L167,0)),0,VLOOKUP(T160,L160:P167,4,FALSE)) -> 0 | AB160: =IF(AD160=0,0,Q160-(AD160-1)) -> 0 | AC160: =IF(AE160=0,0,Q160-(AE160-1)) -> 0 | AD160: =IF(ISNA(MATCH(T160,G160:G167,0)),0,VLOOKUP(T160,G160:Q167,11,FALSE)) -> 0 | AE160: =IF(ISNA(MATCH(T160,L160:L167,0)),0,VLOOKUP(T160,L160:Q167,6,FALSE)) -> 0 | AF160: 37 | AG160: 3
A161: =A160+1 -> 192 | B161: =B160 -> 19 | C161: =C160 -> 1 | D161: =D160 -> U17 Female | E161: =E160 -> 80m hurdles (U17) | F161: =F160 -> F | K161: 0 | P161: 0 | Q161: =Q160-1 -> 6 | R161: 0 | S161: 0 | T161: ='Event Details'!C$23 -> E | U161: ='Event Details'!D$23 -> Droitwich | V161: =IF(ISNA(MATCH(T161,G160:G167,0)),0,VLOOKUP(T161,G160:K167,5,FALSE)) -> 0 | W161: =IF(ISNA(MATCH(T161,L160:L167,0))," ",VLOOKUP(T161,L160:P167,5,FALSE)) ->  | X161: =IF(ISNA(MATCH(T161,G160:G167,0)),0,VLOOKUP(T161,G160:I167,3,FALSE)) -> 0 | Y161: =IF(ISNA(MATCH(T161,L160:L167,0)),0,VLOOKUP(T161,L160:N167,3,FALSE)) -> 0 | Z161: =IF(ISNA(MATCH(T161,G160:G167,0)),0,VLOOKUP(T161,G160:J167,4,FALSE)) -> 0 | AA161: =IF(ISNA(MATCH(T161,L160:L167,0)),0,VLOOKUP(T161,L160:P167,4,FALSE)) -> 0 | AB161: =IF(AD161=0,0,Q160-(AD161-1)) -> 0 | AC161: =IF(AE161=0,0,Q160-(AE161-1)) -> 0 | AD161: =IF(ISNA(MATCH(T161,G160:G167,0)),0,VLOOKUP(T161,G160:Q167,11,FALSE)) -> 0 | AE161: =IF(ISNA(MATCH(T161,L160:L167,0)),0,VLOOKUP(T161,L160:Q167,6,FALSE)) -> 0 | AF161: 3 | AG161: 3
A162: =A161+1 -> 193 | B162: =B161 -> 19 | C162: =C161 -> 1 | D162: =D161 -> U17 Female | E162: 80m hurdles (U17) | F162: F | K162: 0 | P162: 0 | Q162: =Q161-1 -> 5 | R162: 0 | S162: 0 | T162: ='Event Details'!C$24 -> B | U162: ='Event Details'!D$24 -> Dudley & S'bridge | V162: =IF(ISNA(MATCH(T162,G160:G167,0)),0,VLOOKUP(T162,G160:K167,5,FALSE)) -> 0 | W162: =IF(ISNA(MATCH(T162,L160:L167,0))," ",VLOOKUP(T162,L160:P167,5,FALSE)) ->  | X162: =IF(ISNA(MATCH(T162,G160:G167,0)),0,VLOOKUP(T162,G160:I167,3,FALSE)) -> 0 | Y162: =IF(ISNA(MATCH(T162,L160:L167,0)),0,VLOOKUP(T162,L160:N167,3,FALSE)) -> 0 | Z162: =IF(ISNA(MATCH(T162,G160:G167,0)),0,VLOOKUP(T162,G160:J167,4,FALSE)) -> 0 | AA162: =IF(ISNA(MATCH(T162,L160:L167,0)),0,VLOOKUP(T162,L160:P167,4,FALSE)) -> 0 | AB162: =IF(AD162=0,0,Q160-(AD162-1)) -> 0 | AC162: =IF(AE162=0,0,Q160-(AE162-1)) -> 0 | AD162: =IF(ISNA(MATCH(T162,G160:G167,0)),0,VLOOKUP(T162,G160:Q167,11,FALSE)) -> 0 | AE162: =IF(ISNA(MATCH(T162,L160:L167,0)),0,VLOOKUP(T162,L160:Q167,6,FALSE)) -> 0 | AF162: 3 | AG162: 3
A163: 194 | B163: 19 | C163: 1 | D163: U17 Female | E163: 80m hurdles (U17) | F163: F | K163: 0 | P163: 0 | Q163: 4 | R163: 0 | S163: 0 | T163: ='Event Details'!C$25 -> R | U163: ='Event Details'!D$25 -> Leamington AA | V163: =IF(ISNA(MATCH(T163,G160:G167,0)),0,VLOOKUP(T163,G160:K167,5,FALSE)) -> 0 | W163: =IF(ISNA(MATCH(T163,L160:L167,0))," ",VLOOKUP(T163,L160:P167,5,FALSE)) ->  | X163: =IF(ISNA(MATCH(T163,G160:G167,0)),0,VLOOKUP(T163,G160:I167,3,FALSE)) -> 0 | Y163: =IF(ISNA(MATCH(T163,L160:L167,0)),0,VLOOKUP(T163,L160:N167,3,FALSE)) -> 0 | Z163: =IF(ISNA(MATCH(T163,G160:G167,0)),0,VLOOKUP(T163,G160:J167,4,FALSE)) -> 0 | AA163: =IF(ISNA(MATCH(T163,L160:L167,0)),0,VLOOKUP(T163,L160:P167,4,FALSE)) -> 0 | AB163: =IF(AD163=0,0,Q160-(AD163-1)) -> 0 | AC163: =IF(AE163=0,0,Q160-(AE163-1)) -> 0 | AD163: =IF(ISNA(MATCH(T163,G160:G167,0)),0,VLOOKUP(T163,G160:Q167,11,FALSE)) -> 0 | AE163: =IF(ISNA(MATCH(T163,L160:L167,0)),0,VLOOKUP(T163,L160:Q167,6,FALSE)) -> 0 | AF163: 3 | AG163: 3
A164: 195 | B164: 19 | C164: 1 | D164: U17 Female | E164: 80m hurdles (U17) | F164: F | K164: 0 | P164: 0 | Q164: 3 | R164: 0 | S164: 0 | T164: ='Event Details'!C$26 -> N | U164: ='Event Details'!D$26 -> Nuneaton | V164: =IF(ISNA(MATCH(T164,G160:G167,0)),0,VLOOKUP(T164,G160:K167,5,FALSE)) -> 0 | W164: =IF(ISNA(MATCH(T164,L160:L167,0))," ",VLOOKUP(T164,L160:P167,5,FALSE)) ->  | X164: =IF(ISNA(MATCH(T164,G160:G167,0)),0,VLOOKUP(T164,G160:I167,3,FALSE)) -> 0 | Y164: =IF(ISNA(MATCH(T164,L160:L167,0)),0,VLOOKUP(T164,L160:N167,3,FALSE)) -> 0 | Z164: =IF(ISNA(MATCH(T164,G160:G167,0)),0,VLOOKUP(T164,G160:J167,4,FALSE)) -> 0 | AA164: =IF(ISNA(MATCH(T164,L160:L167,0)),0,VLOOKUP(T164,L160:P167,4,FALSE)) -> 0 | AB164: =IF(AD164=0,0,Q160-(AD164-1)) -> 0 | AC164: =IF(AE164=0,0,Q160-(AE164-1)) -> 0 | AD164: =IF(ISNA(MATCH(T164,G160:G167,0)),0,VLOOKUP(T164,G160:Q167,11,FALSE)) -> 0 | AE164: =IF(ISNA(MATCH(T164,L160:L167,0)),0,VLOOKUP(T164,L160:Q167,6,FALSE)) -> 0 | AF164: 3 | AG164: 3
A165: 196 | B165: 19 | C165: 1 | D165: U17 Female | E165: 80m hurdles (U17) | F165: F | K165: 0 | P165: 0 | Q165: 2 | R165: 0 | S165: 0 | T165: ='Event Details'!C$27 -> K | U165: ='Event Details'!D$27 -> Sparkhill | V165: =IF(ISNA(MATCH(T165,G160:G167,0)),0,VLOOKUP(T165,G160:K167,5,FALSE)) -> 0 | W165: =IF(ISNA(MATCH(T165,L160:L167,0))," ",VLOOKUP(T165,L160:P167,5,FALSE)) ->  | X165: =IF(ISNA(MATCH(T165,G160:G167,0)),0,VLOOKUP(T165,G160:I167,3,FALSE)) -> 0 | Y165: =IF(ISNA(MATCH(T165,L160:L167,0)),0,VLOOKUP(T165,L160:N167,3,FALSE)) -> 0 | Z165: =IF(ISNA(MATCH(T165,G160:G167,0)),0,VLOOKUP(T165,G160:J167,4,FALSE)) -> 0 | AA165: =IF(ISNA(MATCH(T165,L160:L167,0)),0,VLOOKUP(T165,L160:P167,4,FALSE)) -> 0 | AB165: =IF(AD165=0,0,Q160-(AD165-1)) -> 0 | AC165: =IF(AE165=0,0,Q160-(AE165-1)) -> 0 | AD165: =IF(ISNA(MATCH(T165,G160:G167,0)),0,VLOOKUP(T165,G160:Q167,11,FALSE)) -> 0 | AE165: =IF(ISNA(MATCH(T165,L160:L167,0)),0,VLOOKUP(T165,L160:Q167,6,FALSE)) -> 0 | AF165: 3 | AG165: 3
A166: 197 | B166: 19 | C166: 1 | D166: U17 Female | E166: 80m hurdles (U17) | F166: F | K166: 0 | P166: 0 | Q166: 1 | R166: 0 | S166: 0 | T166: ='Event Details'!C$28 -> W | U166: ='Event Details'!D$28 -> Witney AC | V166: =IF(ISNA(MATCH(T166,G160:G167,0)),0,VLOOKUP(T166,G160:K167,5,FALSE)) -> Hannah Jarrett | W166: =IF(ISNA(MATCH(T166,L160:L167,0))," ",VLOOKUP(T166,L160:P167,5,FALSE)) ->  | X166: =IF(ISNA(MATCH(T166,G160:G167,0)),0,VLOOKUP(T166,G160:I167,3,FALSE)) -> 20.3 | Y166: =IF(ISNA(MATCH(T166,L160:L167,0)),0,VLOOKUP(T166,L160:N167,3,FALSE)) -> 0 | Z166: =IF(ISNA(MATCH(T166,G160:G167,0)),0,VLOOKUP(T166,G160:J167,4,FALSE)) -> 0 | AA166: =IF(ISNA(MATCH(T166,L160:L167,0)),0,VLOOKUP(T166,L160:P167,4,FALSE)) -> 0 | AB166: =IF(AD166=0,0,Q160-(AD166-1)) -> 1 | AC166: =IF(AE166=0,0,Q160-(AE166-1)) -> 0 | AD166: =IF(ISNA(MATCH(T166,G160:G167,0)),0,VLOOKUP(T166,G160:Q167,11,FALSE)) -> 7 | AE166: =IF(ISNA(MATCH(T166,L160:L167,0)),0,VLOOKUP(T166,L160:Q167,6,FALSE)) -> 0 | AF166: 3 | AG166: 3
A167: 198 | B167: 19 | C167: 1 | D167: U17 Female | E167: 80m hurdles (U17) | F167: F | K167: 0 | P167: 0 | Q167: 0 | R167: 0 | S167: 0 | T167: ='Event Details'!C$29 -> 0 | U167: ='Event Details'!D$29 -> 0 | V167: =IF(ISNA(MATCH(T167,G160:G167,0)),0,VLOOKUP(T167,G160:K167,5,FALSE)) -> 0 | W167: =IF(ISNA(MATCH(T167,L160:L167,0))," ",VLOOKUP(T167,L160:P167,5,FALSE)) ->  | X167: =IF(ISNA(MATCH(T167,G160:G167,0)),0,VLOOKUP(T167,G160:I167,3,FALSE)) -> 0 | Y167: =IF(ISNA(MATCH(T167,L160:L167,0)),0,VLOOKUP(T167,L160:N167,3,FALSE)) -> 0 | Z167: =IF(ISNA(MATCH(T167,G160:G167,0)),0,VLOOKUP(T167,G160:J167,4,FALSE)) -> 0 | AA167: =IF(ISNA(MATCH(T167,L160:L167,0)),0,VLOOKUP(T167,L160:P167,4,FALSE)) -> 0 | AB167: =IF(AD167=0,0,Q160-(AD167-1)) -> 0 | AC167: =IF(AE167=0,0,Q160-(AE167-1)) -> 0 | AD167: =IF(ISNA(MATCH(T167,G160:G167,0)),0,VLOOKUP(T167,G160:Q167,11,FALSE)) -> 0 | AE167: =IF(ISNA(MATCH(T167,L160:L167,0)),0,VLOOKUP(T167,L160:Q167,6,FALSE)) -> 0 | AF167: 3 | AG167: 3
A168: =(B168*10)+1 -> 201 | B168: 20 | C168: =VLOOKUP(B168,EventsOrder,2,FALSE) -> 1.05 | D168: =VLOOKUP(B168,EventsOrder,4,FALSE) -> U15 Male | E168: =VLOOKUP(B168,EventsOrder,3,FALSE) -> 80m hurdles | F168: =IF(MID(D168,5,1)="F","F","M") -> M | G168: N | H168: N | I168: 17.9 | K168: William Currie | P168: 0 | Q168: =Q$5 -> 7 | R168: Nun | S168: 0 | T168: ='Event Details'!C$22 -> L | U168: ='Event Details'!D$22 -> Daventry | V168: =IF(ISNA(MATCH(T168,G168:G175,0)),0,VLOOKUP(T168,G168:K175,5,FALSE)) -> 0 | W168: =IF(ISNA(MATCH(T168,L168:L175,0))," ",VLOOKUP(T168,L168:P175,5,FALSE)) ->  | X168: =IF(ISNA(MATCH(T168,G168:G175,0)),0,VLOOKUP(T168,G168:I175,3,FALSE)) -> 0 | Y168: =IF(ISNA(MATCH(T168,L168:L175,0)),0,VLOOKUP(T168,L168:N175,3,FALSE)) -> 0 | Z168: =IF(ISNA(MATCH(T168,G168:G175,0)),0,VLOOKUP(T168,G168:J175,4,FALSE)) -> 0 | AA168: =IF(ISNA(MATCH(T168,L168:L175,0)),0,VLOOKUP(T168,L168:P175,4,FALSE)) -> 0 | AB168: =IF(AD168=0,0,Q168-(AD168-1)) -> 0 | AC168: =IF(AE168=0,0,Q168-(AE168-1)) -> 0 | AD168: =IF(ISNA(MATCH(T168,G168:G175,0)),0,VLOOKUP(T168,G168:Q175,11,FALSE)) -> 0 | AE168: =IF(ISNA(MATCH(T168,L168:L175,0)),0,VLOOKUP(T168,L168:Q175,6,FALSE)) -> 0 | AF168: 27 | AG168: 3
A169: =A168+1 -> 202 | B169: =B168 -> 20 | C169: =C168 -> 1.05 | D169: =D168 -> U15 Male | E169: =E168 -> 80m hurdles | F169: =F168 -> M | K169: 0 | P169: 0 | Q169: =Q168-1 -> 6 | R169: 0 | S169: 0 | T169: ='Event Details'!C$23 -> E | U169: ='Event Details'!D$23 -> Droitwich | V169: =IF(ISNA(MATCH(T169,G168:G175,0)),0,VLOOKUP(T169,G168:K175,5,FALSE)) -> 0 | W169: =IF(ISNA(MATCH(T169,L168:L175,0))," ",VLOOKUP(T169,L168:P175,5,FALSE)) ->  | X169: =IF(ISNA(MATCH(T169,G168:G175,0)),0,VLOOKUP(T169,G168:I175,3,FALSE)) -> 0 | Y169: =IF(ISNA(MATCH(T169,L168:L175,0)),0,VLOOKUP(T169,L168:N175,3,FALSE)) -> 0 | Z169: =IF(ISNA(MATCH(T169,G168:G175,0)),0,VLOOKUP(T169,G168:J175,4,FALSE)) -> 0 | AA169: =IF(ISNA(MATCH(T169,L168:L175,0)),0,VLOOKUP(T169,L168:P175,4,FALSE)) -> 0 | AB169: =IF(AD169=0,0,Q168-(AD169-1)) -> 0 | AC169: =IF(AE169=0,0,Q168-(AE169-1)) -> 0 | AD169: =IF(ISNA(MATCH(T169,G168:G175,0)),0,VLOOKUP(T169,G168:Q175,11,FALSE)) -> 0 | AE169: =IF(ISNA(MATCH(T169,L168:L175,0)),0,VLOOKUP(T169,L168:Q175,6,FALSE)) -> 0 | AF169: 3 | AG169: 3
A170: =A169+1 -> 203 | B170: =B169 -> 20 | C170: =C169 -> 1.05 | D170: =D169 -> U15 Male | E170: 80m hurdles | F170: M | K170: 0 | P170: 0 | Q170: =Q169-1 -> 5 | R170: 0 | S170: 0 | T170: ='Event Details'!C$24 -> B | U170: ='Event Details'!D$24 -> Dudley & S'bridge | V170: =IF(ISNA(MATCH(T170,G168:G175,0)),0,VLOOKUP(T170,G168:K175,5,FALSE)) -> 0 | W170: =IF(ISNA(MATCH(T170,L168:L175,0))," ",VLOOKUP(T170,L168:P175,5,FALSE)) ->  | X170: =IF(ISNA(MATCH(T170,G168:G175,0)),0,VLOOKUP(T170,G168:I175,3,FALSE)) -> 0 | Y170: =IF(ISNA(MATCH(T170,L168:L175,0)),0,VLOOKUP(T170,L168:N175,3,FALSE)) -> 0 | Z170: =IF(ISNA(MATCH(T170,G168:G175,0)),0,VLOOKUP(T170,G168:J175,4,FALSE)) -> 0 | AA170: =IF(ISNA(MATCH(T170,L168:L175,0)),0,VLOOKUP(T170,L168:P175,4,FALSE)) -> 0 | AB170: =IF(AD170=0,0,Q168-(AD170-1)) -> 0 | AC170: =IF(AE170=0,0,Q168-(AE170-1)) -> 0 | AD170: =IF(ISNA(MATCH(T170,G168:G175,0)),0,VLOOKUP(T170,G168:Q175,11,FALSE)) -> 0 | AE170: =IF(ISNA(MATCH(T170,L168:L175,0)),0,VLOOKUP(T170,L168:Q175,6,FALSE)) -> 0 | AF170: 3 | AG170: 3
A171: 204 | B171: 20 | C171: 1.05 | D171: U15 Male | E171: 80m hurdles | F171: M | K171: 0 | P171: 0 | Q171: 4 | R171: 0 | S171: 0 | T171: ='Event Details'!C$25 -> R | U171: ='Event Details'!D$25 -> Leamington AA | V171: =IF(ISNA(MATCH(T171,G168:G175,0)),0,VLOOKUP(T171,G168:K175,5,FALSE)) -> 0 | W171: =IF(ISNA(MATCH(T171,L168:L175,0))," ",VLOOKUP(T171,L168:P175,5,FALSE)) ->  | X171: =IF(ISNA(MATCH(T171,G168:G175,0)),0,VLOOKUP(T171,G168:I175,3,FALSE)) -> 0 | Y171: =IF(ISNA(MATCH(T171,L168:L175,0)),0,VLOOKUP(T171,L168:N175,3,FALSE)) -> 0 | Z171: =IF(ISNA(MATCH(T171,G168:G175,0)),0,VLOOKUP(T171,G168:J175,4,FALSE)) -> 0 | AA171: =IF(ISNA(MATCH(T171,L168:L175,0)),0,VLOOKUP(T171,L168:P175,4,FALSE)) -> 0 | AB171: =IF(AD171=0,0,Q168-(AD171-1)) -> 0 | AC171: =IF(AE171=0,0,Q168-(AE171-1)) -> 0 | AD171: =IF(ISNA(MATCH(T171,G168:G175,0)),0,VLOOKUP(T171,G168:Q175,11,FALSE)) -> 0 | AE171: =IF(ISNA(MATCH(T171,L168:L175,0)),0,VLOOKUP(T171,L168:Q175,6,FALSE)) -> 0 | AF171: 3 | AG171: 3
A172: 205 | B172: 20 | C172: 1.05 | D172: U15 Male | E172: 80m hurdles | F172: M | K172: 0 | P172: 0 | Q172: 3 | R172: 0 | S172: 0 | T172: ='Event Details'!C$26 -> N | U172: ='Event Details'!D$26 -> Nuneaton | V172: =IF(ISNA(MATCH(T172,G168:G175,0)),0,VLOOKUP(T172,G168:K175,5,FALSE)) -> William Currie | W172: =IF(ISNA(MATCH(T172,L168:L175,0))," ",VLOOKUP(T172,L168:P175,5,FALSE)) ->  | X172: =IF(ISNA(MATCH(T172,G168:G175,0)),0,VLOOKUP(T172,G168:I175,3,FALSE)) -> 17.9 | Y172: =IF(ISNA(MATCH(T172,L168:L175,0)),0,VLOOKUP(T172,L168:N175,3,FALSE)) -> 0 | Z172: =IF(ISNA(MATCH(T172,G168:G175,0)),0,VLOOKUP(T172,G168:J175,4,FALSE)) -> 0 | AA172: =IF(ISNA(MATCH(T172,L168:L175,0)),0,VLOOKUP(T172,L168:P175,4,FALSE)) -> 0 | AB172: =IF(AD172=0,0,Q168-(AD172-1)) -> 1 | AC172: =IF(AE172=0,0,Q168-(AE172-1)) -> 0 | AD172: =IF(ISNA(MATCH(T172,G168:G175,0)),0,VLOOKUP(T172,G168:Q175,11,FALSE)) -> 7 | AE172: =IF(ISNA(MATCH(T172,L168:L175,0)),0,VLOOKUP(T172,L168:Q175,6,FALSE)) -> 0 | AF172: 3 | AG172: 3
A173: 206 | B173: 20 | C173: 1.05 | D173: U15 Male | E173: 80m hurdles | F173: M | K173: 0 | P173: 0 | Q173: 2 | R173: 0 | S173: 0 | T173: ='Event Details'!C$27 -> K | U173: ='Event Details'!D$27 -> Sparkhill | V173: =IF(ISNA(MATCH(T173,G168:G175,0)),0,VLOOKUP(T173,G168:K175,5,FALSE)) -> 0 | W173: =IF(ISNA(MATCH(T173,L168:L175,0))," ",VLOOKUP(T173,L168:P175,5,FALSE)) ->  | X173: =IF(ISNA(MATCH(T173,G168:G175,0)),0,VLOOKUP(T173,G168:I175,3,FALSE)) -> 0 | Y173: =IF(ISNA(MATCH(T173,L168:L175,0)),0,VLOOKUP(T173,L168:N175,3,FALSE)) -> 0 | Z173: =IF(ISNA(MATCH(T173,G168:G175,0)),0,VLOOKUP(T173,G168:J175,4,FALSE)) -> 0 | AA173: =IF(ISNA(MATCH(T173,L168:L175,0)),0,VLOOKUP(T173,L168:P175,4,FALSE)) -> 0 | AB173: =IF(AD173=0,0,Q168-(AD173-1)) -> 0 | AC173: =IF(AE173=0,0,Q168-(AE173-1)) -> 0 | AD173: =IF(ISNA(MATCH(T173,G168:G175,0)),0,VLOOKUP(T173,G168:Q175,11,FALSE)) -> 0 | AE173: =IF(ISNA(MATCH(T173,L168:L175,0)),0,VLOOKUP(T173,L168:Q175,6,FALSE)) -> 0 | AF173: 3 | AG173: 3
A174: 207 | B174: 20 | C174: 1.05 | D174: U15 Male | E174: 80m hurdles | F174: M | K174: 0 | P174: 0 | Q174: 1 | R174: 0 | S174: 0 | T174: ='Event Details'!C$28 -> W | U174: ='Event Details'!D$28 -> Witney AC | V174: =IF(ISNA(MATCH(T174,G168:G175,0)),0,VLOOKUP(T174,G168:K175,5,FALSE)) -> 0 | W174: =IF(ISNA(MATCH(T174,L168:L175,0))," ",VLOOKUP(T174,L168:P175,5,FALSE)) ->  | X174: =IF(ISNA(MATCH(T174,G168:G175,0)),0,VLOOKUP(T174,G168:I175,3,FALSE)) -> 0 | Y174: =IF(ISNA(MATCH(T174,L168:L175,0)),0,VLOOKUP(T174,L168:N175,3,FALSE)) -> 0 | Z174: =IF(ISNA(MATCH(T174,G168:G175,0)),0,VLOOKUP(T174,G168:J175,4,FALSE)) -> 0 | AA174: =IF(ISNA(MATCH(T174,L168:L175,0)),0,VLOOKUP(T174,L168:P175,4,FALSE)) -> 0 | AB174: =IF(AD174=0,0,Q168-(AD174-1)) -> 0 | AC174: =IF(AE174=0,0,Q168-(AE174-1)) -> 0 | AD174: =IF(ISNA(MATCH(T174,G168:G175,0)),0,VLOOKUP(T174,G168:Q175,11,FALSE)) -> 0 | AE174: =IF(ISNA(MATCH(T174,L168:L175,0)),0,VLOOKUP(T174,L168:Q175,6,FALSE)) -> 0 | AF174: 3 | AG174: 3
A175: 208 | B175: 20 | C175: 1.05 | D175: U15 Male | E175: 80m hurdles | F175: M | K175: 0 | P175: 0 | Q175: 0 | R175: 0 | S175: 0 | T175: ='Event Details'!C$29 -> 0 | U175: ='Event Details'!D$29 -> 0 | V175: =IF(ISNA(MATCH(T175,G168:G175,0)),0,VLOOKUP(T175,G168:K175,5,FALSE)) -> 0 | W175: =IF(ISNA(MATCH(T175,L168:L175,0))," ",VLOOKUP(T175,L168:P175,5,FALSE)) ->  | X175: =IF(ISNA(MATCH(T175,G168:G175,0)),0,VLOOKUP(T175,G168:I175,3,FALSE)) -> 0 | Y175: =IF(ISNA(MATCH(T175,L168:L175,0)),0,VLOOKUP(T175,L168:N175,3,FALSE)) -> 0 | Z175: =IF(ISNA(MATCH(T175,G168:G175,0)),0,VLOOKUP(T175,G168:J175,4,FALSE)) -> 0 | AA175: =IF(ISNA(MATCH(T175,L168:L175,0)),0,VLOOKUP(T175,L168:P175,4,FALSE)) -> 0 | AB175: =IF(AD175=0,0,Q168-(AD175-1)) -> 0 | AC175: =IF(AE175=0,0,Q168-(AE175-1)) -> 0 | AD175: =IF(ISNA(MATCH(T175,G168:G175,0)),0,VLOOKUP(T175,G168:Q175,11,FALSE)) -> 0 | AE175: =IF(ISNA(MATCH(T175,L168:L175,0)),0,VLOOKUP(T175,L168:Q175,6,FALSE)) -> 0 | AF175: 3 | AG175: 3
A176: =(B176*10)+1 -> 211 | B176: 21 | C176: =VLOOKUP(B176,EventsOrder,2,FALSE) -> 1 | D176: =VLOOKUP(B176,EventsOrder,4,FALSE) -> U15 Female | E176: =VLOOKUP(B176,EventsOrder,3,FALSE) -> Long Jump | F176: =IF(MID(D176,5,1)="F","F","M") -> F | G176: N | H176: N | I176: 4.53 | K176: Jessica Day | L176: N | M176: NN | N176: 4.25 | O176: NN | P176: Hannah Burton | Q176: =Q$5 -> 7 | R176: Nun | S176: Nun | T176: ='Event Details'!C$22 -> L | U176: ='Event Details'!D$22 -> Daventry | V176: =IF(ISNA(MATCH(T176,G176:G183,0)),0,VLOOKUP(T176,G176:K183,5,FALSE)) -> 0 | W176: =IF(ISNA(MATCH(T176,L176:L183,0))," ",VLOOKUP(T176,L176:P183,5,FALSE)) ->  | X176: =IF(ISNA(MATCH(T176,G176:G183,0)),0,VLOOKUP(T176,G176:I183,3,FALSE)) -> 0 | Y176: =IF(ISNA(MATCH(T176,L176:L183,0)),0,VLOOKUP(T176,L176:N183,3,FALSE)) -> 0 | Z176: =IF(ISNA(MATCH(T176,G176:G183,0)),0,VLOOKUP(T176,G176:J183,4,FALSE)) -> 0 | AA176: =IF(ISNA(MATCH(T176,L176:L183,0)),0,VLOOKUP(T176,L176:P183,4,FALSE)) -> 0 | AB176: =IF(AD176=0,0,Q176-(AD176-1)) -> 0 | AC176: =IF(AE176=0,0,Q176-(AE176-1)) -> 0 | AD176: =IF(ISNA(MATCH(T176,G176:G183,0)),0,VLOOKUP(T176,G176:Q183,11,FALSE)) -> 0 | AE176: =IF(ISNA(MATCH(T176,L176:L183,0)),0,VLOOKUP(T176,L176:Q183,6,FALSE)) -> 0 | AF176: 27 | AG176: 27
A177: =A176+1 -> 212 | B177: =B176 -> 21 | C177: =C176 -> 1 | D177: =D176 -> U15 Female | E177: =E176 -> Long Jump | F177: =F176 -> F | G177: B | H177: B | I177: 4.29 | J177: B | K177: Alina Quinnard | L177: W | M177: WW | N177: 3.78 | O177: WW | P177: Lily Sherwood | Q177: =Q176-1 -> 6 | R177: DASH | S177: Wit | T177: ='Event Details'!C$23 -> E | U177: ='Event Details'!D$23 -> Droitwich | V177: =IF(ISNA(MATCH(T177,G176:G183,0)),0,VLOOKUP(T177,G176:K183,5,FALSE)) -> Isobel Jones | W177: =IF(ISNA(MATCH(T177,L176:L183,0))," ",VLOOKUP(T177,L176:P183,5,FALSE)) -> Charlotte Plant | X177: =IF(ISNA(MATCH(T177,G176:G183,0)),0,VLOOKUP(T177,G176:I183,3,FALSE)) -> 3.69 | Y177: =IF(ISNA(MATCH(T177,L176:L183,0)),0,VLOOKUP(T177,L176:N183,3,FALSE)) -> 3.13 | Z177: =IF(ISNA(MATCH(T177,G176:G183,0)),0,VLOOKUP(T177,G176:J183,4,FALSE)) -> E | AA177: =IF(ISNA(MATCH(T177,L176:L183,0)),0,VLOOKUP(T177,L176:P183,4,FALSE)) -> E | AB177: =IF(AD177=0,0,Q176-(AD177-1)) -> 5 | AC177: =IF(AE177=0,0,Q176-(AE177-1)) -> 4 | AD177: =IF(ISNA(MATCH(T177,G176:G183,0)),0,VLOOKUP(T177,G176:Q183,11,FALSE)) -> 3 | AE177: =IF(ISNA(MATCH(T177,L176:L183,0)),0,VLOOKUP(T177,L176:Q183,6,FALSE)) -> 4 | AF177: 17 | AG177: 37
A178: =A177+1 -> 213 | B178: =B177 -> 21 | C178: =C177 -> 1 | D178: =D177 -> U15 Female | E178: Long Jump | F178: F | G178: R | H178: R | I178: 4.27 | J178: R | K178: Jessica Chander | L178: R | M178: RR | N178: 3.58 | O178: RR | P178: Alex Spurway | Q178: =Q177-1 -> 5 | R178: Leam | S178: Leam | T178: ='Event Details'!C$24 -> B | U178: ='Event Details'!D$24 -> Dudley & S'bridge | V178: =IF(ISNA(MATCH(T178,G176:G183,0)),0,VLOOKUP(T178,G176:K183,5,FALSE)) -> Alina Quinnard | W178: =IF(ISNA(MATCH(T178,L176:L183,0))," ",VLOOKUP(T178,L176:P183,5,FALSE)) ->  | X178: =IF(ISNA(MATCH(T178,G176:G183,0)),0,VLOOKUP(T178,G176:I183,3,FALSE)) -> 4.29 | Y178: =IF(ISNA(MATCH(T178,L176:L183,0)),0,VLOOKUP(T178,L176:N183,3,FALSE)) -> 0 | Z178: =IF(ISNA(MATCH(T178,G176:G183,0)),0,VLOOKUP(T178,G176:J183,4,FALSE)) -> B | AA178: =IF(ISNA(MATCH(T178,L176:L183,0)),0,VLOOKUP(T178,L176:P183,4,FALSE)) -> 0 | AB178: =IF(AD178=0,0,Q176-(AD178-1)) -> 2 | AC178: =IF(AE178=0,0,Q176-(AE178-1)) -> 0 | AD178: =IF(ISNA(MATCH(T178,G176:G183,0)),0,VLOOKUP(T178,G176:Q183,11,FALSE)) -> 6 | AE178: =IF(ISNA(MATCH(T178,L176:L183,0)),0,VLOOKUP(T178,L176:Q183,6,FALSE)) -> 0 | AF178: 22 | AG178: 22
A179: 214 | B179: 21 | C179: 1 | D179: U15 Female | E179: Long Jump | F179: F | G179: W | H179: W | I179: 3.84 | J179: W | K179: Maisie Henman | L179: E | M179: EE | N179: 3.13 | O179: E | P179: Charlotte Plant | Q179: 4 | R179: Wit | S179: Droit | T179: ='Event Details'!C$25 -> R | U179: ='Event Details'!D$25 -> Leamington AA | V179: =IF(ISNA(MATCH(T179,G176:G183,0)),0,VLOOKUP(T179,G176:K183,5,FALSE)) -> Jessica Chander | W179: =IF(ISNA(MATCH(T179,L176:L183,0))," ",VLOOKUP(T179,L176:P183,5,FALSE)) -> Alex Spurway | X179: =IF(ISNA(MATCH(T179,G176:G183,0)),0,VLOOKUP(T179,G176:I183,3,FALSE)) -> 4.27 | Y179: =IF(ISNA(MATCH(T179,L176:L183,0)),0,VLOOKUP(T179,L176:N183,3,FALSE)) -> 3.58 | Z179: =IF(ISNA(MATCH(T179,G176:G183,0)),0,VLOOKUP(T179,G176:J183,4,FALSE)) -> R | AA179: =IF(ISNA(MATCH(T179,L176:L183,0)),0,VLOOKUP(T179,L176:P183,4,FALSE)) -> RR | AB179: =IF(AD179=0,0,Q176-(AD179-1)) -> 3 | AC179: =IF(AE179=0,0,Q176-(AE179-1)) -> 3 | AD179: =IF(ISNA(MATCH(T179,G176:G183,0)),0,VLOOKUP(T179,G176:Q183,11,FALSE)) -> 5 | AE179: =IF(ISNA(MATCH(T179,L176:L183,0)),0,VLOOKUP(T179,L176:Q183,6,FALSE)) -> 5 | AF179: 37 | AG179: 12
A180: 215 | B180: 21 | C180: 1 | D180: U15 Female | E180: Long Jump | F180: F | G180: E | H180: E | I180: 3.69 | J180: E | K180: Isobel Jones | P180: 0 | Q180: 3 | R180: Droit | S180: 0 | T180: ='Event Details'!C$26 -> N | U180: ='Event Details'!D$26 -> Nuneaton | V180: =IF(ISNA(MATCH(T180,G176:G183,0)),0,VLOOKUP(T180,G176:K183,5,FALSE)) -> Jessica Day | W180: =IF(ISNA(MATCH(T180,L176:L183,0))," ",VLOOKUP(T180,L176:P183,5,FALSE)) -> Hannah Burton | X180: =IF(ISNA(MATCH(T180,G176:G183,0)),0,VLOOKUP(T180,G176:I183,3,FALSE)) -> 4.53 | Y180: =IF(ISNA(MATCH(T180,L176:L183,0)),0,VLOOKUP(T180,L176:N183,3,FALSE)) -> 4.25 | Z180: =IF(ISNA(MATCH(T180,G176:G183,0)),0,VLOOKUP(T180,G176:J183,4,FALSE)) -> 0 | AA180: =IF(ISNA(MATCH(T180,L176:L183,0)),0,VLOOKUP(T180,L176:P183,4,FALSE)) -> NN | AB180: =IF(AD180=0,0,Q176-(AD180-1)) -> 1 | AC180: =IF(AE180=0,0,Q176-(AE180-1)) -> 1 | AD180: =IF(ISNA(MATCH(T180,G176:G183,0)),0,VLOOKUP(T180,G176:Q183,11,FALSE)) -> 7 | AE180: =IF(ISNA(MATCH(T180,L176:L183,0)),0,VLOOKUP(T180,L176:Q183,6,FALSE)) -> 7 | AF180: 12 | AG180: 3
A181: 216 | B181: 21 | C181: 1 | D181: U15 Female | E181: Long Jump | F181: F | G181: K | H181: K | I181: 2.53 | J181: K | K181: Hanah Ceric | P181: 0 | Q181: 2 | R181: Spark | S181: 0 | T181: ='Event Details'!C$27 -> K | U181: ='Event Details'!D$27 -> Sparkhill | V181: =IF(ISNA(MATCH(T181,G176:G183,0)),0,VLOOKUP(T181,G176:K183,5,FALSE)) -> Hanah Ceric | W181: =IF(ISNA(MATCH(T181,L176:L183,0))," ",VLOOKUP(T181,L176:P183,5,FALSE)) ->  | X181: =IF(ISNA(MATCH(T181,G176:G183,0)),0,VLOOKUP(T181,G176:I183,3,FALSE)) -> 2.53 | Y181: =IF(ISNA(MATCH(T181,L176:L183,0)),0,VLOOKUP(T181,L176:N183,3,FALSE)) -> 0 | Z181: =IF(ISNA(MATCH(T181,G176:G183,0)),0,VLOOKUP(T181,G176:J183,4,FALSE)) -> K | AA181: =IF(ISNA(MATCH(T181,L176:L183,0)),0,VLOOKUP(T181,L176:P183,4,FALSE)) -> 0 | AB181: =IF(AD181=0,0,Q176-(AD181-1)) -> 6 | AC181: =IF(AE181=0,0,Q176-(AE181-1)) -> 0 | AD181: =IF(ISNA(MATCH(T181,G176:G183,0)),0,VLOOKUP(T181,G176:Q183,11,FALSE)) -> 2 | AE181: =IF(ISNA(MATCH(T181,L176:L183,0)),0,VLOOKUP(T181,L176:Q183,6,FALSE)) -> 0 | AF181: 32 | AG181: 3
A182: 217 | B182: 21 | C182: 1 | D182: U15 Female | E182: Long Jump | F182: F | K182: 0 | P182: 0 | Q182: 1 | R182: 0 | S182: 0 | T182: ='Event Details'!C$28 -> W | U182: ='Event Details'!D$28 -> Witney AC | V182: =IF(ISNA(MATCH(T182,G176:G183,0)),0,VLOOKUP(T182,G176:K183,5,FALSE)) -> Maisie Henman | W182: =IF(ISNA(MATCH(T182,L176:L183,0))," ",VLOOKUP(T182,L176:P183,5,FALSE)) -> Lily Sherwood | X182: =IF(ISNA(MATCH(T182,G176:G183,0)),0,VLOOKUP(T182,G176:I183,3,FALSE)) -> 3.84 | Y182: =IF(ISNA(MATCH(T182,L176:L183,0)),0,VLOOKUP(T182,L176:N183,3,FALSE)) -> 3.78 | Z182: =IF(ISNA(MATCH(T182,G176:G183,0)),0,VLOOKUP(T182,G176:J183,4,FALSE)) -> W | AA182: =IF(ISNA(MATCH(T182,L176:L183,0)),0,VLOOKUP(T182,L176:P183,4,FALSE)) -> WW | AB182: =IF(AD182=0,0,Q176-(AD182-1)) -> 4 | AC182: =IF(AE182=0,0,Q176-(AE182-1)) -> 2 | AD182: =IF(ISNA(MATCH(T182,G176:G183,0)),0,VLOOKUP(T182,G176:Q183,11,FALSE)) -> 4 | AE182: =IF(ISNA(MATCH(T182,L176:L183,0)),0,VLOOKUP(T182,L176:Q183,6,FALSE)) -> 6 | AF182: 3 | AG182: 3
A183: 218 | B183: 21 | C183: 1 | D183: U15 Female | E183: Long Jump | F183: F | K183: 0 | P183: 0 | Q183: 0 | R183: 0 | S183: 0 | T183: ='Event Details'!C$29 -> 0 | U183: ='Event Details'!D$29 -> 0 | V183: =IF(ISNA(MATCH(T183,G176:G183,0)),0,VLOOKUP(T183,G176:K183,5,FALSE)) -> 0 | W183: =IF(ISNA(MATCH(T183,L176:L183,0))," ",VLOOKUP(T183,L176:P183,5,FALSE)) ->  | X183: =IF(ISNA(MATCH(T183,G176:G183,0)),0,VLOOKUP(T183,G176:I183,3,FALSE)) -> 0 | Y183: =IF(ISNA(MATCH(T183,L176:L183,0)),0,VLOOKUP(T183,L176:N183,3,FALSE)) -> 0 | Z183: =IF(ISNA(MATCH(T183,G176:G183,0)),0,VLOOKUP(T183,G176:J183,4,FALSE)) -> 0 | AA183: =IF(ISNA(MATCH(T183,L176:L183,0)),0,VLOOKUP(T183,L176:P183,4,FALSE)) -> 0 | AB183: =IF(AD183=0,0,Q176-(AD183-1)) -> 0 | AC183: =IF(AE183=0,0,Q176-(AE183-1)) -> 0 | AD183: =IF(ISNA(MATCH(T183,G176:G183,0)),0,VLOOKUP(T183,G176:Q183,11,FALSE)) -> 0 | AE183: =IF(ISNA(MATCH(T183,L176:L183,0)),0,VLOOKUP(T183,L176:Q183,6,FALSE)) -> 0 | AF183: 3 | AG183: 3
A184: =(B184*10)+1 -> 221 | B184: 22 | C184: =VLOOKUP(B184,EventsOrder,2,FALSE) -> 1 | D184: =VLOOKUP(B184,EventsOrder,4,FALSE) -> U15 Male | E184: =VLOOKUP(B184,EventsOrder,3,FALSE) -> Shot | F184: =IF(MID(D184,5,1)="F","F","M") -> M | G184: R | H184: R | I184: 12.25 | K184: Gabriel Ball | L184: N | M184: NN | N184: 5.84 | O184: NN | P184: Oran Nolan | Q184: =Q$5 -> 7 | R184: Leam | S184: Nun | T184: ='Event Details'!C$22 -> L | U184: ='Event Details'!D$22 -> Daventry | V184: =IF(ISNA(MATCH(T184,G184:G191,0)),0,VLOOKUP(T184,G184:K191,5,FALSE)) -> 0 | W184: =IF(ISNA(MATCH(T184,L184:L191,0))," ",VLOOKUP(T184,L184:P191,5,FALSE)) ->  | X184: =IF(ISNA(MATCH(T184,G184:G191,0)),0,VLOOKUP(T184,G184:I191,3,FALSE)) -> 0 | Y184: =IF(ISNA(MATCH(T184,L184:L191,0)),0,VLOOKUP(T184,L184:N191,3,FALSE)) -> 0 | Z184: =IF(ISNA(MATCH(T184,G184:G191,0)),0,VLOOKUP(T184,G184:J191,4,FALSE)) -> 0 | AA184: =IF(ISNA(MATCH(T184,L184:L191,0)),0,VLOOKUP(T184,L184:P191,4,FALSE)) -> 0 | AB184: =IF(AD184=0,0,Q184-(AD184-1)) -> 0 | AC184: =IF(AE184=0,0,Q184-(AE184-1)) -> 0 | AD184: =IF(ISNA(MATCH(T184,G184:G191,0)),0,VLOOKUP(T184,G184:Q191,11,FALSE)) -> 0 | AE184: =IF(ISNA(MATCH(T184,L184:L191,0)),0,VLOOKUP(T184,L184:Q191,6,FALSE)) -> 0 | AF184: 22 | AG184: 27
A185: =A184+1 -> 222 | B185: =B184 -> 22 | C185: =C184 -> 1 | D185: =D184 -> U15 Male | E185: =E184 -> Shot | F185: =F184 -> M | G185: B | H185: B | I185: 10.97 | J185: B | K185: Jay Higgins | P185: 0 | Q185: =Q184-1 -> 6 | R185: DASH | S185: 0 | T185: ='Event Details'!C$23 -> E | U185: ='Event Details'!D$23 -> Droitwich | V185: =IF(ISNA(MATCH(T185,G184:G191,0)),0,VLOOKUP(T185,G184:K191,5,FALSE)) -> 0 | W185: =IF(ISNA(MATCH(T185,L184:L191,0))," ",VLOOKUP(T185,L184:P191,5,FALSE)) ->  | X185: =IF(ISNA(MATCH(T185,G184:G191,0)),0,VLOOKUP(T185,G184:I191,3,FALSE)) -> 0 | Y185: =IF(ISNA(MATCH(T185,L184:L191,0)),0,VLOOKUP(T185,L184:N191,3,FALSE)) -> 0 | Z185: =IF(ISNA(MATCH(T185,G184:G191,0)),0,VLOOKUP(T185,G184:J191,4,FALSE)) -> 0 | AA185: =IF(ISNA(MATCH(T185,L184:L191,0)),0,VLOOKUP(T185,L184:P191,4,FALSE)) -> 0 | AB185: =IF(AD185=0,0,Q184-(AD185-1)) -> 0 | AC185: =IF(AE185=0,0,Q184-(AE185-1)) -> 0 | AD185: =IF(ISNA(MATCH(T185,G184:G191,0)),0,VLOOKUP(T185,G184:Q191,11,FALSE)) -> 0 | AE185: =IF(ISNA(MATCH(T185,L184:L191,0)),0,VLOOKUP(T185,L184:Q191,6,FALSE)) -> 0 | AF185: 17 | AG185: 3
A186: =A185+1 -> 223 | B186: =B185 -> 22 | C186: =C185 -> 1 | D186: =D185 -> U15 Male | E186: Shot | F186: M | G186: N | H186: N | I186: 10.29 | J186: N | K186: Stephen Bates | P186: 0 | Q186: =Q185-1 -> 5 | R186: Nun | S186: 0 | T186: ='Event Details'!C$24 -> B | U186: ='Event Details'!D$24 -> Dudley & S'bridge | V186: =IF(ISNA(MATCH(T186,G184:G191,0)),0,VLOOKUP(T186,G184:K191,5,FALSE)) -> Jay Higgins | W186: =IF(ISNA(MATCH(T186,L184:L191,0))," ",VLOOKUP(T186,L184:P191,5,FALSE)) ->  | X186: =IF(ISNA(MATCH(T186,G184:G191,0)),0,VLOOKUP(T186,G184:I191,3,FALSE)) -> 10.97 | Y186: =IF(ISNA(MATCH(T186,L184:L191,0)),0,VLOOKUP(T186,L184:N191,3,FALSE)) -> 0 | Z186: =IF(ISNA(MATCH(T186,G184:G191,0)),0,VLOOKUP(T186,G184:J191,4,FALSE)) -> B | AA186: =IF(ISNA(MATCH(T186,L184:L191,0)),0,VLOOKUP(T186,L184:P191,4,FALSE)) -> 0 | AB186: =IF(AD186=0,0,Q184-(AD186-1)) -> 2 | AC186: =IF(AE186=0,0,Q184-(AE186-1)) -> 0 | AD186: =IF(ISNA(MATCH(T186,G184:G191,0)),0,VLOOKUP(T186,G184:Q191,11,FALSE)) -> 6 | AE186: =IF(ISNA(MATCH(T186,L184:L191,0)),0,VLOOKUP(T186,L184:Q191,6,FALSE)) -> 0 | AF186: 27 | AG186: 3
A187: 224 | B187: 22 | C187: 1 | D187: U15 Male | E187: Shot | F187: M | G187: W | H187: W | I187: 7.19 | J187: W | K187: Felix Green | P187: 0 | Q187: 4 | R187: Wit | S187: 0 | T187: ='Event Details'!C$25 -> R | U187: ='Event Details'!D$25 -> Leamington AA | V187: =IF(ISNA(MATCH(T187,G184:G191,0)),0,VLOOKUP(T187,G184:K191,5,FALSE)) -> Gabriel Ball | W187: =IF(ISNA(MATCH(T187,L184:L191,0))," ",VLOOKUP(T187,L184:P191,5,FALSE)) ->  | X187: =IF(ISNA(MATCH(T187,G184:G191,0)),0,VLOOKUP(T187,G184:I191,3,FALSE)) -> 12.25 | Y187: =IF(ISNA(MATCH(T187,L184:L191,0)),0,VLOOKUP(T187,L184:N191,3,FALSE)) -> 0 | Z187: =IF(ISNA(MATCH(T187,G184:G191,0)),0,VLOOKUP(T187,G184:J191,4,FALSE)) -> 0 | AA187: =IF(ISNA(MATCH(T187,L184:L191,0)),0,VLOOKUP(T187,L184:P191,4,FALSE)) -> 0 | AB187: =IF(AD187=0,0,Q184-(AD187-1)) -> 1 | AC187: =IF(AE187=0,0,Q184-(AE187-1)) -> 0 | AD187: =IF(ISNA(MATCH(T187,G184:G191,0)),0,VLOOKUP(T187,G184:Q191,11,FALSE)) -> 7 | AE187: =IF(ISNA(MATCH(T187,L184:L191,0)),0,VLOOKUP(T187,L184:Q191,6,FALSE)) -> 0 | AF187: 37 | AG187: 3
A188: 225 | B188: 22 | C188: 1 | D188: U15 Male | E188: Shot | F188: M | K188: 0 | P188: 0 | Q188: 3 | R188: 0 | S188: 0 | T188: ='Event Details'!C$26 -> N | U188: ='Event Details'!D$26 -> Nuneaton | V188: =IF(ISNA(MATCH(T188,G184:G191,0)),0,VLOOKUP(T188,G184:K191,5,FALSE)) -> Stephen Bates | W188: =IF(ISNA(MATCH(T188,L184:L191,0))," ",VLOOKUP(T188,L184:P191,5,FALSE)) -> Oran Nolan | X188: =IF(ISNA(MATCH(T188,G184:G191,0)),0,VLOOKUP(T188,G184:I191,3,FALSE)) -> 10.29 | Y188: =IF(ISNA(MATCH(T188,L184:L191,0)),0,VLOOKUP(T188,L184:N191,3,FALSE)) -> 5.84 | Z188: =IF(ISNA(MATCH(T188,G184:G191,0)),0,VLOOKUP(T188,G184:J191,4,FALSE)) -> N | AA188: =IF(ISNA(MATCH(T188,L184:L191,0)),0,VLOOKUP(T188,L184:P191,4,FALSE)) -> NN | AB188: =IF(AD188=0,0,Q184-(AD188-1)) -> 3 | AC188: =IF(AE188=0,0,Q184-(AE188-1)) -> 1 | AD188: =IF(ISNA(MATCH(T188,G184:G191,0)),0,VLOOKUP(T188,G184:Q191,11,FALSE)) -> 5 | AE188: =IF(ISNA(MATCH(T188,L184:L191,0)),0,VLOOKUP(T188,L184:Q191,6,FALSE)) -> 7 | AF188: 3 | AG188: 3
A189: 226 | B189: 22 | C189: 1 | D189: U15 Male | E189: Shot | F189: M | K189: 0 | P189: 0 | Q189: 2 | R189: 0 | S189: 0 | T189: ='Event Details'!C$27 -> K | U189: ='Event Details'!D$27 -> Sparkhill | V189: =IF(ISNA(MATCH(T189,G184:G191,0)),0,VLOOKUP(T189,G184:K191,5,FALSE)) -> 0 | W189: =IF(ISNA(MATCH(T189,L184:L191,0))," ",VLOOKUP(T189,L184:P191,5,FALSE)) ->  | X189: =IF(ISNA(MATCH(T189,G184:G191,0)),0,VLOOKUP(T189,G184:I191,3,FALSE)) -> 0 | Y189: =IF(ISNA(MATCH(T189,L184:L191,0)),0,VLOOKUP(T189,L184:N191,3,FALSE)) -> 0 | Z189: =IF(ISNA(MATCH(T189,G184:G191,0)),0,VLOOKUP(T189,G184:J191,4,FALSE)) -> 0 | AA189: =IF(ISNA(MATCH(T189,L184:L191,0)),0,VLOOKUP(T189,L184:P191,4,FALSE)) -> 0 | AB189: =IF(AD189=0,0,Q184-(AD189-1)) -> 0 | AC189: =IF(AE189=0,0,Q184-(AE189-1)) -> 0 | AD189: =IF(ISNA(MATCH(T189,G184:G191,0)),0,VLOOKUP(T189,G184:Q191,11,FALSE)) -> 0 | AE189: =IF(ISNA(MATCH(T189,L184:L191,0)),0,VLOOKUP(T189,L184:Q191,6,FALSE)) -> 0 | AF189: 3 | AG189: 3
A190: 227 | B190: 22 | C190: 1 | D190: U15 Male | E190: Shot | F190: M | K190: 0 | P190: 0 | Q190: 1 | R190: 0 | S190: 0 | T190: ='Event Details'!C$28 -> W | U190: ='Event Details'!D$28 -> Witney AC | V190: =IF(ISNA(MATCH(T190,G184:G191,0)),0,VLOOKUP(T190,G184:K191,5,FALSE)) -> Felix Green | W190: =IF(ISNA(MATCH(T190,L184:L191,0))," ",VLOOKUP(T190,L184:P191,5,FALSE)) ->  | X190: =IF(ISNA(MATCH(T190,G184:G191,0)),0,VLOOKUP(T190,G184:I191,3,FALSE)) -> 7.19 | Y190: =IF(ISNA(MATCH(T190,L184:L191,0)),0,VLOOKUP(T190,L184:N191,3,FALSE)) -> 0 | Z190: =IF(ISNA(MATCH(T190,G184:G191,0)),0,VLOOKUP(T190,G184:J191,4,FALSE)) -> W | AA190: =IF(ISNA(MATCH(T190,L184:L191,0)),0,VLOOKUP(T190,L184:P191,4,FALSE)) -> 0 | AB190: =IF(AD190=0,0,Q184-(AD190-1)) -> 4 | AC190: =IF(AE190=0,0,Q184-(AE190-1)) -> 0 | AD190: =IF(ISNA(MATCH(T190,G184:G191,0)),0,VLOOKUP(T190,G184:Q191,11,FALSE)) -> 4 | AE190: =IF(ISNA(MATCH(T190,L184:L191,0)),0,VLOOKUP(T190,L184:Q191,6,FALSE)) -> 0 | AF190: 3 | AG190: 3
A191: 228 | B191: 22 | C191: 1 | D191: U15 Male | E191: Shot | F191: M | K191: 0 | P191: 0 | Q191: 0 | R191: 0 | S191: 0 | T191: ='Event Details'!C$29 -> 0 | U191: ='Event Details'!D$29 -> 0 | V191: =IF(ISNA(MATCH(T191,G184:G191,0)),0,VLOOKUP(T191,G184:K191,5,FALSE)) -> 0 | W191: =IF(ISNA(MATCH(T191,L184:L191,0))," ",VLOOKUP(T191,L184:P191,5,FALSE)) ->  | X191: =IF(ISNA(MATCH(T191,G184:G191,0)),0,VLOOKUP(T191,G184:I191,3,FALSE)) -> 0 | Y191: =IF(ISNA(MATCH(T191,L184:L191,0)),0,VLOOKUP(T191,L184:N191,3,FALSE)) -> 0 | Z191: =IF(ISNA(MATCH(T191,G184:G191,0)),0,VLOOKUP(T191,G184:J191,4,FALSE)) -> 0 | AA191: =IF(ISNA(MATCH(T191,L184:L191,0)),0,VLOOKUP(T191,L184:P191,4,FALSE)) -> 0 | AB191: =IF(AD191=0,0,Q184-(AD191-1)) -> 0 | AC191: =IF(AE191=0,0,Q184-(AE191-1)) -> 0 | AD191: =IF(ISNA(MATCH(T191,G184:G191,0)),0,VLOOKUP(T191,G184:Q191,11,FALSE)) -> 0 | AE191: =IF(ISNA(MATCH(T191,L184:L191,0)),0,VLOOKUP(T191,L184:Q191,6,FALSE)) -> 0 | AF191: 3 | AG191: 3
A192: =(B192*10)+1 -> 231 | B192: 23 | C192: =VLOOKUP(B192,EventsOrder,2,FALSE) -> 1 | D192: =VLOOKUP(B192,EventsOrder,4,FALSE) -> U17 Men | E192: =VLOOKUP(B192,EventsOrder,3,FALSE) -> Discus | F192: =IF(MID(D192,5,1)="F","F","M") -> M | K192: 0 | P192: 0 | Q192: =Q$5 -> 7 | R192: 0 | S192: 0 | T192: ='Event Details'!C$22 -> L | U192: ='Event Details'!D$22 -> Daventry | V192: =IF(ISNA(MATCH(T192,G192:G199,0)),0,VLOOKUP(T192,G192:K199,5,FALSE)) -> 0 | W192: =IF(ISNA(MATCH(T192,L192:L199,0))," ",VLOOKUP(T192,L192:P199,5,FALSE)) ->  | X192: =IF(ISNA(MATCH(T192,G192:G199,0)),0,VLOOKUP(T192,G192:I199,3,FALSE)) -> 0 | Y192: =IF(ISNA(MATCH(T192,L192:L199,0)),0,VLOOKUP(T192,L192:N199,3,FALSE)) -> 0 | Z192: =IF(ISNA(MATCH(T192,G192:G199,0)),0,VLOOKUP(T192,G192:J199,4,FALSE)) -> 0 | AA192: =IF(ISNA(MATCH(T192,L192:L199,0)),0,VLOOKUP(T192,L192:P199,4,FALSE)) -> 0 | AB192: =IF(AD192=0,0,Q192-(AD192-1)) -> 0 | AC192: =IF(AE192=0,0,Q192-(AE192-1)) -> 0 | AD192: =IF(ISNA(MATCH(T192,G192:G199,0)),0,VLOOKUP(T192,G192:Q199,11,FALSE)) -> 0 | AE192: =IF(ISNA(MATCH(T192,L192:L199,0)),0,VLOOKUP(T192,L192:Q199,6,FALSE)) -> 0 | AF192: 3 | AG192: 3
A193: =A192+1 -> 232 | B193: =B192 -> 23 | C193: =C192 -> 1 | D193: =D192 -> U17 Men | E193: =E192 -> Discus | F193: =F192 -> M | K193: 0 | P193: 0 | Q193: =Q192-1 -> 6 | R193: 0 | S193: 0 | T193: ='Event Details'!C$23 -> E | U193: ='Event Details'!D$23 -> Droitwich | V193: =IF(ISNA(MATCH(T193,G192:G199,0)),0,VLOOKUP(T193,G192:K199,5,FALSE)) -> 0 | W193: =IF(ISNA(MATCH(T193,L192:L199,0))," ",VLOOKUP(T193,L192:P199,5,FALSE)) ->  | X193: =IF(ISNA(MATCH(T193,G192:G199,0)),0,VLOOKUP(T193,G192:I199,3,FALSE)) -> 0 | Y193: =IF(ISNA(MATCH(T193,L192:L199,0)),0,VLOOKUP(T193,L192:N199,3,FALSE)) -> 0 | Z193: =IF(ISNA(MATCH(T193,G192:G199,0)),0,VLOOKUP(T193,G192:J199,4,FALSE)) -> 0 | AA193: =IF(ISNA(MATCH(T193,L192:L199,0)),0,VLOOKUP(T193,L192:P199,4,FALSE)) -> 0 | AB193: =IF(AD193=0,0,Q192-(AD193-1)) -> 0 | AC193: =IF(AE193=0,0,Q192-(AE193-1)) -> 0 | AD193: =IF(ISNA(MATCH(T193,G192:G199,0)),0,VLOOKUP(T193,G192:Q199,11,FALSE)) -> 0 | AE193: =IF(ISNA(MATCH(T193,L192:L199,0)),0,VLOOKUP(T193,L192:Q199,6,FALSE)) -> 0 | AF193: 3 | AG193: 3
A194: =A193+1 -> 233 | B194: =B193 -> 23 | C194: =C193 -> 1 | D194: =D193 -> U17 Men | E194: Discus | F194: M | K194: 0 | P194: 0 | Q194: =Q193-1 -> 5 | R194: 0 | S194: 0 | T194: ='Event Details'!C$24 -> B | U194: ='Event Details'!D$24 -> Dudley & S'bridge | V194: =IF(ISNA(MATCH(T194,G192:G199,0)),0,VLOOKUP(T194,G192:K199,5,FALSE)) -> 0 | W194: =IF(ISNA(MATCH(T194,L192:L199,0))," ",VLOOKUP(T194,L192:P199,5,FALSE)) ->  | X194: =IF(ISNA(MATCH(T194,G192:G199,0)),0,VLOOKUP(T194,G192:I199,3,FALSE)) -> 0 | Y194: =IF(ISNA(MATCH(T194,L192:L199,0)),0,VLOOKUP(T194,L192:N199,3,FALSE)) -> 0 | Z194: =IF(ISNA(MATCH(T194,G192:G199,0)),0,VLOOKUP(T194,G192:J199,4,FALSE)) -> 0 | AA194: =IF(ISNA(MATCH(T194,L192:L199,0)),0,VLOOKUP(T194,L192:P199,4,FALSE)) -> 0 | AB194: =IF(AD194=0,0,Q192-(AD194-1)) -> 0 | AC194: =IF(AE194=0,0,Q192-(AE194-1)) -> 0 | AD194: =IF(ISNA(MATCH(T194,G192:G199,0)),0,VLOOKUP(T194,G192:Q199,11,FALSE)) -> 0 | AE194: =IF(ISNA(MATCH(T194,L192:L199,0)),0,VLOOKUP(T194,L192:Q199,6,FALSE)) -> 0 | AF194: 3 | AG194: 3
A195: 234 | B195: 23 | C195: 1 | D195: U17 Men | E195: Discus | F195: M | K195: 0 | P195: 0 | Q195: 4 | R195: 0 | S195: 0 | T195: ='Event Details'!C$25 -> R | U195: ='Event Details'!D$25 -> Leamington AA | V195: =IF(ISNA(MATCH(T195,G192:G199,0)),0,VLOOKUP(T195,G192:K199,5,FALSE)) -> 0 | W195: =IF(ISNA(MATCH(T195,L192:L199,0))," ",VLOOKUP(T195,L192:P199,5,FALSE)) ->  | X195: =IF(ISNA(MATCH(T195,G192:G199,0)),0,VLOOKUP(T195,G192:I199,3,FALSE)) -> 0 | Y195: =IF(ISNA(MATCH(T195,L192:L199,0)),0,VLOOKUP(T195,L192:N199,3,FALSE)) -> 0 | Z195: =IF(ISNA(MATCH(T195,G192:G199,0)),0,VLOOKUP(T195,G192:J199,4,FALSE)) -> 0 | AA195: =IF(ISNA(MATCH(T195,L192:L199,0)),0,VLOOKUP(T195,L192:P199,4,FALSE)) -> 0 | AB195: =IF(AD195=0,0,Q192-(AD195-1)) -> 0 | AC195: =IF(AE195=0,0,Q192-(AE195-1)) -> 0 | AD195: =IF(ISNA(MATCH(T195,G192:G199,0)),0,VLOOKUP(T195,G192:Q199,11,FALSE)) -> 0 | AE195: =IF(ISNA(MATCH(T195,L192:L199,0)),0,VLOOKUP(T195,L192:Q199,6,FALSE)) -> 0 | AF195: 3 | AG195: 3
A196: 235 | B196: 23 | C196: 1 | D196: U17 Men | E196: Discus | F196: M | K196: 0 | P196: 0 | Q196: 3 | R196: 0 | S196: 0 | T196: ='Event Details'!C$26 -> N | U196: ='Event Details'!D$26 -> Nuneaton | V196: =IF(ISNA(MATCH(T196,G192:G199,0)),0,VLOOKUP(T196,G192:K199,5,FALSE)) -> 0 | W196: =IF(ISNA(MATCH(T196,L192:L199,0))," ",VLOOKUP(T196,L192:P199,5,FALSE)) ->  | X196: =IF(ISNA(MATCH(T196,G192:G199,0)),0,VLOOKUP(T196,G192:I199,3,FALSE)) -> 0 | Y196: =IF(ISNA(MATCH(T196,L192:L199,0)),0,VLOOKUP(T196,L192:N199,3,FALSE)) -> 0 | Z196: =IF(ISNA(MATCH(T196,G192:G199,0)),0,VLOOKUP(T196,G192:J199,4,FALSE)) -> 0 | AA196: =IF(ISNA(MATCH(T196,L192:L199,0)),0,VLOOKUP(T196,L192:P199,4,FALSE)) -> 0 | AB196: =IF(AD196=0,0,Q192-(AD196-1)) -> 0 | AC196: =IF(AE196=0,0,Q192-(AE196-1)) -> 0 | AD196: =IF(ISNA(MATCH(T196,G192:G199,0)),0,VLOOKUP(T196,G192:Q199,11,FALSE)) -> 0 | AE196: =IF(ISNA(MATCH(T196,L192:L199,0)),0,VLOOKUP(T196,L192:Q199,6,FALSE)) -> 0 | AF196: 3 | AG196: 3
A197: 236 | B197: 23 | C197: 1 | D197: U17 Men | E197: Discus | F197: M | K197: 0 | P197: 0 | Q197: 2 | R197: 0 | S197: 0 | T197: ='Event Details'!C$27 -> K | U197: ='Event Details'!D$27 -> Sparkhill | V197: =IF(ISNA(MATCH(T197,G192:G199,0)),0,VLOOKUP(T197,G192:K199,5,FALSE)) -> 0 | W197: =IF(ISNA(MATCH(T197,L192:L199,0))," ",VLOOKUP(T197,L192:P199,5,FALSE)) ->  | X197: =IF(ISNA(MATCH(T197,G192:G199,0)),0,VLOOKUP(T197,G192:I199,3,FALSE)) -> 0 | Y197: =IF(ISNA(MATCH(T197,L192:L199,0)),0,VLOOKUP(T197,L192:N199,3,FALSE)) -> 0 | Z197: =IF(ISNA(MATCH(T197,G192:G199,0)),0,VLOOKUP(T197,G192:J199,4,FALSE)) -> 0 | AA197: =IF(ISNA(MATCH(T197,L192:L199,0)),0,VLOOKUP(T197,L192:P199,4,FALSE)) -> 0 | AB197: =IF(AD197=0,0,Q192-(AD197-1)) -> 0 | AC197: =IF(AE197=0,0,Q192-(AE197-1)) -> 0 | AD197: =IF(ISNA(MATCH(T197,G192:G199,0)),0,VLOOKUP(T197,G192:Q199,11,FALSE)) -> 0 | AE197: =IF(ISNA(MATCH(T197,L192:L199,0)),0,VLOOKUP(T197,L192:Q199,6,FALSE)) -> 0 | AF197: 3 | AG197: 3
A198: 237 | B198: 23 | C198: 1 | D198: U17 Men | E198: Discus | F198: M | K198: 0 | P198: 0 | Q198: 1 | R198: 0 | S198: 0 | T198: ='Event Details'!C$28 -> W | U198: ='Event Details'!D$28 -> Witney AC | V198: =IF(ISNA(MATCH(T198,G192:G199,0)),0,VLOOKUP(T198,G192:K199,5,FALSE)) -> 0 | W198: =IF(ISNA(MATCH(T198,L192:L199,0))," ",VLOOKUP(T198,L192:P199,5,FALSE)) ->  | X198: =IF(ISNA(MATCH(T198,G192:G199,0)),0,VLOOKUP(T198,G192:I199,3,FALSE)) -> 0 | Y198: =IF(ISNA(MATCH(T198,L192:L199,0)),0,VLOOKUP(T198,L192:N199,3,FALSE)) -> 0 | Z198: =IF(ISNA(MATCH(T198,G192:G199,0)),0,VLOOKUP(T198,G192:J199,4,FALSE)) -> 0 | AA198: =IF(ISNA(MATCH(T198,L192:L199,0)),0,VLOOKUP(T198,L192:P199,4,FALSE)) -> 0 | AB198: =IF(AD198=0,0,Q192-(AD198-1)) -> 0 | AC198: =IF(AE198=0,0,Q192-(AE198-1)) -> 0 | AD198: =IF(ISNA(MATCH(T198,G192:G199,0)),0,VLOOKUP(T198,G192:Q199,11,FALSE)) -> 0 | AE198: =IF(ISNA(MATCH(T198,L192:L199,0)),0,VLOOKUP(T198,L192:Q199,6,FALSE)) -> 0 | AF198: 3 | AG198: 3
A199: 238 | B199: 23 | C199: 1 | D199: U17 Men | E199: Discus | F199: M | K199: 0 | P199: 0 | Q199: 0 | R199: 0 | S199: 0 | T199: ='Event Details'!C$29 -> 0 | U199: ='Event Details'!D$29 -> 0 | V199: =IF(ISNA(MATCH(T199,G192:G199,0)),0,VLOOKUP(T199,G192:K199,5,FALSE)) -> 0 | W199: =IF(ISNA(MATCH(T199,L192:L199,0))," ",VLOOKUP(T199,L192:P199,5,FALSE)) ->  | X199: =IF(ISNA(MATCH(T199,G192:G199,0)),0,VLOOKUP(T199,G192:I199,3,FALSE)) -> 0 | Y199: =IF(ISNA(MATCH(T199,L192:L199,0)),0,VLOOKUP(T199,L192:N199,3,FALSE)) -> 0 | Z199: =IF(ISNA(MATCH(T199,G192:G199,0)),0,VLOOKUP(T199,G192:J199,4,FALSE)) -> 0 | AA199: =IF(ISNA(MATCH(T199,L192:L199,0)),0,VLOOKUP(T199,L192:P199,4,FALSE)) -> 0 | AB199: =IF(AD199=0,0,Q192-(AD199-1)) -> 0 | AC199: =IF(AE199=0,0,Q192-(AE199-1)) -> 0 | AD199: =IF(ISNA(MATCH(T199,G192:G199,0)),0,VLOOKUP(T199,G192:Q199,11,FALSE)) -> 0 | AE199: =IF(ISNA(MATCH(T199,L192:L199,0)),0,VLOOKUP(T199,L192:Q199,6,FALSE)) -> 0 | AF199: 3 | AG199: 3
A200: =(B200*10)+1 -> 241 | B200: 24 | C200: =VLOOKUP(B200,EventsOrder,2,FALSE) -> 1 | D200: =VLOOKUP(B200,EventsOrder,4,FALSE) -> U13 Male | E200: =VLOOKUP(B200,EventsOrder,3,FALSE) -> Javelin | F200: =IF(MID(D200,5,1)="F","F","M") -> M | G200: B | H200: B | I200: 28.08 | K200: Kian Avey | P200: 0 | Q200: =Q$5 -> 7 | R200: DASH | S200: 0 | T200: ='Event Details'!C$22 -> L | U200: ='Event Details'!D$22 -> Daventry | V200: =IF(ISNA(MATCH(T200,G200:G207,0)),0,VLOOKUP(T200,G200:K207,5,FALSE)) -> 0 | W200: =IF(ISNA(MATCH(T200,L200:L207,0))," ",VLOOKUP(T200,L200:P207,5,FALSE)) ->  | X200: =IF(ISNA(MATCH(T200,G200:G207,0)),0,VLOOKUP(T200,G200:I207,3,FALSE)) -> 0 | Y200: =IF(ISNA(MATCH(T200,L200:L207,0)),0,VLOOKUP(T200,L200:N207,3,FALSE)) -> 0 | Z200: =IF(ISNA(MATCH(T200,G200:G207,0)),0,VLOOKUP(T200,G200:J207,4,FALSE)) -> 0 | AA200: =IF(ISNA(MATCH(T200,L200:L207,0)),0,VLOOKUP(T200,L200:P207,4,FALSE)) -> 0 | AB200: =IF(AD200=0,0,Q200-(AD200-1)) -> 0 | AC200: =IF(AE200=0,0,Q200-(AE200-1)) -> 0 | AD200: =IF(ISNA(MATCH(T200,G200:G207,0)),0,VLOOKUP(T200,G200:Q207,11,FALSE)) -> 0 | AE200: =IF(ISNA(MATCH(T200,L200:L207,0)),0,VLOOKUP(T200,L200:Q207,6,FALSE)) -> 0 | AF200: 17 | AG200: 3
... 615 more rows

Sheet Results in Event Order
F2: Column Numbers
D3: Scoring | E3: A | F3: 11 | G3: 18 | H3: 9 | I3: 30
E4: B | F4: 16 | G4: 19 | H4: 14 | I4: 31
B5: Event No | K5: =CONCATENATE('Event Details'!D$5," ","Results in Events Order") -> Heart of England League Results in Events Order | W5: =W8 -> Daventry | X5: =X8 -> Droitwich | Y5: Dudley & S'bridge | Z5: Leamington AA | AA5: Nuneaton | AB5: Sparkhill | AC5: Witney AC | AD5: 0
D6: Division | E6: ='Event Details'!D$9 -> 4 | K6: Venue | L6: ='Event Details'!F$17 -> Dudley & Stourbridge | Q6: Date | R6: ='Event Details'!B$17 -> 8th July 2018
C7: Time | D7: Event | F7: NS | G7: First | I7: Second | K7: Third | M7: Fourth | O7: Fifth | Q7: Sixth | S7: Seventh | U7: Eighth | W7: =W10 -> L | X7: =X10 -> E | Y7: B | Z7: R | AA7: N | AB7: K | AC7: W | AD7: 0
B8: Event No | K8: =CONCATENATE('Event Details'!D$5," ","Results in Event Order") -> Heart of England League Results in Event Order | W8: ='Event Details'!$D22 -> Daventry | X8: ='Event Details'!D23 -> Droitwich | Y8: ='Event Details'!D24 -> Dudley & S'bridge | Z8: ='Event Details'!D25 -> Leamington AA | AA8: ='Event Details'!D26 -> Nuneaton | AB8: ='Event Details'!D27 -> Sparkhill | AC8: ='Event Details'!D28 -> Witney AC | AD8: ='Event Details'!D29 -> 0
D9: Division | E9: ='Event Details'!D$9 -> 4 | K9: Venue | L9: ='Event Details'!F$17 -> Dudley & Stourbridge | Q9: Date | R9: ='Event Details'!B$17 -> 8th July 2018
C10: Time | D10: Event | F10: NS | G10: First | I10: Second | K10: Third | M10: Fourth | O10: Fifth | Q10: Sixth | S10: Seventh | U10: Eighth | W10: ='Event Details'!C22 -> L | X10: ='Event Details'!C23 -> E | Y10: ='Event Details'!C24 -> B | Z10: ='Event Details'!C25 -> R | AA10: ='Event Details'!C26 -> N | AB10: ='Event Details'!C27 -> K | AC10: ='Event Details'!C28 -> W | AD10: ='Event Details'!C29 -> 0
D11: =VLOOKUP(B12,EventsOrder,4,FALSE) -> U13 Female | E11: A | G11: =VLOOKUP(($B12*10)+1,Results,$F$3,FALSE) -> Kate Pomerleau | I11: =VLOOKUP(($B12*10)+2,Results,$F$3,FALSE) -> Scarlet Littell | K11: =VLOOKUP(($B12*10)+3,Results,$F$3,FALSE) -> 0 | M11: =VLOOKUP(($B12*10)+4,Results,$F$3,FALSE) -> 0 | O11: =VLOOKUP(($B12*10)+5,Results,$F$3,FALSE) -> 0 | Q11: =VLOOKUP(($B12*10)+6,Results,$F$3,FALSE) -> 0 | S11: =VLOOKUP(($B12*10)+7,Results,$F$3,FALSE) -> 0 | U11: =VLOOKUP(($B12*10)+8,Results,$F$3,FALSE) -> 0 | AE11: =IF(LEN(G11)>1,1,0) -> 1
B12: 1 | C12: =VLOOKUP(B12,EventsOrder,2,FALSE) -> 11.45 | G12: =VLOOKUP(($B12*10)+1,Results,$G$3,FALSE) -> Dav | H12: =VLOOKUP(($B12*10)+1,Results,$H$3,FALSE) -> 6.03.2 | I12: =VLOOKUP(($B12*10)+2,Results,$G$3,FALSE) -> Leam | J12: =VLOOKUP(($B12*10)+2,Results,$H$3,FALSE) -> 6.25.5 | K12: =VLOOKUP(($B12*10)+3,Results,$G$3,FALSE) -> 0 | L12: =VLOOKUP(($B12*10)+3,Results,$H$3,FALSE) -> 0 | M12: =VLOOKUP(($B12*10)+4,Results,$G$3,FALSE) -> 0 | N12: =VLOOKUP(($B12*10)+4,Results,$H$3,FALSE) -> 0 | O12: =VLOOKUP(($B12*10)+5,Results,$G$3,FALSE) -> 0 | P12: =VLOOKUP(($B12*10)+5,Results,$H$3,FALSE) -> 0 | Q12: =VLOOKUP(($B12*10)+6,Results,$G$3,FALSE) -> 0 | R12: =VLOOKUP(($B12*10)+6,Results,$H$3,FALSE) -> 0 | S12: =VLOOKUP(($B12*10)+7,Results,$G$3,FALSE) -> 0 | T12: =VLOOKUP(($B12*10)+7,Results,$H$3,FALSE) -> 0 | U12: =VLOOKUP(($B12*10)+8,Results,$G$3,FALSE) -> 0 | V12: =VLOOKUP(($B12*10)+8,Results,$H$3,FALSE) -> 0 | W12: =VLOOKUP(($B12*10)+1,Results,$I$3,FALSE) -> 7 | X12: =VLOOKUP(($B12*10)+2,Results,$I$3,FALSE) -> 0 | Y12: =VLOOKUP(($B12*10)+3,Results,$I$3,FALSE) -> 0 | Z12: =VLOOKUP(($B12*10)+4,Results,$I$3,FALSE) -> 6 | AA12: =VLOOKUP(($B12*10)+5,Results,$I$3,FALSE) -> 0 | AB12: =VLOOKUP(($B12*10)+6,Results,$I$3,FALSE) -> 0 | AC12: =VLOOKUP(($B12*10)+7,Results,$I$3,FALSE) -> 0 | AD12: =VLOOKUP(($B12*10)+8,Results,$I$3,FALSE) -> 0
D13: =VLOOKUP(B12,EventsOrder,3,FALSE) -> 1500m | E13: B | G13: =VLOOKUP(($B12*10)+1,Results,$F$4,FALSE) -> 0 | I13: =VLOOKUP(($B12*10)+2,Results,$F$4,FALSE) -> 0 | K13: =VLOOKUP(($B12*10)+3,Results,$F$4,FALSE) -> 0 | M13: =VLOOKUP(($B12*10)+4,Results,$F$4,FALSE) -> 0 | O13: =VLOOKUP(($B12*10)+5,Results,$F$4,FALSE) -> 0 | Q13: =VLOOKUP(($B12*10)+6,Results,$F$4,FALSE) -> 0 | S13: =VLOOKUP(($B12*10)+7,Results,$F$4,FALSE) -> 0 | U13: =VLOOKUP(($B12*10)+8,Results,$F$4,FALSE) -> 0
G14: =VLOOKUP(($B12*10)+1,Results,$G$4,FALSE) -> 0 | H14: =VLOOKUP(($B12*10)+1,Results,$H$4,FALSE) -> 0 | I14: =VLOOKUP(($B12*10)+2,Results,$G$4,FALSE) -> 0 | J14: =VLOOKUP(($B12*10)+2,Results,$H$4,FALSE) -> 0 | K14: =VLOOKUP(($B12*10)+3,Results,$G$4,FALSE) -> 0 | L14: =VLOOKUP(($B12*10)+3,Results,$H$4,FALSE) -> 0 | M14: =VLOOKUP(($B12*10)+4,Results,$G$4,FALSE) -> 0 | N14: =VLOOKUP(($B12*10)+4,Results,$H$4,FALSE) -> 0 | O14: =VLOOKUP(($B12*10)+5,Results,$G$4,FALSE) -> 0 | P14: =VLOOKUP(($B12*10)+5,Results,$H$4,FALSE) -> 0 | Q14: =VLOOKUP(($B12*10)+6,Results,$G$4,FALSE) -> 0 | R14: =VLOOKUP(($B12*10)+6,Results,$H$4,FALSE) -> 0 | S14: =VLOOKUP(($B12*10)+7,Results,$G$4,FALSE) -> 0 | T14: =VLOOKUP(($B12*10)+7,Results,$H$4,FALSE) -> 0 | U14: =VLOOKUP(($B12*10)+8,Results,$G$4,FALSE) -> 0 | V14: =VLOOKUP(($B12*10)+8,Results,$H$4,FALSE) -> 0 | W14: =VLOOKUP(($B12*10)+1,Results,$I$4,FALSE) -> 0 | X14: =VLOOKUP(($B12*10)+2,Results,$I$4,FALSE) -> 0 | Y14: =VLOOKUP(($B12*10)+3,Results,$I$4,FALSE) -> 0 | Z14: =VLOOKUP(($B12*10)+4,Results,$I$4,FALSE) -> 0 | AA14: =VLOOKUP(($B12*10)+5,Results,$I$4,FALSE) -> 0 | AB14: =VLOOKUP(($B12*10)+6,Results,$I$4,FALSE) -> 0 | AC14: =VLOOKUP(($B12*10)+7,Results,$I$4,FALSE) -> 0 | AD14: =VLOOKUP(($B12*10)+8,Results,$I$4,FALSE) -> 0
D15: =VLOOKUP(B16,EventsOrder,4,FALSE) -> U15 Female | E15: A | G15: =VLOOKUP(($B16*10)+1,Results,$F$3,FALSE) -> Isabelle Plant | I15: =VLOOKUP(($B16*10)+2,Results,$F$3,FALSE) -> 0 | K15: =VLOOKUP(($B16*10)+3,Results,$F$3,FALSE) -> 0 | M15: =VLOOKUP(($B16*10)+4,Results,$F$3,FALSE) -> 0 | O15: =VLOOKUP(($B16*10)+5,Results,$F$3,FALSE) -> 0 | Q15: =VLOOKUP(($B16*10)+6,Results,$F$3,FALSE) -> 0 | S15: =VLOOKUP(($B16*10)+7,Results,$F$3,FALSE) -> 0 | U15: =VLOOKUP(($B16*10)+8,Results,$F$3,FALSE) -> 0 | AE15: =IF(LEN(G15)>1,1,0) -> 1
B16: 4 | C16: =VLOOKUP(B16,EventsOrder,2,FALSE) -> 11.55 | G16: =VLOOKUP(($B16*10)+1,Results,$G$3,FALSE) -> DASH | H16: =VLOOKUP(($B16*10)+1,Results,$H$3,FALSE) -> 5.44.6 | I16: =VLOOKUP(($B16*10)+2,Results,$G$3,FALSE) -> 0 | J16: =VLOOKUP(($B16*10)+2,Results,$H$3,FALSE) -> 0 | K16: =VLOOKUP(($B16*10)+3,Results,$G$3,FALSE) -> 0 | L16: =VLOOKUP(($B16*10)+3,Results,$H$3,FALSE) -> 0 | M16: =VLOOKUP(($B16*10)+4,Results,$G$3,FALSE) -> 0 | N16: =VLOOKUP(($B16*10)+4,Results,$H$3,FALSE) -> 0 | O16: =VLOOKUP(($B16*10)+5,Results,$G$3,FALSE) -> 0 | P16: =VLOOKUP(($B16*10)+5,Results,$H$3,FALSE) -> 0 | Q16: =VLOOKUP(($B16*10)+6,Results,$G$3,FALSE) -> 0 | R16: =VLOOKUP(($B16*10)+6,Results,$H$3,FALSE) -> 0 | S16: =VLOOKUP(($B16*10)+7,Results,$G$3,FALSE) -> 0 | T16: =VLOOKUP(($B16*10)+7,Results,$H$3,FALSE) -> 0 | U16: =VLOOKUP(($B16*10)+8,Results,$G$3,FALSE) -> 0 | V16: =VLOOKUP(($B16*10)+8,Results,$H$3,FALSE) -> 0 | W16: =VLOOKUP(($B16*10)+1,Results,$I$3,FALSE) -> 0 | X16: =VLOOKUP(($B16*10)+2,Results,$I$3,FALSE) -> 0 | Y16: =VLOOKUP(($B16*10)+3,Results,$I$3,FALSE) -> 7 | Z16: =VLOOKUP(($B16*10)+4,Results,$I$3,FALSE) -> 0 | AA16: =VLOOKUP(($B16*10)+5,Results,$I$3,FALSE) -> 0 | AB16: =VLOOKUP(($B16*10)+6,Results,$I$3,FALSE) -> 0 | AC16: =VLOOKUP(($B16*10)+7,Results,$I$3,FALSE) -> 0 | AD16: =VLOOKUP(($B16*10)+8,Results,$I$3,FALSE) -> 0
D17: =VLOOKUP(B16,EventsOrder,3,FALSE) -> 1500m | E17: B | G17: =VLOOKUP(($B16*10)+1,Results,$F$4,FALSE) -> 0 | I17: =VLOOKUP(($B16*10)+2,Results,$F$4,FALSE) -> 0 | K17: =VLOOKUP(($B16*10)+3,Results,$F$4,FALSE) -> 0 | M17: =VLOOKUP(($B16*10)+4,Results,$F$4,FALSE) -> 0 | O17: =VLOOKUP(($B16*10)+5,Results,$F$4,FALSE) -> 0 | Q17: =VLOOKUP(($B16*10)+6,Results,$F$4,FALSE) -> 0 | S17: =VLOOKUP(($B16*10)+7,Results,$F$4,FALSE) -> 0 | U17: =VLOOKUP(($B16*10)+8,Results,$F$4,FALSE) -> 0
G18: =VLOOKUP(($B16*10)+1,Results,$G$4,FALSE) -> 0 | H18: =VLOOKUP(($B16*10)+1,Results,$H$4,FALSE) -> 0 | I18: =VLOOKUP(($B16*10)+2,Results,$G$4,FALSE) -> 0 | J18: =VLOOKUP(($B16*10)+2,Results,$H$4,FALSE) -> 0 | K18: =VLOOKUP(($B16*10)+3,Results,$G$4,FALSE) -> 0 | L18: =VLOOKUP(($B16*10)+3,Results,$H$4,FALSE) -> 0 | M18: =VLOOKUP(($B16*10)+4,Results,$G$4,FALSE) -> 0 | N18: =VLOOKUP(($B16*10)+4,Results,$H$4,FALSE) -> 0 | O18: =VLOOKUP(($B16*10)+5,Results,$G$4,FALSE) -> 0 | P18: =VLOOKUP(($B16*10)+5,Results,$H$4,FALSE) -> 0 | Q18: =VLOOKUP(($B16*10)+6,Results,$G$4,FALSE) -> 0 | R18: =VLOOKUP(($B16*10)+6,Results,$H$4,FALSE) -> 0 | S18: =VLOOKUP(($B16*10)+7,Results,$G$4,FALSE) -> 0 | T18: =VLOOKUP(($B16*10)+7,Results,$H$4,FALSE) -> 0 | U18: =VLOOKUP(($B16*10)+8,Results,$G$4,FALSE) -> 0 | V18: =VLOOKUP(($B16*10)+8,Results,$H$4,FALSE) -> 0 | W18: =VLOOKUP(($B16*10)+1,Results,$I$4,FALSE) -> 0 | X18: =VLOOKUP(($B16*10)+2,Results,$I$4,FALSE) -> 0 | Y18: =VLOOKUP(($B16*10)+3,Results,$I$4,FALSE) -> 0 | Z18: =VLOOKUP(($B16*10)+4,Results,$I$4,FALSE) -> 0 | AA18: =VLOOKUP(($B16*10)+5,Results,$I$4,FALSE) -> 0 | AB18: =VLOOKUP(($B16*10)+6,Results,$I$4,FALSE) -> 0 | AC18: =VLOOKUP(($B16*10)+7,Results,$I$4,FALSE) -> 0 | AD18: =VLOOKUP(($B16*10)+8,Results,$I$4,FALSE) -> 0
D19: =VLOOKUP(B20,EventsOrder,4,FALSE) -> U13 Male | E19: A | G19: =VLOOKUP(($B20*10)+1,Results,$F$3,FALSE) -> Edward Owen | I19: =VLOOKUP(($B20*10)+2,Results,$F$3,FALSE) -> 0 | K19: =VLOOKUP(($B20*10)+3,Results,$F$3,FALSE) -> 0 | M19: =VLOOKUP(($B20*10)+4,Results,$F$3,FALSE) -> 0 | O19: =VLOOKUP(($B20*10)+5,Results,$F$3,FALSE) -> 0 | Q19: =VLOOKUP(($B20*10)+6,Results,$F$3,FALSE) -> 0 | S19: =VLOOKUP(($B20*10)+7,Results,$F$3,FALSE) -> 0 | U19: =VLOOKUP(($B20*10)+8,Results,$F$3,FALSE) -> 0 | AE19: =IF(LEN(G19)>1,1,0) -> 1
B20: 5 | C20: =VLOOKUP(B20,EventsOrder,2,FALSE) -> 12 | G20: =VLOOKUP(($B20*10)+1,Results,$G$3,FALSE) -> Leam | H20: =VLOOKUP(($B20*10)+1,Results,$H$3,FALSE) -> 1.3 | I20: =VLOOKUP(($B20*10)+2,Results,$G$3,FALSE) -> 0 | J20: =VLOOKUP(($B20*10)+2,Results,$H$3,FALSE) -> 0 | K20: =VLOOKUP(($B20*10)+3,Results,$G$3,FALSE) -> 0 | L20: =VLOOKUP(($B20*10)+3,Results,$H$3,FALSE) -> 0 | M20: =VLOOKUP(($B20*10)+4,Results,$G$3,FALSE) -> 0 | N20: =VLOOKUP(($B20*10)+4,Results,$H$3,FALSE) -> 0 | O20: =VLOOKUP(($B20*10)+5,Results,$G$3,FALSE) -> 0 | P20: =VLOOKUP(($B20*10)+5,Results,$H$3,FALSE) -> 0 | Q20: =VLOOKUP(($B20*10)+6,Results,$G$3,FALSE) -> 0 | R20: =VLOOKUP(($B20*10)+6,Results,$H$3,FALSE) -> 0 | S20: =VLOOKUP(($B20*10)+7,Results,$G$3,FALSE) -> 0 | T20: =VLOOKUP(($B20*10)+7,Results,$H$3,FALSE) -> 0 | U20: =VLOOKUP(($B20*10)+8,Results,$G$3,FALSE) -> 0 | V20: =VLOOKUP(($B20*10)+8,Results,$H$3,FALSE) -> 0 | W20: =VLOOKUP(($B20*10)+1,Results,$I$3,FALSE) -> 0 | X20: =VLOOKUP(($B20*10)+2,Results,$I$3,FALSE) -> 0 | Y20: =VLOOKUP(($B20*10)+3,Results,$I$3,FALSE) -> 0 | Z20: =VLOOKUP(($B20*10)+4,Results,$I$3,FALSE) -> 7 | AA20: =VLOOKUP(($B20*10)+5,Results,$I$3,FALSE) -> 0 | AB20: =VLOOKUP(($B20*10)+6,Results,$I$3,FALSE) -> 0 | AC20: =VLOOKUP(($B20*10)+7,Results,$I$3,FALSE) -> 0 | AD20: =VLOOKUP(($B20*10)+8,Results,$I$3,FALSE) -> 0
D21: =VLOOKUP(B20,EventsOrder,3,FALSE) -> High Jump | E21: B | G21: =VLOOKUP(($B20*10)+1,Results,$F$4,FALSE) -> 0 | I21: =VLOOKUP(($B20*10)+2,Results,$F$4,FALSE) -> 0 | K21: =VLOOKUP(($B20*10)+3,Results,$F$4,FALSE) -> 0 | M21: =VLOOKUP(($B20*10)+4,Results,$F$4,FALSE) -> 0 | O21: =VLOOKUP(($B20*10)+5,Results,$F$4,FALSE) -> 0 | Q21: =VLOOKUP(($B20*10)+6,Results,$F$4,FALSE) -> 0 | S21: =VLOOKUP(($B20*10)+7,Results,$F$4,FALSE) -> 0 | U21: =VLOOKUP(($B20*10)+8,Results,$F$4,FALSE) -> 0
G22: =VLOOKUP(($B20*10)+1,Results,$G$4,FALSE) -> 0 | H22: =VLOOKUP(($B20*10)+1,Results,$H$4,FALSE) -> 0 | I22: =VLOOKUP(($B20*10)+2,Results,$G$4,FALSE) -> 0 | J22: =VLOOKUP(($B20*10)+2,Results,$H$4,FALSE) -> 0 | K22: =VLOOKUP(($B20*10)+3,Results,$G$4,FALSE) -> 0 | L22: =VLOOKUP(($B20*10)+3,Results,$H$4,FALSE) -> 0 | M22: =VLOOKUP(($B20*10)+4,Results,$G$4,FALSE) -> 0 | N22: =VLOOKUP(($B20*10)+4,Results,$H$4,FALSE) -> 0 | O22: =VLOOKUP(($B20*10)+5,Results,$G$4,FALSE) -> 0 | P22: =VLOOKUP(($B20*10)+5,Results,$H$4,FALSE) -> 0 | Q22: =VLOOKUP(($B20*10)+6,Results,$G$4,FALSE) -> 0 | R22: =VLOOKUP(($B20*10)+6,Results,$H$4,FALSE) -> 0 | S22: =VLOOKUP(($B20*10)+7,Results,$G$4,FALSE) -> 0 | T22: =VLOOKUP(($B20*10)+7,Results,$H$4,FALSE) -> 0 | U22: =VLOOKUP(($B20*10)+8,Results,$G$4,FALSE) -> 0 | V22: =VLOOKUP(($B20*10)+8,Results,$H$4,FALSE) -> 0 | W22: =VLOOKUP(($B20*10)+1,Results,$I$4,FALSE) -> 0 | X22: =VLOOKUP(($B20*10)+2,Results,$I$4,FALSE) -> 0 | Y22: =VLOOKUP(($B20*10)+3,Results,$I$4,FALSE) -> 0 | Z22: =VLOOKUP(($B20*10)+4,Results,$I$4,FALSE) -> 0 | AA22: =VLOOKUP(($B20*10)+5,Results,$I$4,FALSE) -> 0 | AB22: =VLOOKUP(($B20*10)+6,Results,$I$4,FALSE) -> 0 | AC22: =VLOOKUP(($B20*10)+7,Results,$I$4,FALSE) -> 0 | AD22: =VLOOKUP(($B20*10)+8,Results,$I$4,FALSE) -> 0
D23: =VLOOKUP(B24,EventsOrder,4,FALSE) -> U15 Male | E23: A | G23: =VLOOKUP(($B24*10)+1,Results,$F$3,FALSE) -> Jack Compton | I23: =VLOOKUP(($B24*10)+2,Results,$F$3,FALSE) -> Eoin Beevers | K23: =VLOOKUP(($B24*10)+3,Results,$F$3,FALSE) -> Zac Clae | M23: =VLOOKUP(($B24*10)+4,Results,$F$3,FALSE) -> Sam Yates | O23: =VLOOKUP(($B24*10)+5,Results,$F$3,FALSE) -> 0 | Q23: =VLOOKUP(($B24*10)+6,Results,$F$3,FALSE) -> 0 | S23: =VLOOKUP(($B24*10)+7,Results,$F$3,FALSE) -> 0 | U23: =VLOOKUP(($B24*10)+8,Results,$F$3,FALSE) -> 0 | AE23: =IF(LEN(G23)>1,1,0) -> 1
B24: 6 | C24: =VLOOKUP(B24,EventsOrder,2,FALSE) -> 12 | G24: =VLOOKUP(($B24*10)+1,Results,$G$3,FALSE) -> DASH | H24: =VLOOKUP(($B24*10)+1,Results,$H$3,FALSE) -> 5.42 | I24: =VLOOKUP(($B24*10)+2,Results,$G$3,FALSE) -> Dav | J24: =VLOOKUP(($B24*10)+2,Results,$H$3,FALSE) -> 4.71 | K24: =VLOOKUP(($B24*10)+3,Results,$G$3,FALSE) -> Leam | L24: =VLOOKUP(($B24*10)+3,Results,$H$3,FALSE) -> 4.22 | M24: =VLOOKUP(($B24*10)+4,Results,$G$3,FALSE) -> Nun | N24: =VLOOKUP(($B24*10)+4,Results,$H$3,FALSE) -> 4.2 | O24: =VLOOKUP(($B24*10)+5,Results,$G$3,FALSE) -> 0 | P24: =VLOOKUP(($B24*10)+5,Results,$H$3,FALSE) -> 0 | Q24: =VLOOKUP(($B24*10)+6,Results,$G$3,FALSE) -> 0 | R24: =VLOOKUP(($B24*10)+6,Results,$H$3,FALSE) -> 0 | S24: =VLOOKUP(($B24*10)+7,Results,$G$3,FALSE) -> 0 | T24: =VLOOKUP(($B24*10)+7,Results,$H$3,FALSE) -> 0 | U24: =VLOOKUP(($B24*10)+8,Results,$G$3,FALSE) -> 0 | V24: =VLOOKUP(($B24*10)+8,Results,$H$3,FALSE) -> 0 | W24: =VLOOKUP(($B24*10)+1,Results,$I$3,FALSE) -> 6 | X24: =VLOOKUP(($B24*10)+2,Results,$I$3,FALSE) -> 0 | Y24: =VLOOKUP(($B24*10)+3,Results,$I$3,FALSE) -> 7 | Z24: =VLOOKUP(($B24*10)+4,Results,$I$3,FALSE) -> 5 | AA24: =VLOOKUP(($B24*10)+5,Results,$I$3,FALSE) -> 4 | AB24: =VLOOKUP(($B24*10)+6,Results,$I$3,FALSE) -> 0 | AC24: =VLOOKUP(($B24*10)+7,Results,$I$3,FALSE) -> 0 | AD24: =VLOOKUP(($B24*10)+8,Results,$I$3,FALSE) -> 0
D25: =VLOOKUP(B24,EventsOrder,3,FALSE) -> Long Jump | E25: B | G25: =VLOOKUP(($B24*10)+1,Results,$F$4,FALSE) -> 0 | I25: =VLOOKUP(($B24*10)+2,Results,$F$4,FALSE) -> 0 | K25: =VLOOKUP(($B24*10)+3,Results,$F$4,FALSE) -> 0 | M25: =VLOOKUP(($B24*10)+4,Results,$F$4,FALSE) -> 0 | O25: =VLOOKUP(($B24*10)+5,Results,$F$4,FALSE) -> 0 | Q25: =VLOOKUP(($B24*10)+6,Results,$F$4,FALSE) -> 0 | S25: =VLOOKUP(($B24*10)+7,Results,$F$4,FALSE) -> 0 | U25: =VLOOKUP(($B24*10)+8,Results,$F$4,FALSE) -> 0 | AE25: =IF(LEN(G25)>1,1,0) -> 0
G26: =VLOOKUP(($B24*10)+1,Results,$G$4,FALSE) -> 0 | H26: =VLOOKUP(($B24*10)+1,Results,$H$4,FALSE) -> 0 | I26: =VLOOKUP(($B24*10)+2,Results,$G$4,FALSE) -> 0 | J26: =VLOOKUP(($B24*10)+2,Results,$H$4,FALSE) -> 0 | K26: =VLOOKUP(($B24*10)+3,Results,$G$4,FALSE) -> 0 | L26: =VLOOKUP(($B24*10)+3,Results,$H$4,FALSE) -> 0 | M26: =VLOOKUP(($B24*10)+4,Results,$G$4,FALSE) -> 0 | N26: =VLOOKUP(($B24*10)+4,Results,$H$4,FALSE) -> 0 | O26: =VLOOKUP(($B24*10)+5,Results,$G$4,FALSE) -> 0 | P26: =VLOOKUP(($B24*10)+5,Results,$H$4,FALSE) -> 0 | Q26: =VLOOKUP(($B24*10)+6,Results,$G$4,FALSE) -> 0 | R26: =VLOOKUP(($B24*10)+6,Results,$H$4,FALSE) -> 0 | S26: =VLOOKUP(($B24*10)+7,Results,$G$4,FALSE) -> 0 | T26: =VLOOKUP(($B24*10)+7,Results,$H$4,FALSE) -> 0 | U26: =VLOOKUP(($B24*10)+8,Results,$G$4,FALSE) -> 0 | V26: =VLOOKUP(($B24*10)+8,Results,$H$4,FALSE) -> 0 | W26: =VLOOKUP(($B24*10)+1,Results,$I$4,FALSE) -> 0 | X26: =VLOOKUP(($B24*10)+2,Results,$I$4,FALSE) -> 0 | Y26: =VLOOKUP(($B24*10)+3,Results,$I$4,FALSE) -> 0 | Z26: =VLOOKUP(($B24*10)+4,Results,$I$4,FALSE) -> 0 | AA26: =VLOOKUP(($B24*10)+5,Results,$I$4,FALSE) -> 0 | AB26: =VLOOKUP(($B24*10)+6,Results,$I$4,FALSE) -> 0 | AC26: =VLOOKUP(($B24*10)+7,Results,$I$4,FALSE) -> 0 | AD26: =VLOOKUP(($B24*10)+8,Results,$I$4,FALSE) -> 0
D27: =VLOOKUP(B28,EventsOrder,4,FALSE) -> U17 F/Women | E27: A | G27: =VLOOKUP(($B28*10)+1,Results,$F$3,FALSE) -> 0 | I27: =VLOOKUP(($B28*10)+2,Results,$F$3,FALSE) -> 0 | K27: =VLOOKUP(($B28*10)+3,Results,$F$3,FALSE) -> 0 | M27: =VLOOKUP(($B28*10)+4,Results,$F$3,FALSE) -> 0 | O27: =VLOOKUP(($B28*10)+5,Results,$F$3,FALSE) -> 0 | Q27: =VLOOKUP(($B28*10)+6,Results,$F$3,FALSE) -> 0 | S27: =VLOOKUP(($B28*10)+7,Results,$F$3,FALSE) -> 0 | U27: =VLOOKUP(($B28*10)+8,Results,$F$3,FALSE) -> 0
B28: 7 | C28: =VLOOKUP(B28,EventsOrder,2,FALSE) -> 12.05 | G28: =VLOOKUP(($B28*10)+1,Results,$G$3,FALSE) -> 0 | H28: =VLOOKUP(($B28*10)+1,Results,$H$3,FALSE) -> 0 | I28: =VLOOKUP(($B28*10)+2,Results,$G$3,FALSE) -> 0 | J28: =VLOOKUP(($B28*10)+2,Results,$H$3,FALSE) -> 0 | K28: =VLOOKUP(($B28*10)+3,Results,$G$3,FALSE) -> 0 | L28: =VLOOKUP(($B28*10)+3,Results,$H$3,FALSE) -> 0 | M28: =VLOOKUP(($B28*10)+4,Results,$G$3,FALSE) -> 0 | N28: =VLOOKUP(($B28*10)+4,Results,$H$3,FALSE) -> 0 | O28: =VLOOKUP(($B28*10)+5,Results,$G$3,FALSE) -> 0 | P28: =VLOOKUP(($B28*10)+5,Results,$H$3,FALSE) -> 0 | Q28: =VLOOKUP(($B28*10)+6,Results,$G$3,FALSE) -> 0 | R28: =VLOOKUP(($B28*10)+6,Results,$H$3,FALSE) -> 0 | S28: =VLOOKUP(($B28*10)+7,Results,$G$3,FALSE) -> 0 | T28: =VLOOKUP(($B28*10)+7,Results,$H$3,FALSE) -> 0 | U28: =VLOOKUP(($B28*10)+8,Results,$G$3,FALSE) -> 0 | V28: =VLOOKUP(($B28*10)+8,Results,$H$3,FALSE) -> 0 | W28: =VLOOKUP(($B28*10)+1,Results,$I$3,FALSE) -> 0 | X28: =VLOOKUP(($B28*10)+2,Results,$I$3,FALSE) -> 0 | Y28: =VLOOKUP(($B28*10)+3,Results,$I$3,FALSE) -> 0 | Z28: =VLOOKUP(($B28*10)+4,Results,$I$3,FALSE) -> 0 | AA28: =VLOOKUP(($B28*10)+5,Results,$I$3,FALSE) -> 0 | AB28: =VLOOKUP(($B28*10)+6,Results,$I$3,FALSE) -> 0 | AC28: =VLOOKUP(($B28*10)+7,Results,$I$3,FALSE) -> 0 | AD28: =VLOOKUP(($B28*10)+8,Results,$I$3,FALSE) -> 0 | AE28: =IF(LEN(G28)>1,1,0) -> 0
D29: =VLOOKUP(B28,EventsOrder,3,FALSE) -> 1500m | E29: B | G29: =VLOOKUP(($B28*10)+1,Results,$F$4,FALSE) -> 0 | I29: =VLOOKUP(($B28*10)+2,Results,$F$4,FALSE) -> 0 | K29: =VLOOKUP(($B28*10)+3,Results,$F$4,FALSE) -> 0 | M29: =VLOOKUP(($B28*10)+4,Results,$F$4,FALSE) -> 0 | O29: =VLOOKUP(($B28*10)+5,Results,$F$4,FALSE) -> 0 | Q29: =VLOOKUP(($B28*10)+6,Results,$F$4,FALSE) -> 0 | S29: =VLOOKUP(($B28*10)+7,Results,$F$4,FALSE) -> 0 | U29: =VLOOKUP(($B28*10)+8,Results,$F$4,FALSE) -> 0
G30: =VLOOKUP(($B28*10)+1,Results,$G$4,FALSE) -> 0 | H30: =VLOOKUP(($B28*10)+1,Results,$H$4,FALSE) -> 0 | I30: =VLOOKUP(($B28*10)+2,Results,$G$4,FALSE) -> 0 | J30: =VLOOKUP(($B28*10)+2,Results,$H$4,FALSE) -> 0 | K30: =VLOOKUP(($B28*10)+3,Results,$G$4,FALSE) -> 0 | L30: =VLOOKUP(($B28*10)+3,Results,$H$4,FALSE) -> 0 | M30: =VLOOKUP(($B28*10)+4,Results,$G$4,FALSE) -> 0 | N30: =VLOOKUP(($B28*10)+4,Results,$H$4,FALSE) -> 0 | O30: =VLOOKUP(($B28*10)+5,Results,$G$4,FALSE) -> 0 | P30: =VLOOKUP(($B28*10)+5,Results,$H$4,FALSE) -> 0 | Q30: =VLOOKUP(($B28*10)+6,Results,$G$4,FALSE) -> 0 | R30: =VLOOKUP(($B28*10)+6,Results,$H$4,FALSE) -> 0 | S30: =VLOOKUP(($B28*10)+7,Results,$G$4,FALSE) -> 0 | T30: =VLOOKUP(($B28*10)+7,Results,$H$4,FALSE) -> 0 | U30: =VLOOKUP(($B28*10)+8,Results,$G$4,FALSE) -> 0 | V30: =VLOOKUP(($B28*10)+8,Results,$H$4,FALSE) -> 0 | W30: =VLOOKUP(($B28*10)+1,Results,$I$4,FALSE) -> 0 | X30: =VLOOKUP(($B28*10)+2,Results,$I$4,FALSE) -> 0 | Y30: =VLOOKUP(($B28*10)+3,Results,$I$4,FALSE) -> 0 | Z30: =VLOOKUP(($B28*10)+4,Results,$I$4,FALSE) -> 0 | AA30: =VLOOKUP(($B28*10)+5,Results,$I$4,FALSE) -> 0 | AB30: =VLOOKUP(($B28*10)+6,Results,$I$4,FALSE) -> 0 | AC30: =VLOOKUP(($B28*10)+7,Results,$I$4,FALSE) -> 0 | AD30: =VLOOKUP(($B28*10)+8,Results,$I$4,FALSE) -> 0
D31: =VLOOKUP(B32,EventsOrder,4,FALSE) -> U17 Men | E31: A | G31: =VLOOKUP(($B32*10)+1,Results,$F$3,FALSE) -> Tom Miller | I31: =VLOOKUP(($B32*10)+2,Results,$F$3,FALSE) -> 0 | K31: =VLOOKUP(($B32*10)+3,Results,$F$3,FALSE) -> 0 | M31: =VLOOKUP(($B32*10)+4,Results,$F$3,FALSE) -> 0 | O31: =VLOOKUP(($B32*10)+5,Results,$F$3,FALSE) -> 0 | Q31: =VLOOKUP(($B32*10)+6,Results,$F$3,FALSE) -> 0 | S31: =VLOOKUP(($B32*10)+7,Results,$F$3,FALSE) -> 0 | U31: =VLOOKUP(($B32*10)+8,Results,$F$3,FALSE) -> 0
